Workbook

Sheet Feuil1 (hidden)
C1: FC1 40 | D1: FC1 44 | E1: FC1 48 | F1: FC1 53 | G1: FC1 58 | H1: FC1 63 | I1: FC1 69 | J1: FC1 +69 | K1: FC2 44 | L1: FC2 48 | M1: FC2 53 | N1: FC2 58 | O1: FC2 63 | P1: FC2 69 | Q1: FC2 +69 | R1: FJ48 | S1: FJ53 | T1: FJ58 | U1: FJ63 | V1: FJ69 | W1: FJ75 | X1: FJ+75 | Y1: FS48 | Z1: FS53 | AA1: FS58 | AB1: FS63 | AC1: FS69 | AD1: FS75 | AE1: FS+75 | AF1: C1 45 | AG1: C1 50 | AH1: C1 56 | AI1: C1 62 | AJ1: C1 69 | AK1: C1 77 | AL1: C1 85 | AM1: C1 94 | AN1: C1 +94 | AO1: C2 50 | AP1: C2 56 | AQ1: C2 62 | AR1: C2 69 | AS1: C2 77 | AT1: C2 85 | AU1: C2 94 | AV1: C2 +94 | AW1: J56 | AX1: J62 | AY1: J69 | AZ1: J77 | BA1: J85 | BB1: J94 | BC1: J105 | BD1: J+105 | BE1: S56 | BF1: S62 | BG1: S69 | BH1: S77 | BI1: S85 | BJ1: S94 | BK1: S105 | BL1: S+105
B2: DEBUTANT | C2: 20 | D2: 25 | E2: 25 | F2: 35 | G2: 40 | H2: 45 | I2: 50 | J2: 60 | K2: 30 | L2: 35 | M2: 45 | N2: 50 | O2: 55 | P2: 60 | Q2: 70 | R2: 45 | S2: 55 | T2: 60 | U2: 65 | V2: 70 | W2: 80 | X2: 90 | Y2: 55 | Z2: 65 | AA2: 70 | AB2: 75 | AC2: 80 | AD2: 95 | AE2: 100 | AF2: 35 | AG2: 40 | AH2: 50 | AI2: 75 | AJ2: 85 | AK2: 90 | AL2: 100 | AM2: 110 | AN2: 120 | AO2: 45 | AP2: 65 | AQ2: 85 | AR2: 95 | AS2: 110 | AT2: 120 | AU2: 125 | AV2: 135 | AW2: 80 | AX2: 90 | AY2: 110 | AZ2: 130 | BA2: 145 | BB2: 150 | BC2: 155 | BD2: 165 | BE2: 95 | BF2: 120 | BG2: 130 | BH2: 150 | BI2: 165 | BJ2: 170 | BK2: 175 | BL2: 185
B3: DEPARTEMENTAL | C3: 25 | D3: 35 | E3: 35 | F3: 45 | G3: 50 | H3: 55 | I3: 60 | J3: 70 | K3: 40 | L3: 45 | M3: 55 | N3: 60 | O3: 65 | P3: 70 | Q3: 80 | R3: 55 | S3: 65 | T3: 70 | U3: 75 | V3: 80 | W3: 95 | X3: 100 | Y3: 65 | Z3: 75 | AA3: 80 | AB3: 85 | AC3: 90 | AD3: 105 | AE3: 110 | AF3: 50 | AG3: 55 | AH3: 70 | AI3: 95 | AJ3: 105 | AK3: 110 | AL3: 120 | AM3: 130 | AN3: 140 | AO3: 65 | AP3: 85 | AQ3: 105 | AR3: 115 | AS3: 130 | AT3: 140 | AU3: 145 | AV3: 155 | AW3: 100 | AX3: 120 | AY3: 130 | AZ3: 150 | BA3: 165 | BB3: 170 | BC3: 175 | BD3: 185 | BE3: 115 | BF3: 135 | BG3: 150 | BH3: 170 | BI3: 185 | BJ3: 190 | BK3: 195 | BL3: 205
B4: REGIONAL | C4: 35 | D4: 40 | E4: 45 | F4: 55 | G4: 60 | H4: 65 | I4: 70 | J4: 80 | K4: 50 | L4: 55 | M4: 65 | N4: 70 | O4: 75 | P4: 80 | Q4: 95 | R4: 65 | S4: 75 | T4: 80 | U4: 85 | V4: 90 | W4: 105 | X4: 110 | Y4: 75 | Z4: 85 | AA4: 90 | AB4: 95 | AC4: 105 | AD4: 115 | AE4: 125 | AF4: 60 | AG4: 65 | AH4: 85 | AI4: 105 | AJ4: 115 | AK4: 130 | AL4: 140 | AM4: 145 | AN4: 155 | AO4: 80 | AP4: 100 | AQ4: 120 | AR4: 130 | AS4: 150 | AT4: 160 | AU4: 165 | AV4: 175 | AW4: 115 | AX4: 135 | AY4: 150 | AZ4: 170 | BA4: 185 | BB4: 190 | BC4: 195 | BD4: 205 | BE4: 130 | BF4: 150 | BG4: 170 | BH4: 190 | BI4: 205 | BJ4: 215 | BK4: 220 | BL4: 225
B5: INTERREGIONAL | C5: 45 | D5: 50 | E5: 55 | F5: 65 | G5: 70 | H5: 75 | I5: 80 | J5: 95 | K5: 60 | L5: 65 | M5: 75 | N5: 80 | O5: 85 | P5: 90 | Q5: 105 | R5: 75 | S5: 85 | T5: 90 | U5: 95 | V5: 105 | W5: 115 | X5: 125 | Y5: 85 | Z5: 95 | AA5: 100 | AB5: 110 | AC5: 120 | AD5: 130 | AE5: 140 | AF5: 75 | AG5: 80 | AH5: 100 | AI5: 120 | AJ5: 130 | AK5: 150 | AL5: 160 | AM5: 165 | AN5: 175 | AO5: 95 | AP5: 115 | AQ5: 135 | AR5: 150 | AS5: 170 | AT5: 180 | AU5: 185 | AV5: 195 | AW5: 130 | AX5: 150 | AY5: 170 | AZ5: 190 | BA5: 205 | BB5: 215 | BC5: 220 | BD5: 225 | BE5: 145 | BF5: 170 | BG5: 190 | BH5: 210 | BI5: 225 | BJ5: 235 | BK5: 245 | BL5: 250
B6: FEDERAL | C6: 50 | D6: 60 | E6: 65 | F6: 75 | G6: 80 | H6: 85 | I6: 90 | J6: 105 | K6: 70 | L6: 75 | M6: 85 | N6: 90 | O6: 95 | P6: 105 | Q6: 115 | R6: 85 | S6: 95 | T6: 100 | U6: 110 | V6: 120 | W6: 130 | X6: 140 | Y6: 95 | Z6: 105 | AA6: 115 | AB6: 125 | AC6: 135 | AD6: 145 | AE6: 150 | AF6: 90 | AG6: 95 | AH6: 115 | AI6: 135 | AJ6: 150 | AK6: 170 | AL6: 180 | AM6: 185 | AN6: 195 | AO6: 110 | AP6: 130 | AQ6: 150 | AR6: 170 | AS6: 185 | AT6: 200 | AU6: 210 | AV6: 220 | AW6: 145 | AX6: 170 | AY6: 190 | AZ6: 210 | BA6: 225 | BB6: 235 | BC6: 245 | BD6: 250 | BE6: 170 | BF6: 190 | BG6: 220 | BH6: 240 | BI6: 250 | BJ6: 260 | BK6: 270 | BL6: 280
B7: NATIONAL | C7: 60 | D7: 70 | E7: 75 | F7: 85 | G7: 90 | H7: 95 | I7: 105 | J7: 115 | K7: 80 | L7: 85 | M7: 95 | N7: 100 | O7: 110 | P7: 120 | Q7: 130 | R7: 95 | S7: 105 | T7: 115 | U7: 125 | V7: 135 | W7: 145 | X7: 150 | Y7: 110 | Z7: 120 | AA7: 130 | AB7: 140 | AC7: 150 | AD7: 160 | AE7: 170 | AF7: 105 | AG7: 110 | AH7: 130 | AI7: 150 | AJ7: 170 | AK7: 185 | AL7: 200 | AM7: 210 | AN7: 220 | AO7: 120 | AP7: 145 | AQ7: 170 | AR7: 190 | AS7: 200 | AT7: 220 | AU7: 225 | AV7: 235 | AW7: 170 | AX7: 190 | AY7: 220 | AZ7: 240 | BA7: 250 | BB7: 260 | BC7: 270 | BD7: 280 | BE7: 190 | BF7: 210 | BG7: 240 | BH7: 265 | BI7: 280 | BJ7: 290 | BK7: 300 | BL7: 310
B8: INTERNATIONAL B | C8: 70 | D8: 80 | E8: 85 | F8: 95 | G8: 100 | H8: 110 | I8: 120 | J8: 130 | K8: 90 | L8: 95 | M8: 105 | N8: 115 | O8: 125 | P8: 135 | Q8: 145 | R8: 110 | S8: 120 | T8: 130 | U8: 140 | V8: 150 | W8: 160 | X8: 170 | Y8: 125 | Z8: 140 | AA8: 150 | AB8: 160 | AC8: 170 | AD8: 180 | AE8: 190 | AF8: 115 | AG8: 120 | AH8: 145 | AI8: 170 | AJ8: 190 | AK8: 200 | AL8: 220 | AM8: 225 | AN8: 235 | AO8: 135 | AP8: 170 | AQ8: 190 | AR8: 210 | AS8: 220 | AT8: 240 | AU8: 250 | AV8: 260 | AW8: 190 | AX8: 210 | AY8: 240 | AZ8: 260 | BA8: 280 | BB8: 290 | BC8: 300 | BD8: 310 | BE8: 210 | BF8: 230 | BG8: 260 | BH8: 285 | BI8: 300 | BJ8: 310 | BK8: 325 | BL8: 330
B9: INTERNATIONAL A | C9: 80 | D9: 90 | E9: 95 | F9: 105 | G9: 115 | H9: 125 | I9: 135 | J9: 145 | K9: 100 | L9: 110 | M9: 120 | N9: 130 | O9: 140 | P9: 150 | Q9: 160 | R9: 125 | S9: 135 | T9: 150 | U9: 160 | V9: 170 | W9: 180 | X9: 190 | Y9: 140 | Z9: 160 | AA9: 170 | AB9: 180 | AC9: 190 | AD9: 195 | AE9: 210 | AF9: 130 | AG9: 135 | AH9: 170 | AI9: 190 | AJ9: 210 | AK9: 220 | AL9: 240 | AM9: 250 | AN9: 260 | AO9: 150 | AP9: 190 | AQ9: 210 | AR9: 230 | AS9: 250 | AT9: 260 | AU9: 280 | AV9: 280 | AW9: 210 | AX9: 230 | AY9: 250 | AZ9: 285 | BA9: 300 | BB9: 310 | BC9: 325 | BD9: 330 | BE9: 225 | BF9: 255 | BG9: 275 | BH9: 305 | BI9: 325 | BJ9: 330 | BK9: 345 | BL9: 355
B10: OLYMPIQUE | C10: 1000 | D10: 1000 | E10: 1000 | F10: 1000 | G10: 1000 | H10: 1000 | I10: 1000 | J10: 1000 | K10: 1000 | L10: 1000 | M10: 1000 | N10: 1000 | O10: 1000 | P10: 1000 | Q10: 1000 | R10: 1000 | S10: 1000 | T10: 1000 | U10: 1000 | V10: 1000 | W10: 1000 | X10: 1000 | Y10: 155 | Z10: 175 | AA10: 190 | AB10: 200 | AC10: 205 | AD10: 210 | AE10: 225 | AF10: 1000 | AG10: 1000 | AH10: 1000 | AI10: 1000 | AJ10: 1000 | AK10: 1000 | AL10: 10000 | AM10: 1000 | AN10: 1000 | AO10: 1000 | AP10: 1000 | AQ10: 1000 | AR10: 1000 | AS10: 1000 | AT10: 10000 | AU10: 1000 | AV10: 1000 | AW10: 1000 | AX10: 1000 | AY10: 1000 | AZ10: 10000 | BA10: 1000 | BB10: 1000 | BC10: 1000 | BD10: 10000 | BE10: 240 | BF10: 270 | BG10: 290 | BH10: 320 | BI10: 345 | BJ10: 355 | BK10: 365 | BL10: 375
B11: MINIME | C11: CADET | D11: CADET | E11: JUNIOR | F11: SENIOR | H11: MINIME | I11: CADETTE | J11: CADETTE | K11: JUNIOR | L11: SENIOR
A12: 20.01 | B12: NON | C12: C1 45 | D12: C2 50 | E12: J56 | F12: S56 | G12: 20.01 | H12: NON | I12: FC1 40 | J12: FC2 44 | K12: FJ48 | L12: FS48
A13: 34.01 | B13: NON | C13: C1 45 | D13: C2 50 | E13: J56 | F13: S56 | G13: 30.01 | H13: NON | I13: FC1 40 | J13: FC2 44 | K13: FJ48 | L13: FS48
A14: 38.01 | B14: NON | C14: C1 45 | D14: C2 50 | E14: J56 | F14: S56 | G14: 35.01 | H14: NON | I14: FC1 40 | J14: FC2 44 | K14: FJ48 | L14: FS48
A15: 40.01 | B15: NON | C15: C1 45 | D15: C2 50 | E15: J56 | F15: S56 | G15: 36.01 | H15: NON | I15: FC1 40 | J15: FC2 44 | K15: FJ48 | L15: FS48
A16: 45.01 | B16: NON | C16: C1 50 | D16: C2 50 | E16: J56 | F16: S56 | G16: 40.01 | H16: NON | I16: FC1 44 | J16: FC2 44 | K16: FJ48 | L16: FS48
A17: 50.01 | B17: NON | C17: C1 56 | D17: C2 56 | E17: J56 | F17: S56 | G17: 44.01 | H17: NON | I17: FC1 48 | J17: FC2 48 | K17: FJ48 | L17: FS48
A18: 52.05 | B18: NON | C18: C1 56 | D18: C2 56 | E18: J56 | F18: S56 | G18: 48.01 | H18: NON | I18: FC1 53 | J18: FC2 53 | K18: FJ53 | L18: FS53
A19: 56.01 | B19: NON | C19: C1 62 | D19: C2 62 | E19: J62 | F19: S62 | G19: 53.01 | H19: NON | I19: FC1 58 | J19: FC2 58 | K19: FJ58 | L19: FS58
A20: 62.01 | B20: NON | C20: C1 69 | D20: C2 69 | E20: J69 | F20: S69 | G20: 58.01 | H20: NON | I20: FC1 63 | J20: FC2 63 | K20: FJ63 | L20: FS63
A21: 69.01 | B21: NON | C21: C1 77 | D21: C2 77 | E21: J77 | F21: S77 | G21: 63.01 | H21: NON | I21: FC1 69 | J21: FC2 69 | K21: FJ69 | L21: FS69
A22: 77.01 | B22: NON | C22: C1 85 | D22: C2 85 | E22: J85 | F22: S85 | G22: 69.01 | H22: NON | I22: FC1 +69 | J22: FC2 +69 | K22: FJ75 | L22: FS75
A23: 85.01 | B23: NON | C23: C1 94 | D23: C2 94 | E23: J94 | F23: S94 | G23: 75.01 | H23: NON | I23: FC1 +69 | J23: FC2 +69 | K23: FJ+75 | L23: FS+75
A24: 94.01 | B24: NON | C24: C1 +94 | D24: C2 +94 | E24: J105 | F24: S105 | G24: 110 | H24: NON | I24: FC1 +69 | J24: FC2 +69 | K24: FJ+75 | L24: FS+75
A25: 105.01 | B25: NON | C25: C1 +94 | D25: C2 +94 | E25: J+105 | F25: S+105 | G25: 140 | H25: NON | I25: FC1 +69 | J25: FC2 +69 | K25: FJ+75 | L25: FS+75
A26: 110 | B26: NON | C26: C1 +94 | D26: C2 +94 | E26: J+105 | F26: S+105
A27: 120 | B27: NON | C27: C1 +94 | D27: C2 +94 | E27: J+105 | F27: S+105
A28: 130 | B28: NON | C28: C1 +94 | D28: C2 +94 | E28: J+105 | F28: S+105
A29: 140 | B29: NON | C29: C1 +94 | D29: C2 +94 | E29: J+105 | F29: S+105

Sheet CADETS 1
F1: LISTING NATIONAL | H1: MASCULINS | Q1: DATE : | S1: 2015-03-08
L2: 2° TRIMESTRE
A4: SEXE | B4: ZONE | C4: REG. | D4: CL. | E4: LICENCE | F4: NOMS | G4: Prénoms | H4: AN | I4: POIDS | J4: CLUB | K4: NAT | L4: 1 | M4: 2 | N4: 3 | O4: ARR | P4: 1 | Q4: 2 | R4: 3 | S4: EP-J | T4: Total | U4: KP-2PC | V4: SERIE | X4: Catég | Y4: IWF | AB4: DEB | AC4: DEP + | AD4: REG + | AE4: IRG + | AF4: FED + | AG4: NAT + | AH4: INTB + | AI4: INTA + | AJ4: OLY +
AB5: =T5-HLOOKUP(X5,[1]Feuil1!$C$1:$BL$10,2,FALSE) ->  | AC5: =T5-HLOOKUP(X5,[1]Feuil1!$C$1:$BL$10,3,FALSE) ->  | AD5: =T5-HLOOKUP(X5,[1]Feuil1!$C$1:$BL$10,4,FALSE) ->  | AE5: =T5-HLOOKUP(X5,[1]Feuil1!$C$1:$BL$10,5,FALSE) ->  | AF5: =T5-HLOOKUP(X5,[1]Feuil1!$C$1:$BL$10,6,FALSE) ->  | AG5: =T5-HLOOKUP(X5,[1]Feuil1!$C$1:$BL$10,7,FALSE) ->  | AH5: =T5-HLOOKUP(X5,[1]Feuil1!$C$1:$BL$10,8,FALSE) ->  | AI5: =T5-HLOOKUP(X5,[1]Feuil1!$C$1:$BL$10,9,FALSE) ->  | AJ5: =T5-HLOOKUP(X5,[1]Feuil1!$C$1:$BL$10,10,FALSE) ->  | AQ5: =IF(AJ5>=0,$AJ$4,IF(AI5>=0,$AI$4,IF(AH5>=0,$AH$4,IF(AG5>=0,$AG$4,IF(AF5>=0,$AF$4,IF(AE5>=0,$AE$4,IF(AD5>=0,$AD$4,IF(AC5>=0,$AC$4,$AB$4)))))))) -> 
A6: H | B6: NE | C6: CHA | D6: 1 | E6: 357535 | F6: CATTEAU | G6: Jimmy | H6: 2000 | I6: 44.2 | J6: Reims HM | K6: F | L6: 42 | M6: 45 | N6: -48 | O6: =IF(H6="","",IF(MAXA(L6:N6)<=0,0,MAXA(L6:N6))) -> 45 | P6: 53 | Q6: 56 | R6: -59 | S6: =IF(H6="","",IF(MAXA(P6:R6)<=0,0,MAXA(P6:R6))) -> 56 | T6: =IF(H6="","",IF(OR(O6=0,S6=0),0,O6+S6)) -> 101 | U6: =T6-I6*2 -> 12.6 | V6: =IF(H6="","",AQ6) -> FED + | W6: =IF(AJ6>=0,AJ6,IF(AI6>=0,AI6,IF(AH6>=0,AH6,IF(AG6>=0,AG6,IF(AF6>=0,AF6,IF(AE6>=0,AE6,IF(AD6>=0,AD6,IF(AC6>=0,AC6,AB6)))))))) -> 11 | X6: =IF(I6="","",IF(A6="H",IF(OR(H6="SEN",H6<1995),VLOOKUP(I6,Feuil1!$A$11:$G$29,6),IF(AND(H6>1994,H6<1998),VLOOKUP(I6,Feuil1!$A$11:$G$29,5),IF(AND(H6>1997,H6<2000),VLOOKUP(I6,Feuil1!$A$11:$G$29,4),IF(AND(H6>1999,H6<2002),VLOOKUP(I6,Feuil1!$A$11:$G$29,3),VLOOKUP(I6,Feuil1!$A$11:$G$29,2))))),IF(OR(H6="SEN",H6<1995),VLOOKUP(I6,Feuil1!$G$11:$L$25,6),IF(AND(H6>1994,H6<1998),VLOOKUP(I6,Feuil1!$G$11:$L$25,5),IF(AND(H6>1997,H6<2000),VLOOKUP(I6,Feuil1!$G$11:$L$25,4),IF(AND(H6>1999,H6<2002),VLOOKUP(I6,Feuil1!$G$11:$L$25,3),VLOOKUP(I6,Feuil1!$G$11:$L$25,2))))))) -> C1 45 | Y6: =IF(I6="","",IF(A6="H",10^(0.794358141*LOG(I6/174.393)^2)*T6,IF(A6="F",10^(0.89726074*LOG(I6/148.026)^2)*T6,""))) -> 193.4600123 | AB6: =T6-HLOOKUP(X6,Feuil1!$C$1:$BL$10,2,FALSE) -> 66 | AC6: =T6-HLOOKUP(X6,Feuil1!$C$1:$BL$10,3,FALSE) -> 51 | AD6: =T6-HLOOKUP(X6,Feuil1!$C$1:$BL$10,4,FALSE) -> 41 | AE6: =T6-HLOOKUP(X6,Feuil1!$C$1:$BL$10,5,FALSE) -> 26 | AF6: =T6-HLOOKUP(X6,Feuil1!$C$1:$BL$10,6,FALSE) -> 11 | AG6: =T6-HLOOKUP(X6,Feuil1!$C$1:$BL$10,7,FALSE) -> -4 | AH6: =T6-HLOOKUP(X6,Feuil1!$C$1:$BL$10,8,FALSE) -> -14 | AI6: =T6-HLOOKUP(X6,Feuil1!$C$1:$BL$10,9,FALSE) -> -29 | AJ6: =T6-HLOOKUP(X6,Feuil1!$C$1:$BL$10,10,FALSE) -> -899 | AQ6: =IF(AJ6>=0,$AJ$4,IF(AI6>=0,$AI$4,IF(AH6>=0,$AH$4,IF(AG6>=0,$AG$4,IF(AF6>=0,$AF$4,IF(AE6>=0,$AE$4,IF(AD6>=0,$AD$4,IF(AC6>=0,$AC$4,$AB$4)))))))) -> FED +
A7: H | B7: DOM | C7: REU | D7: 2 | E7: 239770 | F7: ESSOB | G7: ETIENNE | H7: 2001 | I7: 43.52 | J7: SCHM St Paul | K7: F | L7: 41 | M7: 43 | N7: 45 | O7: 45 | P7: 50 | Q7: 52 | R7: -54 | S7: 52 | T7: 97 | U7: 9.96 | V7: FED + | W7: 7 | X7: =IF(I7="","",IF(A7="H",IF(OR(H7="SEN",H7<1995),VLOOKUP(I7,Feuil1!$A$11:$G$29,6),IF(AND(H7>1994,H7<1998),VLOOKUP(I7,Feuil1!$A$11:$G$29,5),IF(AND(H7>1997,H7<2000),VLOOKUP(I7,Feuil1!$A$11:$G$29,4),IF(AND(H7>1999,H7<2002),VLOOKUP(I7,Feuil1!$A$11:$G$29,3),VLOOKUP(I7,Feuil1!$A$11:$G$29,2))))),IF(OR(H7="SEN",H7<1995),VLOOKUP(I7,Feuil1!$G$11:$L$25,6),IF(AND(H7>1994,H7<1998),VLOOKUP(I7,Feuil1!$G$11:$L$25,5),IF(AND(H7>1997,H7<2000),VLOOKUP(I7,Feuil1!$G$11:$L$25,4),IF(AND(H7>1999,H7<2002),VLOOKUP(I7,Feuil1!$G$11:$L$25,3),VLOOKUP(I7,Feuil1!$G$11:$L$25,2))))))) -> C1 45 | Y7: 188.5620972 | AB7: =T7-HLOOKUP(X7,Feuil1!$C$1:$BL$10,2,FALSE) -> 62 | AC7: =T7-HLOOKUP(X7,Feuil1!$C$1:$BL$10,3,FALSE) -> 47 | AD7: =T7-HLOOKUP(X7,Feuil1!$C$1:$BL$10,4,FALSE) -> 37 | AE7: =T7-HLOOKUP(X7,Feuil1!$C$1:$BL$10,5,FALSE) -> 22 | AF7: =T7-HLOOKUP(X7,Feuil1!$C$1:$BL$10,6,FALSE) -> 7 | AG7: =T7-HLOOKUP(X7,Feuil1!$C$1:$BL$10,7,FALSE) -> -8 | AH7: =T7-HLOOKUP(X7,Feuil1!$C$1:$BL$10,8,FALSE) -> -18 | AI7: =T7-HLOOKUP(X7,Feuil1!$C$1:$BL$10,9,FALSE) -> -33 | AJ7: =T7-HLOOKUP(X7,Feuil1!$C$1:$BL$10,10,FALSE) -> -903 | AQ7: FED +
A8: H | B8: NE | C8: LOR | D8: 3 | E8: 281801 | F8: GUINDOS | G8: Lucas | H8: 2001 | I8: 43.85 | J8: E.S.LANEUVEVILLOISE | K8: F | L8: 35 | M8: 40 | N8: 43 | O8: 43 | P8: 47 | Q8: -52 | R8: 52 | S8: 52 | T8: 95 | U8: 7.3 | V8: FED + | W8: 5 | X8: =IF(I8="","",IF(A8="H",IF(OR(H8="SEN",H8<1995),VLOOKUP(I8,Feuil1!$A$11:$G$29,6),IF(AND(H8>1994,H8<1998),VLOOKUP(I8,Feuil1!$A$11:$G$29,5),IF(AND(H8>1997,H8<2000),VLOOKUP(I8,Feuil1!$A$11:$G$29,4),IF(AND(H8>1999,H8<2002),VLOOKUP(I8,Feuil1!$A$11:$G$29,3),VLOOKUP(I8,Feuil1!$A$11:$G$29,2))))),IF(OR(H8="SEN",H8<1995),VLOOKUP(I8,Feuil1!$G$11:$L$25,6),IF(AND(H8>1994,H8<1998),VLOOKUP(I8,Feuil1!$G$11:$L$25,5),IF(AND(H8>1997,H8<2000),VLOOKUP(I8,Feuil1!$G$11:$L$25,4),IF(AND(H8>1999,H8<2002),VLOOKUP(I8,Feuil1!$G$11:$L$25,3),VLOOKUP(I8,Feuil1!$G$11:$L$25,2))))))) -> C1 45 | Y8: 183.3465515 | AB8: =T8-HLOOKUP(X8,Feuil1!$C$1:$BL$10,2,FALSE) -> 60 | AC8: =T8-HLOOKUP(X8,Feuil1!$C$1:$BL$10,3,FALSE) -> 45 | AD8: =T8-HLOOKUP(X8,Feuil1!$C$1:$BL$10,4,FALSE) -> 35 | AE8: =T8-HLOOKUP(X8,Feuil1!$C$1:$BL$10,5,FALSE) -> 20 | AF8: =T8-HLOOKUP(X8,Feuil1!$C$1:$BL$10,6,FALSE) -> 5 | AG8: =T8-HLOOKUP(X8,Feuil1!$C$1:$BL$10,7,FALSE) -> -10 | AH8: =T8-HLOOKUP(X8,Feuil1!$C$1:$BL$10,8,FALSE) -> -20 | AI8: =T8-HLOOKUP(X8,Feuil1!$C$1:$BL$10,9,FALSE) -> -35 | AJ8: =T8-HLOOKUP(X8,Feuil1!$C$1:$BL$10,10,FALSE) -> -905 | AQ8: FED +
A9: H | B9: NE | C9: BOU | D9: 4 | E9: 329944 | F9: AMADOU | G9: Alexis | H9: 2001 | I9: 36.4 | J9: HC Avallon | K9: F | L9: 33 | M9: -36 | N9: -36 | O9: 33 | P9: 52 | Q9: 57 | R9: - | S9: 57 | T9: 90 | U9: 17.2 | V9: FED + | W9: 0 | X9: =IF(I9="","",IF(A9="H",IF(OR(H9="SEN",H9<1995),VLOOKUP(I9,Feuil1!$A$11:$G$29,6),IF(AND(H9>1994,H9<1998),VLOOKUP(I9,Feuil1!$A$11:$G$29,5),IF(AND(H9>1997,H9<2000),VLOOKUP(I9,Feuil1!$A$11:$G$29,4),IF(AND(H9>1999,H9<2002),VLOOKUP(I9,Feuil1!$A$11:$G$29,3),VLOOKUP(I9,Feuil1!$A$11:$G$29,2))))),IF(OR(H9="SEN",H9<1995),VLOOKUP(I9,Feuil1!$G$11:$L$25,6),IF(AND(H9>1994,H9<1998),VLOOKUP(I9,Feuil1!$G$11:$L$25,5),IF(AND(H9>1997,H9<2000),VLOOKUP(I9,Feuil1!$G$11:$L$25,4),IF(AND(H9>1999,H9<2002),VLOOKUP(I9,Feuil1!$G$11:$L$25,3),VLOOKUP(I9,Feuil1!$G$11:$L$25,2))))))) -> C1 45 | Y9: 209.901662 | AB9: =T9-HLOOKUP(X9,Feuil1!$C$1:$BL$10,2,FALSE) -> 55 | AC9: =T9-HLOOKUP(X9,Feuil1!$C$1:$BL$10,3,FALSE) -> 40 | AD9: =T9-HLOOKUP(X9,Feuil1!$C$1:$BL$10,4,FALSE) -> 30 | AE9: =T9-HLOOKUP(X9,Feuil1!$C$1:$BL$10,5,FALSE) -> 15 | AF9: =T9-HLOOKUP(X9,Feuil1!$C$1:$BL$10,6,FALSE) -> 0 | AG9: =T9-HLOOKUP(X9,Feuil1!$C$1:$BL$10,7,FALSE) -> -15 | AH9: =T9-HLOOKUP(X9,Feuil1!$C$1:$BL$10,8,FALSE) -> -25 | AI9: =T9-HLOOKUP(X9,Feuil1!$C$1:$BL$10,9,FALSE) -> -40 | AJ9: =T9-HLOOKUP(X9,Feuil1!$C$1:$BL$10,10,FALSE) -> -910 | AQ9: FED +
A10: H | B10: NORD | C10: PIC | D10: 5 | E10: 356996 | F10: DESSON | G10: Rémy | H10: 2000 | I10: 45 | J10: Saleux CHM | K10: F | L10: 30 | M10: -33 | N10: 33 | O10: 33 | P10: 40 | Q10: -45 | R10: 45 | S10: 45 | T10: 78 | U10: -12 | V10: IRG + | W10: 3 | X10: =IF(I10="","",IF(A10="H",IF(OR(H10="SEN",H10<1995),VLOOKUP(I10,Feuil1!$A$11:$G$29,6),IF(AND(H10>1994,H10<1998),VLOOKUP(I10,Feuil1!$A$11:$G$29,5),IF(AND(H10>1997,H10<2000),VLOOKUP(I10,Feuil1!$A$11:$G$29,4),IF(AND(H10>1999,H10<2002),VLOOKUP(I10,Feuil1!$A$11:$G$29,3),VLOOKUP(I10,Feuil1!$A$11:$G$29,2))))),IF(OR(H10="SEN",H10<1995),VLOOKUP(I10,Feuil1!$G$11:$L$25,6),IF(AND(H10>1994,H10<1998),VLOOKUP(I10,Feuil1!$G$11:$L$25,5),IF(AND(H10>1997,H10<2000),VLOOKUP(I10,Feuil1!$G$11:$L$25,4),IF(AND(H10>1999,H10<2002),VLOOKUP(I10,Feuil1!$G$11:$L$25,3),VLOOKUP(I10,Feuil1!$G$11:$L$25,2))))))) -> C1 45 | Y10: 146.9044459 | AB10: =T10-HLOOKUP(X10,Feuil1!$C$1:$BL$10,2,FALSE) -> 43 | AC10: =T10-HLOOKUP(X10,Feuil1!$C$1:$BL$10,3,FALSE) -> 28 | AD10: =T10-HLOOKUP(X10,Feuil1!$C$1:$BL$10,4,FALSE) -> 18 | AE10: =T10-HLOOKUP(X10,Feuil1!$C$1:$BL$10,5,FALSE) -> 3 | AF10: =T10-HLOOKUP(X10,Feuil1!$C$1:$BL$10,6,FALSE) -> -12 | AG10: =T10-HLOOKUP(X10,Feuil1!$C$1:$BL$10,7,FALSE) -> -27 | AH10: =T10-HLOOKUP(X10,Feuil1!$C$1:$BL$10,8,FALSE) -> -37 | AI10: =T10-HLOOKUP(X10,Feuil1!$C$1:$BL$10,9,FALSE) -> -52 | AJ10: =T10-HLOOKUP(X10,Feuil1!$C$1:$BL$10,10,FALSE) -> -922 | AQ10: IRG +
A11: H | B11: DOM | C11: GUA | D11: 6 | E11: 380461 | F11: GRANDMAN | G11: Lionel | H11: 2001 | I11: 44 | J11: AHCS/Pointois | K11: F | L11: 30 | M11: 32 | N11: 34 | O11: 34 | P11: 37 | Q11: 41 | R11: 43 | S11: 43 | T11: 77 | U11: -11 | V11: IRG + | W11: 2 | X11: =IF(I11="","",IF(A11="H",IF(OR(H11="SEN",H11<1995),VLOOKUP(I11,Feuil1!$A$11:$G$29,6),IF(AND(H11>1994,H11<1998),VLOOKUP(I11,Feuil1!$A$11:$G$29,5),IF(AND(H11>1997,H11<2000),VLOOKUP(I11,Feuil1!$A$11:$G$29,4),IF(AND(H11>1999,H11<2002),VLOOKUP(I11,Feuil1!$A$11:$G$29,3),VLOOKUP(I11,Feuil1!$A$11:$G$29,2))))),IF(OR(H11="SEN",H11<1995),VLOOKUP(I11,Feuil1!$G$11:$L$25,6),IF(AND(H11>1994,H11<1998),VLOOKUP(I11,Feuil1!$G$11:$L$25,5),IF(AND(H11>1997,H11<2000),VLOOKUP(I11,Feuil1!$G$11:$L$25,4),IF(AND(H11>1999,H11<2002),VLOOKUP(I11,Feuil1!$G$11:$L$25,3),VLOOKUP(I11,Feuil1!$G$11:$L$25,2))))))) -> C1 45 | Y11: 148.1251953 | AB11: =T11-HLOOKUP(X11,Feuil1!$C$1:$BL$10,2,FALSE) -> 42 | AC11: =T11-HLOOKUP(X11,Feuil1!$C$1:$BL$10,3,FALSE) -> 27 | AD11: =T11-HLOOKUP(X11,Feuil1!$C$1:$BL$10,4,FALSE) -> 17 | AE11: =T11-HLOOKUP(X11,Feuil1!$C$1:$BL$10,5,FALSE) -> 2 | AF11: =T11-HLOOKUP(X11,Feuil1!$C$1:$BL$10,6,FALSE) -> -13 | AG11: =T11-HLOOKUP(X11,Feuil1!$C$1:$BL$10,7,FALSE) -> -28 | AH11: =T11-HLOOKUP(X11,Feuil1!$C$1:$BL$10,8,FALSE) -> -38 | AI11: =T11-HLOOKUP(X11,Feuil1!$C$1:$BL$10,9,FALSE) -> -53 | AJ11: =T11-HLOOKUP(X11,Feuil1!$C$1:$BL$10,10,FALSE) -> -923 | AQ11: IRG +
A12: H | B12: SO | C12: POI | D12: 7 | E12: 360355 | F12: MAURY | G12: Yoann | H12: 2001 | I12: 41.5 | J12: St Jean d'Angély | K12: F | L12: 27 | M12: 31 | N12: 33 | O12: 33 | P12: 37 | Q12: -42 | R12: 42 | S12: 42 | T12: 75 | U12: -8 | V12: IRG + | W12: 0 | X12: =IF(I12="","",IF(A12="H",IF(OR(H12="SEN",H12<1995),VLOOKUP(I12,Feuil1!$A$11:$G$29,6),IF(AND(H12>1994,H12<1998),VLOOKUP(I12,Feuil1!$A$11:$G$29,5),IF(AND(H12>1997,H12<2000),VLOOKUP(I12,Feuil1!$A$11:$G$29,4),IF(AND(H12>1999,H12<2002),VLOOKUP(I12,Feuil1!$A$11:$G$29,3),VLOOKUP(I12,Feuil1!$A$11:$G$29,2))))),IF(OR(H12="SEN",H12<1995),VLOOKUP(I12,Feuil1!$G$11:$L$25,6),IF(AND(H12>1994,H12<1998),VLOOKUP(I12,Feuil1!$G$11:$L$25,5),IF(AND(H12>1997,H12<2000),VLOOKUP(I12,Feuil1!$G$11:$L$25,4),IF(AND(H12>1999,H12<2002),VLOOKUP(I12,Feuil1!$G$11:$L$25,3),VLOOKUP(I12,Feuil1!$G$11:$L$25,2))))))) -> C1 45 | Y12: 152.7041746 | AB12: =T12-HLOOKUP(X12,Feuil1!$C$1:$BL$10,2,FALSE) -> 40 | AC12: =T12-HLOOKUP(X12,Feuil1!$C$1:$BL$10,3,FALSE) -> 25 | AD12: =T12-HLOOKUP(X12,Feuil1!$C$1:$BL$10,4,FALSE) -> 15 | AE12: =T12-HLOOKUP(X12,Feuil1!$C$1:$BL$10,5,FALSE) -> 0 | AF12: =T12-HLOOKUP(X12,Feuil1!$C$1:$BL$10,6,FALSE) -> -15 | AG12: =T12-HLOOKUP(X12,Feuil1!$C$1:$BL$10,7,FALSE) -> -30 | AH12: =T12-HLOOKUP(X12,Feuil1!$C$1:$BL$10,8,FALSE) -> -40 | AI12: =T12-HLOOKUP(X12,Feuil1!$C$1:$BL$10,9,FALSE) -> -55 | AJ12: =T12-HLOOKUP(X12,Feuil1!$C$1:$BL$10,10,FALSE) -> -925 | AQ12: IRG +
A13: H | B13: NE | C13: ALS | D13: 8 | E13: 327576 | F13: MARTZ | G13: LEO | H13: 2000 | I13: 43 | J13: CHM Andlau | K13: F | L13: -32 | M13: 32 | N13: -34 | O13: 32 | P13: 35 | Q13: 39 | R13: 41 | S13: 41 | T13: 73 | U13: -13 | V13: REG + | W13: 13 | X13: =IF(I13="","",IF(A13="H",IF(OR(H13="SEN",H13<1995),VLOOKUP(I13,Feuil1!$A$11:$G$29,6),IF(AND(H13>1994,H13<1998),VLOOKUP(I13,Feuil1!$A$11:$G$29,5),IF(AND(H13>1997,H13<2000),VLOOKUP(I13,Feuil1!$A$11:$G$29,4),IF(AND(H13>1999,H13<2002),VLOOKUP(I13,Feuil1!$A$11:$G$29,3),VLOOKUP(I13,Feuil1!$A$11:$G$29,2))))),IF(OR(H13="SEN",H13<1995),VLOOKUP(I13,Feuil1!$G$11:$L$25,6),IF(AND(H13>1994,H13<1998),VLOOKUP(I13,Feuil1!$G$11:$L$25,5),IF(AND(H13>1997,H13<2000),VLOOKUP(I13,Feuil1!$G$11:$L$25,4),IF(AND(H13>1999,H13<2002),VLOOKUP(I13,Feuil1!$G$11:$L$25,3),VLOOKUP(I13,Feuil1!$G$11:$L$25,2))))))) -> C1 45 | Y13: 143.5578681 | AB13: =T13-HLOOKUP(X13,Feuil1!$C$1:$BL$10,2,FALSE) -> 38 | AC13: =T13-HLOOKUP(X13,Feuil1!$C$1:$BL$10,3,FALSE) -> 23 | AD13: =T13-HLOOKUP(X13,Feuil1!$C$1:$BL$10,4,FALSE) -> 13 | AE13: =T13-HLOOKUP(X13,Feuil1!$C$1:$BL$10,5,FALSE) -> -2 | AF13: =T13-HLOOKUP(X13,Feuil1!$C$1:$BL$10,6,FALSE) -> -17 | AG13: =T13-HLOOKUP(X13,Feuil1!$C$1:$BL$10,7,FALSE) -> -32 | AH13: =T13-HLOOKUP(X13,Feuil1!$C$1:$BL$10,8,FALSE) -> -42 | AI13: =T13-HLOOKUP(X13,Feuil1!$C$1:$BL$10,9,FALSE) -> -57 | AJ13: =T13-HLOOKUP(X13,Feuil1!$C$1:$BL$10,10,FALSE) -> -927 | AQ13: REG +
A14: H | B14: DOM | C14: GUA | D14: 9 | E14: 379132 | F14: MOLINIER | G14: Hugo | H14: 2001 | I14: 44.5 | J14: AHCS/Pointois | K14: F | L14: 28 | M14: 32 | N14: 34 | O14: 34 | P14: 33 | Q14: 35 | R14: 38 | S14: 38 | T14: 72 | U14: -17 | V14: REG + | W14: 12 | X14: =IF(I14="","",IF(A14="H",IF(OR(H14="SEN",H14<1995),VLOOKUP(I14,Feuil1!$A$11:$G$29,6),IF(AND(H14>1994,H14<1998),VLOOKUP(I14,Feuil1!$A$11:$G$29,5),IF(AND(H14>1997,H14<2000),VLOOKUP(I14,Feuil1!$A$11:$G$29,4),IF(AND(H14>1999,H14<2002),VLOOKUP(I14,Feuil1!$A$11:$G$29,3),VLOOKUP(I14,Feuil1!$A$11:$G$29,2))))),IF(OR(H14="SEN",H14<1995),VLOOKUP(I14,Feuil1!$G$11:$L$25,6),IF(AND(H14>1994,H14<1998),VLOOKUP(I14,Feuil1!$G$11:$L$25,5),IF(AND(H14>1997,H14<2000),VLOOKUP(I14,Feuil1!$G$11:$L$25,4),IF(AND(H14>1999,H14<2002),VLOOKUP(I14,Feuil1!$G$11:$L$25,3),VLOOKUP(I14,Feuil1!$G$11:$L$25,2))))))) -> C1 45 | Y14: 137.0335842 | AB14: =T14-HLOOKUP(X14,Feuil1!$C$1:$BL$10,2,FALSE) -> 37 | AC14: =T14-HLOOKUP(X14,Feuil1!$C$1:$BL$10,3,FALSE) -> 22 | AD14: =T14-HLOOKUP(X14,Feuil1!$C$1:$BL$10,4,FALSE) -> 12 | AE14: =T14-HLOOKUP(X14,Feuil1!$C$1:$BL$10,5,FALSE) -> -3 | AF14: =T14-HLOOKUP(X14,Feuil1!$C$1:$BL$10,6,FALSE) -> -18 | AG14: =T14-HLOOKUP(X14,Feuil1!$C$1:$BL$10,7,FALSE) -> -33 | AH14: =T14-HLOOKUP(X14,Feuil1!$C$1:$BL$10,8,FALSE) -> -43 | AI14: =T14-HLOOKUP(X14,Feuil1!$C$1:$BL$10,9,FALSE) -> -58 | AJ14: =T14-HLOOKUP(X14,Feuil1!$C$1:$BL$10,10,FALSE) -> -928 | AQ14: REG +
A15: H | B15: DOM | C15: GUY | D15: 10 | E15: 377221 | F15: MARTIN | G15: Mathieu | H15: 2000 | I15: 41.2 | J15: ASCPG/Rémire Montjoly | K15: F | L15: 30 | M15: 33 | N15: -35 | O15: 33 | P15: 33 | Q15: 36 | R15: 38 | S15: 38 | T15: 71 | U15: -11.4 | V15: REG + | W15: 11 | X15: =IF(I15="","",IF(A15="H",IF(OR(H15="SEN",H15<1995),VLOOKUP(I15,Feuil1!$A$11:$G$29,6),IF(AND(H15>1994,H15<1998),VLOOKUP(I15,Feuil1!$A$11:$G$29,5),IF(AND(H15>1997,H15<2000),VLOOKUP(I15,Feuil1!$A$11:$G$29,4),IF(AND(H15>1999,H15<2002),VLOOKUP(I15,Feuil1!$A$11:$G$29,3),VLOOKUP(I15,Feuil1!$A$11:$G$29,2))))),IF(OR(H15="SEN",H15<1995),VLOOKUP(I15,Feuil1!$G$11:$L$25,6),IF(AND(H15>1994,H15<1998),VLOOKUP(I15,Feuil1!$G$11:$L$25,5),IF(AND(H15>1997,H15<2000),VLOOKUP(I15,Feuil1!$G$11:$L$25,4),IF(AND(H15>1999,H15<2002),VLOOKUP(I15,Feuil1!$G$11:$L$25,3),VLOOKUP(I15,Feuil1!$G$11:$L$25,2))))))) -> C1 45 | Y15: 145.6052175 | AB15: =T15-HLOOKUP(X15,Feuil1!$C$1:$BL$10,2,FALSE) -> 36 | AC15: =T15-HLOOKUP(X15,Feuil1!$C$1:$BL$10,3,FALSE) -> 21 | AD15: =T15-HLOOKUP(X15,Feuil1!$C$1:$BL$10,4,FALSE) -> 11 | AE15: =T15-HLOOKUP(X15,Feuil1!$C$1:$BL$10,5,FALSE) -> -4 | AF15: =T15-HLOOKUP(X15,Feuil1!$C$1:$BL$10,6,FALSE) -> -19 | AG15: =T15-HLOOKUP(X15,Feuil1!$C$1:$BL$10,7,FALSE) -> -34 | AH15: =T15-HLOOKUP(X15,Feuil1!$C$1:$BL$10,8,FALSE) -> -44 | AI15: =T15-HLOOKUP(X15,Feuil1!$C$1:$BL$10,9,FALSE) -> -59 | AJ15: =T15-HLOOKUP(X15,Feuil1!$C$1:$BL$10,10,FALSE) -> -929 | AQ15: REG +
A16: H | B16: SEST | C16: CAZ | D16: 11 | E16: 334473 | F16: TOXE HUREL | G16: Baptiste | H16: 2001 | I16: 40 | J16: ES VILLENEUVE LOUBET | K16: F | L16: 26 | M16: 28 | N16: 30 | O16: 30 | P16: 36 | Q16: 38 | R16: 40 | S16: 40 | T16: 70 | U16: -10 | V16: REG + | W16: 10 | X16: =IF(I16="","",IF(A16="H",IF(OR(H16="SEN",H16<1995),VLOOKUP(I16,Feuil1!$A$11:$G$29,6),IF(AND(H16>1994,H16<1998),VLOOKUP(I16,Feuil1!$A$11:$G$29,5),IF(AND(H16>1997,H16<2000),VLOOKUP(I16,Feuil1!$A$11:$G$29,4),IF(AND(H16>1999,H16<2002),VLOOKUP(I16,Feuil1!$A$11:$G$29,3),VLOOKUP(I16,Feuil1!$A$11:$G$29,2))))),IF(OR(H16="SEN",H16<1995),VLOOKUP(I16,Feuil1!$G$11:$L$25,6),IF(AND(H16>1994,H16<1998),VLOOKUP(I16,Feuil1!$G$11:$L$25,5),IF(AND(H16>1997,H16<2000),VLOOKUP(I16,Feuil1!$G$11:$L$25,4),IF(AND(H16>1999,H16<2002),VLOOKUP(I16,Feuil1!$G$11:$L$25,3),VLOOKUP(I16,Feuil1!$G$11:$L$25,2))))))) -> C1 45 | Y16: 147.8861516 | AB16: =T16-HLOOKUP(X16,Feuil1!$C$1:$BL$10,2,FALSE) -> 35 | AC16: =T16-HLOOKUP(X16,Feuil1!$C$1:$BL$10,3,FALSE) -> 20 | AD16: =T16-HLOOKUP(X16,Feuil1!$C$1:$BL$10,4,FALSE) -> 10 | AE16: =T16-HLOOKUP(X16,Feuil1!$C$1:$BL$10,5,FALSE) -> -5 | AF16: =T16-HLOOKUP(X16,Feuil1!$C$1:$BL$10,6,FALSE) -> -20 | AG16: =T16-HLOOKUP(X16,Feuil1!$C$1:$BL$10,7,FALSE) -> -35 | AH16: =T16-HLOOKUP(X16,Feuil1!$C$1:$BL$10,8,FALSE) -> -45 | AI16: =T16-HLOOKUP(X16,Feuil1!$C$1:$BL$10,9,FALSE) -> -60 | AJ16: =T16-HLOOKUP(X16,Feuil1!$C$1:$BL$10,10,FALSE) -> -930 | AQ16: REG +
A17: H | B17: CO | C17: CEN | D17: 12 | E17: 378404 | F17: DAUMAS | G17: Niels | H17: 2001 | I17: 44.8 | J17: AAJ Blois | K17: F | L17: 25 | M17: 27 | N17: 29 | O17: 29 | P17: 35 | Q17: 38 | R17: 40 | S17: 40 | T17: 69 | U17: -20.6 | V17: REG + | W17: 9 | X17: =IF(I17="","",IF(A17="H",IF(OR(H17="SEN",H17<1995),VLOOKUP(I17,Feuil1!$A$11:$G$29,6),IF(AND(H17>1994,H17<1998),VLOOKUP(I17,Feuil1!$A$11:$G$29,5),IF(AND(H17>1997,H17<2000),VLOOKUP(I17,Feuil1!$A$11:$G$29,4),IF(AND(H17>1999,H17<2002),VLOOKUP(I17,Feuil1!$A$11:$G$29,3),VLOOKUP(I17,Feuil1!$A$11:$G$29,2))))),IF(OR(H17="SEN",H17<1995),VLOOKUP(I17,Feuil1!$G$11:$L$25,6),IF(AND(H17>1994,H17<1998),VLOOKUP(I17,Feuil1!$G$11:$L$25,5),IF(AND(H17>1997,H17<2000),VLOOKUP(I17,Feuil1!$G$11:$L$25,4),IF(AND(H17>1999,H17<2002),VLOOKUP(I17,Feuil1!$G$11:$L$25,3),VLOOKUP(I17,Feuil1!$G$11:$L$25,2))))))) -> C1 45 | Y17: 130.4969962 | AB17: =T17-HLOOKUP(X17,Feuil1!$C$1:$BL$10,2,FALSE) -> 34 | AC17: =T17-HLOOKUP(X17,Feuil1!$C$1:$BL$10,3,FALSE) -> 19 | AD17: =T17-HLOOKUP(X17,Feuil1!$C$1:$BL$10,4,FALSE) -> 9 | AE17: =T17-HLOOKUP(X17,Feuil1!$C$1:$BL$10,5,FALSE) -> -6 | AF17: =T17-HLOOKUP(X17,Feuil1!$C$1:$BL$10,6,FALSE) -> -21 | AG17: =T17-HLOOKUP(X17,Feuil1!$C$1:$BL$10,7,FALSE) -> -36 | AH17: =T17-HLOOKUP(X17,Feuil1!$C$1:$BL$10,8,FALSE) -> -46 | AI17: =T17-HLOOKUP(X17,Feuil1!$C$1:$BL$10,9,FALSE) -> -61 | AJ17: =T17-HLOOKUP(X17,Feuil1!$C$1:$BL$10,10,FALSE) -> -931 | AQ17: REG +
A18: H | B18: SEST | C18: CAZ | D18: 13 | E18: 334191 | F18: RIS | G18: Esteban | H18: 2001 | I18: 43.9 | J18: ES VILLENEUVE LOUBET | K18: F | L18: 26 | M18: 28 | N18: -30 | O18: 28 | P18: 38 | Q18: 40 | R18: -42 | S18: 40 | T18: 68 | U18: -19.8 | V18: REG + | W18: 8 | X18: =IF(I18="","",IF(A18="H",IF(OR(H18="SEN",H18<1995),VLOOKUP(I18,Feuil1!$A$11:$G$29,6),IF(AND(H18>1994,H18<1998),VLOOKUP(I18,Feuil1!$A$11:$G$29,5),IF(AND(H18>1997,H18<2000),VLOOKUP(I18,Feuil1!$A$11:$G$29,4),IF(AND(H18>1999,H18<2002),VLOOKUP(I18,Feuil1!$A$11:$G$29,3),VLOOKUP(I18,Feuil1!$A$11:$G$29,2))))),IF(OR(H18="SEN",H18<1995),VLOOKUP(I18,Feuil1!$G$11:$L$25,6),IF(AND(H18>1994,H18<1998),VLOOKUP(I18,Feuil1!$G$11:$L$25,5),IF(AND(H18>1997,H18<2000),VLOOKUP(I18,Feuil1!$G$11:$L$25,4),IF(AND(H18>1999,H18<2002),VLOOKUP(I18,Feuil1!$G$11:$L$25,3),VLOOKUP(I18,Feuil1!$G$11:$L$25,2))))))) -> C1 45 | Y18: 131.0952087 | AB18: =T18-HLOOKUP(X18,Feuil1!$C$1:$BL$10,2,FALSE) -> 33 | AC18: =T18-HLOOKUP(X18,Feuil1!$C$1:$BL$10,3,FALSE) -> 18 | AD18: =T18-HLOOKUP(X18,Feuil1!$C$1:$BL$10,4,FALSE) -> 8 | AE18: =T18-HLOOKUP(X18,Feuil1!$C$1:$BL$10,5,FALSE) -> -7 | AF18: =T18-HLOOKUP(X18,Feuil1!$C$1:$BL$10,6,FALSE) -> -22 | AG18: =T18-HLOOKUP(X18,Feuil1!$C$1:$BL$10,7,FALSE) -> -37 | AH18: =T18-HLOOKUP(X18,Feuil1!$C$1:$BL$10,8,FALSE) -> -47 | AI18: =T18-HLOOKUP(X18,Feuil1!$C$1:$BL$10,9,FALSE) -> -62 | AJ18: =T18-HLOOKUP(X18,Feuil1!$C$1:$BL$10,10,FALSE) -> -932 | AQ18: REG +
A19: H | B19: NE | C19: FCO | D19: 14 | E19: 376274 | F19: LECOMTE | G19: Kylian | H19: 2000 | I19: 43.7 | J19: CH Luxeuil | K19: F | L19: 25 | M19: -28 | N19: 28 | O19: 28 | P19: -32 | Q19: 32 | R19: 37 | S19: 37 | T19: 65 | U19: -22.4 | V19: REG + | W19: 5 | X19: =IF(I19="","",IF(A19="H",IF(OR(H19="SEN",H19<1995),VLOOKUP(I19,Feuil1!$A$11:$G$29,6),IF(AND(H19>1994,H19<1998),VLOOKUP(I19,Feuil1!$A$11:$G$29,5),IF(AND(H19>1997,H19<2000),VLOOKUP(I19,Feuil1!$A$11:$G$29,4),IF(AND(H19>1999,H19<2002),VLOOKUP(I19,Feuil1!$A$11:$G$29,3),VLOOKUP(I19,Feuil1!$A$11:$G$29,2))))),IF(OR(H19="SEN",H19<1995),VLOOKUP(I19,Feuil1!$G$11:$L$25,6),IF(AND(H19>1994,H19<1998),VLOOKUP(I19,Feuil1!$G$11:$L$25,5),IF(AND(H19>1997,H19<2000),VLOOKUP(I19,Feuil1!$G$11:$L$25,4),IF(AND(H19>1999,H19<2002),VLOOKUP(I19,Feuil1!$G$11:$L$25,3),VLOOKUP(I19,Feuil1!$G$11:$L$25,2))))))) -> C1 45 | Y19: 125.8582747 | AB19: =T19-HLOOKUP(X19,Feuil1!$C$1:$BL$10,2,FALSE) -> 30 | AC19: =T19-HLOOKUP(X19,Feuil1!$C$1:$BL$10,3,FALSE) -> 15 | AD19: =T19-HLOOKUP(X19,Feuil1!$C$1:$BL$10,4,FALSE) -> 5 | AE19: =T19-HLOOKUP(X19,Feuil1!$C$1:$BL$10,5,FALSE) -> -10 | AF19: =T19-HLOOKUP(X19,Feuil1!$C$1:$BL$10,6,FALSE) -> -25 | AG19: =T19-HLOOKUP(X19,Feuil1!$C$1:$BL$10,7,FALSE) -> -40 | AH19: =T19-HLOOKUP(X19,Feuil1!$C$1:$BL$10,8,FALSE) -> -50 | AI19: =T19-HLOOKUP(X19,Feuil1!$C$1:$BL$10,9,FALSE) -> -65 | AJ19: =T19-HLOOKUP(X19,Feuil1!$C$1:$BL$10,10,FALSE) -> -935 | AQ19: REG +
A20: H | B20: NE | C20: CHA | D20: 15 | E20: 376656 | F20: GUSTIN | G20: Eliséo | H20: 2001 | I20: 44.3 | J20: Reims HM | K20: F | L20: 19 | M20: 22 | N20: 24 | O20: 24 | P20: 32 | Q20: 35 | R20: 38 | S20: 38 | T20: 62 | U20: -26.6 | V20: REG + | W20: 2 | X20: =IF(I20="","",IF(A20="H",IF(OR(H20="SEN",H20<1995),VLOOKUP(I20,Feuil1!$A$11:$G$29,6),IF(AND(H20>1994,H20<1998),VLOOKUP(I20,Feuil1!$A$11:$G$29,5),IF(AND(H20>1997,H20<2000),VLOOKUP(I20,Feuil1!$A$11:$G$29,4),IF(AND(H20>1999,H20<2002),VLOOKUP(I20,Feuil1!$A$11:$G$29,3),VLOOKUP(I20,Feuil1!$A$11:$G$29,2))))),IF(OR(H20="SEN",H20<1995),VLOOKUP(I20,Feuil1!$G$11:$L$25,6),IF(AND(H20>1994,H20<1998),VLOOKUP(I20,Feuil1!$G$11:$L$25,5),IF(AND(H20>1997,H20<2000),VLOOKUP(I20,Feuil1!$G$11:$L$25,4),IF(AND(H20>1999,H20<2002),VLOOKUP(I20,Feuil1!$G$11:$L$25,3),VLOOKUP(I20,Feuil1!$G$11:$L$25,2))))))) -> C1 45 | Y20: 118.5039451 | AB20: =T20-HLOOKUP(X20,Feuil1!$C$1:$BL$10,2,FALSE) -> 27 | AC20: =T20-HLOOKUP(X20,Feuil1!$C$1:$BL$10,3,FALSE) -> 12 | AD20: =T20-HLOOKUP(X20,Feuil1!$C$1:$BL$10,4,FALSE) -> 2 | AE20: =T20-HLOOKUP(X20,Feuil1!$C$1:$BL$10,5,FALSE) -> -13 | AF20: =T20-HLOOKUP(X20,Feuil1!$C$1:$BL$10,6,FALSE) -> -28 | AG20: =T20-HLOOKUP(X20,Feuil1!$C$1:$BL$10,7,FALSE) -> -43 | AH20: =T20-HLOOKUP(X20,Feuil1!$C$1:$BL$10,8,FALSE) -> -53 | AI20: =T20-HLOOKUP(X20,Feuil1!$C$1:$BL$10,9,FALSE) -> -68 | AJ20: =T20-HLOOKUP(X20,Feuil1!$C$1:$BL$10,10,FALSE) -> -938 | AQ20: REG +
A21: H | B21: NE | C21: LOR | D21: 16 | E21: 332322 | F21: SIERADZKI | G21: Lucas | H21: 2001 | I21: 35.9 | J21: A.O.C.Pte-ROSSELLE | K21: F | L21: 22 | M21: 26 | N21: 28 | O21: 28 | P21: 28 | Q21: 33 | R21: -36 | S21: 33 | T21: 61 | U21: -10.8 | V21: REG + | W21: 1 | X21: =IF(I21="","",IF(A21="H",IF(OR(H21="SEN",H21<1995),VLOOKUP(I21,Feuil1!$A$11:$G$29,6),IF(AND(H21>1994,H21<1998),VLOOKUP(I21,Feuil1!$A$11:$G$29,5),IF(AND(H21>1997,H21<2000),VLOOKUP(I21,Feuil1!$A$11:$G$29,4),IF(AND(H21>1999,H21<2002),VLOOKUP(I21,Feuil1!$A$11:$G$29,3),VLOOKUP(I21,Feuil1!$A$11:$G$29,2))))),IF(OR(H21="SEN",H21<1995),VLOOKUP(I21,Feuil1!$G$11:$L$25,6),IF(AND(H21>1994,H21<1998),VLOOKUP(I21,Feuil1!$G$11:$L$25,5),IF(AND(H21>1997,H21<2000),VLOOKUP(I21,Feuil1!$G$11:$L$25,4),IF(AND(H21>1999,H21<2002),VLOOKUP(I21,Feuil1!$G$11:$L$25,3),VLOOKUP(I21,Feuil1!$G$11:$L$25,2))))))) -> C1 45 | Y21: 144.4193552 | AB21: =T21-HLOOKUP(X21,Feuil1!$C$1:$BL$10,2,FALSE) -> 26 | AC21: =T21-HLOOKUP(X21,Feuil1!$C$1:$BL$10,3,FALSE) -> 11 | AD21: =T21-HLOOKUP(X21,Feuil1!$C$1:$BL$10,4,FALSE) -> 1 | AE21: =T21-HLOOKUP(X21,Feuil1!$C$1:$BL$10,5,FALSE) -> -14 | AF21: =T21-HLOOKUP(X21,Feuil1!$C$1:$BL$10,6,FALSE) -> -29 | AG21: =T21-HLOOKUP(X21,Feuil1!$C$1:$BL$10,7,FALSE) -> -44 | AH21: =T21-HLOOKUP(X21,Feuil1!$C$1:$BL$10,8,FALSE) -> -54 | AI21: =T21-HLOOKUP(X21,Feuil1!$C$1:$BL$10,9,FALSE) -> -69 | AJ21: =T21-HLOOKUP(X21,Feuil1!$C$1:$BL$10,10,FALSE) -> -939 | AQ21: REG +
A22: H | B22: NE | C22: ALS | D22: 17 | E22: 376850 | F22: LECLERC | G22: YANN | H22: 2001 | I22: 37.8 | J22: Dorlisheim FH | K22: F | L22: 22 | M22: -25 | N22: 25 | O22: 25 | P22: 28 | Q22: 31 | R22: -34 | S22: 31 | T22: 56 | U22: -19.6 | V22: DEP + | W22: 6 | X22: =IF(I22="","",IF(A22="H",IF(OR(H22="SEN",H22<1995),VLOOKUP(I22,Feuil1!$A$11:$G$29,6),IF(AND(H22>1994,H22<1998),VLOOKUP(I22,Feuil1!$A$11:$G$29,5),IF(AND(H22>1997,H22<2000),VLOOKUP(I22,Feuil1!$A$11:$G$29,4),IF(AND(H22>1999,H22<2002),VLOOKUP(I22,Feuil1!$A$11:$G$29,3),VLOOKUP(I22,Feuil1!$A$11:$G$29,2))))),IF(OR(H22="SEN",H22<1995),VLOOKUP(I22,Feuil1!$G$11:$L$25,6),IF(AND(H22>1994,H22<1998),VLOOKUP(I22,Feuil1!$G$11:$L$25,5),IF(AND(H22>1997,H22<2000),VLOOKUP(I22,Feuil1!$G$11:$L$25,4),IF(AND(H22>1999,H22<2002),VLOOKUP(I22,Feuil1!$G$11:$L$25,3),VLOOKUP(I22,Feuil1!$G$11:$L$25,2))))))) -> C1 45 | Y22: 125.4459513 | AB22: =T22-HLOOKUP(X22,Feuil1!$C$1:$BL$10,2,FALSE) -> 21 | AC22: =T22-HLOOKUP(X22,Feuil1!$C$1:$BL$10,3,FALSE) -> 6 | AD22: =T22-HLOOKUP(X22,Feuil1!$C$1:$BL$10,4,FALSE) -> -4 | AE22: =T22-HLOOKUP(X22,Feuil1!$C$1:$BL$10,5,FALSE) -> -19 | AF22: =T22-HLOOKUP(X22,Feuil1!$C$1:$BL$10,6,FALSE) -> -34 | AG22: =T22-HLOOKUP(X22,Feuil1!$C$1:$BL$10,7,FALSE) -> -49 | AH22: =T22-HLOOKUP(X22,Feuil1!$C$1:$BL$10,8,FALSE) -> -59 | AI22: =T22-HLOOKUP(X22,Feuil1!$C$1:$BL$10,9,FALSE) -> -74 | AJ22: =T22-HLOOKUP(X22,Feuil1!$C$1:$BL$10,10,FALSE) -> -944 | AQ22: DEP +
A23: H | B23: SEST | C23: RAL | D23: 18 | E23: 377231 | F23: POISSON | G23: Quentin | H23: 2000 | I23: 39.9 | J23: Entente VIRIAT | K23: F | L23: 20 | M23: 23 | N23: -24 | O23: 23 | P23: 28 | Q23: 31 | R23: 33 | S23: 33 | T23: 56 | U23: -23.8 | V23: DEP + | W23: 6 | X23: =IF(I23="","",IF(A23="H",IF(OR(H23="SEN",H23<1995),VLOOKUP(I23,Feuil1!$A$11:$G$29,6),IF(AND(H23>1994,H23<1998),VLOOKUP(I23,Feuil1!$A$11:$G$29,5),IF(AND(H23>1997,H23<2000),VLOOKUP(I23,Feuil1!$A$11:$G$29,4),IF(AND(H23>1999,H23<2002),VLOOKUP(I23,Feuil1!$A$11:$G$29,3),VLOOKUP(I23,Feuil1!$A$11:$G$29,2))))),IF(OR(H23="SEN",H23<1995),VLOOKUP(I23,Feuil1!$G$11:$L$25,6),IF(AND(H23>1994,H23<1998),VLOOKUP(I23,Feuil1!$G$11:$L$25,5),IF(AND(H23>1997,H23<2000),VLOOKUP(I23,Feuil1!$G$11:$L$25,4),IF(AND(H23>1999,H23<2002),VLOOKUP(I23,Feuil1!$G$11:$L$25,3),VLOOKUP(I23,Feuil1!$G$11:$L$25,2))))))) -> C1 45 | Y23: 118.6104222 | AB23: =T23-HLOOKUP(X23,Feuil1!$C$1:$BL$10,2,FALSE) -> 21 | AC23: =T23-HLOOKUP(X23,Feuil1!$C$1:$BL$10,3,FALSE) -> 6 | AD23: =T23-HLOOKUP(X23,Feuil1!$C$1:$BL$10,4,FALSE) -> -4 | AE23: =T23-HLOOKUP(X23,Feuil1!$C$1:$BL$10,5,FALSE) -> -19 | AF23: =T23-HLOOKUP(X23,Feuil1!$C$1:$BL$10,6,FALSE) -> -34 | AG23: =T23-HLOOKUP(X23,Feuil1!$C$1:$BL$10,7,FALSE) -> -49 | AH23: =T23-HLOOKUP(X23,Feuil1!$C$1:$BL$10,8,FALSE) -> -59 | AI23: =T23-HLOOKUP(X23,Feuil1!$C$1:$BL$10,9,FALSE) -> -74 | AJ23: =T23-HLOOKUP(X23,Feuil1!$C$1:$BL$10,10,FALSE) -> -944 | AQ23: DEP +
A24: H | B24: CO | C24: PDL | D24: 19 | E24: 390184 | F24: AERTS | G24: Maxence | H24: 2001 | I24: 40.8 | J24: CA EVRON 53 | K24: F | L24: 23 | M24: -25 | N24: 25 | O24: 25 | P24: 25 | Q24: 27 | R24: 30 | S24: 30 | T24: 55 | U24: -26.6 | V24: DEP + | W24: 5 | X24: =IF(I24="","",IF(A24="H",IF(OR(H24="SEN",H24<1995),VLOOKUP(I24,Feuil1!$A$11:$G$29,6),IF(AND(H24>1994,H24<1998),VLOOKUP(I24,Feuil1!$A$11:$G$29,5),IF(AND(H24>1997,H24<2000),VLOOKUP(I24,Feuil1!$A$11:$G$29,4),IF(AND(H24>1999,H24<2002),VLOOKUP(I24,Feuil1!$A$11:$G$29,3),VLOOKUP(I24,Feuil1!$A$11:$G$29,2))))),IF(OR(H24="SEN",H24<1995),VLOOKUP(I24,Feuil1!$G$11:$L$25,6),IF(AND(H24>1994,H24<1998),VLOOKUP(I24,Feuil1!$G$11:$L$25,5),IF(AND(H24>1997,H24<2000),VLOOKUP(I24,Feuil1!$G$11:$L$25,4),IF(AND(H24>1999,H24<2002),VLOOKUP(I24,Feuil1!$G$11:$L$25,3),VLOOKUP(I24,Feuil1!$G$11:$L$25,2))))))) -> C1 45 | Y24: 113.8973699 | AB24: =T24-HLOOKUP(X24,Feuil1!$C$1:$BL$10,2,FALSE) -> 20 | AC24: =T24-HLOOKUP(X24,Feuil1!$C$1:$BL$10,3,FALSE) -> 5 | AD24: =T24-HLOOKUP(X24,Feuil1!$C$1:$BL$10,4,FALSE) -> -5 | AE24: =T24-HLOOKUP(X24,Feuil1!$C$1:$BL$10,5,FALSE) -> -20 | AF24: =T24-HLOOKUP(X24,Feuil1!$C$1:$BL$10,6,FALSE) -> -35 | AG24: =T24-HLOOKUP(X24,Feuil1!$C$1:$BL$10,7,FALSE) -> -50 | AH24: =T24-HLOOKUP(X24,Feuil1!$C$1:$BL$10,8,FALSE) -> -60 | AI24: =T24-HLOOKUP(X24,Feuil1!$C$1:$BL$10,9,FALSE) -> -75 | AJ24: =T24-HLOOKUP(X24,Feuil1!$C$1:$BL$10,10,FALSE) -> -945 | AQ24: DEP +
A25: H | B25: SEST | C25: PRO | D25: 20 | E25: 326189 | F25: POUBLAN | G25: QUENTIN | H25: 2000 | I25: 44.5 | J25: EEAR MONTEUX | K25: F | L25: 17 | M25: 20 | N25: 22 | O25: 22 | P25: 26 | Q25: 30 | R25: 32 | S25: 32 | T25: 54 | U25: -35 | V25: DEP + | W25: 4 | X25: =IF(I25="","",IF(A25="H",IF(OR(H25="SEN",H25<1995),VLOOKUP(I25,Feuil1!$A$11:$G$29,6),IF(AND(H25>1994,H25<1998),VLOOKUP(I25,Feuil1!$A$11:$G$29,5),IF(AND(H25>1997,H25<2000),VLOOKUP(I25,Feuil1!$A$11:$G$29,4),IF(AND(H25>1999,H25<2002),VLOOKUP(I25,Feuil1!$A$11:$G$29,3),VLOOKUP(I25,Feuil1!$A$11:$G$29,2))))),IF(OR(H25="SEN",H25<1995),VLOOKUP(I25,Feuil1!$G$11:$L$25,6),IF(AND(H25>1994,H25<1998),VLOOKUP(I25,Feuil1!$G$11:$L$25,5),IF(AND(H25>1997,H25<2000),VLOOKUP(I25,Feuil1!$G$11:$L$25,4),IF(AND(H25>1999,H25<2002),VLOOKUP(I25,Feuil1!$G$11:$L$25,3),VLOOKUP(I25,Feuil1!$G$11:$L$25,2))))))) -> C1 45 | Y25: 102.7751881 | AB25: =T25-HLOOKUP(X25,Feuil1!$C$1:$BL$10,2,FALSE) -> 19 | AC25: =T25-HLOOKUP(X25,Feuil1!$C$1:$BL$10,3,FALSE) -> 4 | AD25: =T25-HLOOKUP(X25,Feuil1!$C$1:$BL$10,4,FALSE) -> -6 | AE25: =T25-HLOOKUP(X25,Feuil1!$C$1:$BL$10,5,FALSE) -> -21 | AF25: =T25-HLOOKUP(X25,Feuil1!$C$1:$BL$10,6,FALSE) -> -36 | AG25: =T25-HLOOKUP(X25,Feuil1!$C$1:$BL$10,7,FALSE) -> -51 | AH25: =T25-HLOOKUP(X25,Feuil1!$C$1:$BL$10,8,FALSE) -> -61 | AI25: =T25-HLOOKUP(X25,Feuil1!$C$1:$BL$10,9,FALSE) -> -76 | AJ25: =T25-HLOOKUP(X25,Feuil1!$C$1:$BL$10,10,FALSE) -> -946 | AQ25: DEP +
A26: H | B26: NORD | C26: PIC | D26: 21 | E26: 317387 | F26: FLEURY | G26: Alex | H26: 2001 | I26: 35.7 | J26: Hirson CEHT | K26: F | L26: 19 | M26: -21 | N26: 21 | O26: 21 | P26: 28 | Q26: 30 | R26: 32 | S26: 32 | T26: 53 | U26: -18.4 | V26: DEP + | W26: 3 | X26: =IF(I26="","",IF(A26="H",IF(OR(H26="SEN",H26<1995),VLOOKUP(I26,Feuil1!$A$11:$G$29,6),IF(AND(H26>1994,H26<1998),VLOOKUP(I26,Feuil1!$A$11:$G$29,5),IF(AND(H26>1997,H26<2000),VLOOKUP(I26,Feuil1!$A$11:$G$29,4),IF(AND(H26>1999,H26<2002),VLOOKUP(I26,Feuil1!$A$11:$G$29,3),VLOOKUP(I26,Feuil1!$A$11:$G$29,2))))),IF(OR(H26="SEN",H26<1995),VLOOKUP(I26,Feuil1!$G$11:$L$25,6),IF(AND(H26>1994,H26<1998),VLOOKUP(I26,Feuil1!$G$11:$L$25,5),IF(AND(H26>1997,H26<2000),VLOOKUP(I26,Feuil1!$G$11:$L$25,4),IF(AND(H26>1999,H26<2002),VLOOKUP(I26,Feuil1!$G$11:$L$25,3),VLOOKUP(I26,Feuil1!$G$11:$L$25,2))))))) -> C1 45 | Y26: 126.2472829 | AB26: =T26-HLOOKUP(X26,Feuil1!$C$1:$BL$10,2,FALSE) -> 18 | AC26: =T26-HLOOKUP(X26,Feuil1!$C$1:$BL$10,3,FALSE) -> 3 | AD26: =T26-HLOOKUP(X26,Feuil1!$C$1:$BL$10,4,FALSE) -> -7 | AE26: =T26-HLOOKUP(X26,Feuil1!$C$1:$BL$10,5,FALSE) -> -22 | AF26: =T26-HLOOKUP(X26,Feuil1!$C$1:$BL$10,6,FALSE) -> -37 | AG26: =T26-HLOOKUP(X26,Feuil1!$C$1:$BL$10,7,FALSE) -> -52 | AH26: =T26-HLOOKUP(X26,Feuil1!$C$1:$BL$10,8,FALSE) -> -62 | AI26: =T26-HLOOKUP(X26,Feuil1!$C$1:$BL$10,9,FALSE) -> -77 | AJ26: =T26-HLOOKUP(X26,Feuil1!$C$1:$BL$10,10,FALSE) -> -947 | AQ26: DEP +
A27: H | B27: SO | C27: LIM | D27: 22 | E27: 330948 | F27: DOS SANTOS | G27: Hugo | H27: 2000 | I27: 29.9 | J27: TULLE ASH | K27: F | L27: 20 | M27: -22 | N27: 22 | O27: 22 | P27: 28 | Q27: 30 | R27: -32 | S27: 30 | T27: 52 | U27: -7.8 | V27: DEP + | W27: 2 | X27: =IF(I27="","",IF(A27="H",IF(OR(H27="SEN",H27<1995),VLOOKUP(I27,Feuil1!$A$11:$G$29,6),IF(AND(H27>1994,H27<1998),VLOOKUP(I27,Feuil1!$A$11:$G$29,5),IF(AND(H27>1997,H27<2000),VLOOKUP(I27,Feuil1!$A$11:$G$29,4),IF(AND(H27>1999,H27<2002),VLOOKUP(I27,Feuil1!$A$11:$G$29,3),VLOOKUP(I27,Feuil1!$A$11:$G$29,2))))),IF(OR(H27="SEN",H27<1995),VLOOKUP(I27,Feuil1!$G$11:$L$25,6),IF(AND(H27>1994,H27<1998),VLOOKUP(I27,Feuil1!$G$11:$L$25,5),IF(AND(H27>1997,H27<2000),VLOOKUP(I27,Feuil1!$G$11:$L$25,4),IF(AND(H27>1999,H27<2002),VLOOKUP(I27,Feuil1!$G$11:$L$25,3),VLOOKUP(I27,Feuil1!$G$11:$L$25,2))))))) -> C1 45 | Y27: 152.0284219 | AB27: =T27-HLOOKUP(X27,Feuil1!$C$1:$BL$10,2,FALSE) -> 17 | AC27: =T27-HLOOKUP(X27,Feuil1!$C$1:$BL$10,3,FALSE) -> 2 | AD27: =T27-HLOOKUP(X27,Feuil1!$C$1:$BL$10,4,FALSE) -> -8 | AE27: =T27-HLOOKUP(X27,Feuil1!$C$1:$BL$10,5,FALSE) -> -23 | AF27: =T27-HLOOKUP(X27,Feuil1!$C$1:$BL$10,6,FALSE) -> -38 | AG27: =T27-HLOOKUP(X27,Feuil1!$C$1:$BL$10,7,FALSE) -> -53 | AH27: =T27-HLOOKUP(X27,Feuil1!$C$1:$BL$10,8,FALSE) -> -63 | AI27: =T27-HLOOKUP(X27,Feuil1!$C$1:$BL$10,9,FALSE) -> -78 | AJ27: =T27-HLOOKUP(X27,Feuil1!$C$1:$BL$10,10,FALSE) -> -948 | AQ27: DEP +
A28: H | B28: N | C28: IDF | D28: 23 | E28: 381135 | F28: PEREIRA | G28: STAN | H28: 2001 | I28: 37.8 | J28: FRANCONVILLE | K28: F | L28: 22 | M28: -25 | N28: -25 | O28: 22 | P28: 30 | Q28: -33 | R28: -33 | S28: 30 | T28: 52 | U28: -23.6 | V28: DEP + | W28: 2 | X28: =IF(I28="","",IF(A28="H",IF(OR(H28="SEN",H28<1995),VLOOKUP(I28,Feuil1!$A$11:$G$29,6),IF(AND(H28>1994,H28<1998),VLOOKUP(I28,Feuil1!$A$11:$G$29,5),IF(AND(H28>1997,H28<2000),VLOOKUP(I28,Feuil1!$A$11:$G$29,4),IF(AND(H28>1999,H28<2002),VLOOKUP(I28,Feuil1!$A$11:$G$29,3),VLOOKUP(I28,Feuil1!$A$11:$G$29,2))))),IF(OR(H28="SEN",H28<1995),VLOOKUP(I28,Feuil1!$G$11:$L$25,6),IF(AND(H28>1994,H28<1998),VLOOKUP(I28,Feuil1!$G$11:$L$25,5),IF(AND(H28>1997,H28<2000),VLOOKUP(I28,Feuil1!$G$11:$L$25,4),IF(AND(H28>1999,H28<2002),VLOOKUP(I28,Feuil1!$G$11:$L$25,3),VLOOKUP(I28,Feuil1!$G$11:$L$25,2))))))) -> C1 45 | Y28: 116.4855262 | AB28: =T28-HLOOKUP(X28,Feuil1!$C$1:$BL$10,2,FALSE) -> 17 | AC28: =T28-HLOOKUP(X28,Feuil1!$C$1:$BL$10,3,FALSE) -> 2 | AD28: =T28-HLOOKUP(X28,Feuil1!$C$1:$BL$10,4,FALSE) -> -8 | AE28: =T28-HLOOKUP(X28,Feuil1!$C$1:$BL$10,5,FALSE) -> -23 | AF28: =T28-HLOOKUP(X28,Feuil1!$C$1:$BL$10,6,FALSE) -> -38 | AG28: =T28-HLOOKUP(X28,Feuil1!$C$1:$BL$10,7,FALSE) -> -53 | AH28: =T28-HLOOKUP(X28,Feuil1!$C$1:$BL$10,8,FALSE) -> -63 | AI28: =T28-HLOOKUP(X28,Feuil1!$C$1:$BL$10,9,FALSE) -> -78 | AJ28: =T28-HLOOKUP(X28,Feuil1!$C$1:$BL$10,10,FALSE) -> -948 | AQ28: DEP +
A29: H | B29: NORD | C29: NPC | D29: 24 | E29: 390389 | F29: RYCKEBUSCH | G29: Alexis | H29: 2000 | I29: 38.6 | J29: C.A.ROSENDAEL | K29: F | L29: 17 | M29: 20 | N29: 22 | O29: 22 | P29: -26 | Q29: 28 | R29: 30 | S29: 30 | T29: 52 | U29: -25.2 | V29: DEP + | W29: 2 | X29: =IF(I29="","",IF(A29="H",IF(OR(H29="SEN",H29<1995),VLOOKUP(I29,Feuil1!$A$11:$G$29,6),IF(AND(H29>1994,H29<1998),VLOOKUP(I29,Feuil1!$A$11:$G$29,5),IF(AND(H29>1997,H29<2000),VLOOKUP(I29,Feuil1!$A$11:$G$29,4),IF(AND(H29>1999,H29<2002),VLOOKUP(I29,Feuil1!$A$11:$G$29,3),VLOOKUP(I29,Feuil1!$A$11:$G$29,2))))),IF(OR(H29="SEN",H29<1995),VLOOKUP(I29,Feuil1!$G$11:$L$25,6),IF(AND(H29>1994,H29<1998),VLOOKUP(I29,Feuil1!$G$11:$L$25,5),IF(AND(H29>1997,H29<2000),VLOOKUP(I29,Feuil1!$G$11:$L$25,4),IF(AND(H29>1999,H29<2002),VLOOKUP(I29,Feuil1!$G$11:$L$25,3),VLOOKUP(I29,Feuil1!$G$11:$L$25,2))))))) -> C1 45 | Y29: 113.9573197 | AB29: =T29-HLOOKUP(X29,Feuil1!$C$1:$BL$10,2,FALSE) -> 17 | AC29: =T29-HLOOKUP(X29,Feuil1!$C$1:$BL$10,3,FALSE) -> 2 | AD29: =T29-HLOOKUP(X29,Feuil1!$C$1:$BL$10,4,FALSE) -> -8 | AE29: =T29-HLOOKUP(X29,Feuil1!$C$1:$BL$10,5,FALSE) -> -23 | AF29: =T29-HLOOKUP(X29,Feuil1!$C$1:$BL$10,6,FALSE) -> -38 | AG29: =T29-HLOOKUP(X29,Feuil1!$C$1:$BL$10,7,FALSE) -> -53 | AH29: =T29-HLOOKUP(X29,Feuil1!$C$1:$BL$10,8,FALSE) -> -63 | AI29: =T29-HLOOKUP(X29,Feuil1!$C$1:$BL$10,9,FALSE) -> -78 | AJ29: =T29-HLOOKUP(X29,Feuil1!$C$1:$BL$10,10,FALSE) -> -948 | AQ29: DEP +
A30: H | B30: SEST | C30: RAL | D30: 25 | E30: 373867 | F30: PETRIS | G30: Quentin | H30: 2001 | I30: 40.8 | J30: H.C. ST BALDOPH | K30: F | L30: 18 | M30: 19 | N30: 20 | O30: 20 | P30: 24 | Q30: 26 | R30: 28 | S30: 28 | T30: 48 | U30: -33.6 | V30: DEB | W30: 13 | X30: =IF(I30="","",IF(A30="H",IF(OR(H30="SEN",H30<1995),VLOOKUP(I30,Feuil1!$A$11:$G$29,6),IF(AND(H30>1994,H30<1998),VLOOKUP(I30,Feuil1!$A$11:$G$29,5),IF(AND(H30>1997,H30<2000),VLOOKUP(I30,Feuil1!$A$11:$G$29,4),IF(AND(H30>1999,H30<2002),VLOOKUP(I30,Feuil1!$A$11:$G$29,3),VLOOKUP(I30,Feuil1!$A$11:$G$29,2))))),IF(OR(H30="SEN",H30<1995),VLOOKUP(I30,Feuil1!$G$11:$L$25,6),IF(AND(H30>1994,H30<1998),VLOOKUP(I30,Feuil1!$G$11:$L$25,5),IF(AND(H30>1997,H30<2000),VLOOKUP(I30,Feuil1!$G$11:$L$25,4),IF(AND(H30>1999,H30<2002),VLOOKUP(I30,Feuil1!$G$11:$L$25,3),VLOOKUP(I30,Feuil1!$G$11:$L$25,2))))))) -> C1 45 | Y30: 99.40134097 | AB30: =T30-HLOOKUP(X30,Feuil1!$C$1:$BL$10,2,FALSE) -> 13 | AC30: =T30-HLOOKUP(X30,Feuil1!$C$1:$BL$10,3,FALSE) -> -2 | AD30: =T30-HLOOKUP(X30,Feuil1!$C$1:$BL$10,4,FALSE) -> -12 | AE30: =T30-HLOOKUP(X30,Feuil1!$C$1:$BL$10,5,FALSE) -> -27 | AF30: =T30-HLOOKUP(X30,Feuil1!$C$1:$BL$10,6,FALSE) -> -42 | AG30: =T30-HLOOKUP(X30,Feuil1!$C$1:$BL$10,7,FALSE) -> -57 | AH30: =T30-HLOOKUP(X30,Feuil1!$C$1:$BL$10,8,FALSE) -> -67 | AI30: =T30-HLOOKUP(X30,Feuil1!$C$1:$BL$10,9,FALSE) -> -82 | AJ30: =T30-HLOOKUP(X30,Feuil1!$C$1:$BL$10,10,FALSE) -> -952 | AQ30: DEB
A31: H | B31: SEST | C31: PRO | D31: 26 | E31: 394565 | F31: MAZZOCHI | G31: Léo | H31: 2001 | I31: 43.5 | J31: HC NOVES | K31: F | L31: 15 | M31: 18 | N31: 21 | O31: 21 | P31: 18 | Q31: 22 | R31: 25 | S31: 25 | T31: 46 | U31: -41 | V31: DEB | W31: 11 | X31: =IF(I31="","",IF(A31="H",IF(OR(H31="SEN",H31<1995),VLOOKUP(I31,Feuil1!$A$11:$G$29,6),IF(AND(H31>1994,H31<1998),VLOOKUP(I31,Feuil1!$A$11:$G$29,5),IF(AND(H31>1997,H31<2000),VLOOKUP(I31,Feuil1!$A$11:$G$29,4),IF(AND(H31>1999,H31<2002),VLOOKUP(I31,Feuil1!$A$11:$G$29,3),VLOOKUP(I31,Feuil1!$A$11:$G$29,2))))),IF(OR(H31="SEN",H31<1995),VLOOKUP(I31,Feuil1!$G$11:$L$25,6),IF(AND(H31>1994,H31<1998),VLOOKUP(I31,Feuil1!$G$11:$L$25,5),IF(AND(H31>1997,H31<2000),VLOOKUP(I31,Feuil1!$G$11:$L$25,4),IF(AND(H31>1999,H31<2002),VLOOKUP(I31,Feuil1!$G$11:$L$25,3),VLOOKUP(I31,Feuil1!$G$11:$L$25,2))))))) -> C1 45 | Y31: 89.46058269 | AB31: =T31-HLOOKUP(X31,Feuil1!$C$1:$BL$10,2,FALSE) -> 11 | AC31: =T31-HLOOKUP(X31,Feuil1!$C$1:$BL$10,3,FALSE) -> -4 | AD31: =T31-HLOOKUP(X31,Feuil1!$C$1:$BL$10,4,FALSE) -> -14 | AE31: =T31-HLOOKUP(X31,Feuil1!$C$1:$BL$10,5,FALSE) -> -29 | AF31: =T31-HLOOKUP(X31,Feuil1!$C$1:$BL$10,6,FALSE) -> -44 | AG31: =T31-HLOOKUP(X31,Feuil1!$C$1:$BL$10,7,FALSE) -> -59 | AH31: =T31-HLOOKUP(X31,Feuil1!$C$1:$BL$10,8,FALSE) -> -69 | AI31: =T31-HLOOKUP(X31,Feuil1!$C$1:$BL$10,9,FALSE) -> -84 | AJ31: =T31-HLOOKUP(X31,Feuil1!$C$1:$BL$10,10,FALSE) -> -954 | AQ31: DEB
A32: H | B32: NORD | C32: PIC | D32: 27 | E32: 378363 | F32: DEGOUY | G32: Maxandre | H32: 2001 | I32: 44.9 | J32: Villers-Bretonneux KC | K32: F | L32: 19 | M32: -22 | N32: 22 | O32: 22 | P32: -23 | Q32: -23 | R32: 23 | S32: 23 | T32: 45 | U32: -44.8 | V32: DEB | W32: 10 | X32: =IF(I32="","",IF(A32="H",IF(OR(H32="SEN",H32<1995),VLOOKUP(I32,Feuil1!$A$11:$G$29,6),IF(AND(H32>1994,H32<1998),VLOOKUP(I32,Feuil1!$A$11:$G$29,5),IF(AND(H32>1997,H32<2000),VLOOKUP(I32,Feuil1!$A$11:$G$29,4),IF(AND(H32>1999,H32<2002),VLOOKUP(I32,Feuil1!$A$11:$G$29,3),VLOOKUP(I32,Feuil1!$A$11:$G$29,2))))),IF(OR(H32="SEN",H32<1995),VLOOKUP(I32,Feuil1!$G$11:$L$25,6),IF(AND(H32>1994,H32<1998),VLOOKUP(I32,Feuil1!$G$11:$L$25,5),IF(AND(H32>1997,H32<2000),VLOOKUP(I32,Feuil1!$G$11:$L$25,4),IF(AND(H32>1999,H32<2002),VLOOKUP(I32,Feuil1!$G$11:$L$25,3),VLOOKUP(I32,Feuil1!$G$11:$L$25,2))))))) -> C1 45 | Y32: 84.92912364 | AB32: =T32-HLOOKUP(X32,Feuil1!$C$1:$BL$10,2,FALSE) -> 10 | AC32: =T32-HLOOKUP(X32,Feuil1!$C$1:$BL$10,3,FALSE) -> -5 | AD32: =T32-HLOOKUP(X32,Feuil1!$C$1:$BL$10,4,FALSE) -> -15 | AE32: =T32-HLOOKUP(X32,Feuil1!$C$1:$BL$10,5,FALSE) -> -30 | AF32: =T32-HLOOKUP(X32,Feuil1!$C$1:$BL$10,6,FALSE) -> -45 | AG32: =T32-HLOOKUP(X32,Feuil1!$C$1:$BL$10,7,FALSE) -> -60 | AH32: =T32-HLOOKUP(X32,Feuil1!$C$1:$BL$10,8,FALSE) -> -70 | AI32: =T32-HLOOKUP(X32,Feuil1!$C$1:$BL$10,9,FALSE) -> -85 | AJ32: =T32-HLOOKUP(X32,Feuil1!$C$1:$BL$10,10,FALSE) -> -955 | AQ32: DEB
A33: H | B33: NE | C33: ALS | D33: 28 | E33: 381283 | F33: BUCHER | G33: Léo | H33: 2001 | I33: 42.7 | J33: SR Obernai HM | K33: F | L33: 15 | M33: 17 | N33: 20 | O33: 20 | P33: 20 | Q33: 23 | R33: -26 | S33: 23 | T33: 43 | U33: -42.4 | V33: DEB | W33: 8 | X33: =IF(I33="","",IF(A33="H",IF(OR(H33="SEN",H33<1995),VLOOKUP(I33,Feuil1!$A$11:$G$29,6),IF(AND(H33>1994,H33<1998),VLOOKUP(I33,Feuil1!$A$11:$G$29,5),IF(AND(H33>1997,H33<2000),VLOOKUP(I33,Feuil1!$A$11:$G$29,4),IF(AND(H33>1999,H33<2002),VLOOKUP(I33,Feuil1!$A$11:$G$29,3),VLOOKUP(I33,Feuil1!$A$11:$G$29,2))))),IF(OR(H33="SEN",H33<1995),VLOOKUP(I33,Feuil1!$G$11:$L$25,6),IF(AND(H33>1994,H33<1998),VLOOKUP(I33,Feuil1!$G$11:$L$25,5),IF(AND(H33>1997,H33<2000),VLOOKUP(I33,Feuil1!$G$11:$L$25,4),IF(AND(H33>1999,H33<2002),VLOOKUP(I33,Feuil1!$G$11:$L$25,3),VLOOKUP(I33,Feuil1!$G$11:$L$25,2))))))) -> C1 45 | Y33: 85.13678561 | AB33: =T33-HLOOKUP(X33,Feuil1!$C$1:$BL$10,2,FALSE) -> 8 | AC33: =T33-HLOOKUP(X33,Feuil1!$C$1:$BL$10,3,FALSE) -> -7 | AD33: =T33-HLOOKUP(X33,Feuil1!$C$1:$BL$10,4,FALSE) -> -17 | AE33: =T33-HLOOKUP(X33,Feuil1!$C$1:$BL$10,5,FALSE) -> -32 | AF33: =T33-HLOOKUP(X33,Feuil1!$C$1:$BL$10,6,FALSE) -> -47 | AG33: =T33-HLOOKUP(X33,Feuil1!$C$1:$BL$10,7,FALSE) -> -62 | AH33: =T33-HLOOKUP(X33,Feuil1!$C$1:$BL$10,8,FALSE) -> -72 | AI33: =T33-HLOOKUP(X33,Feuil1!$C$1:$BL$10,9,FALSE) -> -87 | AJ33: =T33-HLOOKUP(X33,Feuil1!$C$1:$BL$10,10,FALSE) -> -957 | AQ33: DEB
A34: H | B34: SEST | C34: RAL | D34: 29 | E34: 380144 | F34: DUFFEZ | G34: Maxime | H34: 2000 | I34: 40.6 | J34: C.H. L'ARBRESLE | K34: F | L34: 15 | M34: 17 | N34: -20 | O34: 17 | P34: 20 | Q34: 23 | R34: 25 | S34: 25 | T34: 42 | U34: -39.2 | V34: DEB | W34: 7 | X34: =IF(I34="","",IF(A34="H",IF(OR(H34="SEN",H34<1995),VLOOKUP(I34,Feuil1!$A$11:$G$29,6),IF(AND(H34>1994,H34<1998),VLOOKUP(I34,Feuil1!$A$11:$G$29,5),IF(AND(H34>1997,H34<2000),VLOOKUP(I34,Feuil1!$A$11:$G$29,4),IF(AND(H34>1999,H34<2002),VLOOKUP(I34,Feuil1!$A$11:$G$29,3),VLOOKUP(I34,Feuil1!$A$11:$G$29,2))))),IF(OR(H34="SEN",H34<1995),VLOOKUP(I34,Feuil1!$G$11:$L$25,6),IF(AND(H34>1994,H34<1998),VLOOKUP(I34,Feuil1!$G$11:$L$25,5),IF(AND(H34>1997,H34<2000),VLOOKUP(I34,Feuil1!$G$11:$L$25,4),IF(AND(H34>1999,H34<2002),VLOOKUP(I34,Feuil1!$G$11:$L$25,3),VLOOKUP(I34,Feuil1!$G$11:$L$25,2))))))) -> C1 45 | Y34: 87.40633125 | AB34: =T34-HLOOKUP(X34,Feuil1!$C$1:$BL$10,2,FALSE) -> 7 | AC34: =T34-HLOOKUP(X34,Feuil1!$C$1:$BL$10,3,FALSE) -> -8 | AD34: =T34-HLOOKUP(X34,Feuil1!$C$1:$BL$10,4,FALSE) -> -18 | AE34: =T34-HLOOKUP(X34,Feuil1!$C$1:$BL$10,5,FALSE) -> -33 | AF34: =T34-HLOOKUP(X34,Feuil1!$C$1:$BL$10,6,FALSE) -> -48 | AG34: =T34-HLOOKUP(X34,Feuil1!$C$1:$BL$10,7,FALSE) -> -63 | AH34: =T34-HLOOKUP(X34,Feuil1!$C$1:$BL$10,8,FALSE) -> -73 | AI34: =T34-HLOOKUP(X34,Feuil1!$C$1:$BL$10,9,FALSE) -> -88 | AJ34: =T34-HLOOKUP(X34,Feuil1!$C$1:$BL$10,10,FALSE) -> -958 | AQ34: DEB
A35: H | B35: NORD | C35: PIC | D35: 30 | E35: 387612 | F35: FOURCROY | G35: David | H35: 2001 | I35: 41.5 | J35: Villers-Bretonneux KC | K35: F | L35: 10 | M35: 15 | N35: 18 | O35: 18 | P35: 15 | Q35: 20 | R35: 23 | S35: 23 | T35: 41 | U35: -42 | V35: DEB | W35: 6 | X35: =IF(I35="","",IF(A35="H",IF(OR(H35="SEN",H35<1995),VLOOKUP(I35,Feuil1!$A$11:$G$29,6),IF(AND(H35>1994,H35<1998),VLOOKUP(I35,Feuil1!$A$11:$G$29,5),IF(AND(H35>1997,H35<2000),VLOOKUP(I35,Feuil1!$A$11:$G$29,4),IF(AND(H35>1999,H35<2002),VLOOKUP(I35,Feuil1!$A$11:$G$29,3),VLOOKUP(I35,Feuil1!$A$11:$G$29,2))))),IF(OR(H35="SEN",H35<1995),VLOOKUP(I35,Feuil1!$G$11:$L$25,6),IF(AND(H35>1994,H35<1998),VLOOKUP(I35,Feuil1!$G$11:$L$25,5),IF(AND(H35>1997,H35<2000),VLOOKUP(I35,Feuil1!$G$11:$L$25,4),IF(AND(H35>1999,H35<2002),VLOOKUP(I35,Feuil1!$G$11:$L$25,3),VLOOKUP(I35,Feuil1!$G$11:$L$25,2))))))) -> C1 45 | Y35: 83.47828214 | AB35: =T35-HLOOKUP(X35,Feuil1!$C$1:$BL$10,2,FALSE) -> 6 | AC35: =T35-HLOOKUP(X35,Feuil1!$C$1:$BL$10,3,FALSE) -> -9 | AD35: =T35-HLOOKUP(X35,Feuil1!$C$1:$BL$10,4,FALSE) -> -19 | AE35: =T35-HLOOKUP(X35,Feuil1!$C$1:$BL$10,5,FALSE) -> -34 | AF35: =T35-HLOOKUP(X35,Feuil1!$C$1:$BL$10,6,FALSE) -> -49 | AG35: =T35-HLOOKUP(X35,Feuil1!$C$1:$BL$10,7,FALSE) -> -64 | AH35: =T35-HLOOKUP(X35,Feuil1!$C$1:$BL$10,8,FALSE) -> -74 | AI35: =T35-HLOOKUP(X35,Feuil1!$C$1:$BL$10,9,FALSE) -> -89 | AJ35: =T35-HLOOKUP(X35,Feuil1!$C$1:$BL$10,10,FALSE) -> -959 | AQ35: DEB
A36: H | B36: CO | C36: PDL | D36: 31 | E36: 386514 | F36: HERVÉ | G36: MATHEW | H36: 2001 | I36: 32.8 | J36: CJF Laval-Voutré | K36: F | L36: 12 | M36: 15 | N36: -17 | O36: 15 | P36: 20 | Q36: 22 | R36: 24 | S36: 24 | T36: 39 | U36: -26.6 | V36: DEB | W36: 4 | X36: =IF(I36="","",IF(A36="H",IF(OR(H36="SEN",H36<1995),VLOOKUP(I36,Feuil1!$A$11:$G$29,6),IF(AND(H36>1994,H36<1998),VLOOKUP(I36,Feuil1!$A$11:$G$29,5),IF(AND(H36>1997,H36<2000),VLOOKUP(I36,Feuil1!$A$11:$G$29,4),IF(AND(H36>1999,H36<2002),VLOOKUP(I36,Feuil1!$A$11:$G$29,3),VLOOKUP(I36,Feuil1!$A$11:$G$29,2))))),IF(OR(H36="SEN",H36<1995),VLOOKUP(I36,Feuil1!$G$11:$L$25,6),IF(AND(H36>1994,H36<1998),VLOOKUP(I36,Feuil1!$G$11:$L$25,5),IF(AND(H36>1997,H36<2000),VLOOKUP(I36,Feuil1!$G$11:$L$25,4),IF(AND(H36>1999,H36<2002),VLOOKUP(I36,Feuil1!$G$11:$L$25,3),VLOOKUP(I36,Feuil1!$G$11:$L$25,2))))))) -> C1 45 | Y36: 102.1772297 | AB36: =T36-HLOOKUP(X36,Feuil1!$C$1:$BL$10,2,FALSE) -> 4 | AC36: =T36-HLOOKUP(X36,Feuil1!$C$1:$BL$10,3,FALSE) -> -11 | AD36: =T36-HLOOKUP(X36,Feuil1!$C$1:$BL$10,4,FALSE) -> -21 | AE36: =T36-HLOOKUP(X36,Feuil1!$C$1:$BL$10,5,FALSE) -> -36 | AF36: =T36-HLOOKUP(X36,Feuil1!$C$1:$BL$10,6,FALSE) -> -51 | AG36: =T36-HLOOKUP(X36,Feuil1!$C$1:$BL$10,7,FALSE) -> -66 | AH36: =T36-HLOOKUP(X36,Feuil1!$C$1:$BL$10,8,FALSE) -> -76 | AI36: =T36-HLOOKUP(X36,Feuil1!$C$1:$BL$10,9,FALSE) -> -91 | AJ36: =T36-HLOOKUP(X36,Feuil1!$C$1:$BL$10,10,FALSE) -> -961 | AQ36: DEB
A37: H | B37: NORD | C37: PIC | D37: 32 | E37: 329325 | F37: MENESSON | G37: Valentin | H37: 2000 | I37: 32.9 | J37: Hirson CEHT | K37: F | L37: 13 | M37: 15 | N37: -17 | O37: 15 | P37: 19 | Q37: 21 | R37: 23 | S37: 23 | T37: 38 | U37: -27.8 | V37: DEB | W37: 3 | X37: =IF(I37="","",IF(A37="H",IF(OR(H37="SEN",H37<1995),VLOOKUP(I37,Feuil1!$A$11:$G$29,6),IF(AND(H37>1994,H37<1998),VLOOKUP(I37,Feuil1!$A$11:$G$29,5),IF(AND(H37>1997,H37<2000),VLOOKUP(I37,Feuil1!$A$11:$G$29,4),IF(AND(H37>1999,H37<2002),VLOOKUP(I37,Feuil1!$A$11:$G$29,3),VLOOKUP(I37,Feuil1!$A$11:$G$29,2))))),IF(OR(H37="SEN",H37<1995),VLOOKUP(I37,Feuil1!$G$11:$L$25,6),IF(AND(H37>1994,H37<1998),VLOOKUP(I37,Feuil1!$G$11:$L$25,5),IF(AND(H37>1997,H37<2000),VLOOKUP(I37,Feuil1!$G$11:$L$25,4),IF(AND(H37>1999,H37<2002),VLOOKUP(I37,Feuil1!$G$11:$L$25,3),VLOOKUP(I37,Feuil1!$G$11:$L$25,2))))))) -> C1 45 | Y37: 99.20883685 | AB37: =T37-HLOOKUP(X37,Feuil1!$C$1:$BL$10,2,FALSE) -> 3 | AC37: =T37-HLOOKUP(X37,Feuil1!$C$1:$BL$10,3,FALSE) -> -12 | AD37: =T37-HLOOKUP(X37,Feuil1!$C$1:$BL$10,4,FALSE) -> -22 | AE37: =T37-HLOOKUP(X37,Feuil1!$C$1:$BL$10,5,FALSE) -> -37 | AF37: =T37-HLOOKUP(X37,Feuil1!$C$1:$BL$10,6,FALSE) -> -52 | AG37: =T37-HLOOKUP(X37,Feuil1!$C$1:$BL$10,7,FALSE) -> -67 | AH37: =T37-HLOOKUP(X37,Feuil1!$C$1:$BL$10,8,FALSE) -> -77 | AI37: =T37-HLOOKUP(X37,Feuil1!$C$1:$BL$10,9,FALSE) -> -92 | AJ37: =T37-HLOOKUP(X37,Feuil1!$C$1:$BL$10,10,FALSE) -> -962 | AQ37: DEB
A38: H | B38: SEST | C38: CAZ | D38: 33 | E38: 391435 | F38: PILONE | G38: Costantin | H38: 2001 | I38: 32 | J38: ES VILLENEUVE LOUBET | K38: F | L38: 7 | M38: 9 | N38: 11 | O38: 11 | P38: 12 | Q38: 14 | R38: 15 | S38: 15 | T38: 26 | U38: -38 | V38: DEB | W38: -9 | X38: =IF(I38="","",IF(A38="H",IF(OR(H38="SEN",H38<1995),VLOOKUP(I38,Feuil1!$A$11:$G$29,6),IF(AND(H38>1994,H38<1998),VLOOKUP(I38,Feuil1!$A$11:$G$29,5),IF(AND(H38>1997,H38<2000),VLOOKUP(I38,Feuil1!$A$11:$G$29,4),IF(AND(H38>1999,H38<2002),VLOOKUP(I38,Feuil1!$A$11:$G$29,3),VLOOKUP(I38,Feuil1!$A$11:$G$29,2))))),IF(OR(H38="SEN",H38<1995),VLOOKUP(I38,Feuil1!$G$11:$L$25,6),IF(AND(H38>1994,H38<1998),VLOOKUP(I38,Feuil1!$G$11:$L$25,5),IF(AND(H38>1997,H38<2000),VLOOKUP(I38,Feuil1!$G$11:$L$25,4),IF(AND(H38>1999,H38<2002),VLOOKUP(I38,Feuil1!$G$11:$L$25,3),VLOOKUP(I38,Feuil1!$G$11:$L$25,2))))))) -> C1 45 | Y38: 70.09988973 | AB38: =T38-HLOOKUP(X38,Feuil1!$C$1:$BL$10,2,FALSE) -> -9 | AC38: =T38-HLOOKUP(X38,Feuil1!$C$1:$BL$10,3,FALSE) -> -24 | AD38: =T38-HLOOKUP(X38,Feuil1!$C$1:$BL$10,4,FALSE) -> -34 | AE38: =T38-HLOOKUP(X38,Feuil1!$C$1:$BL$10,5,FALSE) -> -49 | AF38: =T38-HLOOKUP(X38,Feuil1!$C$1:$BL$10,6,FALSE) -> -64 | AG38: =T38-HLOOKUP(X38,Feuil1!$C$1:$BL$10,7,FALSE) -> -79 | AH38: =T38-HLOOKUP(X38,Feuil1!$C$1:$BL$10,8,FALSE) -> -89 | AI38: =T38-HLOOKUP(X38,Feuil1!$C$1:$BL$10,9,FALSE) -> -104 | AJ38: =T38-HLOOKUP(X38,Feuil1!$C$1:$BL$10,10,FALSE) -> -974 | AQ38: DEB
AB39: =T39-HLOOKUP(X39,[1]Feuil1!$C$1:$BL$10,2,FALSE) ->  | AC39: =T39-HLOOKUP(X39,[1]Feuil1!$C$1:$BL$10,3,FALSE) ->  | AD39: =T39-HLOOKUP(X39,[1]Feuil1!$C$1:$BL$10,4,FALSE) ->  | AE39: =T39-HLOOKUP(X39,[1]Feuil1!$C$1:$BL$10,5,FALSE) ->  | AF39: =T39-HLOOKUP(X39,[1]Feuil1!$C$1:$BL$10,6,FALSE) ->  | AG39: =T39-HLOOKUP(X39,[1]Feuil1!$C$1:$BL$10,7,FALSE) ->  | AH39: =T39-HLOOKUP(X39,[1]Feuil1!$C$1:$BL$10,8,FALSE) ->  | AI39: =T39-HLOOKUP(X39,[1]Feuil1!$C$1:$BL$10,9,FALSE) ->  | AJ39: =T39-HLOOKUP(X39,[1]Feuil1!$C$1:$BL$10,10,FALSE) ->  | AQ39: =IF(AJ39>=0,$AJ$4,IF(AI39>=0,$AI$4,IF(AH39>=0,$AH$4,IF(AG39>=0,$AG$4,IF(AF39>=0,$AF$4,IF(AE39>=0,$AE$4,IF(AD39>=0,$AD$4,IF(AC39>=0,$AC$4,$AB$4)))))))) -> 
A40: H | B40: NORD | C40: NPC | D40: 1 | E40: 279998 | F40: RIQUIER | G40: Jérémy | H40: 2000 | I40: 48.4 | J40: CHCD COMINES | K40: F | L40: 55 | M40: 58 | N40: -61 | O40: =IF(H40="","",IF(MAXA(L40:N40)<=0,0,MAXA(L40:N40))) -> 58 | P40: 67 | Q40: 70 | R40: 73 | S40: =IF(H40="","",IF(MAXA(P40:R40)<=0,0,MAXA(P40:R40))) -> 73 | T40: =IF(H40="","",IF(OR(O40=0,S40=0),0,O40+S40)) -> 131 | U40: =T40-I40*2 -> 34.2 | V40: =IF(H40="","",AQ40) -> INTB + | W40: =IF(AJ40>=0,AJ40,IF(AI40>=0,AI40,IF(AH40>=0,AH40,IF(AG40>=0,AG40,IF(AF40>=0,AF40,IF(AE40>=0,AE40,IF(AD40>=0,AD40,IF(AC40>=0,AC40,AB40)))))))) -> 11 | X40: =IF(I40="","",IF(A40="H",IF(OR(H40="SEN",H40<1995),VLOOKUP(I40,Feuil1!$A$11:$G$29,6),IF(AND(H40>1994,H40<1998),VLOOKUP(I40,Feuil1!$A$11:$G$29,5),IF(AND(H40>1997,H40<2000),VLOOKUP(I40,Feuil1!$A$11:$G$29,4),IF(AND(H40>1999,H40<2002),VLOOKUP(I40,Feuil1!$A$11:$G$29,3),VLOOKUP(I40,Feuil1!$A$11:$G$29,2))))),IF(OR(H40="SEN",H40<1995),VLOOKUP(I40,Feuil1!$G$11:$L$25,6),IF(AND(H40>1994,H40<1998),VLOOKUP(I40,Feuil1!$G$11:$L$25,5),IF(AND(H40>1997,H40<2000),VLOOKUP(I40,Feuil1!$G$11:$L$25,4),IF(AND(H40>1999,H40<2002),VLOOKUP(I40,Feuil1!$G$11:$L$25,3),VLOOKUP(I40,Feuil1!$G$11:$L$25,2))))))) -> C1 50 | Y40: =IF(I40="","",IF(A40="H",10^(0.794358141*LOG(I40/174.393)^2)*T40,IF(A40="F",10^(0.89726074*LOG(I40/148.026)^2)*T40,""))) -> 230.9086935 | AB40: =T40-HLOOKUP(X40,Feuil1!$C$1:$BL$10,2,FALSE) -> 91 | AC40: =T40-HLOOKUP(X40,Feuil1!$C$1:$BL$10,3,FALSE) -> 76 | AD40: =T40-HLOOKUP(X40,Feuil1!$C$1:$BL$10,4,FALSE) -> 66 | AE40: =T40-HLOOKUP(X40,Feuil1!$C$1:$BL$10,5,FALSE) -> 51 | AF40: =T40-HLOOKUP(X40,Feuil1!$C$1:$BL$10,6,FALSE) -> 36 | AG40: =T40-HLOOKUP(X40,Feuil1!$C$1:$BL$10,7,FALSE) -> 21 | AH40: =T40-HLOOKUP(X40,Feuil1!$C$1:$BL$10,8,FALSE) -> 11 | AI40: =T40-HLOOKUP(X40,Feuil1!$C$1:$BL$10,9,FALSE) -> -4 | AJ40: =T40-HLOOKUP(X40,Feuil1!$C$1:$BL$10,10,FALSE) -> -869 | AQ40: =IF(AJ40>=0,$AJ$4,IF(AI40>=0,$AI$4,IF(AH40>=0,$AH$4,IF(AG40>=0,$AG$4,IF(AF40>=0,$AF$4,IF(AE40>=0,$AE$4,IF(AD40>=0,$AD$4,IF(AC40>=0,$AC$4,$AB$4)))))))) -> INTB +
A41: H | B41: NORD | C41: NPC | D41: 2 | E41: 335809 | F41: FOURNIER | G41: Louis | H41: 2000 | I41: 49.3 | J41: C.A.ROSENDAEL | K41: F | L41: 48 | M41: -52 | N41: -52 | O41: 48 | P41: 58 | Q41: 62 | R41: 65 | S41: 65 | T41: 113 | U41: 14.4 | V41: NAT + | W41: 3 | X41: =IF(I41="","",IF(A41="H",IF(OR(H41="SEN",H41<1995),VLOOKUP(I41,Feuil1!$A$11:$G$29,6),IF(AND(H41>1994,H41<1998),VLOOKUP(I41,Feuil1!$A$11:$G$29,5),IF(AND(H41>1997,H41<2000),VLOOKUP(I41,Feuil1!$A$11:$G$29,4),IF(AND(H41>1999,H41<2002),VLOOKUP(I41,Feuil1!$A$11:$G$29,3),VLOOKUP(I41,Feuil1!$A$11:$G$29,2))))),IF(OR(H41="SEN",H41<1995),VLOOKUP(I41,Feuil1!$G$11:$L$25,6),IF(AND(H41>1994,H41<1998),VLOOKUP(I41,Feuil1!$G$11:$L$25,5),IF(AND(H41>1997,H41<2000),VLOOKUP(I41,Feuil1!$G$11:$L$25,4),IF(AND(H41>1999,H41<2002),VLOOKUP(I41,Feuil1!$G$11:$L$25,3),VLOOKUP(I41,Feuil1!$G$11:$L$25,2))))))) -> C1 50 | Y41: 195.9844495 | AB41: =T41-HLOOKUP(X41,Feuil1!$C$1:$BL$10,2,FALSE) -> 73 | AC41: =T41-HLOOKUP(X41,Feuil1!$C$1:$BL$10,3,FALSE) -> 58 | AD41: =T41-HLOOKUP(X41,Feuil1!$C$1:$BL$10,4,FALSE) -> 48 | AE41: =T41-HLOOKUP(X41,Feuil1!$C$1:$BL$10,5,FALSE) -> 33 | AF41: =T41-HLOOKUP(X41,Feuil1!$C$1:$BL$10,6,FALSE) -> 18 | AG41: =T41-HLOOKUP(X41,Feuil1!$C$1:$BL$10,7,FALSE) -> 3 | AH41: =T41-HLOOKUP(X41,Feuil1!$C$1:$BL$10,8,FALSE) -> -7 | AI41: =T41-HLOOKUP(X41,Feuil1!$C$1:$BL$10,9,FALSE) -> -22 | AJ41: =T41-HLOOKUP(X41,Feuil1!$C$1:$BL$10,10,FALSE) -> -887 | AQ41: NAT +
A42: H | B42: DOM | C42: REU | D42: 3 | E42: 275413 | F42: ESSOB | G42: David | H42: 2001 | I42: 45.43 | J42: SCHM SAINT PAUL | K42: F | L42: 43 | M42: 45 | N42: 46 | O42: 46 | P42: 53 | Q42: 55 | R42: 60 | S42: 60 | T42: 106 | U42: 15.14 | V42: FED + | W42: 11 | X42: =IF(I42="","",IF(A42="H",IF(OR(H42="SEN",H42<1995),VLOOKUP(I42,Feuil1!$A$11:$G$29,6),IF(AND(H42>1994,H42<1998),VLOOKUP(I42,Feuil1!$A$11:$G$29,5),IF(AND(H42>1997,H42<2000),VLOOKUP(I42,Feuil1!$A$11:$G$29,4),IF(AND(H42>1999,H42<2002),VLOOKUP(I42,Feuil1!$A$11:$G$29,3),VLOOKUP(I42,Feuil1!$A$11:$G$29,2))))),IF(OR(H42="SEN",H42<1995),VLOOKUP(I42,Feuil1!$G$11:$L$25,6),IF(AND(H42>1994,H42<1998),VLOOKUP(I42,Feuil1!$G$11:$L$25,5),IF(AND(H42>1997,H42<2000),VLOOKUP(I42,Feuil1!$G$11:$L$25,4),IF(AND(H42>1999,H42<2002),VLOOKUP(I42,Feuil1!$G$11:$L$25,3),VLOOKUP(I42,Feuil1!$G$11:$L$25,2))))))) -> C1 50 | Y42: 197.8788442 | AB42: =T42-HLOOKUP(X42,Feuil1!$C$1:$BL$10,2,FALSE) -> 66 | AC42: =T42-HLOOKUP(X42,Feuil1!$C$1:$BL$10,3,FALSE) -> 51 | AD42: =T42-HLOOKUP(X42,Feuil1!$C$1:$BL$10,4,FALSE) -> 41 | AE42: =T42-HLOOKUP(X42,Feuil1!$C$1:$BL$10,5,FALSE) -> 26 | AF42: =T42-HLOOKUP(X42,Feuil1!$C$1:$BL$10,6,FALSE) -> 11 | AG42: =T42-HLOOKUP(X42,Feuil1!$C$1:$BL$10,7,FALSE) -> -4 | AH42: =T42-HLOOKUP(X42,Feuil1!$C$1:$BL$10,8,FALSE) -> -14 | AI42: =T42-HLOOKUP(X42,Feuil1!$C$1:$BL$10,9,FALSE) -> -29 | AJ42: =T42-HLOOKUP(X42,Feuil1!$C$1:$BL$10,10,FALSE) -> -894 | AQ42: FED +
A43: H | B43: SEST | C43: CAZ | D43: 4 | E43: 376235 | F43: JOLY | G43: Lucas | H43: 2001 | I43: 48.9 | J43: ES VILLENEUVE LOUBET | K43: F | L43: 40 | M43: 42 | N43: -43 | O43: 42 | P43: 53 | Q43: 56 | R43: 58 | S43: 58 | T43: 100 | U43: 2.2 | V43: FED + | W43: 5 | X43: =IF(I43="","",IF(A43="H",IF(OR(H43="SEN",H43<1995),VLOOKUP(I43,Feuil1!$A$11:$G$29,6),IF(AND(H43>1994,H43<1998),VLOOKUP(I43,Feuil1!$A$11:$G$29,5),IF(AND(H43>1997,H43<2000),VLOOKUP(I43,Feuil1!$A$11:$G$29,4),IF(AND(H43>1999,H43<2002),VLOOKUP(I43,Feuil1!$A$11:$G$29,3),VLOOKUP(I43,Feuil1!$A$11:$G$29,2))))),IF(OR(H43="SEN",H43<1995),VLOOKUP(I43,Feuil1!$G$11:$L$25,6),IF(AND(H43>1994,H43<1998),VLOOKUP(I43,Feuil1!$G$11:$L$25,5),IF(AND(H43>1997,H43<2000),VLOOKUP(I43,Feuil1!$G$11:$L$25,4),IF(AND(H43>1999,H43<2002),VLOOKUP(I43,Feuil1!$G$11:$L$25,3),VLOOKUP(I43,Feuil1!$G$11:$L$25,2))))))) -> C1 50 | Y43: 174.6776101 | AB43: =T43-HLOOKUP(X43,Feuil1!$C$1:$BL$10,2,FALSE) -> 60 | AC43: =T43-HLOOKUP(X43,Feuil1!$C$1:$BL$10,3,FALSE) -> 45 | AD43: =T43-HLOOKUP(X43,Feuil1!$C$1:$BL$10,4,FALSE) -> 35 | AE43: =T43-HLOOKUP(X43,Feuil1!$C$1:$BL$10,5,FALSE) -> 20 | AF43: =T43-HLOOKUP(X43,Feuil1!$C$1:$BL$10,6,FALSE) -> 5 | AG43: =T43-HLOOKUP(X43,Feuil1!$C$1:$BL$10,7,FALSE) -> -10 | AH43: =T43-HLOOKUP(X43,Feuil1!$C$1:$BL$10,8,FALSE) -> -20 | AI43: =T43-HLOOKUP(X43,Feuil1!$C$1:$BL$10,9,FALSE) -> -35 | AJ43: =T43-HLOOKUP(X43,Feuil1!$C$1:$BL$10,10,FALSE) -> -900 | AQ43: FED +
A44: H | B44: NORD | C44: NPC | D44: 5 | E44: 359649 | F44: PARANTHOEN | G44: Kévin | H44: 2000 | I44: 48.08 | J44: C.A.ROSENDAEL | K44: F | L44: 37 | M44: 40 | N44: -42 | O44: 40 | P44: 51 | Q44: 55 | R44: 57 | S44: 57 | T44: 97 | U44: 0.84 | V44: FED + | W44: 2 | X44: =IF(I44="","",IF(A44="H",IF(OR(H44="SEN",H44<1995),VLOOKUP(I44,Feuil1!$A$11:$G$29,6),IF(AND(H44>1994,H44<1998),VLOOKUP(I44,Feuil1!$A$11:$G$29,5),IF(AND(H44>1997,H44<2000),VLOOKUP(I44,Feuil1!$A$11:$G$29,4),IF(AND(H44>1999,H44<2002),VLOOKUP(I44,Feuil1!$A$11:$G$29,3),VLOOKUP(I44,Feuil1!$A$11:$G$29,2))))),IF(OR(H44="SEN",H44<1995),VLOOKUP(I44,Feuil1!$G$11:$L$25,6),IF(AND(H44>1994,H44<1998),VLOOKUP(I44,Feuil1!$G$11:$L$25,5),IF(AND(H44>1997,H44<2000),VLOOKUP(I44,Feuil1!$G$11:$L$25,4),IF(AND(H44>1999,H44<2002),VLOOKUP(I44,Feuil1!$G$11:$L$25,3),VLOOKUP(I44,Feuil1!$G$11:$L$25,2))))))) -> C1 50 | Y44: 171.9868418 | AB44: =T44-HLOOKUP(X44,Feuil1!$C$1:$BL$10,2,FALSE) -> 57 | AC44: =T44-HLOOKUP(X44,Feuil1!$C$1:$BL$10,3,FALSE) -> 42 | AD44: =T44-HLOOKUP(X44,Feuil1!$C$1:$BL$10,4,FALSE) -> 32 | AE44: =T44-HLOOKUP(X44,Feuil1!$C$1:$BL$10,5,FALSE) -> 17 | AF44: =T44-HLOOKUP(X44,Feuil1!$C$1:$BL$10,6,FALSE) -> 2 | AG44: =T44-HLOOKUP(X44,Feuil1!$C$1:$BL$10,7,FALSE) -> -13 | AH44: =T44-HLOOKUP(X44,Feuil1!$C$1:$BL$10,8,FALSE) -> -23 | AI44: =T44-HLOOKUP(X44,Feuil1!$C$1:$BL$10,9,FALSE) -> -38 | AJ44: =T44-HLOOKUP(X44,Feuil1!$C$1:$BL$10,10,FALSE) -> -903 | AQ44: FED +
A45: H | B45: N | C45: IDF | D45: 6 | E45: 313237 | F45: TRAN-TRI | G45: Hugo | H45: 2000 | I45: 49.2 | J45: CHAVILLE | K45: F | L45: 35 | M45: 40 | N45: 42 | O45: 42 | P45: 40 | Q45: 45 | R45: 53 | S45: 53 | T45: 95 | U45: -3.4 | V45: FED + | W45: 0 | X45: =IF(I45="","",IF(A45="H",IF(OR(H45="SEN",H45<1995),VLOOKUP(I45,Feuil1!$A$11:$G$29,6),IF(AND(H45>1994,H45<1998),VLOOKUP(I45,Feuil1!$A$11:$G$29,5),IF(AND(H45>1997,H45<2000),VLOOKUP(I45,Feuil1!$A$11:$G$29,4),IF(AND(H45>1999,H45<2002),VLOOKUP(I45,Feuil1!$A$11:$G$29,3),VLOOKUP(I45,Feuil1!$A$11:$G$29,2))))),IF(OR(H45="SEN",H45<1995),VLOOKUP(I45,Feuil1!$G$11:$L$25,6),IF(AND(H45>1994,H45<1998),VLOOKUP(I45,Feuil1!$G$11:$L$25,5),IF(AND(H45>1997,H45<2000),VLOOKUP(I45,Feuil1!$G$11:$L$25,4),IF(AND(H45>1999,H45<2002),VLOOKUP(I45,Feuil1!$G$11:$L$25,3),VLOOKUP(I45,Feuil1!$G$11:$L$25,2))))))) -> C1 50 | Y45: 165.0578077 | AB45: =T45-HLOOKUP(X45,Feuil1!$C$1:$BL$10,2,FALSE) -> 55 | AC45: =T45-HLOOKUP(X45,Feuil1!$C$1:$BL$10,3,FALSE) -> 40 | AD45: =T45-HLOOKUP(X45,Feuil1!$C$1:$BL$10,4,FALSE) -> 30 | AE45: =T45-HLOOKUP(X45,Feuil1!$C$1:$BL$10,5,FALSE) -> 15 | AF45: =T45-HLOOKUP(X45,Feuil1!$C$1:$BL$10,6,FALSE) -> 0 | AG45: =T45-HLOOKUP(X45,Feuil1!$C$1:$BL$10,7,FALSE) -> -15 | AH45: =T45-HLOOKUP(X45,Feuil1!$C$1:$BL$10,8,FALSE) -> -25 | AI45: =T45-HLOOKUP(X45,Feuil1!$C$1:$BL$10,9,FALSE) -> -40 | AJ45: =T45-HLOOKUP(X45,Feuil1!$C$1:$BL$10,10,FALSE) -> -905 | AQ45: FED +
A46: H | B46: CO | C46: PDL | D46: 7 | E46: 263126 | F46: OBER | G46: Arthur | H46: 2001 | I46: 49.8 | J46: ALSavenay | K46: F | L46: 38 | M46: 40 | N46: 42 | O46: 42 | P46: 49 | Q46: 51 | R46: 53 | S46: 53 | T46: 95 | U46: -4.6 | V46: FED + | W46: 0 | X46: =IF(I46="","",IF(A46="H",IF(OR(H46="SEN",H46<1995),VLOOKUP(I46,Feuil1!$A$11:$G$29,6),IF(AND(H46>1994,H46<1998),VLOOKUP(I46,Feuil1!$A$11:$G$29,5),IF(AND(H46>1997,H46<2000),VLOOKUP(I46,Feuil1!$A$11:$G$29,4),IF(AND(H46>1999,H46<2002),VLOOKUP(I46,Feuil1!$A$11:$G$29,3),VLOOKUP(I46,Feuil1!$A$11:$G$29,2))))),IF(OR(H46="SEN",H46<1995),VLOOKUP(I46,Feuil1!$G$11:$L$25,6),IF(AND(H46>1994,H46<1998),VLOOKUP(I46,Feuil1!$G$11:$L$25,5),IF(AND(H46>1997,H46<2000),VLOOKUP(I46,Feuil1!$G$11:$L$25,4),IF(AND(H46>1999,H46<2002),VLOOKUP(I46,Feuil1!$G$11:$L$25,3),VLOOKUP(I46,Feuil1!$G$11:$L$25,2))))))) -> C1 50 | Y46: 163.3284617 | AB46: =T46-HLOOKUP(X46,Feuil1!$C$1:$BL$10,2,FALSE) -> 55 | AC46: =T46-HLOOKUP(X46,Feuil1!$C$1:$BL$10,3,FALSE) -> 40 | AD46: =T46-HLOOKUP(X46,Feuil1!$C$1:$BL$10,4,FALSE) -> 30 | AE46: =T46-HLOOKUP(X46,Feuil1!$C$1:$BL$10,5,FALSE) -> 15 | AF46: =T46-HLOOKUP(X46,Feuil1!$C$1:$BL$10,6,FALSE) -> 0 | AG46: =T46-HLOOKUP(X46,Feuil1!$C$1:$BL$10,7,FALSE) -> -15 | AH46: =T46-HLOOKUP(X46,Feuil1!$C$1:$BL$10,8,FALSE) -> -25 | AI46: =T46-HLOOKUP(X46,Feuil1!$C$1:$BL$10,9,FALSE) -> -40 | AJ46: =T46-HLOOKUP(X46,Feuil1!$C$1:$BL$10,10,FALSE) -> -905 | AQ46: FED +
A47: H | B47: SEST | C47: RAL | D47: 8 | E47: 373866 | F47: PETRIS | G47: Thomas | H47: 2000 | I47: 49.9 | J47: H.C. ST BALDOPH | K47: F | L47: 38 | M47: 41 | N47: -43 | O47: 41 | P47: -50 | Q47: 50 | R47: 54 | S47: 54 | T47: 95 | U47: -4.8 | V47: FED + | W47: 0 | X47: =IF(I47="","",IF(A47="H",IF(OR(H47="SEN",H47<1995),VLOOKUP(I47,Feuil1!$A$11:$G$29,6),IF(AND(H47>1994,H47<1998),VLOOKUP(I47,Feuil1!$A$11:$G$29,5),IF(AND(H47>1997,H47<2000),VLOOKUP(I47,Feuil1!$A$11:$G$29,4),IF(AND(H47>1999,H47<2002),VLOOKUP(I47,Feuil1!$A$11:$G$29,3),VLOOKUP(I47,Feuil1!$A$11:$G$29,2))))),IF(OR(H47="SEN",H47<1995),VLOOKUP(I47,Feuil1!$G$11:$L$25,6),IF(AND(H47>1994,H47<1998),VLOOKUP(I47,Feuil1!$G$11:$L$25,5),IF(AND(H47>1997,H47<2000),VLOOKUP(I47,Feuil1!$G$11:$L$25,4),IF(AND(H47>1999,H47<2002),VLOOKUP(I47,Feuil1!$G$11:$L$25,3),VLOOKUP(I47,Feuil1!$G$11:$L$25,2))))))) -> C1 50 | Y47: 163.045611 | AB47: =T47-HLOOKUP(X47,Feuil1!$C$1:$BL$10,2,FALSE) -> 55 | AC47: =T47-HLOOKUP(X47,Feuil1!$C$1:$BL$10,3,FALSE) -> 40 | AD47: =T47-HLOOKUP(X47,Feuil1!$C$1:$BL$10,4,FALSE) -> 30 | AE47: =T47-HLOOKUP(X47,Feuil1!$C$1:$BL$10,5,FALSE) -> 15 | AF47: =T47-HLOOKUP(X47,Feuil1!$C$1:$BL$10,6,FALSE) -> 0 | AG47: =T47-HLOOKUP(X47,Feuil1!$C$1:$BL$10,7,FALSE) -> -15 | AH47: =T47-HLOOKUP(X47,Feuil1!$C$1:$BL$10,8,FALSE) -> -25 | AI47: =T47-HLOOKUP(X47,Feuil1!$C$1:$BL$10,9,FALSE) -> -40 | AJ47: =T47-HLOOKUP(X47,Feuil1!$C$1:$BL$10,10,FALSE) -> -905 | AQ47: FED +
A48: H | B48: NE | C48: BOU | D48: 9 | E48: 326196 | F48: FORMYSIN | G48: Samuel | H48: 2000 | I48: 48.8 | J48: Tournus | K48: F | L48: 35 | M48: 38 | N48: 40 | O48: 40 | P48: 45 | Q48: 48 | R48: 50 | S48: 50 | T48: 90 | U48: -7.6 | V48: IRG + | W48: 10 | X48: =IF(I48="","",IF(A48="H",IF(OR(H48="SEN",H48<1995),VLOOKUP(I48,Feuil1!$A$11:$G$29,6),IF(AND(H48>1994,H48<1998),VLOOKUP(I48,Feuil1!$A$11:$G$29,5),IF(AND(H48>1997,H48<2000),VLOOKUP(I48,Feuil1!$A$11:$G$29,4),IF(AND(H48>1999,H48<2002),VLOOKUP(I48,Feuil1!$A$11:$G$29,3),VLOOKUP(I48,Feuil1!$A$11:$G$29,2))))),IF(OR(H48="SEN",H48<1995),VLOOKUP(I48,Feuil1!$G$11:$L$25,6),IF(AND(H48>1994,H48<1998),VLOOKUP(I48,Feuil1!$G$11:$L$25,5),IF(AND(H48>1997,H48<2000),VLOOKUP(I48,Feuil1!$G$11:$L$25,4),IF(AND(H48>1999,H48<2002),VLOOKUP(I48,Feuil1!$G$11:$L$25,3),VLOOKUP(I48,Feuil1!$G$11:$L$25,2))))))) -> C1 50 | Y48: 157.4926715 | AB48: =T48-HLOOKUP(X48,Feuil1!$C$1:$BL$10,2,FALSE) -> 50 | AC48: =T48-HLOOKUP(X48,Feuil1!$C$1:$BL$10,3,FALSE) -> 35 | AD48: =T48-HLOOKUP(X48,Feuil1!$C$1:$BL$10,4,FALSE) -> 25 | AE48: =T48-HLOOKUP(X48,Feuil1!$C$1:$BL$10,5,FALSE) -> 10 | AF48: =T48-HLOOKUP(X48,Feuil1!$C$1:$BL$10,6,FALSE) -> -5 | AG48: =T48-HLOOKUP(X48,Feuil1!$C$1:$BL$10,7,FALSE) -> -20 | AH48: =T48-HLOOKUP(X48,Feuil1!$C$1:$BL$10,8,FALSE) -> -30 | AI48: =T48-HLOOKUP(X48,Feuil1!$C$1:$BL$10,9,FALSE) -> -45 | AJ48: =T48-HLOOKUP(X48,Feuil1!$C$1:$BL$10,10,FALSE) -> -910 | AQ48: IRG +
A49: H | B49: SEST | C49: PRO | D49: 10 | E49: 316262 | F49: BRESSY | G49: BILLAL | H49: 2000 | I49: 50 | J49: EEAR MONTEUX | K49: F | L49: 34 | M49: 39 | N49: -42 | O49: 39 | P49: 46 | Q49: 51 | R49: -56 | S49: 51 | T49: 90 | U49: -10 | V49: IRG + | W49: 10 | X49: =IF(I49="","",IF(A49="H",IF(OR(H49="SEN",H49<1995),VLOOKUP(I49,Feuil1!$A$11:$G$29,6),IF(AND(H49>1994,H49<1998),VLOOKUP(I49,Feuil1!$A$11:$G$29,5),IF(AND(H49>1997,H49<2000),VLOOKUP(I49,Feuil1!$A$11:$G$29,4),IF(AND(H49>1999,H49<2002),VLOOKUP(I49,Feuil1!$A$11:$G$29,3),VLOOKUP(I49,Feuil1!$A$11:$G$29,2))))),IF(OR(H49="SEN",H49<1995),VLOOKUP(I49,Feuil1!$G$11:$L$25,6),IF(AND(H49>1994,H49<1998),VLOOKUP(I49,Feuil1!$G$11:$L$25,5),IF(AND(H49>1997,H49<2000),VLOOKUP(I49,Feuil1!$G$11:$L$25,4),IF(AND(H49>1999,H49<2002),VLOOKUP(I49,Feuil1!$G$11:$L$25,3),VLOOKUP(I49,Feuil1!$G$11:$L$25,2))))))) -> C1 50 | Y49: 154.1977252 | AB49: =T49-HLOOKUP(X49,Feuil1!$C$1:$BL$10,2,FALSE) -> 50 | AC49: =T49-HLOOKUP(X49,Feuil1!$C$1:$BL$10,3,FALSE) -> 35 | AD49: =T49-HLOOKUP(X49,Feuil1!$C$1:$BL$10,4,FALSE) -> 25 | AE49: =T49-HLOOKUP(X49,Feuil1!$C$1:$BL$10,5,FALSE) -> 10 | AF49: =T49-HLOOKUP(X49,Feuil1!$C$1:$BL$10,6,FALSE) -> -5 | AG49: =T49-HLOOKUP(X49,Feuil1!$C$1:$BL$10,7,FALSE) -> -20 | AH49: =T49-HLOOKUP(X49,Feuil1!$C$1:$BL$10,8,FALSE) -> -30 | AI49: =T49-HLOOKUP(X49,Feuil1!$C$1:$BL$10,9,FALSE) -> -45 | AJ49: =T49-HLOOKUP(X49,Feuil1!$C$1:$BL$10,10,FALSE) -> -910 | AQ49: IRG +
A50: H | B50: SEST | C50: RAL | D50: 11 | E50: 358683 | F50: BALME | G50: NATHAN | H50: 2000 | I50: 50 | J50: Pierrelatte | K50: F | L50: 30 | M50: 35 | N50: 40 | O50: 40 | P50: 45 | Q50: -50 | R50: 50 | S50: 50 | T50: 90 | U50: -10 | V50: IRG + | W50: 10 | X50: =IF(I50="","",IF(A50="H",IF(OR(H50="SEN",H50<1995),VLOOKUP(I50,Feuil1!$A$11:$G$29,6),IF(AND(H50>1994,H50<1998),VLOOKUP(I50,Feuil1!$A$11:$G$29,5),IF(AND(H50>1997,H50<2000),VLOOKUP(I50,Feuil1!$A$11:$G$29,4),IF(AND(H50>1999,H50<2002),VLOOKUP(I50,Feuil1!$A$11:$G$29,3),VLOOKUP(I50,Feuil1!$A$11:$G$29,2))))),IF(OR(H50="SEN",H50<1995),VLOOKUP(I50,Feuil1!$G$11:$L$25,6),IF(AND(H50>1994,H50<1998),VLOOKUP(I50,Feuil1!$G$11:$L$25,5),IF(AND(H50>1997,H50<2000),VLOOKUP(I50,Feuil1!$G$11:$L$25,4),IF(AND(H50>1999,H50<2002),VLOOKUP(I50,Feuil1!$G$11:$L$25,3),VLOOKUP(I50,Feuil1!$G$11:$L$25,2))))))) -> C1 50 | Y50: 154.1977252 | AB50: =T50-HLOOKUP(X50,Feuil1!$C$1:$BL$10,2,FALSE) -> 50 | AC50: =T50-HLOOKUP(X50,Feuil1!$C$1:$BL$10,3,FALSE) -> 35 | AD50: =T50-HLOOKUP(X50,Feuil1!$C$1:$BL$10,4,FALSE) -> 25 | AE50: =T50-HLOOKUP(X50,Feuil1!$C$1:$BL$10,5,FALSE) -> 10 | AF50: =T50-HLOOKUP(X50,Feuil1!$C$1:$BL$10,6,FALSE) -> -5 | AG50: =T50-HLOOKUP(X50,Feuil1!$C$1:$BL$10,7,FALSE) -> -20 | AH50: =T50-HLOOKUP(X50,Feuil1!$C$1:$BL$10,8,FALSE) -> -30 | AI50: =T50-HLOOKUP(X50,Feuil1!$C$1:$BL$10,9,FALSE) -> -45 | AJ50: =T50-HLOOKUP(X50,Feuil1!$C$1:$BL$10,10,FALSE) -> -910 | AQ50: IRG +
A51: H | B51: NORD | C51: NPC | D51: 12 | E51: 351701 | F51: BOUGEARD | G51: Dylan | H51: 2001 | I51: 45.9 | J51: A.O.SALLAUMINES | K51: F | L51: -35 | M51: 35 | N51: 39 | O51: 39 | P51: 47 | Q51: 50 | R51: -52 | S51: 50 | T51: 89 | U51: -2.8 | V51: IRG + | W51: 9 | X51: =IF(I51="","",IF(A51="H",IF(OR(H51="SEN",H51<1995),VLOOKUP(I51,Feuil1!$A$11:$G$29,6),IF(AND(H51>1994,H51<1998),VLOOKUP(I51,Feuil1!$A$11:$G$29,5),IF(AND(H51>1997,H51<2000),VLOOKUP(I51,Feuil1!$A$11:$G$29,4),IF(AND(H51>1999,H51<2002),VLOOKUP(I51,Feuil1!$A$11:$G$29,3),VLOOKUP(I51,Feuil1!$A$11:$G$29,2))))),IF(OR(H51="SEN",H51<1995),VLOOKUP(I51,Feuil1!$G$11:$L$25,6),IF(AND(H51>1994,H51<1998),VLOOKUP(I51,Feuil1!$G$11:$L$25,5),IF(AND(H51>1997,H51<2000),VLOOKUP(I51,Feuil1!$G$11:$L$25,4),IF(AND(H51>1999,H51<2002),VLOOKUP(I51,Feuil1!$G$11:$L$25,3),VLOOKUP(I51,Feuil1!$G$11:$L$25,2))))))) -> C1 50 | Y51: 164.570046 | AB51: =T51-HLOOKUP(X51,Feuil1!$C$1:$BL$10,2,FALSE) -> 49 | AC51: =T51-HLOOKUP(X51,Feuil1!$C$1:$BL$10,3,FALSE) -> 34 | AD51: =T51-HLOOKUP(X51,Feuil1!$C$1:$BL$10,4,FALSE) -> 24 | AE51: =T51-HLOOKUP(X51,Feuil1!$C$1:$BL$10,5,FALSE) -> 9 | AF51: =T51-HLOOKUP(X51,Feuil1!$C$1:$BL$10,6,FALSE) -> -6 | AG51: =T51-HLOOKUP(X51,Feuil1!$C$1:$BL$10,7,FALSE) -> -21 | AH51: =T51-HLOOKUP(X51,Feuil1!$C$1:$BL$10,8,FALSE) -> -31 | AI51: =T51-HLOOKUP(X51,Feuil1!$C$1:$BL$10,9,FALSE) -> -46 | AJ51: =T51-HLOOKUP(X51,Feuil1!$C$1:$BL$10,10,FALSE) -> -911 | AQ51: IRG +
A52: H | B52: NE | C52: ALS | D52: 13 | E52: 341767 | F52: MELAO | G52: Anthony | H52: 2001 | I52: 47.3 | J52: Dorlisheim FH | K52: F | L52: 30 | M52: 34 | N52: 37 | O52: 37 | P52: -43 | Q52: 43 | R52: 46 | S52: 46 | T52: 83 | U52: -11.6 | V52: IRG + | W52: 3 | X52: =IF(I52="","",IF(A52="H",IF(OR(H52="SEN",H52<1995),VLOOKUP(I52,Feuil1!$A$11:$G$29,6),IF(AND(H52>1994,H52<1998),VLOOKUP(I52,Feuil1!$A$11:$G$29,5),IF(AND(H52>1997,H52<2000),VLOOKUP(I52,Feuil1!$A$11:$G$29,4),IF(AND(H52>1999,H52<2002),VLOOKUP(I52,Feuil1!$A$11:$G$29,3),VLOOKUP(I52,Feuil1!$A$11:$G$29,2))))),IF(OR(H52="SEN",H52<1995),VLOOKUP(I52,Feuil1!$G$11:$L$25,6),IF(AND(H52>1994,H52<1998),VLOOKUP(I52,Feuil1!$G$11:$L$25,5),IF(AND(H52>1997,H52<2000),VLOOKUP(I52,Feuil1!$G$11:$L$25,4),IF(AND(H52>1999,H52<2002),VLOOKUP(I52,Feuil1!$G$11:$L$25,3),VLOOKUP(I52,Feuil1!$G$11:$L$25,2))))))) -> C1 50 | Y52: 149.3332219 | AB52: =T52-HLOOKUP(X52,Feuil1!$C$1:$BL$10,2,FALSE) -> 43 | AC52: =T52-HLOOKUP(X52,Feuil1!$C$1:$BL$10,3,FALSE) -> 28 | AD52: =T52-HLOOKUP(X52,Feuil1!$C$1:$BL$10,4,FALSE) -> 18 | AE52: =T52-HLOOKUP(X52,Feuil1!$C$1:$BL$10,5,FALSE) -> 3 | AF52: =T52-HLOOKUP(X52,Feuil1!$C$1:$BL$10,6,FALSE) -> -12 | AG52: =T52-HLOOKUP(X52,Feuil1!$C$1:$BL$10,7,FALSE) -> -27 | AH52: =T52-HLOOKUP(X52,Feuil1!$C$1:$BL$10,8,FALSE) -> -37 | AI52: =T52-HLOOKUP(X52,Feuil1!$C$1:$BL$10,9,FALSE) -> -52 | AJ52: =T52-HLOOKUP(X52,Feuil1!$C$1:$BL$10,10,FALSE) -> -917 | AQ52: IRG +
A53: H | B53: NE | C53: BOU | D53: 14 | E53: 345094 | F53: WITTMANN | G53: Maxime | H53: 2001 | I53: 50 | J53: ASO Mont de Rême | K53: F | L53: 32 | M53: 34 | N53: 36 | O53: 36 | P53: 42 | Q53: 44 | R53: 46 | S53: 46 | T53: 82 | U53: -18 | V53: IRG + | W53: 2 | X53: =IF(I53="","",IF(A53="H",IF(OR(H53="SEN",H53<1995),VLOOKUP(I53,Feuil1!$A$11:$G$29,6),IF(AND(H53>1994,H53<1998),VLOOKUP(I53,Feuil1!$A$11:$G$29,5),IF(AND(H53>1997,H53<2000),VLOOKUP(I53,Feuil1!$A$11:$G$29,4),IF(AND(H53>1999,H53<2002),VLOOKUP(I53,Feuil1!$A$11:$G$29,3),VLOOKUP(I53,Feuil1!$A$11:$G$29,2))))),IF(OR(H53="SEN",H53<1995),VLOOKUP(I53,Feuil1!$G$11:$L$25,6),IF(AND(H53>1994,H53<1998),VLOOKUP(I53,Feuil1!$G$11:$L$25,5),IF(AND(H53>1997,H53<2000),VLOOKUP(I53,Feuil1!$G$11:$L$25,4),IF(AND(H53>1999,H53<2002),VLOOKUP(I53,Feuil1!$G$11:$L$25,3),VLOOKUP(I53,Feuil1!$G$11:$L$25,2))))))) -> C1 50 | Y53: 140.4912608 | AB53: =T53-HLOOKUP(X53,Feuil1!$C$1:$BL$10,2,FALSE) -> 42 | AC53: =T53-HLOOKUP(X53,Feuil1!$C$1:$BL$10,3,FALSE) -> 27 | AD53: =T53-HLOOKUP(X53,Feuil1!$C$1:$BL$10,4,FALSE) -> 17 | AE53: =T53-HLOOKUP(X53,Feuil1!$C$1:$BL$10,5,FALSE) -> 2 | AF53: =T53-HLOOKUP(X53,Feuil1!$C$1:$BL$10,6,FALSE) -> -13 | AG53: =T53-HLOOKUP(X53,Feuil1!$C$1:$BL$10,7,FALSE) -> -28 | AH53: =T53-HLOOKUP(X53,Feuil1!$C$1:$BL$10,8,FALSE) -> -38 | AI53: =T53-HLOOKUP(X53,Feuil1!$C$1:$BL$10,9,FALSE) -> -53 | AJ53: =T53-HLOOKUP(X53,Feuil1!$C$1:$BL$10,10,FALSE) -> -918 | AQ53: IRG +
A54: H | B54: NORD | C54: PIC | D54: 15 | E54: 356996 | F54: DESSON | G54: Rémy | H54: 2000 | I54: 45.3 | J54: Saleux CHM | K54: F | L54: 30 | M54: 33 | N54: 35 | O54: 35 | P54: 40 | Q54: 45 | R54: -50 | S54: 45 | T54: 80 | U54: -10.6 | V54: IRG + | W54: 0 | X54: =IF(I54="","",IF(A54="H",IF(OR(H54="SEN",H54<1995),VLOOKUP(I54,Feuil1!$A$11:$G$29,6),IF(AND(H54>1994,H54<1998),VLOOKUP(I54,Feuil1!$A$11:$G$29,5),IF(AND(H54>1997,H54<2000),VLOOKUP(I54,Feuil1!$A$11:$G$29,4),IF(AND(H54>1999,H54<2002),VLOOKUP(I54,Feuil1!$A$11:$G$29,3),VLOOKUP(I54,Feuil1!$A$11:$G$29,2))))),IF(OR(H54="SEN",H54<1995),VLOOKUP(I54,Feuil1!$G$11:$L$25,6),IF(AND(H54>1994,H54<1998),VLOOKUP(I54,Feuil1!$G$11:$L$25,5),IF(AND(H54>1997,H54<2000),VLOOKUP(I54,Feuil1!$G$11:$L$25,4),IF(AND(H54>1999,H54<2002),VLOOKUP(I54,Feuil1!$G$11:$L$25,3),VLOOKUP(I54,Feuil1!$G$11:$L$25,2))))))) -> C1 50 | Y54: 149.740672 | AB54: =T54-HLOOKUP(X54,Feuil1!$C$1:$BL$10,2,FALSE) -> 40 | AC54: =T54-HLOOKUP(X54,Feuil1!$C$1:$BL$10,3,FALSE) -> 25 | AD54: =T54-HLOOKUP(X54,Feuil1!$C$1:$BL$10,4,FALSE) -> 15 | AE54: =T54-HLOOKUP(X54,Feuil1!$C$1:$BL$10,5,FALSE) -> 0 | AF54: =T54-HLOOKUP(X54,Feuil1!$C$1:$BL$10,6,FALSE) -> -15 | AG54: =T54-HLOOKUP(X54,Feuil1!$C$1:$BL$10,7,FALSE) -> -30 | AH54: =T54-HLOOKUP(X54,Feuil1!$C$1:$BL$10,8,FALSE) -> -40 | AI54: =T54-HLOOKUP(X54,Feuil1!$C$1:$BL$10,9,FALSE) -> -55 | AJ54: =T54-HLOOKUP(X54,Feuil1!$C$1:$BL$10,10,FALSE) -> -920 | AQ54: IRG +
A55: H | B55: SO | C55: AQU | D55: 16 | E55: 364793 | F55: VERAC | G55: MATTEO | H55: 2001 | I55: 47.5 | J55: EA St Médard | K55: F | L55: 28 | M55: 31 | N55: 33 | O55: 33 | P55: 35 | Q55: 40 | R55: 45 | S55: 45 | T55: 78 | U55: -17 | V55: REG + | W55: 13 | X55: =IF(I55="","",IF(A55="H",IF(OR(H55="SEN",H55<1995),VLOOKUP(I55,Feuil1!$A$11:$G$29,6),IF(AND(H55>1994,H55<1998),VLOOKUP(I55,Feuil1!$A$11:$G$29,5),IF(AND(H55>1997,H55<2000),VLOOKUP(I55,Feuil1!$A$11:$G$29,4),IF(AND(H55>1999,H55<2002),VLOOKUP(I55,Feuil1!$A$11:$G$29,3),VLOOKUP(I55,Feuil1!$A$11:$G$29,2))))),IF(OR(H55="SEN",H55<1995),VLOOKUP(I55,Feuil1!$G$11:$L$25,6),IF(AND(H55>1994,H55<1998),VLOOKUP(I55,Feuil1!$G$11:$L$25,5),IF(AND(H55>1997,H55<2000),VLOOKUP(I55,Feuil1!$G$11:$L$25,4),IF(AND(H55>1999,H55<2002),VLOOKUP(I55,Feuil1!$G$11:$L$25,3),VLOOKUP(I55,Feuil1!$G$11:$L$25,2))))))) -> C1 50 | Y55: 139.806025 | AB55: =T55-HLOOKUP(X55,Feuil1!$C$1:$BL$10,2,FALSE) -> 38 | AC55: =T55-HLOOKUP(X55,Feuil1!$C$1:$BL$10,3,FALSE) -> 23 | AD55: =T55-HLOOKUP(X55,Feuil1!$C$1:$BL$10,4,FALSE) -> 13 | AE55: =T55-HLOOKUP(X55,Feuil1!$C$1:$BL$10,5,FALSE) -> -2 | AF55: =T55-HLOOKUP(X55,Feuil1!$C$1:$BL$10,6,FALSE) -> -17 | AG55: =T55-HLOOKUP(X55,Feuil1!$C$1:$BL$10,7,FALSE) -> -32 | AH55: =T55-HLOOKUP(X55,Feuil1!$C$1:$BL$10,8,FALSE) -> -42 | AI55: =T55-HLOOKUP(X55,Feuil1!$C$1:$BL$10,9,FALSE) -> -57 | AJ55: =T55-HLOOKUP(X55,Feuil1!$C$1:$BL$10,10,FALSE) -> -922 | AQ55: REG +
A56: H | B56: DOM | C56: GUA | D56: 17 | E56: 379132 | F56: MOLINIER | G56: Hugo | H56: 2001 | I56: 47.9 | J56: AHCS/Pointois | K56: F | L56: 30 | M56: 32 | N56: 34 | O56: 34 | P56: 35 | Q56: 40 | S56: 40 | T56: 74 | U56: -21.8 | V56: REG + | W56: 9 | X56: =IF(I56="","",IF(A56="H",IF(OR(H56="SEN",H56<1995),VLOOKUP(I56,Feuil1!$A$11:$G$29,6),IF(AND(H56>1994,H56<1998),VLOOKUP(I56,Feuil1!$A$11:$G$29,5),IF(AND(H56>1997,H56<2000),VLOOKUP(I56,Feuil1!$A$11:$G$29,4),IF(AND(H56>1999,H56<2002),VLOOKUP(I56,Feuil1!$A$11:$G$29,3),VLOOKUP(I56,Feuil1!$A$11:$G$29,2))))),IF(OR(H56="SEN",H56<1995),VLOOKUP(I56,Feuil1!$G$11:$L$25,6),IF(AND(H56>1994,H56<1998),VLOOKUP(I56,Feuil1!$G$11:$L$25,5),IF(AND(H56>1997,H56<2000),VLOOKUP(I56,Feuil1!$G$11:$L$25,4),IF(AND(H56>1999,H56<2002),VLOOKUP(I56,Feuil1!$G$11:$L$25,3),VLOOKUP(I56,Feuil1!$G$11:$L$25,2))))))) -> C1 50 | Y56: 131.6453217 | AB56: =T56-HLOOKUP(X56,Feuil1!$C$1:$BL$10,2,FALSE) -> 34 | AC56: =T56-HLOOKUP(X56,Feuil1!$C$1:$BL$10,3,FALSE) -> 19 | AD56: =T56-HLOOKUP(X56,Feuil1!$C$1:$BL$10,4,FALSE) -> 9 | AE56: =T56-HLOOKUP(X56,Feuil1!$C$1:$BL$10,5,FALSE) -> -6 | AF56: =T56-HLOOKUP(X56,Feuil1!$C$1:$BL$10,6,FALSE) -> -21 | AG56: =T56-HLOOKUP(X56,Feuil1!$C$1:$BL$10,7,FALSE) -> -36 | AH56: =T56-HLOOKUP(X56,Feuil1!$C$1:$BL$10,8,FALSE) -> -46 | AI56: =T56-HLOOKUP(X56,Feuil1!$C$1:$BL$10,9,FALSE) -> -61 | AJ56: =T56-HLOOKUP(X56,Feuil1!$C$1:$BL$10,10,FALSE) -> -926 | AQ56: REG +
A57: H | B57: N | C57: IDF | D57: 18 | E57: 390990 | F57: DURANTEL | G57: MATTHIS | H57: 2001 | I57: 47.1 | J57: CHAVILLE | K57: F | L57: 25 | M57: -30 | N57: 30 | O57: 30 | P57: 30 | Q57: 35 | R57: 40 | S57: 40 | T57: 70 | U57: -24.2 | V57: REG + | W57: 5 | X57: =IF(I57="","",IF(A57="H",IF(OR(H57="SEN",H57<1995),VLOOKUP(I57,Feuil1!$A$11:$G$29,6),IF(AND(H57>1994,H57<1998),VLOOKUP(I57,Feuil1!$A$11:$G$29,5),IF(AND(H57>1997,H57<2000),VLOOKUP(I57,Feuil1!$A$11:$G$29,4),IF(AND(H57>1999,H57<2002),VLOOKUP(I57,Feuil1!$A$11:$G$29,3),VLOOKUP(I57,Feuil1!$A$11:$G$29,2))))),IF(OR(H57="SEN",H57<1995),VLOOKUP(I57,Feuil1!$G$11:$L$25,6),IF(AND(H57>1994,H57<1998),VLOOKUP(I57,Feuil1!$G$11:$L$25,5),IF(AND(H57>1997,H57<2000),VLOOKUP(I57,Feuil1!$G$11:$L$25,4),IF(AND(H57>1999,H57<2002),VLOOKUP(I57,Feuil1!$G$11:$L$25,3),VLOOKUP(I57,Feuil1!$G$11:$L$25,2))))))) -> C1 50 | Y57: 126.4258227 | AB57: =T57-HLOOKUP(X57,Feuil1!$C$1:$BL$10,2,FALSE) -> 30 | AC57: =T57-HLOOKUP(X57,Feuil1!$C$1:$BL$10,3,FALSE) -> 15 | AD57: =T57-HLOOKUP(X57,Feuil1!$C$1:$BL$10,4,FALSE) -> 5 | AE57: =T57-HLOOKUP(X57,Feuil1!$C$1:$BL$10,5,FALSE) -> -10 | AF57: =T57-HLOOKUP(X57,Feuil1!$C$1:$BL$10,6,FALSE) -> -25 | AG57: =T57-HLOOKUP(X57,Feuil1!$C$1:$BL$10,7,FALSE) -> -40 | AH57: =T57-HLOOKUP(X57,Feuil1!$C$1:$BL$10,8,FALSE) -> -50 | AI57: =T57-HLOOKUP(X57,Feuil1!$C$1:$BL$10,9,FALSE) -> -65 | AJ57: =T57-HLOOKUP(X57,Feuil1!$C$1:$BL$10,10,FALSE) -> -930 | AQ57: REG +
A58: H | B58: DOM | C58: GUA | D58: 19 | E58: 380895 | F58: HUCHIN | G58: Elliot | H58: 2001 | I58: 49.5 | J58: Body Club Domien | K58: F | L58: 25 | M58: 30 | N58: -32 | O58: 30 | P58: 35 | Q58: 40 | R58: -44 | S58: 40 | T58: 70 | U58: -29 | V58: REG + | W58: 5 | X58: =IF(I58="","",IF(A58="H",IF(OR(H58="SEN",H58<1995),VLOOKUP(I58,Feuil1!$A$11:$G$29,6),IF(AND(H58>1994,H58<1998),VLOOKUP(I58,Feuil1!$A$11:$G$29,5),IF(AND(H58>1997,H58<2000),VLOOKUP(I58,Feuil1!$A$11:$G$29,4),IF(AND(H58>1999,H58<2002),VLOOKUP(I58,Feuil1!$A$11:$G$29,3),VLOOKUP(I58,Feuil1!$A$11:$G$29,2))))),IF(OR(H58="SEN",H58<1995),VLOOKUP(I58,Feuil1!$G$11:$L$25,6),IF(AND(H58>1994,H58<1998),VLOOKUP(I58,Feuil1!$G$11:$L$25,5),IF(AND(H58>1997,H58<2000),VLOOKUP(I58,Feuil1!$G$11:$L$25,4),IF(AND(H58>1999,H58<2002),VLOOKUP(I58,Feuil1!$G$11:$L$25,3),VLOOKUP(I58,Feuil1!$G$11:$L$25,2))))))) -> C1 50 | Y58: 120.9792737 | AB58: =T58-HLOOKUP(X58,Feuil1!$C$1:$BL$10,2,FALSE) -> 30 | AC58: =T58-HLOOKUP(X58,Feuil1!$C$1:$BL$10,3,FALSE) -> 15 | AD58: =T58-HLOOKUP(X58,Feuil1!$C$1:$BL$10,4,FALSE) -> 5 | AE58: =T58-HLOOKUP(X58,Feuil1!$C$1:$BL$10,5,FALSE) -> -10 | AF58: =T58-HLOOKUP(X58,Feuil1!$C$1:$BL$10,6,FALSE) -> -25 | AG58: =T58-HLOOKUP(X58,Feuil1!$C$1:$BL$10,7,FALSE) -> -40 | AH58: =T58-HLOOKUP(X58,Feuil1!$C$1:$BL$10,8,FALSE) -> -50 | AI58: =T58-HLOOKUP(X58,Feuil1!$C$1:$BL$10,9,FALSE) -> -65 | AJ58: =T58-HLOOKUP(X58,Feuil1!$C$1:$BL$10,10,FALSE) -> -930 | AQ58: REG +
A59: H | B59: NORD | C59: NPC | D59: 20 | E59: 366025 | F59: KEHLI | G59: Taslim | H59: 2000 | I59: 49.7 | J59: A.O.SALLAUMINES | K59: F | L59: 25 | M59: 28 | N59: 30 | O59: 30 | P59: 35 | Q59: 38 | R59: 40 | S59: 40 | T59: 70 | U59: -29.4 | V59: REG + | W59: 5 | X59: =IF(I59="","",IF(A59="H",IF(OR(H59="SEN",H59<1995),VLOOKUP(I59,Feuil1!$A$11:$G$29,6),IF(AND(H59>1994,H59<1998),VLOOKUP(I59,Feuil1!$A$11:$G$29,5),IF(AND(H59>1997,H59<2000),VLOOKUP(I59,Feuil1!$A$11:$G$29,4),IF(AND(H59>1999,H59<2002),VLOOKUP(I59,Feuil1!$A$11:$G$29,3),VLOOKUP(I59,Feuil1!$A$11:$G$29,2))))),IF(OR(H59="SEN",H59<1995),VLOOKUP(I59,Feuil1!$G$11:$L$25,6),IF(AND(H59>1994,H59<1998),VLOOKUP(I59,Feuil1!$G$11:$L$25,5),IF(AND(H59>1997,H59<2000),VLOOKUP(I59,Feuil1!$G$11:$L$25,4),IF(AND(H59>1999,H59<2002),VLOOKUP(I59,Feuil1!$G$11:$L$25,3),VLOOKUP(I59,Feuil1!$G$11:$L$25,2))))))) -> C1 50 | Y59: 120.5568212 | AB59: =T59-HLOOKUP(X59,Feuil1!$C$1:$BL$10,2,FALSE) -> 30 | AC59: =T59-HLOOKUP(X59,Feuil1!$C$1:$BL$10,3,FALSE) -> 15 | AD59: =T59-HLOOKUP(X59,Feuil1!$C$1:$BL$10,4,FALSE) -> 5 | AE59: =T59-HLOOKUP(X59,Feuil1!$C$1:$BL$10,5,FALSE) -> -10 | AF59: =T59-HLOOKUP(X59,Feuil1!$C$1:$BL$10,6,FALSE) -> -25 | AG59: =T59-HLOOKUP(X59,Feuil1!$C$1:$BL$10,7,FALSE) -> -40 | AH59: =T59-HLOOKUP(X59,Feuil1!$C$1:$BL$10,8,FALSE) -> -50 | AI59: =T59-HLOOKUP(X59,Feuil1!$C$1:$BL$10,9,FALSE) -> -65 | AJ59: =T59-HLOOKUP(X59,Feuil1!$C$1:$BL$10,10,FALSE) -> -930 | AQ59: REG +
A60: H | B60: NE | C60: CHA | D60: 21 | E60: 376656 | F60: GUSTIN | G60: Eliséo | H60: 2001 | I60: 46.9 | J60: Reims HM | K60: F | L60: 25 | M60: 28 | N60: 30 | O60: 30 | P60: 33 | Q60: 37 | R60: -39 | S60: 37 | T60: 67 | U60: -26.8 | V60: REG + | W60: 2 | X60: =IF(I60="","",IF(A60="H",IF(OR(H60="SEN",H60<1995),VLOOKUP(I60,Feuil1!$A$11:$G$29,6),IF(AND(H60>1994,H60<1998),VLOOKUP(I60,Feuil1!$A$11:$G$29,5),IF(AND(H60>1997,H60<2000),VLOOKUP(I60,Feuil1!$A$11:$G$29,4),IF(AND(H60>1999,H60<2002),VLOOKUP(I60,Feuil1!$A$11:$G$29,3),VLOOKUP(I60,Feuil1!$A$11:$G$29,2))))),IF(OR(H60="SEN",H60<1995),VLOOKUP(I60,Feuil1!$G$11:$L$25,6),IF(AND(H60>1994,H60<1998),VLOOKUP(I60,Feuil1!$G$11:$L$25,5),IF(AND(H60>1997,H60<2000),VLOOKUP(I60,Feuil1!$G$11:$L$25,4),IF(AND(H60>1999,H60<2002),VLOOKUP(I60,Feuil1!$G$11:$L$25,3),VLOOKUP(I60,Feuil1!$G$11:$L$25,2))))))) -> C1 50 | Y60: 121.4743076 | AB60: =T60-HLOOKUP(X60,Feuil1!$C$1:$BL$10,2,FALSE) -> 27 | AC60: =T60-HLOOKUP(X60,Feuil1!$C$1:$BL$10,3,FALSE) -> 12 | AD60: =T60-HLOOKUP(X60,Feuil1!$C$1:$BL$10,4,FALSE) -> 2 | AE60: =T60-HLOOKUP(X60,Feuil1!$C$1:$BL$10,5,FALSE) -> -13 | AF60: =T60-HLOOKUP(X60,Feuil1!$C$1:$BL$10,6,FALSE) -> -28 | AG60: =T60-HLOOKUP(X60,Feuil1!$C$1:$BL$10,7,FALSE) -> -43 | AH60: =T60-HLOOKUP(X60,Feuil1!$C$1:$BL$10,8,FALSE) -> -53 | AI60: =T60-HLOOKUP(X60,Feuil1!$C$1:$BL$10,9,FALSE) -> -68 | AJ60: =T60-HLOOKUP(X60,Feuil1!$C$1:$BL$10,10,FALSE) -> -933 | AQ60: REG +
A61: H | B61: NE | C61: ALS | D61: 22 | E61: 380685 | F61: CRIQUI | G61: MATTHIAS | H61: 2001 | I61: 49.9 | J61: Dorlisheim FH | K61: F | L61: 28 | M61: 31 | N61: -35 | O61: 31 | P61: 31 | Q61: 34 | R61: 36 | S61: 36 | T61: 67 | U61: -32.8 | V61: REG + | W61: 2 | X61: =IF(I61="","",IF(A61="H",IF(OR(H61="SEN",H61<1995),VLOOKUP(I61,Feuil1!$A$11:$G$29,6),IF(AND(H61>1994,H61<1998),VLOOKUP(I61,Feuil1!$A$11:$G$29,5),IF(AND(H61>1997,H61<2000),VLOOKUP(I61,Feuil1!$A$11:$G$29,4),IF(AND(H61>1999,H61<2002),VLOOKUP(I61,Feuil1!$A$11:$G$29,3),VLOOKUP(I61,Feuil1!$A$11:$G$29,2))))),IF(OR(H61="SEN",H61<1995),VLOOKUP(I61,Feuil1!$G$11:$L$25,6),IF(AND(H61>1994,H61<1998),VLOOKUP(I61,Feuil1!$G$11:$L$25,5),IF(AND(H61>1997,H61<2000),VLOOKUP(I61,Feuil1!$G$11:$L$25,4),IF(AND(H61>1999,H61<2002),VLOOKUP(I61,Feuil1!$G$11:$L$25,3),VLOOKUP(I61,Feuil1!$G$11:$L$25,2))))))) -> C1 50 | Y61: 114.9900625 | AB61: =T61-HLOOKUP(X61,Feuil1!$C$1:$BL$10,2,FALSE) -> 27 | AC61: =T61-HLOOKUP(X61,Feuil1!$C$1:$BL$10,3,FALSE) -> 12 | AD61: =T61-HLOOKUP(X61,Feuil1!$C$1:$BL$10,4,FALSE) -> 2 | AE61: =T61-HLOOKUP(X61,Feuil1!$C$1:$BL$10,5,FALSE) -> -13 | AF61: =T61-HLOOKUP(X61,Feuil1!$C$1:$BL$10,6,FALSE) -> -28 | AG61: =T61-HLOOKUP(X61,Feuil1!$C$1:$BL$10,7,FALSE) -> -43 | AH61: =T61-HLOOKUP(X61,Feuil1!$C$1:$BL$10,8,FALSE) -> -53 | AI61: =T61-HLOOKUP(X61,Feuil1!$C$1:$BL$10,9,FALSE) -> -68 | AJ61: =T61-HLOOKUP(X61,Feuil1!$C$1:$BL$10,10,FALSE) -> -933 | AQ61: REG +
A62: H | B62: SO | C62: AQU | D62: 23 | E62: 361091 | F62: VALLES | G62: QUENTIN | H62: 2001 | I62: 47 | J62: EA St Médard | K62: F | L62: 20 | M62: 23 | N62: 26 | O62: 26 | P62: 27 | Q62: 30 | R62: 34 | S62: 34 | T62: 60 | U62: -34 | V62: DEP + | W62: 5 | X62: =IF(I62="","",IF(A62="H",IF(OR(H62="SEN",H62<1995),VLOOKUP(I62,Feuil1!$A$11:$G$29,6),IF(AND(H62>1994,H62<1998),VLOOKUP(I62,Feuil1!$A$11:$G$29,5),IF(AND(H62>1997,H62<2000),VLOOKUP(I62,Feuil1!$A$11:$G$29,4),IF(AND(H62>1999,H62<2002),VLOOKUP(I62,Feuil1!$A$11:$G$29,3),VLOOKUP(I62,Feuil1!$A$11:$G$29,2))))),IF(OR(H62="SEN",H62<1995),VLOOKUP(I62,Feuil1!$G$11:$L$25,6),IF(AND(H62>1994,H62<1998),VLOOKUP(I62,Feuil1!$G$11:$L$25,5),IF(AND(H62>1997,H62<2000),VLOOKUP(I62,Feuil1!$G$11:$L$25,4),IF(AND(H62>1999,H62<2002),VLOOKUP(I62,Feuil1!$G$11:$L$25,3),VLOOKUP(I62,Feuil1!$G$11:$L$25,2))))))) -> C1 50 | Y62: 108.5733834 | AB62: =T62-HLOOKUP(X62,Feuil1!$C$1:$BL$10,2,FALSE) -> 20 | AC62: =T62-HLOOKUP(X62,Feuil1!$C$1:$BL$10,3,FALSE) -> 5 | AD62: =T62-HLOOKUP(X62,Feuil1!$C$1:$BL$10,4,FALSE) -> -5 | AE62: =T62-HLOOKUP(X62,Feuil1!$C$1:$BL$10,5,FALSE) -> -20 | AF62: =T62-HLOOKUP(X62,Feuil1!$C$1:$BL$10,6,FALSE) -> -35 | AG62: =T62-HLOOKUP(X62,Feuil1!$C$1:$BL$10,7,FALSE) -> -50 | AH62: =T62-HLOOKUP(X62,Feuil1!$C$1:$BL$10,8,FALSE) -> -60 | AI62: =T62-HLOOKUP(X62,Feuil1!$C$1:$BL$10,9,FALSE) -> -75 | AJ62: =T62-HLOOKUP(X62,Feuil1!$C$1:$BL$10,10,FALSE) -> -940 | AQ62: DEP +
A63: H | B63: SEST | C63: PRO | D63: 24 | E63: 326189 | F63: POUBLAN | G63: QUENTIN | H63: 2000 | I63: 46.3 | J63: EEAR MONTEUX | K63: F | L63: 17 | M63: 20 | N63: 22 | O63: 22 | P63: 25 | Q63: 30 | R63: 33 | S63: 33 | T63: 55 | U63: -37.6 | V63: DEP + | W63: 0 | X63: =IF(I63="","",IF(A63="H",IF(OR(H63="SEN",H63<1995),VLOOKUP(I63,Feuil1!$A$11:$G$29,6),IF(AND(H63>1994,H63<1998),VLOOKUP(I63,Feuil1!$A$11:$G$29,5),IF(AND(H63>1997,H63<2000),VLOOKUP(I63,Feuil1!$A$11:$G$29,4),IF(AND(H63>1999,H63<2002),VLOOKUP(I63,Feuil1!$A$11:$G$29,3),VLOOKUP(I63,Feuil1!$A$11:$G$29,2))))),IF(OR(H63="SEN",H63<1995),VLOOKUP(I63,Feuil1!$G$11:$L$25,6),IF(AND(H63>1994,H63<1998),VLOOKUP(I63,Feuil1!$G$11:$L$25,5),IF(AND(H63>1997,H63<2000),VLOOKUP(I63,Feuil1!$G$11:$L$25,4),IF(AND(H63>1999,H63<2002),VLOOKUP(I63,Feuil1!$G$11:$L$25,3),VLOOKUP(I63,Feuil1!$G$11:$L$25,2))))))) -> C1 50 | Y63: 100.8937179 | AB63: =T63-HLOOKUP(X63,Feuil1!$C$1:$BL$10,2,FALSE) -> 15 | AC63: =T63-HLOOKUP(X63,Feuil1!$C$1:$BL$10,3,FALSE) -> 0 | AD63: =T63-HLOOKUP(X63,Feuil1!$C$1:$BL$10,4,FALSE) -> -10 | AE63: =T63-HLOOKUP(X63,Feuil1!$C$1:$BL$10,5,FALSE) -> -25 | AF63: =T63-HLOOKUP(X63,Feuil1!$C$1:$BL$10,6,FALSE) -> -40 | AG63: =T63-HLOOKUP(X63,Feuil1!$C$1:$BL$10,7,FALSE) -> -55 | AH63: =T63-HLOOKUP(X63,Feuil1!$C$1:$BL$10,8,FALSE) -> -65 | AI63: =T63-HLOOKUP(X63,Feuil1!$C$1:$BL$10,9,FALSE) -> -80 | AJ63: =T63-HLOOKUP(X63,Feuil1!$C$1:$BL$10,10,FALSE) -> -945 | AQ63: DEP +
A64: H | B64: NE | C64: ALS | D64: 25 | E64: 384535 | F64: FABRIANO | G64: Romain | H64: 2001 | I64: 48.9 | J64: SR Obernai HM | K64: F | L64: 20 | M64: 23 | N64: -25 | O64: 23 | P64: 25 | Q64: 28 | R64: 32 | S64: 32 | T64: 55 | U64: -42.8 | V64: DEP + | W64: 0 | X64: =IF(I64="","",IF(A64="H",IF(OR(H64="SEN",H64<1995),VLOOKUP(I64,Feuil1!$A$11:$G$29,6),IF(AND(H64>1994,H64<1998),VLOOKUP(I64,Feuil1!$A$11:$G$29,5),IF(AND(H64>1997,H64<2000),VLOOKUP(I64,Feuil1!$A$11:$G$29,4),IF(AND(H64>1999,H64<2002),VLOOKUP(I64,Feuil1!$A$11:$G$29,3),VLOOKUP(I64,Feuil1!$A$11:$G$29,2))))),IF(OR(H64="SEN",H64<1995),VLOOKUP(I64,Feuil1!$G$11:$L$25,6),IF(AND(H64>1994,H64<1998),VLOOKUP(I64,Feuil1!$G$11:$L$25,5),IF(AND(H64>1997,H64<2000),VLOOKUP(I64,Feuil1!$G$11:$L$25,4),IF(AND(H64>1999,H64<2002),VLOOKUP(I64,Feuil1!$G$11:$L$25,3),VLOOKUP(I64,Feuil1!$G$11:$L$25,2))))))) -> C1 50 | Y64: 96.07268558 | AB64: =T64-HLOOKUP(X64,Feuil1!$C$1:$BL$10,2,FALSE) -> 15 | AC64: =T64-HLOOKUP(X64,Feuil1!$C$1:$BL$10,3,FALSE) -> 0 | AD64: =T64-HLOOKUP(X64,Feuil1!$C$1:$BL$10,4,FALSE) -> -10 | AE64: =T64-HLOOKUP(X64,Feuil1!$C$1:$BL$10,5,FALSE) -> -25 | AF64: =T64-HLOOKUP(X64,Feuil1!$C$1:$BL$10,6,FALSE) -> -40 | AG64: =T64-HLOOKUP(X64,Feuil1!$C$1:$BL$10,7,FALSE) -> -55 | AH64: =T64-HLOOKUP(X64,Feuil1!$C$1:$BL$10,8,FALSE) -> -65 | AI64: =T64-HLOOKUP(X64,Feuil1!$C$1:$BL$10,9,FALSE) -> -80 | AJ64: =T64-HLOOKUP(X64,Feuil1!$C$1:$BL$10,10,FALSE) -> -945 | AQ64: DEP +
A65: H | B65: N | C65: IDF | D65: 26 | E65: 360587 | F65: SANTOS FERREIRA | G65: Romain | H65: 2000 | I65: 49 | J65: RUEIL | K65: F | L65: 22 | M65: 26 | N65: -28 | O65: 26 | P65: 25 | Q65: 29 | R65: -32 | S65: 29 | T65: 55 | U65: -43 | V65: DEP + | W65: 0 | X65: =IF(I65="","",IF(A65="H",IF(OR(H65="SEN",H65<1995),VLOOKUP(I65,Feuil1!$A$11:$G$29,6),IF(AND(H65>1994,H65<1998),VLOOKUP(I65,Feuil1!$A$11:$G$29,5),IF(AND(H65>1997,H65<2000),VLOOKUP(I65,Feuil1!$A$11:$G$29,4),IF(AND(H65>1999,H65<2002),VLOOKUP(I65,Feuil1!$A$11:$G$29,3),VLOOKUP(I65,Feuil1!$A$11:$G$29,2))))),IF(OR(H65="SEN",H65<1995),VLOOKUP(I65,Feuil1!$G$11:$L$25,6),IF(AND(H65>1994,H65<1998),VLOOKUP(I65,Feuil1!$G$11:$L$25,5),IF(AND(H65>1997,H65<2000),VLOOKUP(I65,Feuil1!$G$11:$L$25,4),IF(AND(H65>1999,H65<2002),VLOOKUP(I65,Feuil1!$G$11:$L$25,3),VLOOKUP(I65,Feuil1!$G$11:$L$25,2))))))) -> C1 50 | Y65: 95.90078862 | AB65: =T65-HLOOKUP(X65,Feuil1!$C$1:$BL$10,2,FALSE) -> 15 | AC65: =T65-HLOOKUP(X65,Feuil1!$C$1:$BL$10,3,FALSE) -> 0 | AD65: =T65-HLOOKUP(X65,Feuil1!$C$1:$BL$10,4,FALSE) -> -10 | AE65: =T65-HLOOKUP(X65,Feuil1!$C$1:$BL$10,5,FALSE) -> -25 | AF65: =T65-HLOOKUP(X65,Feuil1!$C$1:$BL$10,6,FALSE) -> -40 | AG65: =T65-HLOOKUP(X65,Feuil1!$C$1:$BL$10,7,FALSE) -> -55 | AH65: =T65-HLOOKUP(X65,Feuil1!$C$1:$BL$10,8,FALSE) -> -65 | AI65: =T65-HLOOKUP(X65,Feuil1!$C$1:$BL$10,9,FALSE) -> -80 | AJ65: =T65-HLOOKUP(X65,Feuil1!$C$1:$BL$10,10,FALSE) -> -945 | AQ65: DEP +
A66: H | B66: NORD | C66: NPC | D66: 27 | E66: 338422 | F66: DRIEUX | G66: Rémi | H66: 2001 | I66: 48.2 | J66: C.A.ROSENDAEL | K66: F | L66: 21 | M66: -23 | N66: -23 | O66: 21 | P66: 30 | Q66: 32 | R66: -34 | S66: 32 | T66: 53 | U66: -43.4 | V66: DEB | W66: 13 | X66: =IF(I66="","",IF(A66="H",IF(OR(H66="SEN",H66<1995),VLOOKUP(I66,Feuil1!$A$11:$G$29,6),IF(AND(H66>1994,H66<1998),VLOOKUP(I66,Feuil1!$A$11:$G$29,5),IF(AND(H66>1997,H66<2000),VLOOKUP(I66,Feuil1!$A$11:$G$29,4),IF(AND(H66>1999,H66<2002),VLOOKUP(I66,Feuil1!$A$11:$G$29,3),VLOOKUP(I66,Feuil1!$A$11:$G$29,2))))),IF(OR(H66="SEN",H66<1995),VLOOKUP(I66,Feuil1!$G$11:$L$25,6),IF(AND(H66>1994,H66<1998),VLOOKUP(I66,Feuil1!$G$11:$L$25,5),IF(AND(H66>1997,H66<2000),VLOOKUP(I66,Feuil1!$G$11:$L$25,4),IF(AND(H66>1999,H66<2002),VLOOKUP(I66,Feuil1!$G$11:$L$25,3),VLOOKUP(I66,Feuil1!$G$11:$L$25,2))))))) -> C1 50 | Y66: 93.76438003 | AB66: =T66-HLOOKUP(X66,Feuil1!$C$1:$BL$10,2,FALSE) -> 13 | AC66: =T66-HLOOKUP(X66,Feuil1!$C$1:$BL$10,3,FALSE) -> -2 | AD66: =T66-HLOOKUP(X66,Feuil1!$C$1:$BL$10,4,FALSE) -> -12 | AE66: =T66-HLOOKUP(X66,Feuil1!$C$1:$BL$10,5,FALSE) -> -27 | AF66: =T66-HLOOKUP(X66,Feuil1!$C$1:$BL$10,6,FALSE) -> -42 | AG66: =T66-HLOOKUP(X66,Feuil1!$C$1:$BL$10,7,FALSE) -> -57 | AH66: =T66-HLOOKUP(X66,Feuil1!$C$1:$BL$10,8,FALSE) -> -67 | AI66: =T66-HLOOKUP(X66,Feuil1!$C$1:$BL$10,9,FALSE) -> -82 | AJ66: =T66-HLOOKUP(X66,Feuil1!$C$1:$BL$10,10,FALSE) -> -947 | AQ66: DEB
A67: H | B67: NE | C67: ALS | D67: 28 | E67: 381292 | F67: BOEHUER | G67: JEAN | H67: 2001 | I67: 49.2 | J67: SR Obernai HM | K67: F | L67: 17 | M67: 20 | N67: 23 | O67: 23 | P67: 25 | Q67: 28 | R67: -31 | S67: 28 | T67: 51 | U67: -47.4 | V67: DEB | W67: 11 | X67: =IF(I67="","",IF(A67="H",IF(OR(H67="SEN",H67<1995),VLOOKUP(I67,Feuil1!$A$11:$G$29,6),IF(AND(H67>1994,H67<1998),VLOOKUP(I67,Feuil1!$A$11:$G$29,5),IF(AND(H67>1997,H67<2000),VLOOKUP(I67,Feuil1!$A$11:$G$29,4),IF(AND(H67>1999,H67<2002),VLOOKUP(I67,Feuil1!$A$11:$G$29,3),VLOOKUP(I67,Feuil1!$A$11:$G$29,2))))),IF(OR(H67="SEN",H67<1995),VLOOKUP(I67,Feuil1!$G$11:$L$25,6),IF(AND(H67>1994,H67<1998),VLOOKUP(I67,Feuil1!$G$11:$L$25,5),IF(AND(H67>1997,H67<2000),VLOOKUP(I67,Feuil1!$G$11:$L$25,4),IF(AND(H67>1999,H67<2002),VLOOKUP(I67,Feuil1!$G$11:$L$25,3),VLOOKUP(I67,Feuil1!$G$11:$L$25,2))))))) -> C1 50 | Y67: 88.60998099 | AB67: =T67-HLOOKUP(X67,Feuil1!$C$1:$BL$10,2,FALSE) -> 11 | AC67: =T67-HLOOKUP(X67,Feuil1!$C$1:$BL$10,3,FALSE) -> -4 | AD67: =T67-HLOOKUP(X67,Feuil1!$C$1:$BL$10,4,FALSE) -> -14 | AE67: =T67-HLOOKUP(X67,Feuil1!$C$1:$BL$10,5,FALSE) -> -29 | AF67: =T67-HLOOKUP(X67,Feuil1!$C$1:$BL$10,6,FALSE) -> -44 | AG67: =T67-HLOOKUP(X67,Feuil1!$C$1:$BL$10,7,FALSE) -> -59 | AH67: =T67-HLOOKUP(X67,Feuil1!$C$1:$BL$10,8,FALSE) -> -69 | AI67: =T67-HLOOKUP(X67,Feuil1!$C$1:$BL$10,9,FALSE) -> -84 | AJ67: =T67-HLOOKUP(X67,Feuil1!$C$1:$BL$10,10,FALSE) -> -949 | AQ67: DEB
A68: H | B68: SEST | C68: PRO | D68: 29 | E68: 390196 | F68: DE WAAL | G68: ANDRE | H68: 2001 | I68: 45.9 | J68: ISTRES SPORTS | K68: F | L68: 15 | M68: 18 | N68: 21 | O68: 21 | P68: 22 | Q68: 25 | R68: 28 | S68: 28 | T68: 49 | U68: -42.8 | V68: DEB | W68: 9 | X68: =IF(I68="","",IF(A68="H",IF(OR(H68="SEN",H68<1995),VLOOKUP(I68,Feuil1!$A$11:$G$29,6),IF(AND(H68>1994,H68<1998),VLOOKUP(I68,Feuil1!$A$11:$G$29,5),IF(AND(H68>1997,H68<2000),VLOOKUP(I68,Feuil1!$A$11:$G$29,4),IF(AND(H68>1999,H68<2002),VLOOKUP(I68,Feuil1!$A$11:$G$29,3),VLOOKUP(I68,Feuil1!$A$11:$G$29,2))))),IF(OR(H68="SEN",H68<1995),VLOOKUP(I68,Feuil1!$G$11:$L$25,6),IF(AND(H68>1994,H68<1998),VLOOKUP(I68,Feuil1!$G$11:$L$25,5),IF(AND(H68>1997,H68<2000),VLOOKUP(I68,Feuil1!$G$11:$L$25,4),IF(AND(H68>1999,H68<2002),VLOOKUP(I68,Feuil1!$G$11:$L$25,3),VLOOKUP(I68,Feuil1!$G$11:$L$25,2))))))) -> C1 50 | Y68: 90.60598037 | AB68: =T68-HLOOKUP(X68,Feuil1!$C$1:$BL$10,2,FALSE) -> 9 | AC68: =T68-HLOOKUP(X68,Feuil1!$C$1:$BL$10,3,FALSE) -> -6 | AD68: =T68-HLOOKUP(X68,Feuil1!$C$1:$BL$10,4,FALSE) -> -16 | AE68: =T68-HLOOKUP(X68,Feuil1!$C$1:$BL$10,5,FALSE) -> -31 | AF68: =T68-HLOOKUP(X68,Feuil1!$C$1:$BL$10,6,FALSE) -> -46 | AG68: =T68-HLOOKUP(X68,Feuil1!$C$1:$BL$10,7,FALSE) -> -61 | AH68: =T68-HLOOKUP(X68,Feuil1!$C$1:$BL$10,8,FALSE) -> -71 | AI68: =T68-HLOOKUP(X68,Feuil1!$C$1:$BL$10,9,FALSE) -> -86 | AJ68: =T68-HLOOKUP(X68,Feuil1!$C$1:$BL$10,10,FALSE) -> -951 | AQ68: DEB
A69: H | B69: NORD | C69: NPC | D69: 30 | E69: 383862 | F69: COUPIGNY | G69: Michel | H69: 2001 | I69: 48.9 | J69: A.O.SALLAUMINES | K69: F | L69: 19 | M69: -21 | N69: 21 | O69: 21 | P69: 22 | Q69: 24 | R69: 26 | S69: 26 | T69: 47 | U69: -50.8 | V69: DEB | W69: 7 | X69: =IF(I69="","",IF(A69="H",IF(OR(H69="SEN",H69<1995),VLOOKUP(I69,Feuil1!$A$11:$G$29,6),IF(AND(H69>1994,H69<1998),VLOOKUP(I69,Feuil1!$A$11:$G$29,5),IF(AND(H69>1997,H69<2000),VLOOKUP(I69,Feuil1!$A$11:$G$29,4),IF(AND(H69>1999,H69<2002),VLOOKUP(I69,Feuil1!$A$11:$G$29,3),VLOOKUP(I69,Feuil1!$A$11:$G$29,2))))),IF(OR(H69="SEN",H69<1995),VLOOKUP(I69,Feuil1!$G$11:$L$25,6),IF(AND(H69>1994,H69<1998),VLOOKUP(I69,Feuil1!$G$11:$L$25,5),IF(AND(H69>1997,H69<2000),VLOOKUP(I69,Feuil1!$G$11:$L$25,4),IF(AND(H69>1999,H69<2002),VLOOKUP(I69,Feuil1!$G$11:$L$25,3),VLOOKUP(I69,Feuil1!$G$11:$L$25,2))))))) -> C1 50 | Y69: 82.09847677 | AB69: =T69-HLOOKUP(X69,Feuil1!$C$1:$BL$10,2,FALSE) -> 7 | AC69: =T69-HLOOKUP(X69,Feuil1!$C$1:$BL$10,3,FALSE) -> -8 | AD69: =T69-HLOOKUP(X69,Feuil1!$C$1:$BL$10,4,FALSE) -> -18 | AE69: =T69-HLOOKUP(X69,Feuil1!$C$1:$BL$10,5,FALSE) -> -33 | AF69: =T69-HLOOKUP(X69,Feuil1!$C$1:$BL$10,6,FALSE) -> -48 | AG69: =T69-HLOOKUP(X69,Feuil1!$C$1:$BL$10,7,FALSE) -> -63 | AH69: =T69-HLOOKUP(X69,Feuil1!$C$1:$BL$10,8,FALSE) -> -73 | AI69: =T69-HLOOKUP(X69,Feuil1!$C$1:$BL$10,9,FALSE) -> -88 | AJ69: =T69-HLOOKUP(X69,Feuil1!$C$1:$BL$10,10,FALSE) -> -953 | AQ69: DEB
A70: H | B70: NE | C70: ALS | D70: 31 | E70: 389913 | F70: CLEMENTZ | G70: EMERIC | H70: 2000 | I70: 49.8 | J70: MJC Ungersheim | K70: F | L70: 17 | M70: 20 | N70: 23 | O70: 23 | P70: 24 | Q70: -27 | R70: -27 | S70: 24 | T70: 47 | U70: -52.6 | V70: DEB | W70: 7 | X70: =IF(I70="","",IF(A70="H",IF(OR(H70="SEN",H70<1995),VLOOKUP(I70,Feuil1!$A$11:$G$29,6),IF(AND(H70>1994,H70<1998),VLOOKUP(I70,Feuil1!$A$11:$G$29,5),IF(AND(H70>1997,H70<2000),VLOOKUP(I70,Feuil1!$A$11:$G$29,4),IF(AND(H70>1999,H70<2002),VLOOKUP(I70,Feuil1!$A$11:$G$29,3),VLOOKUP(I70,Feuil1!$A$11:$G$29,2))))),IF(OR(H70="SEN",H70<1995),VLOOKUP(I70,Feuil1!$G$11:$L$25,6),IF(AND(H70>1994,H70<1998),VLOOKUP(I70,Feuil1!$G$11:$L$25,5),IF(AND(H70>1997,H70<2000),VLOOKUP(I70,Feuil1!$G$11:$L$25,4),IF(AND(H70>1999,H70<2002),VLOOKUP(I70,Feuil1!$G$11:$L$25,3),VLOOKUP(I70,Feuil1!$G$11:$L$25,2))))))) -> C1 50 | Y70: 80.80460739 | AB70: =T70-HLOOKUP(X70,Feuil1!$C$1:$BL$10,2,FALSE) -> 7 | AC70: =T70-HLOOKUP(X70,Feuil1!$C$1:$BL$10,3,FALSE) -> -8 | AD70: =T70-HLOOKUP(X70,Feuil1!$C$1:$BL$10,4,FALSE) -> -18 | AE70: =T70-HLOOKUP(X70,Feuil1!$C$1:$BL$10,5,FALSE) -> -33 | AF70: =T70-HLOOKUP(X70,Feuil1!$C$1:$BL$10,6,FALSE) -> -48 | AG70: =T70-HLOOKUP(X70,Feuil1!$C$1:$BL$10,7,FALSE) -> -63 | AH70: =T70-HLOOKUP(X70,Feuil1!$C$1:$BL$10,8,FALSE) -> -73 | AI70: =T70-HLOOKUP(X70,Feuil1!$C$1:$BL$10,9,FALSE) -> -88 | AJ70: =T70-HLOOKUP(X70,Feuil1!$C$1:$BL$10,10,FALSE) -> -953 | AQ70: DEB
A71: H | B71: NORD | C71: PIC | D71: 32 | E71: 387613 | F71: LOGER | G71: Romain | H71: 2000 | I71: 50 | J71: Villers-Bretonneux KC | K71: F | L71: 18 | M71: 23 | N71: -25 | O71: 23 | P71: -20 | Q71: 20 | R71: 22 | S71: 22 | T71: 45 | U71: -55 | V71: DEB | W71: 5 | X71: =IF(I71="","",IF(A71="H",IF(OR(H71="SEN",H71<1995),VLOOKUP(I71,Feuil1!$A$11:$G$29,6),IF(AND(H71>1994,H71<1998),VLOOKUP(I71,Feuil1!$A$11:$G$29,5),IF(AND(H71>1997,H71<2000),VLOOKUP(I71,Feuil1!$A$11:$G$29,4),IF(AND(H71>1999,H71<2002),VLOOKUP(I71,Feuil1!$A$11:$G$29,3),VLOOKUP(I71,Feuil1!$A$11:$G$29,2))))),IF(OR(H71="SEN",H71<1995),VLOOKUP(I71,Feuil1!$G$11:$L$25,6),IF(AND(H71>1994,H71<1998),VLOOKUP(I71,Feuil1!$G$11:$L$25,5),IF(AND(H71>1997,H71<2000),VLOOKUP(I71,Feuil1!$G$11:$L$25,4),IF(AND(H71>1999,H71<2002),VLOOKUP(I71,Feuil1!$G$11:$L$25,3),VLOOKUP(I71,Feuil1!$G$11:$L$25,2))))))) -> C1 50 | Y71: 77.09886261 | AB71: =T71-HLOOKUP(X71,Feuil1!$C$1:$BL$10,2,FALSE) -> 5 | AC71: =T71-HLOOKUP(X71,Feuil1!$C$1:$BL$10,3,FALSE) -> -10 | AD71: =T71-HLOOKUP(X71,Feuil1!$C$1:$BL$10,4,FALSE) -> -20 | AE71: =T71-HLOOKUP(X71,Feuil1!$C$1:$BL$10,5,FALSE) -> -35 | AF71: =T71-HLOOKUP(X71,Feuil1!$C$1:$BL$10,6,FALSE) -> -50 | AG71: =T71-HLOOKUP(X71,Feuil1!$C$1:$BL$10,7,FALSE) -> -65 | AH71: =T71-HLOOKUP(X71,Feuil1!$C$1:$BL$10,8,FALSE) -> -75 | AI71: =T71-HLOOKUP(X71,Feuil1!$C$1:$BL$10,9,FALSE) -> -90 | AJ71: =T71-HLOOKUP(X71,Feuil1!$C$1:$BL$10,10,FALSE) -> -955 | AQ71: DEB
AB72: =T72-HLOOKUP(X72,[1]Feuil1!$C$1:$BL$10,2,FALSE) ->  | AC72: =T72-HLOOKUP(X72,[1]Feuil1!$C$1:$BL$10,3,FALSE) ->  | AD72: =T72-HLOOKUP(X72,[1]Feuil1!$C$1:$BL$10,4,FALSE) ->  | AE72: =T72-HLOOKUP(X72,[1]Feuil1!$C$1:$BL$10,5,FALSE) ->  | AF72: =T72-HLOOKUP(X72,[1]Feuil1!$C$1:$BL$10,6,FALSE) ->  | AG72: =T72-HLOOKUP(X72,[1]Feuil1!$C$1:$BL$10,7,FALSE) ->  | AH72: =T72-HLOOKUP(X72,[1]Feuil1!$C$1:$BL$10,8,FALSE) ->  | AI72: =T72-HLOOKUP(X72,[1]Feuil1!$C$1:$BL$10,9,FALSE) ->  | AJ72: =T72-HLOOKUP(X72,[1]Feuil1!$C$1:$BL$10,10,FALSE) ->  | AQ72: =IF(AJ72>=0,$AJ$4,IF(AI72>=0,$AI$4,IF(AH72>=0,$AH$4,IF(AG72>=0,$AG$4,IF(AF72>=0,$AF$4,IF(AE72>=0,$AE$4,IF(AD72>=0,$AD$4,IF(AC72>=0,$AC$4,$AB$4)))))))) -> 
A73: H | B73: SEST | C73: LAN | D73: 1 | E73: 312387 | F73: SERGENT | G73: Enzo | H73: 2001 | I73: 55.6 | J73: Clermont Sports | K73: F | L73: 65 | M73: 68 | N73: 71 | O73: =IF(H73="","",IF(MAXA(L73:N73)<=0,0,MAXA(L73:N73))) -> 71 | P73: 90 | Q73: 95 | R73: 100 | S73: =IF(H73="","",IF(MAXA(P73:R73)<=0,0,MAXA(P73:R73))) -> 100 | T73: =IF(H73="","",IF(OR(O73=0,S73=0),0,O73+S73)) -> 171 | U73: =T73-I73*2 -> 59.8 | V73: =IF(H73="","",AQ73) -> INTA + | W73: =IF(AJ73>=0,AJ73,IF(AI73>=0,AI73,IF(AH73>=0,AH73,IF(AG73>=0,AG73,IF(AF73>=0,AF73,IF(AE73>=0,AE73,IF(AD73>=0,AD73,IF(AC73>=0,AC73,AB73)))))))) -> 1 | X73: =IF(I73="","",IF(A73="H",IF(OR(H73="SEN",H73<1995),VLOOKUP(I73,Feuil1!$A$11:$G$29,6),IF(AND(H73>1994,H73<1998),VLOOKUP(I73,Feuil1!$A$11:$G$29,5),IF(AND(H73>1997,H73<2000),VLOOKUP(I73,Feuil1!$A$11:$G$29,4),IF(AND(H73>1999,H73<2002),VLOOKUP(I73,Feuil1!$A$11:$G$29,3),VLOOKUP(I73,Feuil1!$A$11:$G$29,2))))),IF(OR(H73="SEN",H73<1995),VLOOKUP(I73,Feuil1!$G$11:$L$25,6),IF(AND(H73>1994,H73<1998),VLOOKUP(I73,Feuil1!$G$11:$L$25,5),IF(AND(H73>1997,H73<2000),VLOOKUP(I73,Feuil1!$G$11:$L$25,4),IF(AND(H73>1999,H73<2002),VLOOKUP(I73,Feuil1!$G$11:$L$25,3),VLOOKUP(I73,Feuil1!$G$11:$L$25,2))))))) -> C1 56 | Y73: =IF(I73="","",IF(A73="H",10^(0.794358141*LOG(I73/174.393)^2)*T73,IF(A73="F",10^(0.89726074*LOG(I73/148.026)^2)*T73,""))) -> 268.3978563 | AB73: =T73-HLOOKUP(X73,Feuil1!$C$1:$BL$10,2,FALSE) -> 121 | AC73: =T73-HLOOKUP(X73,Feuil1!$C$1:$BL$10,3,FALSE) -> 101 | AD73: =T73-HLOOKUP(X73,Feuil1!$C$1:$BL$10,4,FALSE) -> 86 | AE73: =T73-HLOOKUP(X73,Feuil1!$C$1:$BL$10,5,FALSE) -> 71 | AF73: =T73-HLOOKUP(X73,Feuil1!$C$1:$BL$10,6,FALSE) -> 56 | AG73: =T73-HLOOKUP(X73,Feuil1!$C$1:$BL$10,7,FALSE) -> 41 | AH73: =T73-HLOOKUP(X73,Feuil1!$C$1:$BL$10,8,FALSE) -> 26 | AI73: =T73-HLOOKUP(X73,Feuil1!$C$1:$BL$10,9,FALSE) -> 1 | AJ73: =T73-HLOOKUP(X73,Feuil1!$C$1:$BL$10,10,FALSE) -> -829 | AQ73: =IF(AJ73>=0,$AJ$4,IF(AI73>=0,$AI$4,IF(AH73>=0,$AH$4,IF(AG73>=0,$AG$4,IF(AF73>=0,$AF$4,IF(AE73>=0,$AE$4,IF(AD73>=0,$AD$4,IF(AC73>=0,$AC$4,$AB$4)))))))) -> INTA +
A74: H | B74: NORD | C74: NPC | D74: 2 | E74: 248932 | F74: BUYSSCHAERT | G74: Eliott | H74: 2000 | I74: 55.2 | J74: CHCD COMINES | K74: F | L74: 62 | M74: -66 | N74: 66 | O74: 66 | P74: 72 | Q74: 76 | R74: -79 | S74: 76 | T74: 142 | U74: 31.6 | V74: NAT + | W74: 12 | X74: =IF(I74="","",IF(A74="H",IF(OR(H74="SEN",H74<1995),VLOOKUP(I74,Feuil1!$A$11:$G$29,6),IF(AND(H74>1994,H74<1998),VLOOKUP(I74,Feuil1!$A$11:$G$29,5),IF(AND(H74>1997,H74<2000),VLOOKUP(I74,Feuil1!$A$11:$G$29,4),IF(AND(H74>1999,H74<2002),VLOOKUP(I74,Feuil1!$A$11:$G$29,3),VLOOKUP(I74,Feuil1!$A$11:$G$29,2))))),IF(OR(H74="SEN",H74<1995),VLOOKUP(I74,Feuil1!$G$11:$L$25,6),IF(AND(H74>1994,H74<1998),VLOOKUP(I74,Feuil1!$G$11:$L$25,5),IF(AND(H74>1997,H74<2000),VLOOKUP(I74,Feuil1!$G$11:$L$25,4),IF(AND(H74>1999,H74<2002),VLOOKUP(I74,Feuil1!$G$11:$L$25,3),VLOOKUP(I74,Feuil1!$G$11:$L$25,2))))))) -> C1 56 | Y74: 224.1569988 | AB74: =T74-HLOOKUP(X74,Feuil1!$C$1:$BL$10,2,FALSE) -> 92 | AC74: =T74-HLOOKUP(X74,Feuil1!$C$1:$BL$10,3,FALSE) -> 72 | AD74: =T74-HLOOKUP(X74,Feuil1!$C$1:$BL$10,4,FALSE) -> 57 | AE74: =T74-HLOOKUP(X74,Feuil1!$C$1:$BL$10,5,FALSE) -> 42 | AF74: =T74-HLOOKUP(X74,Feuil1!$C$1:$BL$10,6,FALSE) -> 27 | AG74: =T74-HLOOKUP(X74,Feuil1!$C$1:$BL$10,7,FALSE) -> 12 | AH74: =T74-HLOOKUP(X74,Feuil1!$C$1:$BL$10,8,FALSE) -> -3 | AI74: =T74-HLOOKUP(X74,Feuil1!$C$1:$BL$10,9,FALSE) -> -28 | AJ74: =T74-HLOOKUP(X74,Feuil1!$C$1:$BL$10,10,FALSE) -> -858 | AQ74: NAT +
A75: H | B75: CO | C75: PDL | D75: 3 | E75: 368728 | F75: MELLIER | G75: Romain | H75: 2000 | I75: 55.5 | J75: CA EVRON 53 | K75: F | L75: 57 | M75: 60 | N75: 62 | O75: 62 | P75: 68 | Q75: 71 | R75: 75 | S75: 75 | T75: 137 | U75: 26 | V75: NAT + | W75: 7 | X75: =IF(I75="","",IF(A75="H",IF(OR(H75="SEN",H75<1995),VLOOKUP(I75,Feuil1!$A$11:$G$29,6),IF(AND(H75>1994,H75<1998),VLOOKUP(I75,Feuil1!$A$11:$G$29,5),IF(AND(H75>1997,H75<2000),VLOOKUP(I75,Feuil1!$A$11:$G$29,4),IF(AND(H75>1999,H75<2002),VLOOKUP(I75,Feuil1!$A$11:$G$29,3),VLOOKUP(I75,Feuil1!$A$11:$G$29,2))))),IF(OR(H75="SEN",H75<1995),VLOOKUP(I75,Feuil1!$G$11:$L$25,6),IF(AND(H75>1994,H75<1998),VLOOKUP(I75,Feuil1!$G$11:$L$25,5),IF(AND(H75>1997,H75<2000),VLOOKUP(I75,Feuil1!$G$11:$L$25,4),IF(AND(H75>1999,H75<2002),VLOOKUP(I75,Feuil1!$G$11:$L$25,3),VLOOKUP(I75,Feuil1!$G$11:$L$25,2))))))) -> C1 56 | Y75: 215.3379712 | AB75: =T75-HLOOKUP(X75,Feuil1!$C$1:$BL$10,2,FALSE) -> 87 | AC75: =T75-HLOOKUP(X75,Feuil1!$C$1:$BL$10,3,FALSE) -> 67 | AD75: =T75-HLOOKUP(X75,Feuil1!$C$1:$BL$10,4,FALSE) -> 52 | AE75: =T75-HLOOKUP(X75,Feuil1!$C$1:$BL$10,5,FALSE) -> 37 | AF75: =T75-HLOOKUP(X75,Feuil1!$C$1:$BL$10,6,FALSE) -> 22 | AG75: =T75-HLOOKUP(X75,Feuil1!$C$1:$BL$10,7,FALSE) -> 7 | AH75: =T75-HLOOKUP(X75,Feuil1!$C$1:$BL$10,8,FALSE) -> -8 | AI75: =T75-HLOOKUP(X75,Feuil1!$C$1:$BL$10,9,FALSE) -> -33 | AJ75: =T75-HLOOKUP(X75,Feuil1!$C$1:$BL$10,10,FALSE) -> -863 | AQ75: NAT +
A76: H | B76: ZCO | C76: BRE | D76: 4 | E76: 324558 | F76: LERUYET | G76: Téo | H76: 2000 | I76: 55.4 | J76: CA Lorient | K76: F | L76: 58 | M76: 61 | N76: 63 | O76: 63 | P76: -68 | Q76: 68 | R76: 73 | S76: 73 | T76: 136 | U76: 25.2 | V76: NAT + | W76: 6 | X76: =IF(I76="","",IF(A76="H",IF(OR(H76="SEN",H76<1995),VLOOKUP(I76,Feuil1!$A$11:$G$29,6),IF(AND(H76>1994,H76<1998),VLOOKUP(I76,Feuil1!$A$11:$G$29,5),IF(AND(H76>1997,H76<2000),VLOOKUP(I76,Feuil1!$A$11:$G$29,4),IF(AND(H76>1999,H76<2002),VLOOKUP(I76,Feuil1!$A$11:$G$29,3),VLOOKUP(I76,Feuil1!$A$11:$G$29,2))))),IF(OR(H76="SEN",H76<1995),VLOOKUP(I76,Feuil1!$G$11:$L$25,6),IF(AND(H76>1994,H76<1998),VLOOKUP(I76,Feuil1!$G$11:$L$25,5),IF(AND(H76>1997,H76<2000),VLOOKUP(I76,Feuil1!$G$11:$L$25,4),IF(AND(H76>1999,H76<2002),VLOOKUP(I76,Feuil1!$G$11:$L$25,3),VLOOKUP(I76,Feuil1!$G$11:$L$25,2))))))) -> C1 56 | Y76: 214.0711599 | AB76: =T76-HLOOKUP(X76,Feuil1!$C$1:$BL$10,2,FALSE) -> 86 | AC76: =T76-HLOOKUP(X76,Feuil1!$C$1:$BL$10,3,FALSE) -> 66 | AD76: =T76-HLOOKUP(X76,Feuil1!$C$1:$BL$10,4,FALSE) -> 51 | AE76: =T76-HLOOKUP(X76,Feuil1!$C$1:$BL$10,5,FALSE) -> 36 | AF76: =T76-HLOOKUP(X76,Feuil1!$C$1:$BL$10,6,FALSE) -> 21 | AG76: =T76-HLOOKUP(X76,Feuil1!$C$1:$BL$10,7,FALSE) -> 6 | AH76: =T76-HLOOKUP(X76,Feuil1!$C$1:$BL$10,8,FALSE) -> -9 | AI76: =T76-HLOOKUP(X76,Feuil1!$C$1:$BL$10,9,FALSE) -> -34 | AJ76: =T76-HLOOKUP(X76,Feuil1!$C$1:$BL$10,10,FALSE) -> -864 | AQ76: NAT +
A77: H | B77: NORD | C77: NPC | D77: 5 | E77: 311192 | F77: JURKOWSKI | G77: Alexis | H77: 2000 | I77: 55 | J77: A.O.SALLAUMINES | K77: F | L77: 49 | M77: 52 | N77: 53 | O77: 53 | P77: 70 | Q77: 77 | R77: 80 | S77: 80 | T77: 133 | U77: 23 | V77: NAT + | W77: 3 | X77: =IF(I77="","",IF(A77="H",IF(OR(H77="SEN",H77<1995),VLOOKUP(I77,Feuil1!$A$11:$G$29,6),IF(AND(H77>1994,H77<1998),VLOOKUP(I77,Feuil1!$A$11:$G$29,5),IF(AND(H77>1997,H77<2000),VLOOKUP(I77,Feuil1!$A$11:$G$29,4),IF(AND(H77>1999,H77<2002),VLOOKUP(I77,Feuil1!$A$11:$G$29,3),VLOOKUP(I77,Feuil1!$A$11:$G$29,2))))),IF(OR(H77="SEN",H77<1995),VLOOKUP(I77,Feuil1!$G$11:$L$25,6),IF(AND(H77>1994,H77<1998),VLOOKUP(I77,Feuil1!$G$11:$L$25,5),IF(AND(H77>1997,H77<2000),VLOOKUP(I77,Feuil1!$G$11:$L$25,4),IF(AND(H77>1999,H77<2002),VLOOKUP(I77,Feuil1!$G$11:$L$25,3),VLOOKUP(I77,Feuil1!$G$11:$L$25,2))))))) -> C1 56 | Y77: 210.5565538 | AB77: =T77-HLOOKUP(X77,Feuil1!$C$1:$BL$10,2,FALSE) -> 83 | AC77: =T77-HLOOKUP(X77,Feuil1!$C$1:$BL$10,3,FALSE) -> 63 | AD77: =T77-HLOOKUP(X77,Feuil1!$C$1:$BL$10,4,FALSE) -> 48 | AE77: =T77-HLOOKUP(X77,Feuil1!$C$1:$BL$10,5,FALSE) -> 33 | AF77: =T77-HLOOKUP(X77,Feuil1!$C$1:$BL$10,6,FALSE) -> 18 | AG77: =T77-HLOOKUP(X77,Feuil1!$C$1:$BL$10,7,FALSE) -> 3 | AH77: =T77-HLOOKUP(X77,Feuil1!$C$1:$BL$10,8,FALSE) -> -12 | AI77: =T77-HLOOKUP(X77,Feuil1!$C$1:$BL$10,9,FALSE) -> -37 | AJ77: =T77-HLOOKUP(X77,Feuil1!$C$1:$BL$10,10,FALSE) -> -867 | AQ77: NAT +
A78: H | B78: NE | C78: CHA | D78: 6 | E78: 366016 | F78: MIGEON | G78: Arthur | H78: 2000 | I78: 54.4 | J78: Reims HM | K78: F | L78: 54 | M78: 58 | N78: -60 | O78: 58 | P78: 62 | Q78: 67 | R78: 72 | S78: 72 | T78: 130 | U78: 21.2 | V78: NAT + | W78: 0 | X78: =IF(I78="","",IF(A78="H",IF(OR(H78="SEN",H78<1995),VLOOKUP(I78,Feuil1!$A$11:$G$29,6),IF(AND(H78>1994,H78<1998),VLOOKUP(I78,Feuil1!$A$11:$G$29,5),IF(AND(H78>1997,H78<2000),VLOOKUP(I78,Feuil1!$A$11:$G$29,4),IF(AND(H78>1999,H78<2002),VLOOKUP(I78,Feuil1!$A$11:$G$29,3),VLOOKUP(I78,Feuil1!$A$11:$G$29,2))))),IF(OR(H78="SEN",H78<1995),VLOOKUP(I78,Feuil1!$G$11:$L$25,6),IF(AND(H78>1994,H78<1998),VLOOKUP(I78,Feuil1!$G$11:$L$25,5),IF(AND(H78>1997,H78<2000),VLOOKUP(I78,Feuil1!$G$11:$L$25,4),IF(AND(H78>1999,H78<2002),VLOOKUP(I78,Feuil1!$G$11:$L$25,3),VLOOKUP(I78,Feuil1!$G$11:$L$25,2))))))) -> C1 56 | Y78: 207.6210986 | AB78: =T78-HLOOKUP(X78,Feuil1!$C$1:$BL$10,2,FALSE) -> 80 | AC78: =T78-HLOOKUP(X78,Feuil1!$C$1:$BL$10,3,FALSE) -> 60 | AD78: =T78-HLOOKUP(X78,Feuil1!$C$1:$BL$10,4,FALSE) -> 45 | AE78: =T78-HLOOKUP(X78,Feuil1!$C$1:$BL$10,5,FALSE) -> 30 | AF78: =T78-HLOOKUP(X78,Feuil1!$C$1:$BL$10,6,FALSE) -> 15 | AG78: =T78-HLOOKUP(X78,Feuil1!$C$1:$BL$10,7,FALSE) -> 0 | AH78: =T78-HLOOKUP(X78,Feuil1!$C$1:$BL$10,8,FALSE) -> -15 | AI78: =T78-HLOOKUP(X78,Feuil1!$C$1:$BL$10,9,FALSE) -> -40 | AJ78: =T78-HLOOKUP(X78,Feuil1!$C$1:$BL$10,10,FALSE) -> -870 | AQ78: NAT +
A79: H | B79: NE | C79: ALS | D79: 7 | E79: 351862 | F79: EHRHARDT | G79: GAUTHIER | H79: 2001 | I79: 54.7 | J79: SHC Haguenau | K79: F | L79: 54 | M79: 57 | N79: -59 | O79: 57 | P79: -67 | Q79: 68 | R79: 73 | S79: 73 | T79: 130 | U79: 20.6 | V79: NAT + | W79: 0 | X79: =IF(I79="","",IF(A79="H",IF(OR(H79="SEN",H79<1995),VLOOKUP(I79,Feuil1!$A$11:$G$29,6),IF(AND(H79>1994,H79<1998),VLOOKUP(I79,Feuil1!$A$11:$G$29,5),IF(AND(H79>1997,H79<2000),VLOOKUP(I79,Feuil1!$A$11:$G$29,4),IF(AND(H79>1999,H79<2002),VLOOKUP(I79,Feuil1!$A$11:$G$29,3),VLOOKUP(I79,Feuil1!$A$11:$G$29,2))))),IF(OR(H79="SEN",H79<1995),VLOOKUP(I79,Feuil1!$G$11:$L$25,6),IF(AND(H79>1994,H79<1998),VLOOKUP(I79,Feuil1!$G$11:$L$25,5),IF(AND(H79>1997,H79<2000),VLOOKUP(I79,Feuil1!$G$11:$L$25,4),IF(AND(H79>1999,H79<2002),VLOOKUP(I79,Feuil1!$G$11:$L$25,3),VLOOKUP(I79,Feuil1!$G$11:$L$25,2))))))) -> C1 56 | Y79: 206.7075063 | AB79: =T79-HLOOKUP(X79,Feuil1!$C$1:$BL$10,2,FALSE) -> 80 | AC79: =T79-HLOOKUP(X79,Feuil1!$C$1:$BL$10,3,FALSE) -> 60 | AD79: =T79-HLOOKUP(X79,Feuil1!$C$1:$BL$10,4,FALSE) -> 45 | AE79: =T79-HLOOKUP(X79,Feuil1!$C$1:$BL$10,5,FALSE) -> 30 | AF79: =T79-HLOOKUP(X79,Feuil1!$C$1:$BL$10,6,FALSE) -> 15 | AG79: =T79-HLOOKUP(X79,Feuil1!$C$1:$BL$10,7,FALSE) -> 0 | AH79: =T79-HLOOKUP(X79,Feuil1!$C$1:$BL$10,8,FALSE) -> -15 | AI79: =T79-HLOOKUP(X79,Feuil1!$C$1:$BL$10,9,FALSE) -> -40 | AJ79: =T79-HLOOKUP(X79,Feuil1!$C$1:$BL$10,10,FALSE) -> -870 | AQ79: NAT +
A80: H | B80: SEST | C80: RAL | D80: 8 | E80: 373868 | F80: MATHUREL | G80: Allan | H80: 2000 | I80: 55.4 | J80: H.C. ST BALDOPH | K80: F | L80: 52 | M80: 57 | N80: -60 | O80: 57 | P80: 65 | Q80: 70 | R80: 73 | S80: 73 | T80: 130 | U80: 19.2 | V80: NAT + | W80: 0 | X80: =IF(I80="","",IF(A80="H",IF(OR(H80="SEN",H80<1995),VLOOKUP(I80,Feuil1!$A$11:$G$29,6),IF(AND(H80>1994,H80<1998),VLOOKUP(I80,Feuil1!$A$11:$G$29,5),IF(AND(H80>1997,H80<2000),VLOOKUP(I80,Feuil1!$A$11:$G$29,4),IF(AND(H80>1999,H80<2002),VLOOKUP(I80,Feuil1!$A$11:$G$29,3),VLOOKUP(I80,Feuil1!$A$11:$G$29,2))))),IF(OR(H80="SEN",H80<1995),VLOOKUP(I80,Feuil1!$G$11:$L$25,6),IF(AND(H80>1994,H80<1998),VLOOKUP(I80,Feuil1!$G$11:$L$25,5),IF(AND(H80>1997,H80<2000),VLOOKUP(I80,Feuil1!$G$11:$L$25,4),IF(AND(H80>1999,H80<2002),VLOOKUP(I80,Feuil1!$G$11:$L$25,3),VLOOKUP(I80,Feuil1!$G$11:$L$25,2))))))) -> C1 56 | Y80: 204.626844 | AB80: =T80-HLOOKUP(X80,Feuil1!$C$1:$BL$10,2,FALSE) -> 80 | AC80: =T80-HLOOKUP(X80,Feuil1!$C$1:$BL$10,3,FALSE) -> 60 | AD80: =T80-HLOOKUP(X80,Feuil1!$C$1:$BL$10,4,FALSE) -> 45 | AE80: =T80-HLOOKUP(X80,Feuil1!$C$1:$BL$10,5,FALSE) -> 30 | AF80: =T80-HLOOKUP(X80,Feuil1!$C$1:$BL$10,6,FALSE) -> 15 | AG80: =T80-HLOOKUP(X80,Feuil1!$C$1:$BL$10,7,FALSE) -> 0 | AH80: =T80-HLOOKUP(X80,Feuil1!$C$1:$BL$10,8,FALSE) -> -15 | AI80: =T80-HLOOKUP(X80,Feuil1!$C$1:$BL$10,9,FALSE) -> -40 | AJ80: =T80-HLOOKUP(X80,Feuil1!$C$1:$BL$10,10,FALSE) -> -870 | AQ80: NAT +
A81: H | B81: N | C81: IDF | D81: 9 | E81: 368725 | F81: CISSOKO | G81: Christopher | H81: 2000 | I81: 56 | J81: SAINT-MAUR | K81: F | L81: 55 | M81: -60 | N81: -60 | O81: 55 | P81: 75 | Q81: -80 | R81: -80 | S81: 75 | T81: 130 | U81: 18 | V81: NAT + | W81: 0 | X81: =IF(I81="","",IF(A81="H",IF(OR(H81="SEN",H81<1995),VLOOKUP(I81,Feuil1!$A$11:$G$29,6),IF(AND(H81>1994,H81<1998),VLOOKUP(I81,Feuil1!$A$11:$G$29,5),IF(AND(H81>1997,H81<2000),VLOOKUP(I81,Feuil1!$A$11:$G$29,4),IF(AND(H81>1999,H81<2002),VLOOKUP(I81,Feuil1!$A$11:$G$29,3),VLOOKUP(I81,Feuil1!$A$11:$G$29,2))))),IF(OR(H81="SEN",H81<1995),VLOOKUP(I81,Feuil1!$G$11:$L$25,6),IF(AND(H81>1994,H81<1998),VLOOKUP(I81,Feuil1!$G$11:$L$25,5),IF(AND(H81>1997,H81<2000),VLOOKUP(I81,Feuil1!$G$11:$L$25,4),IF(AND(H81>1999,H81<2002),VLOOKUP(I81,Feuil1!$G$11:$L$25,3),VLOOKUP(I81,Feuil1!$G$11:$L$25,2))))))) -> C1 56 | Y81: 202.8983416 | AB81: =T81-HLOOKUP(X81,Feuil1!$C$1:$BL$10,2,FALSE) -> 80 | AC81: =T81-HLOOKUP(X81,Feuil1!$C$1:$BL$10,3,FALSE) -> 60 | AD81: =T81-HLOOKUP(X81,Feuil1!$C$1:$BL$10,4,FALSE) -> 45 | AE81: =T81-HLOOKUP(X81,Feuil1!$C$1:$BL$10,5,FALSE) -> 30 | AF81: =T81-HLOOKUP(X81,Feuil1!$C$1:$BL$10,6,FALSE) -> 15 | AG81: =T81-HLOOKUP(X81,Feuil1!$C$1:$BL$10,7,FALSE) -> 0 | AH81: =T81-HLOOKUP(X81,Feuil1!$C$1:$BL$10,8,FALSE) -> -15 | AI81: =T81-HLOOKUP(X81,Feuil1!$C$1:$BL$10,9,FALSE) -> -40 | AJ81: =T81-HLOOKUP(X81,Feuil1!$C$1:$BL$10,10,FALSE) -> -870 | AQ81: NAT +
A82: H | B82: NORD | C82: NPC | D82: 10 | E82: 335809 | F82: FOURNIER | G82: Louis | H82: 2000 | I82: 53.1 | J82: C.A.ROSENDAEL | K82: F | L82: 45 | M82: 47 | N82: 49 | O82: 49 | P82: 72 | Q82: 78 | R82: -80 | S82: 78 | T82: 127 | U82: 20.8 | V82: FED + | W82: 12 | X82: =IF(I82="","",IF(A82="H",IF(OR(H82="SEN",H82<1995),VLOOKUP(I82,Feuil1!$A$11:$G$29,6),IF(AND(H82>1994,H82<1998),VLOOKUP(I82,Feuil1!$A$11:$G$29,5),IF(AND(H82>1997,H82<2000),VLOOKUP(I82,Feuil1!$A$11:$G$29,4),IF(AND(H82>1999,H82<2002),VLOOKUP(I82,Feuil1!$A$11:$G$29,3),VLOOKUP(I82,Feuil1!$A$11:$G$29,2))))),IF(OR(H82="SEN",H82<1995),VLOOKUP(I82,Feuil1!$G$11:$L$25,6),IF(AND(H82>1994,H82<1998),VLOOKUP(I82,Feuil1!$G$11:$L$25,5),IF(AND(H82>1997,H82<2000),VLOOKUP(I82,Feuil1!$G$11:$L$25,4),IF(AND(H82>1999,H82<2002),VLOOKUP(I82,Feuil1!$G$11:$L$25,3),VLOOKUP(I82,Feuil1!$G$11:$L$25,2))))))) -> C1 56 | Y82: 206.8534212 | AB82: =T82-HLOOKUP(X82,Feuil1!$C$1:$BL$10,2,FALSE) -> 77 | AC82: =T82-HLOOKUP(X82,Feuil1!$C$1:$BL$10,3,FALSE) -> 57 | AD82: =T82-HLOOKUP(X82,Feuil1!$C$1:$BL$10,4,FALSE) -> 42 | AE82: =T82-HLOOKUP(X82,Feuil1!$C$1:$BL$10,5,FALSE) -> 27 | AF82: =T82-HLOOKUP(X82,Feuil1!$C$1:$BL$10,6,FALSE) -> 12 | AG82: =T82-HLOOKUP(X82,Feuil1!$C$1:$BL$10,7,FALSE) -> -3 | AH82: =T82-HLOOKUP(X82,Feuil1!$C$1:$BL$10,8,FALSE) -> -18 | AI82: =T82-HLOOKUP(X82,Feuil1!$C$1:$BL$10,9,FALSE) -> -43 | AJ82: =T82-HLOOKUP(X82,Feuil1!$C$1:$BL$10,10,FALSE) -> -873 | AQ82: FED +
A83: H | B83: SEST | C83: PRO | D83: 11 | E83: 369617 | F83: GIRARD | G83: Maxime | H83: 2001 | I83: 55.6 | J83: ISTRES SPORTS | K83: F | L83: -50 | M83: 50 | N83: -55 | O83: 50 | P83: 65 | Q83: 70 | R83: -75 | S83: 70 | T83: 120 | U83: 8.8 | V83: FED + | W83: 5 | X83: =IF(I83="","",IF(A83="H",IF(OR(H83="SEN",H83<1995),VLOOKUP(I83,Feuil1!$A$11:$G$29,6),IF(AND(H83>1994,H83<1998),VLOOKUP(I83,Feuil1!$A$11:$G$29,5),IF(AND(H83>1997,H83<2000),VLOOKUP(I83,Feuil1!$A$11:$G$29,4),IF(AND(H83>1999,H83<2002),VLOOKUP(I83,Feuil1!$A$11:$G$29,3),VLOOKUP(I83,Feuil1!$A$11:$G$29,2))))),IF(OR(H83="SEN",H83<1995),VLOOKUP(I83,Feuil1!$G$11:$L$25,6),IF(AND(H83>1994,H83<1998),VLOOKUP(I83,Feuil1!$G$11:$L$25,5),IF(AND(H83>1997,H83<2000),VLOOKUP(I83,Feuil1!$G$11:$L$25,4),IF(AND(H83>1999,H83<2002),VLOOKUP(I83,Feuil1!$G$11:$L$25,3),VLOOKUP(I83,Feuil1!$G$11:$L$25,2))))))) -> C1 56 | Y83: 188.3493729 | AB83: =T83-HLOOKUP(X83,Feuil1!$C$1:$BL$10,2,FALSE) -> 70 | AC83: =T83-HLOOKUP(X83,Feuil1!$C$1:$BL$10,3,FALSE) -> 50 | AD83: =T83-HLOOKUP(X83,Feuil1!$C$1:$BL$10,4,FALSE) -> 35 | AE83: =T83-HLOOKUP(X83,Feuil1!$C$1:$BL$10,5,FALSE) -> 20 | AF83: =T83-HLOOKUP(X83,Feuil1!$C$1:$BL$10,6,FALSE) -> 5 | AG83: =T83-HLOOKUP(X83,Feuil1!$C$1:$BL$10,7,FALSE) -> -10 | AH83: =T83-HLOOKUP(X83,Feuil1!$C$1:$BL$10,8,FALSE) -> -25 | AI83: =T83-HLOOKUP(X83,Feuil1!$C$1:$BL$10,9,FALSE) -> -50 | AJ83: =T83-HLOOKUP(X83,Feuil1!$C$1:$BL$10,10,FALSE) -> -880 | AQ83: FED +
A84: H | B84: NORD | C84: NPC | D84: 12 | E84: 248951 | F84: KEMPENAIRE | G84: Cédric | H84: 2001 | I84: 55.5 | J84: CHCD COMINES | K84: F | L84: 47 | M84: 50 | N84: 52 | O84: 52 | P84: 63 | Q84: 66 | R84: -68 | S84: 66 | T84: 118 | U84: 7 | V84: FED + | W84: 3 | X84: =IF(I84="","",IF(A84="H",IF(OR(H84="SEN",H84<1995),VLOOKUP(I84,Feuil1!$A$11:$G$29,6),IF(AND(H84>1994,H84<1998),VLOOKUP(I84,Feuil1!$A$11:$G$29,5),IF(AND(H84>1997,H84<2000),VLOOKUP(I84,Feuil1!$A$11:$G$29,4),IF(AND(H84>1999,H84<2002),VLOOKUP(I84,Feuil1!$A$11:$G$29,3),VLOOKUP(I84,Feuil1!$A$11:$G$29,2))))),IF(OR(H84="SEN",H84<1995),VLOOKUP(I84,Feuil1!$G$11:$L$25,6),IF(AND(H84>1994,H84<1998),VLOOKUP(I84,Feuil1!$G$11:$L$25,5),IF(AND(H84>1997,H84<2000),VLOOKUP(I84,Feuil1!$G$11:$L$25,4),IF(AND(H84>1999,H84<2002),VLOOKUP(I84,Feuil1!$G$11:$L$25,3),VLOOKUP(I84,Feuil1!$G$11:$L$25,2))))))) -> C1 56 | Y84: 185.473581 | AB84: =T84-HLOOKUP(X84,Feuil1!$C$1:$BL$10,2,FALSE) -> 68 | AC84: =T84-HLOOKUP(X84,Feuil1!$C$1:$BL$10,3,FALSE) -> 48 | AD84: =T84-HLOOKUP(X84,Feuil1!$C$1:$BL$10,4,FALSE) -> 33 | AE84: =T84-HLOOKUP(X84,Feuil1!$C$1:$BL$10,5,FALSE) -> 18 | AF84: =T84-HLOOKUP(X84,Feuil1!$C$1:$BL$10,6,FALSE) -> 3 | AG84: =T84-HLOOKUP(X84,Feuil1!$C$1:$BL$10,7,FALSE) -> -12 | AH84: =T84-HLOOKUP(X84,Feuil1!$C$1:$BL$10,8,FALSE) -> -27 | AI84: =T84-HLOOKUP(X84,Feuil1!$C$1:$BL$10,9,FALSE) -> -52 | AJ84: =T84-HLOOKUP(X84,Feuil1!$C$1:$BL$10,10,FALSE) -> -882 | AQ84: FED +
A85: H | B85: ZCO | C85: BRE | D85: 13 | E85: 344078 | F85: COQUET | G85: Robin | H85: 2001 | I85: 54.8 | J85: CHM Plouhinec PR | K85: F | L85: 45 | M85: 48 | N85: -50 | O85: 48 | P85: 58 | Q85: 61 | R85: 63 | S85: 63 | T85: 111 | U85: 1.4 | V85: IRG + | W85: 11 | X85: =IF(I85="","",IF(A85="H",IF(OR(H85="SEN",H85<1995),VLOOKUP(I85,Feuil1!$A$11:$G$29,6),IF(AND(H85>1994,H85<1998),VLOOKUP(I85,Feuil1!$A$11:$G$29,5),IF(AND(H85>1997,H85<2000),VLOOKUP(I85,Feuil1!$A$11:$G$29,4),IF(AND(H85>1999,H85<2002),VLOOKUP(I85,Feuil1!$A$11:$G$29,3),VLOOKUP(I85,Feuil1!$A$11:$G$29,2))))),IF(OR(H85="SEN",H85<1995),VLOOKUP(I85,Feuil1!$G$11:$L$25,6),IF(AND(H85>1994,H85<1998),VLOOKUP(I85,Feuil1!$G$11:$L$25,5),IF(AND(H85>1997,H85<2000),VLOOKUP(I85,Feuil1!$G$11:$L$25,4),IF(AND(H85>1999,H85<2002),VLOOKUP(I85,Feuil1!$G$11:$L$25,3),VLOOKUP(I85,Feuil1!$G$11:$L$25,2))))))) -> C1 56 | Y85: 176.2389109 | AB85: =T85-HLOOKUP(X85,Feuil1!$C$1:$BL$10,2,FALSE) -> 61 | AC85: =T85-HLOOKUP(X85,Feuil1!$C$1:$BL$10,3,FALSE) -> 41 | AD85: =T85-HLOOKUP(X85,Feuil1!$C$1:$BL$10,4,FALSE) -> 26 | AE85: =T85-HLOOKUP(X85,Feuil1!$C$1:$BL$10,5,FALSE) -> 11 | AF85: =T85-HLOOKUP(X85,Feuil1!$C$1:$BL$10,6,FALSE) -> -4 | AG85: =T85-HLOOKUP(X85,Feuil1!$C$1:$BL$10,7,FALSE) -> -19 | AH85: =T85-HLOOKUP(X85,Feuil1!$C$1:$BL$10,8,FALSE) -> -34 | AI85: =T85-HLOOKUP(X85,Feuil1!$C$1:$BL$10,9,FALSE) -> -59 | AJ85: =T85-HLOOKUP(X85,Feuil1!$C$1:$BL$10,10,FALSE) -> -889 | AQ85: IRG +
A86: H | B86: SEST | C86: RAL | D86: 14 | E86: 304551 | F86: DOMINGUEZ | G86: Gaetan | H86: 2001 | I86: 55.7 | J86: Gauloise de Vaise | K86: F | L86: 42 | M86: 46 | N86: 50 | O86: 50 | P86: 53 | Q86: 57 | R86: 61 | S86: 61 | T86: 111 | U86: -0.4 | V86: IRG + | W86: 11 | X86: =IF(I86="","",IF(A86="H",IF(OR(H86="SEN",H86<1995),VLOOKUP(I86,Feuil1!$A$11:$G$29,6),IF(AND(H86>1994,H86<1998),VLOOKUP(I86,Feuil1!$A$11:$G$29,5),IF(AND(H86>1997,H86<2000),VLOOKUP(I86,Feuil1!$A$11:$G$29,4),IF(AND(H86>1999,H86<2002),VLOOKUP(I86,Feuil1!$A$11:$G$29,3),VLOOKUP(I86,Feuil1!$A$11:$G$29,2))))),IF(OR(H86="SEN",H86<1995),VLOOKUP(I86,Feuil1!$G$11:$L$25,6),IF(AND(H86>1994,H86<1998),VLOOKUP(I86,Feuil1!$G$11:$L$25,5),IF(AND(H86>1997,H86<2000),VLOOKUP(I86,Feuil1!$G$11:$L$25,4),IF(AND(H86>1999,H86<2002),VLOOKUP(I86,Feuil1!$G$11:$L$25,3),VLOOKUP(I86,Feuil1!$G$11:$L$25,2))))))) -> C1 56 | Y86: 173.9766128 | AB86: =T86-HLOOKUP(X86,Feuil1!$C$1:$BL$10,2,FALSE) -> 61 | AC86: =T86-HLOOKUP(X86,Feuil1!$C$1:$BL$10,3,FALSE) -> 41 | AD86: =T86-HLOOKUP(X86,Feuil1!$C$1:$BL$10,4,FALSE) -> 26 | AE86: =T86-HLOOKUP(X86,Feuil1!$C$1:$BL$10,5,FALSE) -> 11 | AF86: =T86-HLOOKUP(X86,Feuil1!$C$1:$BL$10,6,FALSE) -> -4 | AG86: =T86-HLOOKUP(X86,Feuil1!$C$1:$BL$10,7,FALSE) -> -19 | AH86: =T86-HLOOKUP(X86,Feuil1!$C$1:$BL$10,8,FALSE) -> -34 | AI86: =T86-HLOOKUP(X86,Feuil1!$C$1:$BL$10,9,FALSE) -> -59 | AJ86: =T86-HLOOKUP(X86,Feuil1!$C$1:$BL$10,10,FALSE) -> -889 | AQ86: IRG +
A87: H | B87: SEST | C87: PRO | D87: 15 | E87: 316262 | F87: BRESSY | G87: BILAL | H87: 2000 | I87: 51.8 | J87: EEAR MONTEUX | K87: F | L87: 40 | M87: 44 | N87: 46 | O87: 46 | P87: 53 | Q87: 57 | R87: 60 | S87: 60 | T87: 106 | U87: 2.4 | V87: IRG + | W87: 6 | X87: =IF(I87="","",IF(A87="H",IF(OR(H87="SEN",H87<1995),VLOOKUP(I87,Feuil1!$A$11:$G$29,6),IF(AND(H87>1994,H87<1998),VLOOKUP(I87,Feuil1!$A$11:$G$29,5),IF(AND(H87>1997,H87<2000),VLOOKUP(I87,Feuil1!$A$11:$G$29,4),IF(AND(H87>1999,H87<2002),VLOOKUP(I87,Feuil1!$A$11:$G$29,3),VLOOKUP(I87,Feuil1!$A$11:$G$29,2))))),IF(OR(H87="SEN",H87<1995),VLOOKUP(I87,Feuil1!$G$11:$L$25,6),IF(AND(H87>1994,H87<1998),VLOOKUP(I87,Feuil1!$G$11:$L$25,5),IF(AND(H87>1997,H87<2000),VLOOKUP(I87,Feuil1!$G$11:$L$25,4),IF(AND(H87>1999,H87<2002),VLOOKUP(I87,Feuil1!$G$11:$L$25,3),VLOOKUP(I87,Feuil1!$G$11:$L$25,2))))))) -> C1 56 | Y87: 176.2337345 | AB87: =T87-HLOOKUP(X87,Feuil1!$C$1:$BL$10,2,FALSE) -> 56 | AC87: =T87-HLOOKUP(X87,Feuil1!$C$1:$BL$10,3,FALSE) -> 36 | AD87: =T87-HLOOKUP(X87,Feuil1!$C$1:$BL$10,4,FALSE) -> 21 | AE87: =T87-HLOOKUP(X87,Feuil1!$C$1:$BL$10,5,FALSE) -> 6 | AF87: =T87-HLOOKUP(X87,Feuil1!$C$1:$BL$10,6,FALSE) -> -9 | AG87: =T87-HLOOKUP(X87,Feuil1!$C$1:$BL$10,7,FALSE) -> -24 | AH87: =T87-HLOOKUP(X87,Feuil1!$C$1:$BL$10,8,FALSE) -> -39 | AI87: =T87-HLOOKUP(X87,Feuil1!$C$1:$BL$10,9,FALSE) -> -64 | AJ87: =T87-HLOOKUP(X87,Feuil1!$C$1:$BL$10,10,FALSE) -> -894 | AQ87: IRG +
A88: H | B88: NORD | C88: NPC | D88: 16 | E88: 359649 | F88: PARANTHOEN | G88: Kévin | H88: 2000 | I88: 52.4 | J88: C.A.ROSENDAEL | K88: F | L88: 38 | M88: 41 | N88: 44 | O88: 44 | P88: 55 | Q88: -60 | R88: 60 | S88: 60 | T88: 104 | U88: -0.8 | V88: IRG + | W88: 4 | X88: =IF(I88="","",IF(A88="H",IF(OR(H88="SEN",H88<1995),VLOOKUP(I88,Feuil1!$A$11:$G$29,6),IF(AND(H88>1994,H88<1998),VLOOKUP(I88,Feuil1!$A$11:$G$29,5),IF(AND(H88>1997,H88<2000),VLOOKUP(I88,Feuil1!$A$11:$G$29,4),IF(AND(H88>1999,H88<2002),VLOOKUP(I88,Feuil1!$A$11:$G$29,3),VLOOKUP(I88,Feuil1!$A$11:$G$29,2))))),IF(OR(H88="SEN",H88<1995),VLOOKUP(I88,Feuil1!$G$11:$L$25,6),IF(AND(H88>1994,H88<1998),VLOOKUP(I88,Feuil1!$G$11:$L$25,5),IF(AND(H88>1997,H88<2000),VLOOKUP(I88,Feuil1!$G$11:$L$25,4),IF(AND(H88>1999,H88<2002),VLOOKUP(I88,Feuil1!$G$11:$L$25,3),VLOOKUP(I88,Feuil1!$G$11:$L$25,2))))))) -> C1 56 | Y88: 171.2565772 | AB88: =T88-HLOOKUP(X88,Feuil1!$C$1:$BL$10,2,FALSE) -> 54 | AC88: =T88-HLOOKUP(X88,Feuil1!$C$1:$BL$10,3,FALSE) -> 34 | AD88: =T88-HLOOKUP(X88,Feuil1!$C$1:$BL$10,4,FALSE) -> 19 | AE88: =T88-HLOOKUP(X88,Feuil1!$C$1:$BL$10,5,FALSE) -> 4 | AF88: =T88-HLOOKUP(X88,Feuil1!$C$1:$BL$10,6,FALSE) -> -11 | AG88: =T88-HLOOKUP(X88,Feuil1!$C$1:$BL$10,7,FALSE) -> -26 | AH88: =T88-HLOOKUP(X88,Feuil1!$C$1:$BL$10,8,FALSE) -> -41 | AI88: =T88-HLOOKUP(X88,Feuil1!$C$1:$BL$10,9,FALSE) -> -66 | AJ88: =T88-HLOOKUP(X88,Feuil1!$C$1:$BL$10,10,FALSE) -> -896 | AQ88: IRG +
A89: H | B89: NORD | C89: NPC | D89: 17 | E89: 383661 | F89: BOULANGER | G89: Christopher | H89: 2000 | I89: 53.8 | J89: A.O.SALLAUMINES | K89: F | L89: 40 | M89: -44 | N89: 44 | O89: 44 | P89: 52 | Q89: 56 | R89: 58 | S89: 58 | T89: 102 | U89: -5.6 | V89: IRG + | W89: 2 | X89: =IF(I89="","",IF(A89="H",IF(OR(H89="SEN",H89<1995),VLOOKUP(I89,Feuil1!$A$11:$G$29,6),IF(AND(H89>1994,H89<1998),VLOOKUP(I89,Feuil1!$A$11:$G$29,5),IF(AND(H89>1997,H89<2000),VLOOKUP(I89,Feuil1!$A$11:$G$29,4),IF(AND(H89>1999,H89<2002),VLOOKUP(I89,Feuil1!$A$11:$G$29,3),VLOOKUP(I89,Feuil1!$A$11:$G$29,2))))),IF(OR(H89="SEN",H89<1995),VLOOKUP(I89,Feuil1!$G$11:$L$25,6),IF(AND(H89>1994,H89<1998),VLOOKUP(I89,Feuil1!$G$11:$L$25,5),IF(AND(H89>1997,H89<2000),VLOOKUP(I89,Feuil1!$G$11:$L$25,4),IF(AND(H89>1999,H89<2002),VLOOKUP(I89,Feuil1!$G$11:$L$25,3),VLOOKUP(I89,Feuil1!$G$11:$L$25,2))))))) -> C1 56 | Y89: 164.3683655 | AB89: =T89-HLOOKUP(X89,Feuil1!$C$1:$BL$10,2,FALSE) -> 52 | AC89: =T89-HLOOKUP(X89,Feuil1!$C$1:$BL$10,3,FALSE) -> 32 | AD89: =T89-HLOOKUP(X89,Feuil1!$C$1:$BL$10,4,FALSE) -> 17 | AE89: =T89-HLOOKUP(X89,Feuil1!$C$1:$BL$10,5,FALSE) -> 2 | AF89: =T89-HLOOKUP(X89,Feuil1!$C$1:$BL$10,6,FALSE) -> -13 | AG89: =T89-HLOOKUP(X89,Feuil1!$C$1:$BL$10,7,FALSE) -> -28 | AH89: =T89-HLOOKUP(X89,Feuil1!$C$1:$BL$10,8,FALSE) -> -43 | AI89: =T89-HLOOKUP(X89,Feuil1!$C$1:$BL$10,9,FALSE) -> -68 | AJ89: =T89-HLOOKUP(X89,Feuil1!$C$1:$BL$10,10,FALSE) -> -898 | AQ89: IRG +
A90: H | B90: SEST | C90: RAL | D90: 18 | E90: 358683 | F90: BALME | G90: NATHAN | H90: 2000 | I90: 51.4 | J90: Pierrelatte | K90: F | L90: -41 | M90: 41 | N90: 44 | O90: 44 | P90: 51 | Q90: -56 | R90: 56 | S90: 56 | T90: 100 | U90: -2.8 | V90: IRG + | W90: 0 | X90: =IF(I90="","",IF(A90="H",IF(OR(H90="SEN",H90<1995),VLOOKUP(I90,Feuil1!$A$11:$G$29,6),IF(AND(H90>1994,H90<1998),VLOOKUP(I90,Feuil1!$A$11:$G$29,5),IF(AND(H90>1997,H90<2000),VLOOKUP(I90,Feuil1!$A$11:$G$29,4),IF(AND(H90>1999,H90<2002),VLOOKUP(I90,Feuil1!$A$11:$G$29,3),VLOOKUP(I90,Feuil1!$A$11:$G$29,2))))),IF(OR(H90="SEN",H90<1995),VLOOKUP(I90,Feuil1!$G$11:$L$25,6),IF(AND(H90>1994,H90<1998),VLOOKUP(I90,Feuil1!$G$11:$L$25,5),IF(AND(H90>1997,H90<2000),VLOOKUP(I90,Feuil1!$G$11:$L$25,4),IF(AND(H90>1999,H90<2002),VLOOKUP(I90,Feuil1!$G$11:$L$25,3),VLOOKUP(I90,Feuil1!$G$11:$L$25,2))))))) -> C1 56 | Y90: 167.3447069 | AB90: =T90-HLOOKUP(X90,Feuil1!$C$1:$BL$10,2,FALSE) -> 50 | AC90: =T90-HLOOKUP(X90,Feuil1!$C$1:$BL$10,3,FALSE) -> 30 | AD90: =T90-HLOOKUP(X90,Feuil1!$C$1:$BL$10,4,FALSE) -> 15 | AE90: =T90-HLOOKUP(X90,Feuil1!$C$1:$BL$10,5,FALSE) -> 0 | AF90: =T90-HLOOKUP(X90,Feuil1!$C$1:$BL$10,6,FALSE) -> -15 | AG90: =T90-HLOOKUP(X90,Feuil1!$C$1:$BL$10,7,FALSE) -> -30 | AH90: =T90-HLOOKUP(X90,Feuil1!$C$1:$BL$10,8,FALSE) -> -45 | AI90: =T90-HLOOKUP(X90,Feuil1!$C$1:$BL$10,9,FALSE) -> -70 | AJ90: =T90-HLOOKUP(X90,Feuil1!$C$1:$BL$10,10,FALSE) -> -900 | AQ90: IRG +
A91: H | B91: SEST | C91: AUV | D91: 19 | E91: 319977 | F91: ALTAYRAC | G91: Thomas | H91: 2000 | I91: 53.1 | J91: CHM AURILLAC | K91: F | L91: 40 | M91: 43 | N91: 45 | O91: 45 | P91: 50 | Q91: 53 | R91: 55 | S91: 55 | T91: 100 | U91: -6.2 | V91: IRG + | W91: 0 | X91: =IF(I91="","",IF(A91="H",IF(OR(H91="SEN",H91<1995),VLOOKUP(I91,Feuil1!$A$11:$G$29,6),IF(AND(H91>1994,H91<1998),VLOOKUP(I91,Feuil1!$A$11:$G$29,5),IF(AND(H91>1997,H91<2000),VLOOKUP(I91,Feuil1!$A$11:$G$29,4),IF(AND(H91>1999,H91<2002),VLOOKUP(I91,Feuil1!$A$11:$G$29,3),VLOOKUP(I91,Feuil1!$A$11:$G$29,2))))),IF(OR(H91="SEN",H91<1995),VLOOKUP(I91,Feuil1!$G$11:$L$25,6),IF(AND(H91>1994,H91<1998),VLOOKUP(I91,Feuil1!$G$11:$L$25,5),IF(AND(H91>1997,H91<2000),VLOOKUP(I91,Feuil1!$G$11:$L$25,4),IF(AND(H91>1999,H91<2002),VLOOKUP(I91,Feuil1!$G$11:$L$25,3),VLOOKUP(I91,Feuil1!$G$11:$L$25,2))))))) -> C1 56 | Y91: 162.8767096 | AB91: =T91-HLOOKUP(X91,Feuil1!$C$1:$BL$10,2,FALSE) -> 50 | AC91: =T91-HLOOKUP(X91,Feuil1!$C$1:$BL$10,3,FALSE) -> 30 | AD91: =T91-HLOOKUP(X91,Feuil1!$C$1:$BL$10,4,FALSE) -> 15 | AE91: =T91-HLOOKUP(X91,Feuil1!$C$1:$BL$10,5,FALSE) -> 0 | AF91: =T91-HLOOKUP(X91,Feuil1!$C$1:$BL$10,6,FALSE) -> -15 | AG91: =T91-HLOOKUP(X91,Feuil1!$C$1:$BL$10,7,FALSE) -> -30 | AH91: =T91-HLOOKUP(X91,Feuil1!$C$1:$BL$10,8,FALSE) -> -45 | AI91: =T91-HLOOKUP(X91,Feuil1!$C$1:$BL$10,9,FALSE) -> -70 | AJ91: =T91-HLOOKUP(X91,Feuil1!$C$1:$BL$10,10,FALSE) -> -900 | AQ91: IRG +
A92: H | B92: SO | C92: MPY | D92: 20 | E92: 325145 | F92: BEN KHELIFA | G92: Alexandre | H92: 2000 | I92: 55.16 | J92: COLOMIERS US | K92: F | L92: 40 | M92: 43 | N92: -45 | O92: 43 | P92: 50 | Q92: 53 | R92: 57 | S92: 57 | T92: 100 | U92: -10.32 | V92: IRG + | W92: 0 | X92: =IF(I92="","",IF(A92="H",IF(OR(H92="SEN",H92<1995),VLOOKUP(I92,Feuil1!$A$11:$G$29,6),IF(AND(H92>1994,H92<1998),VLOOKUP(I92,Feuil1!$A$11:$G$29,5),IF(AND(H92>1997,H92<2000),VLOOKUP(I92,Feuil1!$A$11:$G$29,4),IF(AND(H92>1999,H92<2002),VLOOKUP(I92,Feuil1!$A$11:$G$29,3),VLOOKUP(I92,Feuil1!$A$11:$G$29,2))))),IF(OR(H92="SEN",H92<1995),VLOOKUP(I92,Feuil1!$G$11:$L$25,6),IF(AND(H92>1994,H92<1998),VLOOKUP(I92,Feuil1!$G$11:$L$25,5),IF(AND(H92>1997,H92<2000),VLOOKUP(I92,Feuil1!$G$11:$L$25,4),IF(AND(H92>1999,H92<2002),VLOOKUP(I92,Feuil1!$G$11:$L$25,3),VLOOKUP(I92,Feuil1!$G$11:$L$25,2))))))) -> C1 56 | Y92: 157.9479205 | AB92: =T92-HLOOKUP(X92,Feuil1!$C$1:$BL$10,2,FALSE) -> 50 | AC92: =T92-HLOOKUP(X92,Feuil1!$C$1:$BL$10,3,FALSE) -> 30 | AD92: =T92-HLOOKUP(X92,Feuil1!$C$1:$BL$10,4,FALSE) -> 15 | AE92: =T92-HLOOKUP(X92,Feuil1!$C$1:$BL$10,5,FALSE) -> 0 | AF92: =T92-HLOOKUP(X92,Feuil1!$C$1:$BL$10,6,FALSE) -> -15 | AG92: =T92-HLOOKUP(X92,Feuil1!$C$1:$BL$10,7,FALSE) -> -30 | AH92: =T92-HLOOKUP(X92,Feuil1!$C$1:$BL$10,8,FALSE) -> -45 | AI92: =T92-HLOOKUP(X92,Feuil1!$C$1:$BL$10,9,FALSE) -> -70 | AJ92: =T92-HLOOKUP(X92,Feuil1!$C$1:$BL$10,10,FALSE) -> -900 | AQ92: IRG +
A93: H | B93: SEST | C93: CAZ | D93: 21 | E93: 360583 | F93: LECOMTE | G93: Cameron | H93: 2000 | I93: 56 | J93: ES VILLENEUVE LOUBET | K93: F | L93: 44 | M93: -47 | N93: -47 | O93: 44 | P93: 52 | Q93: 56 | R93: -58 | S93: 56 | T93: 100 | U93: -12 | V93: IRG + | W93: 0 | X93: =IF(I93="","",IF(A93="H",IF(OR(H93="SEN",H93<1995),VLOOKUP(I93,Feuil1!$A$11:$G$29,6),IF(AND(H93>1994,H93<1998),VLOOKUP(I93,Feuil1!$A$11:$G$29,5),IF(AND(H93>1997,H93<2000),VLOOKUP(I93,Feuil1!$A$11:$G$29,4),IF(AND(H93>1999,H93<2002),VLOOKUP(I93,Feuil1!$A$11:$G$29,3),VLOOKUP(I93,Feuil1!$A$11:$G$29,2))))),IF(OR(H93="SEN",H93<1995),VLOOKUP(I93,Feuil1!$G$11:$L$25,6),IF(AND(H93>1994,H93<1998),VLOOKUP(I93,Feuil1!$G$11:$L$25,5),IF(AND(H93>1997,H93<2000),VLOOKUP(I93,Feuil1!$G$11:$L$25,4),IF(AND(H93>1999,H93<2002),VLOOKUP(I93,Feuil1!$G$11:$L$25,3),VLOOKUP(I93,Feuil1!$G$11:$L$25,2))))))) -> C1 56 | Y93: 156.0756474 | AB93: =T93-HLOOKUP(X93,Feuil1!$C$1:$BL$10,2,FALSE) -> 50 | AC93: =T93-HLOOKUP(X93,Feuil1!$C$1:$BL$10,3,FALSE) -> 30 | AD93: =T93-HLOOKUP(X93,Feuil1!$C$1:$BL$10,4,FALSE) -> 15 | AE93: =T93-HLOOKUP(X93,Feuil1!$C$1:$BL$10,5,FALSE) -> 0 | AF93: =T93-HLOOKUP(X93,Feuil1!$C$1:$BL$10,6,FALSE) -> -15 | AG93: =T93-HLOOKUP(X93,Feuil1!$C$1:$BL$10,7,FALSE) -> -30 | AH93: =T93-HLOOKUP(X93,Feuil1!$C$1:$BL$10,8,FALSE) -> -45 | AI93: =T93-HLOOKUP(X93,Feuil1!$C$1:$BL$10,9,FALSE) -> -70 | AJ93: =T93-HLOOKUP(X93,Feuil1!$C$1:$BL$10,10,FALSE) -> -900 | AQ93: IRG +
A94: H | B94: SEST | C94: LAN | D94: 22 | E94: 250549 | F94: PEIGUET | G94: Jérémy | H94: 2001 | I94: 52.1 | J94: Clermont Sports | K94: F | L94: 35 | M94: 40 | N94: 43 | O94: 43 | P94: 45 | Q94: 50 | R94: 55 | S94: 55 | T94: 98 | U94: -6.2 | V94: REG + | W94: 13 | X94: =IF(I94="","",IF(A94="H",IF(OR(H94="SEN",H94<1995),VLOOKUP(I94,Feuil1!$A$11:$G$29,6),IF(AND(H94>1994,H94<1998),VLOOKUP(I94,Feuil1!$A$11:$G$29,5),IF(AND(H94>1997,H94<2000),VLOOKUP(I94,Feuil1!$A$11:$G$29,4),IF(AND(H94>1999,H94<2002),VLOOKUP(I94,Feuil1!$A$11:$G$29,3),VLOOKUP(I94,Feuil1!$A$11:$G$29,2))))),IF(OR(H94="SEN",H94<1995),VLOOKUP(I94,Feuil1!$G$11:$L$25,6),IF(AND(H94>1994,H94<1998),VLOOKUP(I94,Feuil1!$G$11:$L$25,5),IF(AND(H94>1997,H94<2000),VLOOKUP(I94,Feuil1!$G$11:$L$25,4),IF(AND(H94>1999,H94<2002),VLOOKUP(I94,Feuil1!$G$11:$L$25,3),VLOOKUP(I94,Feuil1!$G$11:$L$25,2))))))) -> C1 56 | Y94: 162.148769 | AB94: =T94-HLOOKUP(X94,Feuil1!$C$1:$BL$10,2,FALSE) -> 48 | AC94: =T94-HLOOKUP(X94,Feuil1!$C$1:$BL$10,3,FALSE) -> 28 | AD94: =T94-HLOOKUP(X94,Feuil1!$C$1:$BL$10,4,FALSE) -> 13 | AE94: =T94-HLOOKUP(X94,Feuil1!$C$1:$BL$10,5,FALSE) -> -2 | AF94: =T94-HLOOKUP(X94,Feuil1!$C$1:$BL$10,6,FALSE) -> -17 | AG94: =T94-HLOOKUP(X94,Feuil1!$C$1:$BL$10,7,FALSE) -> -32 | AH94: =T94-HLOOKUP(X94,Feuil1!$C$1:$BL$10,8,FALSE) -> -47 | AI94: =T94-HLOOKUP(X94,Feuil1!$C$1:$BL$10,9,FALSE) -> -72 | AJ94: =T94-HLOOKUP(X94,Feuil1!$C$1:$BL$10,10,FALSE) -> -902 | AQ94: REG +
A95: H | B95: N | C95: IDF | D95: 23 | E95: 313237 | F95: TRAN-TRI | G95: Hugo | H95: 2000 | I95: 53.7 | J95: CHAVILLE | K95: F | L95: 40 | M95: -45 | N95: 45 | O95: 45 | P95: 50 | Q95: -55 | R95: -55 | S95: 50 | T95: 95 | U95: -12.4 | V95: REG + | W95: 10 | X95: =IF(I95="","",IF(A95="H",IF(OR(H95="SEN",H95<1995),VLOOKUP(I95,Feuil1!$A$11:$G$29,6),IF(AND(H95>1994,H95<1998),VLOOKUP(I95,Feuil1!$A$11:$G$29,5),IF(AND(H95>1997,H95<2000),VLOOKUP(I95,Feuil1!$A$11:$G$29,4),IF(AND(H95>1999,H95<2002),VLOOKUP(I95,Feuil1!$A$11:$G$29,3),VLOOKUP(I95,Feuil1!$A$11:$G$29,2))))),IF(OR(H95="SEN",H95<1995),VLOOKUP(I95,Feuil1!$G$11:$L$25,6),IF(AND(H95>1994,H95<1998),VLOOKUP(I95,Feuil1!$G$11:$L$25,5),IF(AND(H95>1997,H95<2000),VLOOKUP(I95,Feuil1!$G$11:$L$25,4),IF(AND(H95>1999,H95<2002),VLOOKUP(I95,Feuil1!$G$11:$L$25,3),VLOOKUP(I95,Feuil1!$G$11:$L$25,2))))))) -> C1 56 | Y95: 153.3196494 | AB95: =T95-HLOOKUP(X95,Feuil1!$C$1:$BL$10,2,FALSE) -> 45 | AC95: =T95-HLOOKUP(X95,Feuil1!$C$1:$BL$10,3,FALSE) -> 25 | AD95: =T95-HLOOKUP(X95,Feuil1!$C$1:$BL$10,4,FALSE) -> 10 | AE95: =T95-HLOOKUP(X95,Feuil1!$C$1:$BL$10,5,FALSE) -> -5 | AF95: =T95-HLOOKUP(X95,Feuil1!$C$1:$BL$10,6,FALSE) -> -20 | AG95: =T95-HLOOKUP(X95,Feuil1!$C$1:$BL$10,7,FALSE) -> -35 | AH95: =T95-HLOOKUP(X95,Feuil1!$C$1:$BL$10,8,FALSE) -> -50 | AI95: =T95-HLOOKUP(X95,Feuil1!$C$1:$BL$10,9,FALSE) -> -75 | AJ95: =T95-HLOOKUP(X95,Feuil1!$C$1:$BL$10,10,FALSE) -> -905 | AQ95: REG +
A96: H | B96: NE | C96: FCO | D96: 24 | E96: 350181 | F96: BERTHELIN | G96: Simon | H96: 2000 | I96: 54.1 | J96: CH Luxeuil | K96: F | L96: 35 | M96: 40 | N96: -43 | O96: 40 | P96: 47 | Q96: 51 | R96: 55 | S96: 55 | T96: 95 | U96: -13.2 | V96: REG + | W96: 10 | X96: =IF(I96="","",IF(A96="H",IF(OR(H96="SEN",H96<1995),VLOOKUP(I96,Feuil1!$A$11:$G$29,6),IF(AND(H96>1994,H96<1998),VLOOKUP(I96,Feuil1!$A$11:$G$29,5),IF(AND(H96>1997,H96<2000),VLOOKUP(I96,Feuil1!$A$11:$G$29,4),IF(AND(H96>1999,H96<2002),VLOOKUP(I96,Feuil1!$A$11:$G$29,3),VLOOKUP(I96,Feuil1!$A$11:$G$29,2))))),IF(OR(H96="SEN",H96<1995),VLOOKUP(I96,Feuil1!$G$11:$L$25,6),IF(AND(H96>1994,H96<1998),VLOOKUP(I96,Feuil1!$G$11:$L$25,5),IF(AND(H96>1997,H96<2000),VLOOKUP(I96,Feuil1!$G$11:$L$25,4),IF(AND(H96>1999,H96<2002),VLOOKUP(I96,Feuil1!$G$11:$L$25,3),VLOOKUP(I96,Feuil1!$G$11:$L$25,2))))))) -> C1 56 | Y96: 152.4006095 | AB96: =T96-HLOOKUP(X96,Feuil1!$C$1:$BL$10,2,FALSE) -> 45 | AC96: =T96-HLOOKUP(X96,Feuil1!$C$1:$BL$10,3,FALSE) -> 25 | AD96: =T96-HLOOKUP(X96,Feuil1!$C$1:$BL$10,4,FALSE) -> 10 | AE96: =T96-HLOOKUP(X96,Feuil1!$C$1:$BL$10,5,FALSE) -> -5 | AF96: =T96-HLOOKUP(X96,Feuil1!$C$1:$BL$10,6,FALSE) -> -20 | AG96: =T96-HLOOKUP(X96,Feuil1!$C$1:$BL$10,7,FALSE) -> -35 | AH96: =T96-HLOOKUP(X96,Feuil1!$C$1:$BL$10,8,FALSE) -> -50 | AI96: =T96-HLOOKUP(X96,Feuil1!$C$1:$BL$10,9,FALSE) -> -75 | AJ96: =T96-HLOOKUP(X96,Feuil1!$C$1:$BL$10,10,FALSE) -> -905 | AQ96: REG +
A97: H | B97: NORD | C97: NPC | D97: 25 | E97: 375306 | F97: LEURS | G97: Allan | H97: 2000 | I97: 55.2 | J97: C.A.ROSENDAEL | K97: F | L97: 30 | M97: 33 | N97: 35 | O97: 35 | P97: 42 | Q97: 46 | R97: 50 | S97: 50 | T97: 85 | U97: -25.4 | V97: REG + | W97: 0 | X97: =IF(I97="","",IF(A97="H",IF(OR(H97="SEN",H97<1995),VLOOKUP(I97,Feuil1!$A$11:$G$29,6),IF(AND(H97>1994,H97<1998),VLOOKUP(I97,Feuil1!$A$11:$G$29,5),IF(AND(H97>1997,H97<2000),VLOOKUP(I97,Feuil1!$A$11:$G$29,4),IF(AND(H97>1999,H97<2002),VLOOKUP(I97,Feuil1!$A$11:$G$29,3),VLOOKUP(I97,Feuil1!$A$11:$G$29,2))))),IF(OR(H97="SEN",H97<1995),VLOOKUP(I97,Feuil1!$G$11:$L$25,6),IF(AND(H97>1994,H97<1998),VLOOKUP(I97,Feuil1!$G$11:$L$25,5),IF(AND(H97>1997,H97<2000),VLOOKUP(I97,Feuil1!$G$11:$L$25,4),IF(AND(H97>1999,H97<2002),VLOOKUP(I97,Feuil1!$G$11:$L$25,3),VLOOKUP(I97,Feuil1!$G$11:$L$25,2))))))) -> C1 56 | Y97: 134.1784852 | AB97: =T97-HLOOKUP(X97,Feuil1!$C$1:$BL$10,2,FALSE) -> 35 | AC97: =T97-HLOOKUP(X97,Feuil1!$C$1:$BL$10,3,FALSE) -> 15 | AD97: =T97-HLOOKUP(X97,Feuil1!$C$1:$BL$10,4,FALSE) -> 0 | AE97: =T97-HLOOKUP(X97,Feuil1!$C$1:$BL$10,5,FALSE) -> -15 | AF97: =T97-HLOOKUP(X97,Feuil1!$C$1:$BL$10,6,FALSE) -> -30 | AG97: =T97-HLOOKUP(X97,Feuil1!$C$1:$BL$10,7,FALSE) -> -45 | AH97: =T97-HLOOKUP(X97,Feuil1!$C$1:$BL$10,8,FALSE) -> -60 | AI97: =T97-HLOOKUP(X97,Feuil1!$C$1:$BL$10,9,FALSE) -> -85 | AJ97: =T97-HLOOKUP(X97,Feuil1!$C$1:$BL$10,10,FALSE) -> -915 | AQ97: REG +
A98: H | B98: CO | C98: PDL | D98: 26 | E98: 367895 | F98: SONNET | G98: MAXENCE | H98: 2000 | I98: 53.4 | J98: CA EVRON 53 | K98: F | L98: 30 | M98: -33 | N98: 33 | O98: 33 | P98: 37 | Q98: 42 | R98: 45 | S98: 45 | T98: 78 | U98: -28.8 | V98: DEP + | W98: 8 | X98: =IF(I98="","",IF(A98="H",IF(OR(H98="SEN",H98<1995),VLOOKUP(I98,Feuil1!$A$11:$G$29,6),IF(AND(H98>1994,H98<1998),VLOOKUP(I98,Feuil1!$A$11:$G$29,5),IF(AND(H98>1997,H98<2000),VLOOKUP(I98,Feuil1!$A$11:$G$29,4),IF(AND(H98>1999,H98<2002),VLOOKUP(I98,Feuil1!$A$11:$G$29,3),VLOOKUP(I98,Feuil1!$A$11:$G$29,2))))),IF(OR(H98="SEN",H98<1995),VLOOKUP(I98,Feuil1!$G$11:$L$25,6),IF(AND(H98>1994,H98<1998),VLOOKUP(I98,Feuil1!$G$11:$L$25,5),IF(AND(H98>1997,H98<2000),VLOOKUP(I98,Feuil1!$G$11:$L$25,4),IF(AND(H98>1999,H98<2002),VLOOKUP(I98,Feuil1!$G$11:$L$25,3),VLOOKUP(I98,Feuil1!$G$11:$L$25,2))))))) -> C1 56 | Y98: 126.4593301 | AB98: =T98-HLOOKUP(X98,Feuil1!$C$1:$BL$10,2,FALSE) -> 28 | AC98: =T98-HLOOKUP(X98,Feuil1!$C$1:$BL$10,3,FALSE) -> 8 | AD98: =T98-HLOOKUP(X98,Feuil1!$C$1:$BL$10,4,FALSE) -> -7 | AE98: =T98-HLOOKUP(X98,Feuil1!$C$1:$BL$10,5,FALSE) -> -22 | AF98: =T98-HLOOKUP(X98,Feuil1!$C$1:$BL$10,6,FALSE) -> -37 | AG98: =T98-HLOOKUP(X98,Feuil1!$C$1:$BL$10,7,FALSE) -> -52 | AH98: =T98-HLOOKUP(X98,Feuil1!$C$1:$BL$10,8,FALSE) -> -67 | AI98: =T98-HLOOKUP(X98,Feuil1!$C$1:$BL$10,9,FALSE) -> -92 | AJ98: =T98-HLOOKUP(X98,Feuil1!$C$1:$BL$10,10,FALSE) -> -922 | AQ98: DEP +
A99: H | B99: NE | C99: CHA | D99: 27 | E99: 381736 | F99: ELOI | G99: Franck | H99: 2000 | I99: 56 | J99: Reims HM | K99: F | L99: 30 | M99: 33 | N99: 35 | O99: 35 | P99: 36 | Q99: 39 | R99: 42 | S99: 42 | T99: 77 | U99: -35 | V99: DEP + | W99: 7 | X99: =IF(I99="","",IF(A99="H",IF(OR(H99="SEN",H99<1995),VLOOKUP(I99,Feuil1!$A$11:$G$29,6),IF(AND(H99>1994,H99<1998),VLOOKUP(I99,Feuil1!$A$11:$G$29,5),IF(AND(H99>1997,H99<2000),VLOOKUP(I99,Feuil1!$A$11:$G$29,4),IF(AND(H99>1999,H99<2002),VLOOKUP(I99,Feuil1!$A$11:$G$29,3),VLOOKUP(I99,Feuil1!$A$11:$G$29,2))))),IF(OR(H99="SEN",H99<1995),VLOOKUP(I99,Feuil1!$G$11:$L$25,6),IF(AND(H99>1994,H99<1998),VLOOKUP(I99,Feuil1!$G$11:$L$25,5),IF(AND(H99>1997,H99<2000),VLOOKUP(I99,Feuil1!$G$11:$L$25,4),IF(AND(H99>1999,H99<2002),VLOOKUP(I99,Feuil1!$G$11:$L$25,3),VLOOKUP(I99,Feuil1!$G$11:$L$25,2))))))) -> C1 56 | Y99: 120.1782485 | AB99: =T99-HLOOKUP(X99,Feuil1!$C$1:$BL$10,2,FALSE) -> 27 | AC99: =T99-HLOOKUP(X99,Feuil1!$C$1:$BL$10,3,FALSE) -> 7 | AD99: =T99-HLOOKUP(X99,Feuil1!$C$1:$BL$10,4,FALSE) -> -8 | AE99: =T99-HLOOKUP(X99,Feuil1!$C$1:$BL$10,5,FALSE) -> -23 | AF99: =T99-HLOOKUP(X99,Feuil1!$C$1:$BL$10,6,FALSE) -> -38 | AG99: =T99-HLOOKUP(X99,Feuil1!$C$1:$BL$10,7,FALSE) -> -53 | AH99: =T99-HLOOKUP(X99,Feuil1!$C$1:$BL$10,8,FALSE) -> -68 | AI99: =T99-HLOOKUP(X99,Feuil1!$C$1:$BL$10,9,FALSE) -> -93 | AJ99: =T99-HLOOKUP(X99,Feuil1!$C$1:$BL$10,10,FALSE) -> -923 | AQ99: DEP +
A100: H | B100: SEST | C100: RAL | D100: 28 | E100: 381398 | F100: HUGONNIER | G100: Remi | H100: 2001 | I100: 53.3 | J100: C.H. L'ARBRESLE | K100: F | L100: 25 | M100: 30 | N100: 35 | O100: 35 | P100: 30 | Q100: 35 | R100: 40 | S100: 40 | T100: 75 | U100: -31.6 | V100: DEP + | W100: 5 | X100: =IF(I100="","",IF(A100="H",IF(OR(H100="SEN",H100<1995),VLOOKUP(I100,Feuil1!$A$11:$G$29,6),IF(AND(H100>1994,H100<1998),VLOOKUP(I100,Feuil1!$A$11:$G$29,5),IF(AND(H100>1997,H100<2000),VLOOKUP(I100,Feuil1!$A$11:$G$29,4),IF(AND(H100>1999,H100<2002),VLOOKUP(I100,Feuil1!$A$11:$G$29,3),VLOOKUP(I100,Feuil1!$A$11:$G$29,2))))),IF(OR(H100="SEN",H100<1995),VLOOKUP(I100,Feuil1!$G$11:$L$25,6),IF(AND(H100>1994,H100<1998),VLOOKUP(I100,Feuil1!$G$11:$L$25,5),IF(AND(H100>1997,H100<2000),VLOOKUP(I100,Feuil1!$G$11:$L$25,4),IF(AND(H100>1999,H100<2002),VLOOKUP(I100,Feuil1!$G$11:$L$25,3),VLOOKUP(I100,Feuil1!$G$11:$L$25,2))))))) -> C1 56 | Y100: 121.7819153 | AB100: =T100-HLOOKUP(X100,Feuil1!$C$1:$BL$10,2,FALSE) -> 25 | AC100: =T100-HLOOKUP(X100,Feuil1!$C$1:$BL$10,3,FALSE) -> 5 | AD100: =T100-HLOOKUP(X100,Feuil1!$C$1:$BL$10,4,FALSE) -> -10 | AE100: =T100-HLOOKUP(X100,Feuil1!$C$1:$BL$10,5,FALSE) -> -25 | AF100: =T100-HLOOKUP(X100,Feuil1!$C$1:$BL$10,6,FALSE) -> -40 | AG100: =T100-HLOOKUP(X100,Feuil1!$C$1:$BL$10,7,FALSE) -> -55 | AH100: =T100-HLOOKUP(X100,Feuil1!$C$1:$BL$10,8,FALSE) -> -70 | AI100: =T100-HLOOKUP(X100,Feuil1!$C$1:$BL$10,9,FALSE) -> -95 | AJ100: =T100-HLOOKUP(X100,Feuil1!$C$1:$BL$10,10,FALSE) -> -925 | AQ100: DEP +
A101: H | B101: SO | C101: MPY | D101: 29 | E101: 357551 | F101: MEUNIER | G101: Julien | H101: 2001 | I101: 55.1 | J101: MONTAUBAN HC | K101: F | L101: 28 | M101: 31 | N101: 34 | O101: 34 | P101: 37 | Q101: 40 | R101: -43 | S101: 40 | T101: 74 | U101: -36.2 | V101: DEP + | W101: 4 | X101: =IF(I101="","",IF(A101="H",IF(OR(H101="SEN",H101<1995),VLOOKUP(I101,Feuil1!$A$11:$G$29,6),IF(AND(H101>1994,H101<1998),VLOOKUP(I101,Feuil1!$A$11:$G$29,5),IF(AND(H101>1997,H101<2000),VLOOKUP(I101,Feuil1!$A$11:$G$29,4),IF(AND(H101>1999,H101<2002),VLOOKUP(I101,Feuil1!$A$11:$G$29,3),VLOOKUP(I101,Feuil1!$A$11:$G$29,2))))),IF(OR(H101="SEN",H101<1995),VLOOKUP(I101,Feuil1!$G$11:$L$25,6),IF(AND(H101>1994,H101<1998),VLOOKUP(I101,Feuil1!$G$11:$L$25,5),IF(AND(H101>1997,H101<2000),VLOOKUP(I101,Feuil1!$G$11:$L$25,4),IF(AND(H101>1999,H101<2002),VLOOKUP(I101,Feuil1!$G$11:$L$25,3),VLOOKUP(I101,Feuil1!$G$11:$L$25,2))))))) -> C1 56 | Y101: 116.9825809 | AB101: =T101-HLOOKUP(X101,Feuil1!$C$1:$BL$10,2,FALSE) -> 24 | AC101: =T101-HLOOKUP(X101,Feuil1!$C$1:$BL$10,3,FALSE) -> 4 | AD101: =T101-HLOOKUP(X101,Feuil1!$C$1:$BL$10,4,FALSE) -> -11 | AE101: =T101-HLOOKUP(X101,Feuil1!$C$1:$BL$10,5,FALSE) -> -26 | AF101: =T101-HLOOKUP(X101,Feuil1!$C$1:$BL$10,6,FALSE) -> -41 | AG101: =T101-HLOOKUP(X101,Feuil1!$C$1:$BL$10,7,FALSE) -> -56 | AH101: =T101-HLOOKUP(X101,Feuil1!$C$1:$BL$10,8,FALSE) -> -71 | AI101: =T101-HLOOKUP(X101,Feuil1!$C$1:$BL$10,9,FALSE) -> -96 | AJ101: =T101-HLOOKUP(X101,Feuil1!$C$1:$BL$10,10,FALSE) -> -926 | AQ101: DEP +
A102: H | B102: NE | C102: ALS | D102: 30 | E102: 381290 | F102: CECERE | G102: THOMAS | H102: 2001 | I102: 53.9 | J102: SR Obernai HM | K102: F | L102: 28 | M102: 30 | N102: 32 | O102: 32 | P102: 32 | Q102: 35 | R102: 38 | S102: 38 | T102: 70 | U102: -37.8 | V102: DEP + | W102: 0 | X102: =IF(I102="","",IF(A102="H",IF(OR(H102="SEN",H102<1995),VLOOKUP(I102,Feuil1!$A$11:$G$29,6),IF(AND(H102>1994,H102<1998),VLOOKUP(I102,Feuil1!$A$11:$G$29,5),IF(AND(H102>1997,H102<2000),VLOOKUP(I102,Feuil1!$A$11:$G$29,4),IF(AND(H102>1999,H102<2002),VLOOKUP(I102,Feuil1!$A$11:$G$29,3),VLOOKUP(I102,Feuil1!$A$11:$G$29,2))))),IF(OR(H102="SEN",H102<1995),VLOOKUP(I102,Feuil1!$G$11:$L$25,6),IF(AND(H102>1994,H102<1998),VLOOKUP(I102,Feuil1!$G$11:$L$25,5),IF(AND(H102>1997,H102<2000),VLOOKUP(I102,Feuil1!$G$11:$L$25,4),IF(AND(H102>1999,H102<2002),VLOOKUP(I102,Feuil1!$G$11:$L$25,3),VLOOKUP(I102,Feuil1!$G$11:$L$25,2))))))) -> C1 56 | Y102: 112.6321075 | AB102: =T102-HLOOKUP(X102,Feuil1!$C$1:$BL$10,2,FALSE) -> 20 | AC102: =T102-HLOOKUP(X102,Feuil1!$C$1:$BL$10,3,FALSE) -> 0 | AD102: =T102-HLOOKUP(X102,Feuil1!$C$1:$BL$10,4,FALSE) -> -15 | AE102: =T102-HLOOKUP(X102,Feuil1!$C$1:$BL$10,5,FALSE) -> -30 | AF102: =T102-HLOOKUP(X102,Feuil1!$C$1:$BL$10,6,FALSE) -> -45 | AG102: =T102-HLOOKUP(X102,Feuil1!$C$1:$BL$10,7,FALSE) -> -60 | AH102: =T102-HLOOKUP(X102,Feuil1!$C$1:$BL$10,8,FALSE) -> -75 | AI102: =T102-HLOOKUP(X102,Feuil1!$C$1:$BL$10,9,FALSE) -> -100 | AJ102: =T102-HLOOKUP(X102,Feuil1!$C$1:$BL$10,10,FALSE) -> -930 | AQ102: DEP +
A103: H | B103: NE | C103: CHA | D103: 31 | E103: 336659 | F103: GALANDON | G103: Mattéo | H103: 2001 | I103: 55 | J103: Reims HM | K103: F | L103: 23 | M103: 26 | N103: 28 | O103: 28 | P103: 33 | Q103: 37 | R103: 40 | S103: 40 | T103: 68 | U103: -42 | V103: DEB | W103: 18 | X103: =IF(I103="","",IF(A103="H",IF(OR(H103="SEN",H103<1995),VLOOKUP(I103,Feuil1!$A$11:$G$29,6),IF(AND(H103>1994,H103<1998),VLOOKUP(I103,Feuil1!$A$11:$G$29,5),IF(AND(H103>1997,H103<2000),VLOOKUP(I103,Feuil1!$A$11:$G$29,4),IF(AND(H103>1999,H103<2002),VLOOKUP(I103,Feuil1!$A$11:$G$29,3),VLOOKUP(I103,Feuil1!$A$11:$G$29,2))))),IF(OR(H103="SEN",H103<1995),VLOOKUP(I103,Feuil1!$G$11:$L$25,6),IF(AND(H103>1994,H103<1998),VLOOKUP(I103,Feuil1!$G$11:$L$25,5),IF(AND(H103>1997,H103<2000),VLOOKUP(I103,Feuil1!$G$11:$L$25,4),IF(AND(H103>1999,H103<2002),VLOOKUP(I103,Feuil1!$G$11:$L$25,3),VLOOKUP(I103,Feuil1!$G$11:$L$25,2))))))) -> C1 56 | Y103: 107.6529749 | AB103: =T103-HLOOKUP(X103,Feuil1!$C$1:$BL$10,2,FALSE) -> 18 | AC103: =T103-HLOOKUP(X103,Feuil1!$C$1:$BL$10,3,FALSE) -> -2 | AD103: =T103-HLOOKUP(X103,Feuil1!$C$1:$BL$10,4,FALSE) -> -17 | AE103: =T103-HLOOKUP(X103,Feuil1!$C$1:$BL$10,5,FALSE) -> -32 | AF103: =T103-HLOOKUP(X103,Feuil1!$C$1:$BL$10,6,FALSE) -> -47 | AG103: =T103-HLOOKUP(X103,Feuil1!$C$1:$BL$10,7,FALSE) -> -62 | AH103: =T103-HLOOKUP(X103,Feuil1!$C$1:$BL$10,8,FALSE) -> -77 | AI103: =T103-HLOOKUP(X103,Feuil1!$C$1:$BL$10,9,FALSE) -> -102 | AJ103: =T103-HLOOKUP(X103,Feuil1!$C$1:$BL$10,10,FALSE) -> -932 | AQ103: DEB
A104: H | B104: NE | C104: CHA | D104: 32 | E104: 387905 | F104: RENDA | G104: Jean | H104: 2001 | I104: 51 | J104: Langres HM | K104: F | L104: 25 | M104: 28 | N104: 30 | O104: 30 | P104: 30 | Q104: 34 | R104: 36 | S104: 36 | T104: 66 | U104: -36 | V104: DEB | W104: 16 | X104: =IF(I104="","",IF(A104="H",IF(OR(H104="SEN",H104<1995),VLOOKUP(I104,Feuil1!$A$11:$G$29,6),IF(AND(H104>1994,H104<1998),VLOOKUP(I104,Feuil1!$A$11:$G$29,5),IF(AND(H104>1997,H104<2000),VLOOKUP(I104,Feuil1!$A$11:$G$29,4),IF(AND(H104>1999,H104<2002),VLOOKUP(I104,Feuil1!$A$11:$G$29,3),VLOOKUP(I104,Feuil1!$A$11:$G$29,2))))),IF(OR(H104="SEN",H104<1995),VLOOKUP(I104,Feuil1!$G$11:$L$25,6),IF(AND(H104>1994,H104<1998),VLOOKUP(I104,Feuil1!$G$11:$L$25,5),IF(AND(H104>1997,H104<2000),VLOOKUP(I104,Feuil1!$G$11:$L$25,4),IF(AND(H104>1999,H104<2002),VLOOKUP(I104,Feuil1!$G$11:$L$25,3),VLOOKUP(I104,Feuil1!$G$11:$L$25,2))))))) -> C1 56 | Y104: 111.1795816 | AB104: =T104-HLOOKUP(X104,Feuil1!$C$1:$BL$10,2,FALSE) -> 16 | AC104: =T104-HLOOKUP(X104,Feuil1!$C$1:$BL$10,3,FALSE) -> -4 | AD104: =T104-HLOOKUP(X104,Feuil1!$C$1:$BL$10,4,FALSE) -> -19 | AE104: =T104-HLOOKUP(X104,Feuil1!$C$1:$BL$10,5,FALSE) -> -34 | AF104: =T104-HLOOKUP(X104,Feuil1!$C$1:$BL$10,6,FALSE) -> -49 | AG104: =T104-HLOOKUP(X104,Feuil1!$C$1:$BL$10,7,FALSE) -> -64 | AH104: =T104-HLOOKUP(X104,Feuil1!$C$1:$BL$10,8,FALSE) -> -79 | AI104: =T104-HLOOKUP(X104,Feuil1!$C$1:$BL$10,9,FALSE) -> -104 | AJ104: =T104-HLOOKUP(X104,Feuil1!$C$1:$BL$10,10,FALSE) -> -934 | AQ104: DEB
A105: H | B105: CO | C105: PDL | D105: 33 | E105: 379614 | F105: PUISSET | G105: GABRIEL | H105: 2001 | I105: 54.2 | J105: BBFC ALLONNES | K105: F | L105: -25 | M105: -25 | N105: 25 | O105: 25 | P105: 27 | Q105: 30 | R105: 32 | S105: 32 | T105: 57 | U105: -51.4 | V105: DEB | W105: 7 | X105: =IF(I105="","",IF(A105="H",IF(OR(H105="SEN",H105<1995),VLOOKUP(I105,Feuil1!$A$11:$G$29,6),IF(AND(H105>1994,H105<1998),VLOOKUP(I105,Feuil1!$A$11:$G$29,5),IF(AND(H105>1997,H105<2000),VLOOKUP(I105,Feuil1!$A$11:$G$29,4),IF(AND(H105>1999,H105<2002),VLOOKUP(I105,Feuil1!$A$11:$G$29,3),VLOOKUP(I105,Feuil1!$A$11:$G$29,2))))),IF(OR(H105="SEN",H105<1995),VLOOKUP(I105,Feuil1!$G$11:$L$25,6),IF(AND(H105>1994,H105<1998),VLOOKUP(I105,Feuil1!$G$11:$L$25,5),IF(AND(H105>1997,H105<2000),VLOOKUP(I105,Feuil1!$G$11:$L$25,4),IF(AND(H105>1999,H105<2002),VLOOKUP(I105,Feuil1!$G$11:$L$25,3),VLOOKUP(I105,Feuil1!$G$11:$L$25,2))))))) -> C1 56 | Y105: 91.30420025 | AB105: =T105-HLOOKUP(X105,Feuil1!$C$1:$BL$10,2,FALSE) -> 7 | AC105: =T105-HLOOKUP(X105,Feuil1!$C$1:$BL$10,3,FALSE) -> -13 | AD105: =T105-HLOOKUP(X105,Feuil1!$C$1:$BL$10,4,FALSE) -> -28 | AE105: =T105-HLOOKUP(X105,Feuil1!$C$1:$BL$10,5,FALSE) -> -43 | AF105: =T105-HLOOKUP(X105,Feuil1!$C$1:$BL$10,6,FALSE) -> -58 | AG105: =T105-HLOOKUP(X105,Feuil1!$C$1:$BL$10,7,FALSE) -> -73 | AH105: =T105-HLOOKUP(X105,Feuil1!$C$1:$BL$10,8,FALSE) -> -88 | AI105: =T105-HLOOKUP(X105,Feuil1!$C$1:$BL$10,9,FALSE) -> -113 | AJ105: =T105-HLOOKUP(X105,Feuil1!$C$1:$BL$10,10,FALSE) -> -943 | AQ105: DEB
A106: H | B106: NE | C106: ALS | D106: 34 | E106: 389913 | F106: CLEMENTZ | G106: EMERIC | H106: 2000 | I106: 50.8 | J106: MJC Ungersheim | K106: F | L106: 25 | M106: -28 | N106: -28 | O106: 25 | P106: 27 | Q106: -29 | R106: 30 | S106: 30 | T106: 55 | U106: -46.6 | V106: DEB | W106: 5 | X106: =IF(I106="","",IF(A106="H",IF(OR(H106="SEN",H106<1995),VLOOKUP(I106,Feuil1!$A$11:$G$29,6),IF(AND(H106>1994,H106<1998),VLOOKUP(I106,Feuil1!$A$11:$G$29,5),IF(AND(H106>1997,H106<2000),VLOOKUP(I106,Feuil1!$A$11:$G$29,4),IF(AND(H106>1999,H106<2002),VLOOKUP(I106,Feuil1!$A$11:$G$29,3),VLOOKUP(I106,Feuil1!$A$11:$G$29,2))))),IF(OR(H106="SEN",H106<1995),VLOOKUP(I106,Feuil1!$G$11:$L$25,6),IF(AND(H106>1994,H106<1998),VLOOKUP(I106,Feuil1!$G$11:$L$25,5),IF(AND(H106>1997,H106<2000),VLOOKUP(I106,Feuil1!$G$11:$L$25,4),IF(AND(H106>1999,H106<2002),VLOOKUP(I106,Feuil1!$G$11:$L$25,3),VLOOKUP(I106,Feuil1!$G$11:$L$25,2))))))) -> C1 56 | Y106: 92.95948553 | AB106: =T106-HLOOKUP(X106,Feuil1!$C$1:$BL$10,2,FALSE) -> 5 | AC106: =T106-HLOOKUP(X106,Feuil1!$C$1:$BL$10,3,FALSE) -> -15 | AD106: =T106-HLOOKUP(X106,Feuil1!$C$1:$BL$10,4,FALSE) -> -30 | AE106: =T106-HLOOKUP(X106,Feuil1!$C$1:$BL$10,5,FALSE) -> -45 | AF106: =T106-HLOOKUP(X106,Feuil1!$C$1:$BL$10,6,FALSE) -> -60 | AG106: =T106-HLOOKUP(X106,Feuil1!$C$1:$BL$10,7,FALSE) -> -75 | AH106: =T106-HLOOKUP(X106,Feuil1!$C$1:$BL$10,8,FALSE) -> -90 | AI106: =T106-HLOOKUP(X106,Feuil1!$C$1:$BL$10,9,FALSE) -> -115 | AJ106: =T106-HLOOKUP(X106,Feuil1!$C$1:$BL$10,10,FALSE) -> -945 | AQ106: DEB
A107: H | B107: CO | C107: CEN | D107: 35 | E107: 385632 | F107: MARIE | G107: Edouard | H107: 2000 | I107: 51 | J107: CM Orléans | K107: F | L107: 25 | M107: -27 | N107: -28 | O107: 25 | P107: 25 | Q107: 30 | R107: -35 | S107: 30 | T107: 55 | U107: -47 | V107: DEB | W107: 5 | X107: =IF(I107="","",IF(A107="H",IF(OR(H107="SEN",H107<1995),VLOOKUP(I107,Feuil1!$A$11:$G$29,6),IF(AND(H107>1994,H107<1998),VLOOKUP(I107,Feuil1!$A$11:$G$29,5),IF(AND(H107>1997,H107<2000),VLOOKUP(I107,Feuil1!$A$11:$G$29,4),IF(AND(H107>1999,H107<2002),VLOOKUP(I107,Feuil1!$A$11:$G$29,3),VLOOKUP(I107,Feuil1!$A$11:$G$29,2))))),IF(OR(H107="SEN",H107<1995),VLOOKUP(I107,Feuil1!$G$11:$L$25,6),IF(AND(H107>1994,H107<1998),VLOOKUP(I107,Feuil1!$G$11:$L$25,5),IF(AND(H107>1997,H107<2000),VLOOKUP(I107,Feuil1!$G$11:$L$25,4),IF(AND(H107>1999,H107<2002),VLOOKUP(I107,Feuil1!$G$11:$L$25,3),VLOOKUP(I107,Feuil1!$G$11:$L$25,2))))))) -> C1 56 | Y107: 92.64965137 | AB107: =T107-HLOOKUP(X107,Feuil1!$C$1:$BL$10,2,FALSE) -> 5 | AC107: =T107-HLOOKUP(X107,Feuil1!$C$1:$BL$10,3,FALSE) -> -15 | AD107: =T107-HLOOKUP(X107,Feuil1!$C$1:$BL$10,4,FALSE) -> -30 | AE107: =T107-HLOOKUP(X107,Feuil1!$C$1:$BL$10,5,FALSE) -> -45 | AF107: =T107-HLOOKUP(X107,Feuil1!$C$1:$BL$10,6,FALSE) -> -60 | AG107: =T107-HLOOKUP(X107,Feuil1!$C$1:$BL$10,7,FALSE) -> -75 | AH107: =T107-HLOOKUP(X107,Feuil1!$C$1:$BL$10,8,FALSE) -> -90 | AI107: =T107-HLOOKUP(X107,Feuil1!$C$1:$BL$10,9,FALSE) -> -115 | AJ107: =T107-HLOOKUP(X107,Feuil1!$C$1:$BL$10,10,FALSE) -> -945 | AQ107: DEB
A108: H | B108: CO | C108: BNO | D108: 36 | E108: 302146 | F108: Fauny | G108: Gilles | H108: 2001 | I108: 53.3 | J108: Saint-Lô | K108: F | L108: 17 | M108: 20 | N108: 21 | O108: 21 | P108: 26 | Q108: 30 | R108: 32 | S108: 32 | T108: 53 | U108: -53.6 | V108: DEB | W108: 3 | X108: =IF(I108="","",IF(A108="H",IF(OR(H108="SEN",H108<1995),VLOOKUP(I108,Feuil1!$A$11:$G$29,6),IF(AND(H108>1994,H108<1998),VLOOKUP(I108,Feuil1!$A$11:$G$29,5),IF(AND(H108>1997,H108<2000),VLOOKUP(I108,Feuil1!$A$11:$G$29,4),IF(AND(H108>1999,H108<2002),VLOOKUP(I108,Feuil1!$A$11:$G$29,3),VLOOKUP(I108,Feuil1!$A$11:$G$29,2))))),IF(OR(H108="SEN",H108<1995),VLOOKUP(I108,Feuil1!$G$11:$L$25,6),IF(AND(H108>1994,H108<1998),VLOOKUP(I108,Feuil1!$G$11:$L$25,5),IF(AND(H108>1997,H108<2000),VLOOKUP(I108,Feuil1!$G$11:$L$25,4),IF(AND(H108>1999,H108<2002),VLOOKUP(I108,Feuil1!$G$11:$L$25,3),VLOOKUP(I108,Feuil1!$G$11:$L$25,2))))))) -> C1 56 | Y108: 86.05922013 | AB108: =T108-HLOOKUP(X108,Feuil1!$C$1:$BL$10,2,FALSE) -> 3 | AC108: =T108-HLOOKUP(X108,Feuil1!$C$1:$BL$10,3,FALSE) -> -17 | AD108: =T108-HLOOKUP(X108,Feuil1!$C$1:$BL$10,4,FALSE) -> -32 | AE108: =T108-HLOOKUP(X108,Feuil1!$C$1:$BL$10,5,FALSE) -> -47 | AF108: =T108-HLOOKUP(X108,Feuil1!$C$1:$BL$10,6,FALSE) -> -62 | AG108: =T108-HLOOKUP(X108,Feuil1!$C$1:$BL$10,7,FALSE) -> -77 | AH108: =T108-HLOOKUP(X108,Feuil1!$C$1:$BL$10,8,FALSE) -> -92 | AI108: =T108-HLOOKUP(X108,Feuil1!$C$1:$BL$10,9,FALSE) -> -117 | AJ108: =T108-HLOOKUP(X108,Feuil1!$C$1:$BL$10,10,FALSE) -> -947 | AQ108: DEB
A109: H | B109: SO | C109: MPY | D109: 37 | E109: 371172 | F109: PINQUIE | G109: Jérémy | H109: 2000 | I109: 51 | J109: FIGEAC HC | K109: F | L109: 15 | M109: 17 | N109: -19 | O109: 17 | P109: 25 | Q109: -29 | R109: 29 | S109: 29 | T109: 46 | U109: -56 | V109: DEB | W109: -4 | X109: =IF(I109="","",IF(A109="H",IF(OR(H109="SEN",H109<1995),VLOOKUP(I109,Feuil1!$A$11:$G$29,6),IF(AND(H109>1994,H109<1998),VLOOKUP(I109,Feuil1!$A$11:$G$29,5),IF(AND(H109>1997,H109<2000),VLOOKUP(I109,Feuil1!$A$11:$G$29,4),IF(AND(H109>1999,H109<2002),VLOOKUP(I109,Feuil1!$A$11:$G$29,3),VLOOKUP(I109,Feuil1!$A$11:$G$29,2))))),IF(OR(H109="SEN",H109<1995),VLOOKUP(I109,Feuil1!$G$11:$L$25,6),IF(AND(H109>1994,H109<1998),VLOOKUP(I109,Feuil1!$G$11:$L$25,5),IF(AND(H109>1997,H109<2000),VLOOKUP(I109,Feuil1!$G$11:$L$25,4),IF(AND(H109>1999,H109<2002),VLOOKUP(I109,Feuil1!$G$11:$L$25,3),VLOOKUP(I109,Feuil1!$G$11:$L$25,2))))))) -> C1 56 | Y109: 77.48879933 | AB109: =T109-HLOOKUP(X109,Feuil1!$C$1:$BL$10,2,FALSE) -> -4 | AC109: =T109-HLOOKUP(X109,Feuil1!$C$1:$BL$10,3,FALSE) -> -24 | AD109: =T109-HLOOKUP(X109,Feuil1!$C$1:$BL$10,4,FALSE) -> -39 | AE109: =T109-HLOOKUP(X109,Feuil1!$C$1:$BL$10,5,FALSE) -> -54 | AF109: =T109-HLOOKUP(X109,Feuil1!$C$1:$BL$10,6,FALSE) -> -69 | AG109: =T109-HLOOKUP(X109,Feuil1!$C$1:$BL$10,7,FALSE) -> -84 | AH109: =T109-HLOOKUP(X109,Feuil1!$C$1:$BL$10,8,FALSE) -> -99 | AI109: =T109-HLOOKUP(X109,Feuil1!$C$1:$BL$10,9,FALSE) -> -124 | AJ109: =T109-HLOOKUP(X109,Feuil1!$C$1:$BL$10,10,FALSE) -> -954 | AQ109: DEB
A110: H | B110: CO | C110: PDL | D110: 38 | E110: 379818 | F110: REGENT | G110: Damien | H110: 2000 | I110: 55.56 | J110: ALSavenay | K110: F | L110: 17 | M110: -20 | N110: 20 | O110: 20 | P110: 24 | Q110: -26 | R110: 26 | S110: 26 | T110: 46 | U110: -65.12 | V110: DEB | W110: -4 | X110: =IF(I110="","",IF(A110="H",IF(OR(H110="SEN",H110<1995),VLOOKUP(I110,Feuil1!$A$11:$G$29,6),IF(AND(H110>1994,H110<1998),VLOOKUP(I110,Feuil1!$A$11:$G$29,5),IF(AND(H110>1997,H110<2000),VLOOKUP(I110,Feuil1!$A$11:$G$29,4),IF(AND(H110>1999,H110<2002),VLOOKUP(I110,Feuil1!$A$11:$G$29,3),VLOOKUP(I110,Feuil1!$A$11:$G$29,2))))),IF(OR(H110="SEN",H110<1995),VLOOKUP(I110,Feuil1!$G$11:$L$25,6),IF(AND(H110>1994,H110<1998),VLOOKUP(I110,Feuil1!$G$11:$L$25,5),IF(AND(H110>1997,H110<2000),VLOOKUP(I110,Feuil1!$G$11:$L$25,4),IF(AND(H110>1999,H110<2002),VLOOKUP(I110,Feuil1!$G$11:$L$25,3),VLOOKUP(I110,Feuil1!$G$11:$L$25,2))))))) -> C1 56 | Y110: 72.24160085 | AB110: =T110-HLOOKUP(X110,Feuil1!$C$1:$BL$10,2,FALSE) -> -4 | AC110: =T110-HLOOKUP(X110,Feuil1!$C$1:$BL$10,3,FALSE) -> -24 | AD110: =T110-HLOOKUP(X110,Feuil1!$C$1:$BL$10,4,FALSE) -> -39 | AE110: =T110-HLOOKUP(X110,Feuil1!$C$1:$BL$10,5,FALSE) -> -54 | AF110: =T110-HLOOKUP(X110,Feuil1!$C$1:$BL$10,6,FALSE) -> -69 | AG110: =T110-HLOOKUP(X110,Feuil1!$C$1:$BL$10,7,FALSE) -> -84 | AH110: =T110-HLOOKUP(X110,Feuil1!$C$1:$BL$10,8,FALSE) -> -99 | AI110: =T110-HLOOKUP(X110,Feuil1!$C$1:$BL$10,9,FALSE) -> -124 | AJ110: =T110-HLOOKUP(X110,Feuil1!$C$1:$BL$10,10,FALSE) -> -954 | AQ110: DEB
A111: H | B111: NE | C111: ALS | D111: 39 | E111: 379296 | F111: FABRIANO | G111: Romain | H111: 2001 | I111: 51.3 | J111: SR Obernai HM | K111: F | L111: 17 | M111: 19 | N111: 21 | O111: 21 | P111: -22 | Q111: 22 | R111: 24 | S111: 24 | T111: 45 | U111: -57.6 | V111: DEB | W111: -5 | X111: =IF(I111="","",IF(A111="H",IF(OR(H111="SEN",H111<1995),VLOOKUP(I111,Feuil1!$A$11:$G$29,6),IF(AND(H111>1994,H111<1998),VLOOKUP(I111,Feuil1!$A$11:$G$29,5),IF(AND(H111>1997,H111<2000),VLOOKUP(I111,Feuil1!$A$11:$G$29,4),IF(AND(H111>1999,H111<2002),VLOOKUP(I111,Feuil1!$A$11:$G$29,3),VLOOKUP(I111,Feuil1!$A$11:$G$29,2))))),IF(OR(H111="SEN",H111<1995),VLOOKUP(I111,Feuil1!$G$11:$L$25,6),IF(AND(H111>1994,H111<1998),VLOOKUP(I111,Feuil1!$G$11:$L$25,5),IF(AND(H111>1997,H111<2000),VLOOKUP(I111,Feuil1!$G$11:$L$25,4),IF(AND(H111>1999,H111<2002),VLOOKUP(I111,Feuil1!$G$11:$L$25,3),VLOOKUP(I111,Feuil1!$G$11:$L$25,2))))))) -> C1 56 | Y111: 75.42893293 | AB111: =T111-HLOOKUP(X111,Feuil1!$C$1:$BL$10,2,FALSE) -> -5 | AC111: =T111-HLOOKUP(X111,Feuil1!$C$1:$BL$10,3,FALSE) -> -25 | AD111: =T111-HLOOKUP(X111,Feuil1!$C$1:$BL$10,4,FALSE) -> -40 | AE111: =T111-HLOOKUP(X111,Feuil1!$C$1:$BL$10,5,FALSE) -> -55 | AF111: =T111-HLOOKUP(X111,Feuil1!$C$1:$BL$10,6,FALSE) -> -70 | AG111: =T111-HLOOKUP(X111,Feuil1!$C$1:$BL$10,7,FALSE) -> -85 | AH111: =T111-HLOOKUP(X111,Feuil1!$C$1:$BL$10,8,FALSE) -> -100 | AI111: =T111-HLOOKUP(X111,Feuil1!$C$1:$BL$10,9,FALSE) -> -125 | AJ111: =T111-HLOOKUP(X111,Feuil1!$C$1:$BL$10,10,FALSE) -> -955 | AQ111: DEB
A112: H | B112: NORD | C112: PIC | D112: 40 | E112: 375795 | F112: VERRECHIA | G112: Jimmy | H112: 2000 | I112: 56 | J112: La Ferté Milon CMHM | K112: F | L112: 10 | M112: 13 | N112: 15 | O112: 15 | P112: 17 | Q112: 19 | R112: -21 | S112: 19 | T112: 34 | U112: -78 | V112: DEB | W112: -16 | X112: =IF(I112="","",IF(A112="H",IF(OR(H112="SEN",H112<1995),VLOOKUP(I112,Feuil1!$A$11:$G$29,6),IF(AND(H112>1994,H112<1998),VLOOKUP(I112,Feuil1!$A$11:$G$29,5),IF(AND(H112>1997,H112<2000),VLOOKUP(I112,Feuil1!$A$11:$G$29,4),IF(AND(H112>1999,H112<2002),VLOOKUP(I112,Feuil1!$A$11:$G$29,3),VLOOKUP(I112,Feuil1!$A$11:$G$29,2))))),IF(OR(H112="SEN",H112<1995),VLOOKUP(I112,Feuil1!$G$11:$L$25,6),IF(AND(H112>1994,H112<1998),VLOOKUP(I112,Feuil1!$G$11:$L$25,5),IF(AND(H112>1997,H112<2000),VLOOKUP(I112,Feuil1!$G$11:$L$25,4),IF(AND(H112>1999,H112<2002),VLOOKUP(I112,Feuil1!$G$11:$L$25,3),VLOOKUP(I112,Feuil1!$G$11:$L$25,2))))))) -> C1 56 | Y112: 53.06572011 | AB112: =T112-HLOOKUP(X112,Feuil1!$C$1:$BL$10,2,FALSE) -> -16 | AC112: =T112-HLOOKUP(X112,Feuil1!$C$1:$BL$10,3,FALSE) -> -36 | AD112: =T112-HLOOKUP(X112,Feuil1!$C$1:$BL$10,4,FALSE) -> -51 | AE112: =T112-HLOOKUP(X112,Feuil1!$C$1:$BL$10,5,FALSE) -> -66 | AF112: =T112-HLOOKUP(X112,Feuil1!$C$1:$BL$10,6,FALSE) -> -81 | AG112: =T112-HLOOKUP(X112,Feuil1!$C$1:$BL$10,7,FALSE) -> -96 | AH112: =T112-HLOOKUP(X112,Feuil1!$C$1:$BL$10,8,FALSE) -> -111 | AI112: =T112-HLOOKUP(X112,Feuil1!$C$1:$BL$10,9,FALSE) -> -136 | AJ112: =T112-HLOOKUP(X112,Feuil1!$C$1:$BL$10,10,FALSE) -> -966 | AQ112: DEB
AB113: =T113-HLOOKUP(X113,[1]Feuil1!$C$1:$BL$10,2,FALSE) ->  | AC113: =T113-HLOOKUP(X113,[1]Feuil1!$C$1:$BL$10,3,FALSE) ->  | AD113: =T113-HLOOKUP(X113,[1]Feuil1!$C$1:$BL$10,4,FALSE) ->  | AE113: =T113-HLOOKUP(X113,[1]Feuil1!$C$1:$BL$10,5,FALSE) ->  | AF113: =T113-HLOOKUP(X113,[1]Feuil1!$C$1:$BL$10,6,FALSE) ->  | AG113: =T113-HLOOKUP(X113,[1]Feuil1!$C$1:$BL$10,7,FALSE) ->  | AH113: =T113-HLOOKUP(X113,[1]Feuil1!$C$1:$BL$10,8,FALSE) ->  | AI113: =T113-HLOOKUP(X113,[1]Feuil1!$C$1:$BL$10,9,FALSE) ->  | AJ113: =T113-HLOOKUP(X113,[1]Feuil1!$C$1:$BL$10,10,FALSE) ->  | AQ113: =IF(AJ113>=0,$AJ$4,IF(AI113>=0,$AI$4,IF(AH113>=0,$AH$4,IF(AG113>=0,$AG$4,IF(AF113>=0,$AF$4,IF(AE113>=0,$AE$4,IF(AD113>=0,$AD$4,IF(AC113>=0,$AC$4,$AB$4)))))))) -> 
A114: H | B114: NORD | C114: NPC | D114: 1 | E114: 336176 | F114: FARETIE | G114: Sony | H114: 2000 | I114: 61.23 | J114: C.A.ROSENDAEL | K114: F | L114: -73 | M114: 75 | N114: 80 | O114: =IF(H114="","",IF(MAXA(L114:N114)<=0,0,MAXA(L114:N114))) -> 80 | P114: -95 | Q114: 95 | R114: 100 | S114: =IF(H114="","",IF(MAXA(P114:R114)<=0,0,MAXA(P114:R114))) -> 100 | T114: =IF(H114="","",IF(OR(O114=0,S114=0),0,O114+S114)) -> 180 | U114: =T114-I114*2 -> 57.54 | V114: =IF(H114="","",AQ114) -> INTB + | W114: =IF(AJ114>=0,AJ114,IF(AI114>=0,AI114,IF(AH114>=0,AH114,IF(AG114>=0,AG114,IF(AF114>=0,AF114,IF(AE114>=0,AE114,IF(AD114>=0,AD114,IF(AC114>=0,AC114,AB114)))))))) -> 10 | X114: =IF(I114="","",IF(A114="H",IF(OR(H114="SEN",H114<1995),VLOOKUP(I114,Feuil1!$A$11:$G$29,6),IF(AND(H114>1994,H114<1998),VLOOKUP(I114,Feuil1!$A$11:$G$29,5),IF(AND(H114>1997,H114<2000),VLOOKUP(I114,Feuil1!$A$11:$G$29,4),IF(AND(H114>1999,H114<2002),VLOOKUP(I114,Feuil1!$A$11:$G$29,3),VLOOKUP(I114,Feuil1!$A$11:$G$29,2))))),IF(OR(H114="SEN",H114<1995),VLOOKUP(I114,Feuil1!$G$11:$L$25,6),IF(AND(H114>1994,H114<1998),VLOOKUP(I114,Feuil1!$G$11:$L$25,5),IF(AND(H114>1997,H114<2000),VLOOKUP(I114,Feuil1!$G$11:$L$25,4),IF(AND(H114>1999,H114<2002),VLOOKUP(I114,Feuil1!$G$11:$L$25,3),VLOOKUP(I114,Feuil1!$G$11:$L$25,2))))))) -> C1 62 | Y114: =IF(I114="","",IF(A114="H",10^(0.794358141*LOG(I114/174.393)^2)*T114,IF(A114="F",10^(0.89726074*LOG(I114/148.026)^2)*T114,""))) -> 262.6697439 | AB114: =T114-HLOOKUP(X114,Feuil1!$C$1:$BL$10,2,FALSE) -> 105 | AC114: =T114-HLOOKUP(X114,Feuil1!$C$1:$BL$10,3,FALSE) -> 85 | AD114: =T114-HLOOKUP(X114,Feuil1!$C$1:$BL$10,4,FALSE) -> 75 | AE114: =T114-HLOOKUP(X114,Feuil1!$C$1:$BL$10,5,FALSE) -> 60 | AF114: =T114-HLOOKUP(X114,Feuil1!$C$1:$BL$10,6,FALSE) -> 45 | AG114: =T114-HLOOKUP(X114,Feuil1!$C$1:$BL$10,7,FALSE) -> 30 | AH114: =T114-HLOOKUP(X114,Feuil1!$C$1:$BL$10,8,FALSE) -> 10 | AI114: =T114-HLOOKUP(X114,Feuil1!$C$1:$BL$10,9,FALSE) -> -10 | AJ114: =T114-HLOOKUP(X114,Feuil1!$C$1:$BL$10,10,FALSE) -> -820 | AQ114: =IF(AJ114>=0,$AJ$4,IF(AI114>=0,$AI$4,IF(AH114>=0,$AH$4,IF(AG114>=0,$AG$4,IF(AF114>=0,$AF$4,IF(AE114>=0,$AE$4,IF(AD114>=0,$AD$4,IF(AC114>=0,$AC$4,$AB$4)))))))) -> INTB +
A115: H | B115: DOM | C115: GUA | D115: 2 | E115: 265989 | F115: BERTILI | G115: Bernard | H115: 2000 | I115: 60.5 | J115: Body Club Domien | K115: F | L115: 70 | M115: -75 | N115: 75 | O115: 75 | P115: 85 | Q115: 90 | R115: -93 | S115: 90 | T115: 165 | U115: 44 | V115: NAT + | W115: 15 | X115: =IF(I115="","",IF(A115="H",IF(OR(H115="SEN",H115<1995),VLOOKUP(I115,Feuil1!$A$11:$G$29,6),IF(AND(H115>1994,H115<1998),VLOOKUP(I115,Feuil1!$A$11:$G$29,5),IF(AND(H115>1997,H115<2000),VLOOKUP(I115,Feuil1!$A$11:$G$29,4),IF(AND(H115>1999,H115<2002),VLOOKUP(I115,Feuil1!$A$11:$G$29,3),VLOOKUP(I115,Feuil1!$A$11:$G$29,2))))),IF(OR(H115="SEN",H115<1995),VLOOKUP(I115,Feuil1!$G$11:$L$25,6),IF(AND(H115>1994,H115<1998),VLOOKUP(I115,Feuil1!$G$11:$L$25,5),IF(AND(H115>1997,H115<2000),VLOOKUP(I115,Feuil1!$G$11:$L$25,4),IF(AND(H115>1999,H115<2002),VLOOKUP(I115,Feuil1!$G$11:$L$25,3),VLOOKUP(I115,Feuil1!$G$11:$L$25,2))))))) -> C1 62 | Y115: 242.8872772 | AB115: =T115-HLOOKUP(X115,Feuil1!$C$1:$BL$10,2,FALSE) -> 90 | AC115: =T115-HLOOKUP(X115,Feuil1!$C$1:$BL$10,3,FALSE) -> 70 | AD115: =T115-HLOOKUP(X115,Feuil1!$C$1:$BL$10,4,FALSE) -> 60 | AE115: =T115-HLOOKUP(X115,Feuil1!$C$1:$BL$10,5,FALSE) -> 45 | AF115: =T115-HLOOKUP(X115,Feuil1!$C$1:$BL$10,6,FALSE) -> 30 | AG115: =T115-HLOOKUP(X115,Feuil1!$C$1:$BL$10,7,FALSE) -> 15 | AH115: =T115-HLOOKUP(X115,Feuil1!$C$1:$BL$10,8,FALSE) -> -5 | AI115: =T115-HLOOKUP(X115,Feuil1!$C$1:$BL$10,9,FALSE) -> -25 | AJ115: =T115-HLOOKUP(X115,Feuil1!$C$1:$BL$10,10,FALSE) -> -835 | AQ115: NAT +
A116: H | B116: NE | C116: CHA | D116: 3 | E116: 339573 | F116: MKRTCHYAN | G116: Armen | H116: 2000 | I116: 61.9 | J116: Reims HM | K116: Arm | L116: 62 | M116: 65 | N116: 68 | O116: 68 | P116: 82 | Q116: 86 | R116: 90 | S116: 90 | T116: 158 | U116: 34.2 | V116: NAT + | W116: 8 | X116: =IF(I116="","",IF(A116="H",IF(OR(H116="SEN",H116<1995),VLOOKUP(I116,Feuil1!$A$11:$G$29,6),IF(AND(H116>1994,H116<1998),VLOOKUP(I116,Feuil1!$A$11:$G$29,5),IF(AND(H116>1997,H116<2000),VLOOKUP(I116,Feuil1!$A$11:$G$29,4),IF(AND(H116>1999,H116<2002),VLOOKUP(I116,Feuil1!$A$11:$G$29,3),VLOOKUP(I116,Feuil1!$A$11:$G$29,2))))),IF(OR(H116="SEN",H116<1995),VLOOKUP(I116,Feuil1!$G$11:$L$25,6),IF(AND(H116>1994,H116<1998),VLOOKUP(I116,Feuil1!$G$11:$L$25,5),IF(AND(H116>1997,H116<2000),VLOOKUP(I116,Feuil1!$G$11:$L$25,4),IF(AND(H116>1999,H116<2002),VLOOKUP(I116,Feuil1!$G$11:$L$25,3),VLOOKUP(I116,Feuil1!$G$11:$L$25,2))))))) -> C1 62 | Y116: 228.7700144 | AB116: =T116-HLOOKUP(X116,Feuil1!$C$1:$BL$10,2,FALSE) -> 83 | AC116: =T116-HLOOKUP(X116,Feuil1!$C$1:$BL$10,3,FALSE) -> 63 | AD116: =T116-HLOOKUP(X116,Feuil1!$C$1:$BL$10,4,FALSE) -> 53 | AE116: =T116-HLOOKUP(X116,Feuil1!$C$1:$BL$10,5,FALSE) -> 38 | AF116: =T116-HLOOKUP(X116,Feuil1!$C$1:$BL$10,6,FALSE) -> 23 | AG116: =T116-HLOOKUP(X116,Feuil1!$C$1:$BL$10,7,FALSE) -> 8 | AH116: =T116-HLOOKUP(X116,Feuil1!$C$1:$BL$10,8,FALSE) -> -12 | AI116: =T116-HLOOKUP(X116,Feuil1!$C$1:$BL$10,9,FALSE) -> -32 | AJ116: =T116-HLOOKUP(X116,Feuil1!$C$1:$BL$10,10,FALSE) -> -842 | AQ116: NAT +
A117: H | B117: SEST | C117: LAN | D117: 4 | E117: 331084 | F117: GIAMBRONE | G117: Alexandre | H117: 2000 | I117: 61.8 | J117: Clermont Sports | K117: F | L117: 60 | M117: 64 | N117: 66 | O117: 66 | P117: -80 | Q117: 80 | R117: 84 | S117: 84 | T117: 150 | U117: 26.4 | V117: NAT + | W117: 0 | X117: =IF(I117="","",IF(A117="H",IF(OR(H117="SEN",H117<1995),VLOOKUP(I117,Feuil1!$A$11:$G$29,6),IF(AND(H117>1994,H117<1998),VLOOKUP(I117,Feuil1!$A$11:$G$29,5),IF(AND(H117>1997,H117<2000),VLOOKUP(I117,Feuil1!$A$11:$G$29,4),IF(AND(H117>1999,H117<2002),VLOOKUP(I117,Feuil1!$A$11:$G$29,3),VLOOKUP(I117,Feuil1!$A$11:$G$29,2))))),IF(OR(H117="SEN",H117<1995),VLOOKUP(I117,Feuil1!$G$11:$L$25,6),IF(AND(H117>1994,H117<1998),VLOOKUP(I117,Feuil1!$G$11:$L$25,5),IF(AND(H117>1997,H117<2000),VLOOKUP(I117,Feuil1!$G$11:$L$25,4),IF(AND(H117>1999,H117<2002),VLOOKUP(I117,Feuil1!$G$11:$L$25,3),VLOOKUP(I117,Feuil1!$G$11:$L$25,2))))))) -> C1 62 | Y117: 217.4380191 | AB117: =T117-HLOOKUP(X117,Feuil1!$C$1:$BL$10,2,FALSE) -> 75 | AC117: =T117-HLOOKUP(X117,Feuil1!$C$1:$BL$10,3,FALSE) -> 55 | AD117: =T117-HLOOKUP(X117,Feuil1!$C$1:$BL$10,4,FALSE) -> 45 | AE117: =T117-HLOOKUP(X117,Feuil1!$C$1:$BL$10,5,FALSE) -> 30 | AF117: =T117-HLOOKUP(X117,Feuil1!$C$1:$BL$10,6,FALSE) -> 15 | AG117: =T117-HLOOKUP(X117,Feuil1!$C$1:$BL$10,7,FALSE) -> 0 | AH117: =T117-HLOOKUP(X117,Feuil1!$C$1:$BL$10,8,FALSE) -> -20 | AI117: =T117-HLOOKUP(X117,Feuil1!$C$1:$BL$10,9,FALSE) -> -40 | AJ117: =T117-HLOOKUP(X117,Feuil1!$C$1:$BL$10,10,FALSE) -> -850 | AQ117: NAT +
A118: H | B118: SEST | C118: LAN | D118: 5 | E118: 312387 | F118: SERGENT | G118: Enzo | H118: 2001 | I118: 59.5 | J118: Clermont Sports | K118: F | L118: 60 | M118: 63 | N118: -65 | O118: 63 | P118: 75 | Q118: 80 | R118: 85 | S118: 85 | T118: 148 | U118: 29 | V118: FED + | W118: 13 | X118: =IF(I118="","",IF(A118="H",IF(OR(H118="SEN",H118<1995),VLOOKUP(I118,Feuil1!$A$11:$G$29,6),IF(AND(H118>1994,H118<1998),VLOOKUP(I118,Feuil1!$A$11:$G$29,5),IF(AND(H118>1997,H118<2000),VLOOKUP(I118,Feuil1!$A$11:$G$29,4),IF(AND(H118>1999,H118<2002),VLOOKUP(I118,Feuil1!$A$11:$G$29,3),VLOOKUP(I118,Feuil1!$A$11:$G$29,2))))),IF(OR(H118="SEN",H118<1995),VLOOKUP(I118,Feuil1!$G$11:$L$25,6),IF(AND(H118>1994,H118<1998),VLOOKUP(I118,Feuil1!$G$11:$L$25,5),IF(AND(H118>1997,H118<2000),VLOOKUP(I118,Feuil1!$G$11:$L$25,4),IF(AND(H118>1999,H118<2002),VLOOKUP(I118,Feuil1!$G$11:$L$25,3),VLOOKUP(I118,Feuil1!$G$11:$L$25,2))))))) -> C1 62 | Y118: 220.5522298 | AB118: =T118-HLOOKUP(X118,Feuil1!$C$1:$BL$10,2,FALSE) -> 73 | AC118: =T118-HLOOKUP(X118,Feuil1!$C$1:$BL$10,3,FALSE) -> 53 | AD118: =T118-HLOOKUP(X118,Feuil1!$C$1:$BL$10,4,FALSE) -> 43 | AE118: =T118-HLOOKUP(X118,Feuil1!$C$1:$BL$10,5,FALSE) -> 28 | AF118: =T118-HLOOKUP(X118,Feuil1!$C$1:$BL$10,6,FALSE) -> 13 | AG118: =T118-HLOOKUP(X118,Feuil1!$C$1:$BL$10,7,FALSE) -> -2 | AH118: =T118-HLOOKUP(X118,Feuil1!$C$1:$BL$10,8,FALSE) -> -22 | AI118: =T118-HLOOKUP(X118,Feuil1!$C$1:$BL$10,9,FALSE) -> -42 | AJ118: =T118-HLOOKUP(X118,Feuil1!$C$1:$BL$10,10,FALSE) -> -852 | AQ118: FED +
A119: H | B119: NORD | C119: NPC | D119: 6 | E119: 304778 | F119: DESMAREST | G119: Dylan | H119: 2000 | I119: 60.5 | J119: CHCD COMINES | K119: F | L119: 57 | M119: 60 | N119: 63 | O119: 63 | P119: -72 | Q119: 74 | R119: 78 | S119: 78 | T119: 141 | U119: 20 | V119: FED + | W119: 6 | X119: =IF(I119="","",IF(A119="H",IF(OR(H119="SEN",H119<1995),VLOOKUP(I119,Feuil1!$A$11:$G$29,6),IF(AND(H119>1994,H119<1998),VLOOKUP(I119,Feuil1!$A$11:$G$29,5),IF(AND(H119>1997,H119<2000),VLOOKUP(I119,Feuil1!$A$11:$G$29,4),IF(AND(H119>1999,H119<2002),VLOOKUP(I119,Feuil1!$A$11:$G$29,3),VLOOKUP(I119,Feuil1!$A$11:$G$29,2))))),IF(OR(H119="SEN",H119<1995),VLOOKUP(I119,Feuil1!$G$11:$L$25,6),IF(AND(H119>1994,H119<1998),VLOOKUP(I119,Feuil1!$G$11:$L$25,5),IF(AND(H119>1997,H119<2000),VLOOKUP(I119,Feuil1!$G$11:$L$25,4),IF(AND(H119>1999,H119<2002),VLOOKUP(I119,Feuil1!$G$11:$L$25,3),VLOOKUP(I119,Feuil1!$G$11:$L$25,2))))))) -> C1 62 | Y119: 207.5582187 | AB119: =T119-HLOOKUP(X119,Feuil1!$C$1:$BL$10,2,FALSE) -> 66 | AC119: =T119-HLOOKUP(X119,Feuil1!$C$1:$BL$10,3,FALSE) -> 46 | AD119: =T119-HLOOKUP(X119,Feuil1!$C$1:$BL$10,4,FALSE) -> 36 | AE119: =T119-HLOOKUP(X119,Feuil1!$C$1:$BL$10,5,FALSE) -> 21 | AF119: =T119-HLOOKUP(X119,Feuil1!$C$1:$BL$10,6,FALSE) -> 6 | AG119: =T119-HLOOKUP(X119,Feuil1!$C$1:$BL$10,7,FALSE) -> -9 | AH119: =T119-HLOOKUP(X119,Feuil1!$C$1:$BL$10,8,FALSE) -> -29 | AI119: =T119-HLOOKUP(X119,Feuil1!$C$1:$BL$10,9,FALSE) -> -49 | AJ119: =T119-HLOOKUP(X119,Feuil1!$C$1:$BL$10,10,FALSE) -> -859 | AQ119: FED +
A120: H | B120: N | C120: IDF | D120: 7 | E120: 368739 | F120: CISSOKO | G120: Christopher | H120: 2000 | I120: 56.4 | J120: SAINT-MAUR | K120: F | L120: 55 | M120: 60 | N120: -62 | O120: 60 | P120: 73 | Q120: 78 | R120: -80 | S120: 78 | T120: 138 | U120: 25.2 | V120: FED + | W120: 3 | X120: =IF(I120="","",IF(A120="H",IF(OR(H120="SEN",H120<1995),VLOOKUP(I120,Feuil1!$A$11:$G$29,6),IF(AND(H120>1994,H120<1998),VLOOKUP(I120,Feuil1!$A$11:$G$29,5),IF(AND(H120>1997,H120<2000),VLOOKUP(I120,Feuil1!$A$11:$G$29,4),IF(AND(H120>1999,H120<2002),VLOOKUP(I120,Feuil1!$A$11:$G$29,3),VLOOKUP(I120,Feuil1!$A$11:$G$29,2))))),IF(OR(H120="SEN",H120<1995),VLOOKUP(I120,Feuil1!$G$11:$L$25,6),IF(AND(H120>1994,H120<1998),VLOOKUP(I120,Feuil1!$G$11:$L$25,5),IF(AND(H120>1997,H120<2000),VLOOKUP(I120,Feuil1!$G$11:$L$25,4),IF(AND(H120>1999,H120<2002),VLOOKUP(I120,Feuil1!$G$11:$L$25,3),VLOOKUP(I120,Feuil1!$G$11:$L$25,2))))))) -> C1 62 | Y120: 214.1899554 | AB120: =T120-HLOOKUP(X120,Feuil1!$C$1:$BL$10,2,FALSE) -> 63 | AC120: =T120-HLOOKUP(X120,Feuil1!$C$1:$BL$10,3,FALSE) -> 43 | AD120: =T120-HLOOKUP(X120,Feuil1!$C$1:$BL$10,4,FALSE) -> 33 | AE120: =T120-HLOOKUP(X120,Feuil1!$C$1:$BL$10,5,FALSE) -> 18 | AF120: =T120-HLOOKUP(X120,Feuil1!$C$1:$BL$10,6,FALSE) -> 3 | AG120: =T120-HLOOKUP(X120,Feuil1!$C$1:$BL$10,7,FALSE) -> -12 | AH120: =T120-HLOOKUP(X120,Feuil1!$C$1:$BL$10,8,FALSE) -> -32 | AI120: =T120-HLOOKUP(X120,Feuil1!$C$1:$BL$10,9,FALSE) -> -52 | AJ120: =T120-HLOOKUP(X120,Feuil1!$C$1:$BL$10,10,FALSE) -> -862 | AQ120: FED +
A121: H | B121: NORD | C121: NPC | D121: 8 | E121: 311932 | F121: MAES | G121: Calvin | H121: 2000 | I121: 61.5 | J121: C.A.ROSENDAEL | K121: F | L121: 50 | M121: 55 | N121: 58 | O121: 58 | P121: 70 | Q121: 75 | R121: -78 | S121: 75 | T121: 133 | U121: 10 | V121: IRG + | W121: 13 | X121: =IF(I121="","",IF(A121="H",IF(OR(H121="SEN",H121<1995),VLOOKUP(I121,Feuil1!$A$11:$G$29,6),IF(AND(H121>1994,H121<1998),VLOOKUP(I121,Feuil1!$A$11:$G$29,5),IF(AND(H121>1997,H121<2000),VLOOKUP(I121,Feuil1!$A$11:$G$29,4),IF(AND(H121>1999,H121<2002),VLOOKUP(I121,Feuil1!$A$11:$G$29,3),VLOOKUP(I121,Feuil1!$A$11:$G$29,2))))),IF(OR(H121="SEN",H121<1995),VLOOKUP(I121,Feuil1!$G$11:$L$25,6),IF(AND(H121>1994,H121<1998),VLOOKUP(I121,Feuil1!$G$11:$L$25,5),IF(AND(H121>1997,H121<2000),VLOOKUP(I121,Feuil1!$G$11:$L$25,4),IF(AND(H121>1999,H121<2002),VLOOKUP(I121,Feuil1!$G$11:$L$25,3),VLOOKUP(I121,Feuil1!$G$11:$L$25,2))))))) -> C1 62 | Y121: 193.4693245 | AB121: =T121-HLOOKUP(X121,Feuil1!$C$1:$BL$10,2,FALSE) -> 58 | AC121: =T121-HLOOKUP(X121,Feuil1!$C$1:$BL$10,3,FALSE) -> 38 | AD121: =T121-HLOOKUP(X121,Feuil1!$C$1:$BL$10,4,FALSE) -> 28 | AE121: =T121-HLOOKUP(X121,Feuil1!$C$1:$BL$10,5,FALSE) -> 13 | AF121: =T121-HLOOKUP(X121,Feuil1!$C$1:$BL$10,6,FALSE) -> -2 | AG121: =T121-HLOOKUP(X121,Feuil1!$C$1:$BL$10,7,FALSE) -> -17 | AH121: =T121-HLOOKUP(X121,Feuil1!$C$1:$BL$10,8,FALSE) -> -37 | AI121: =T121-HLOOKUP(X121,Feuil1!$C$1:$BL$10,9,FALSE) -> -57 | AJ121: =T121-HLOOKUP(X121,Feuil1!$C$1:$BL$10,10,FALSE) -> -867 | AQ121: IRG +
A122: H | B122: SEST | C122: PRO | D122: 9 | E122: 369617 | F122: GIRARD | G122: MAXIME | H122: 2001 | I122: 57 | J122: ISTRES SPORTS | K122: F | L122: 47 | M122: 51 | N122: -55 | O122: 51 | P122: 67 | Q122: 71 | R122: 75 | S122: 75 | T122: 126 | U122: 12 | V122: IRG + | W122: 6 | X122: =IF(I122="","",IF(A122="H",IF(OR(H122="SEN",H122<1995),VLOOKUP(I122,Feuil1!$A$11:$G$29,6),IF(AND(H122>1994,H122<1998),VLOOKUP(I122,Feuil1!$A$11:$G$29,5),IF(AND(H122>1997,H122<2000),VLOOKUP(I122,Feuil1!$A$11:$G$29,4),IF(AND(H122>1999,H122<2002),VLOOKUP(I122,Feuil1!$A$11:$G$29,3),VLOOKUP(I122,Feuil1!$A$11:$G$29,2))))),IF(OR(H122="SEN",H122<1995),VLOOKUP(I122,Feuil1!$G$11:$L$25,6),IF(AND(H122>1994,H122<1998),VLOOKUP(I122,Feuil1!$G$11:$L$25,5),IF(AND(H122>1997,H122<2000),VLOOKUP(I122,Feuil1!$G$11:$L$25,4),IF(AND(H122>1999,H122<2002),VLOOKUP(I122,Feuil1!$G$11:$L$25,3),VLOOKUP(I122,Feuil1!$G$11:$L$25,2))))))) -> C1 62 | Y122: 193.9670016 | AB122: =T122-HLOOKUP(X122,Feuil1!$C$1:$BL$10,2,FALSE) -> 51 | AC122: =T122-HLOOKUP(X122,Feuil1!$C$1:$BL$10,3,FALSE) -> 31 | AD122: =T122-HLOOKUP(X122,Feuil1!$C$1:$BL$10,4,FALSE) -> 21 | AE122: =T122-HLOOKUP(X122,Feuil1!$C$1:$BL$10,5,FALSE) -> 6 | AF122: =T122-HLOOKUP(X122,Feuil1!$C$1:$BL$10,6,FALSE) -> -9 | AG122: =T122-HLOOKUP(X122,Feuil1!$C$1:$BL$10,7,FALSE) -> -24 | AH122: =T122-HLOOKUP(X122,Feuil1!$C$1:$BL$10,8,FALSE) -> -44 | AI122: =T122-HLOOKUP(X122,Feuil1!$C$1:$BL$10,9,FALSE) -> -64 | AJ122: =T122-HLOOKUP(X122,Feuil1!$C$1:$BL$10,10,FALSE) -> -874 | AQ122: IRG +
A123: H | B123: NORD | C123: NPC | D123: 10 | E123: 355670 | F123: LESSCHAVE | G123: Théo | H123: 2000 | I123: 57.7 | J123: ASPTT LILLE | K123: F | L123: 55 | M123: 58 | N123: 61 | O123: 61 | P123: 65 | Q123: -70 | R123: -74 | S123: 65 | T123: 126 | U123: 10.6 | V123: IRG + | W123: 6 | X123: =IF(I123="","",IF(A123="H",IF(OR(H123="SEN",H123<1995),VLOOKUP(I123,Feuil1!$A$11:$G$29,6),IF(AND(H123>1994,H123<1998),VLOOKUP(I123,Feuil1!$A$11:$G$29,5),IF(AND(H123>1997,H123<2000),VLOOKUP(I123,Feuil1!$A$11:$G$29,4),IF(AND(H123>1999,H123<2002),VLOOKUP(I123,Feuil1!$A$11:$G$29,3),VLOOKUP(I123,Feuil1!$A$11:$G$29,2))))),IF(OR(H123="SEN",H123<1995),VLOOKUP(I123,Feuil1!$G$11:$L$25,6),IF(AND(H123>1994,H123<1998),VLOOKUP(I123,Feuil1!$G$11:$L$25,5),IF(AND(H123>1997,H123<2000),VLOOKUP(I123,Feuil1!$G$11:$L$25,4),IF(AND(H123>1999,H123<2002),VLOOKUP(I123,Feuil1!$G$11:$L$25,3),VLOOKUP(I123,Feuil1!$G$11:$L$25,2))))))) -> C1 62 | Y123: 192.1587353 | AB123: =T123-HLOOKUP(X123,Feuil1!$C$1:$BL$10,2,FALSE) -> 51 | AC123: =T123-HLOOKUP(X123,Feuil1!$C$1:$BL$10,3,FALSE) -> 31 | AD123: =T123-HLOOKUP(X123,Feuil1!$C$1:$BL$10,4,FALSE) -> 21 | AE123: =T123-HLOOKUP(X123,Feuil1!$C$1:$BL$10,5,FALSE) -> 6 | AF123: =T123-HLOOKUP(X123,Feuil1!$C$1:$BL$10,6,FALSE) -> -9 | AG123: =T123-HLOOKUP(X123,Feuil1!$C$1:$BL$10,7,FALSE) -> -24 | AH123: =T123-HLOOKUP(X123,Feuil1!$C$1:$BL$10,8,FALSE) -> -44 | AI123: =T123-HLOOKUP(X123,Feuil1!$C$1:$BL$10,9,FALSE) -> -64 | AJ123: =T123-HLOOKUP(X123,Feuil1!$C$1:$BL$10,10,FALSE) -> -874 | AQ123: IRG +
A124: H | B124: SEST | C124: RAL | D124: 11 | E124: 304551 | F124: DOMINGUEZ | G124: Gaetan | H124: 2001 | I124: 57.9 | J124: Gauloise de Vaise | K124: F | L124: 52 | M124: 56 | N124: -60 | O124: 56 | P124: 62 | Q124: 66 | R124: 70 | S124: 70 | T124: 126 | U124: 10.2 | V124: IRG + | W124: 6 | X124: =IF(I124="","",IF(A124="H",IF(OR(H124="SEN",H124<1995),VLOOKUP(I124,Feuil1!$A$11:$G$29,6),IF(AND(H124>1994,H124<1998),VLOOKUP(I124,Feuil1!$A$11:$G$29,5),IF(AND(H124>1997,H124<2000),VLOOKUP(I124,Feuil1!$A$11:$G$29,4),IF(AND(H124>1999,H124<2002),VLOOKUP(I124,Feuil1!$A$11:$G$29,3),VLOOKUP(I124,Feuil1!$A$11:$G$29,2))))),IF(OR(H124="SEN",H124<1995),VLOOKUP(I124,Feuil1!$G$11:$L$25,6),IF(AND(H124>1994,H124<1998),VLOOKUP(I124,Feuil1!$G$11:$L$25,5),IF(AND(H124>1997,H124<2000),VLOOKUP(I124,Feuil1!$G$11:$L$25,4),IF(AND(H124>1999,H124<2002),VLOOKUP(I124,Feuil1!$G$11:$L$25,3),VLOOKUP(I124,Feuil1!$G$11:$L$25,2))))))) -> C1 62 | Y124: 191.6527737 | AB124: =T124-HLOOKUP(X124,Feuil1!$C$1:$BL$10,2,FALSE) -> 51 | AC124: =T124-HLOOKUP(X124,Feuil1!$C$1:$BL$10,3,FALSE) -> 31 | AD124: =T124-HLOOKUP(X124,Feuil1!$C$1:$BL$10,4,FALSE) -> 21 | AE124: =T124-HLOOKUP(X124,Feuil1!$C$1:$BL$10,5,FALSE) -> 6 | AF124: =T124-HLOOKUP(X124,Feuil1!$C$1:$BL$10,6,FALSE) -> -9 | AG124: =T124-HLOOKUP(X124,Feuil1!$C$1:$BL$10,7,FALSE) -> -24 | AH124: =T124-HLOOKUP(X124,Feuil1!$C$1:$BL$10,8,FALSE) -> -44 | AI124: =T124-HLOOKUP(X124,Feuil1!$C$1:$BL$10,9,FALSE) -> -64 | AJ124: =T124-HLOOKUP(X124,Feuil1!$C$1:$BL$10,10,FALSE) -> -874 | AQ124: IRG +
A125: H | B125: SEST | C125: PRO | D125: 12 | E125: 354303 | F125: GUERIN | G125: Hugo | H125: 2001 | I125: 61.2 | J125: EEAR MONTEUX | K125: F | L125: 48 | M125: 52 | N125: 54 | O125: 54 | P125: 61 | Q125: 66 | R125: 68 | S125: 68 | T125: 122 | U125: -0.4 | V125: IRG + | W125: 2 | X125: =IF(I125="","",IF(A125="H",IF(OR(H125="SEN",H125<1995),VLOOKUP(I125,Feuil1!$A$11:$G$29,6),IF(AND(H125>1994,H125<1998),VLOOKUP(I125,Feuil1!$A$11:$G$29,5),IF(AND(H125>1997,H125<2000),VLOOKUP(I125,Feuil1!$A$11:$G$29,4),IF(AND(H125>1999,H125<2002),VLOOKUP(I125,Feuil1!$A$11:$G$29,3),VLOOKUP(I125,Feuil1!$A$11:$G$29,2))))),IF(OR(H125="SEN",H125<1995),VLOOKUP(I125,Feuil1!$G$11:$L$25,6),IF(AND(H125>1994,H125<1998),VLOOKUP(I125,Feuil1!$G$11:$L$25,5),IF(AND(H125>1997,H125<2000),VLOOKUP(I125,Feuil1!$G$11:$L$25,4),IF(AND(H125>1999,H125<2002),VLOOKUP(I125,Feuil1!$G$11:$L$25,3),VLOOKUP(I125,Feuil1!$G$11:$L$25,2))))))) -> C1 62 | Y125: 178.0947503 | AB125: =T125-HLOOKUP(X125,Feuil1!$C$1:$BL$10,2,FALSE) -> 47 | AC125: =T125-HLOOKUP(X125,Feuil1!$C$1:$BL$10,3,FALSE) -> 27 | AD125: =T125-HLOOKUP(X125,Feuil1!$C$1:$BL$10,4,FALSE) -> 17 | AE125: =T125-HLOOKUP(X125,Feuil1!$C$1:$BL$10,5,FALSE) -> 2 | AF125: =T125-HLOOKUP(X125,Feuil1!$C$1:$BL$10,6,FALSE) -> -13 | AG125: =T125-HLOOKUP(X125,Feuil1!$C$1:$BL$10,7,FALSE) -> -28 | AH125: =T125-HLOOKUP(X125,Feuil1!$C$1:$BL$10,8,FALSE) -> -48 | AI125: =T125-HLOOKUP(X125,Feuil1!$C$1:$BL$10,9,FALSE) -> -68 | AJ125: =T125-HLOOKUP(X125,Feuil1!$C$1:$BL$10,10,FALSE) -> -878 | AQ125: IRG +
A126: H | B126: N | C126: IDF | D126: 13 | E126: 366087 | F126: SACOTTE | G126: Arthur | H126: 2000 | I126: 59.9 | J126: MELUN | K126: F | L126: 50 | M126: 55 | N126: -58 | O126: 55 | P126: 60 | Q126: 65 | R126: -70 | S126: 65 | T126: 120 | U126: 0.2 | V126: IRG + | W126: 0 | X126: =IF(I126="","",IF(A126="H",IF(OR(H126="SEN",H126<1995),VLOOKUP(I126,Feuil1!$A$11:$G$29,6),IF(AND(H126>1994,H126<1998),VLOOKUP(I126,Feuil1!$A$11:$G$29,5),IF(AND(H126>1997,H126<2000),VLOOKUP(I126,Feuil1!$A$11:$G$29,4),IF(AND(H126>1999,H126<2002),VLOOKUP(I126,Feuil1!$A$11:$G$29,3),VLOOKUP(I126,Feuil1!$A$11:$G$29,2))))),IF(OR(H126="SEN",H126<1995),VLOOKUP(I126,Feuil1!$G$11:$L$25,6),IF(AND(H126>1994,H126<1998),VLOOKUP(I126,Feuil1!$G$11:$L$25,5),IF(AND(H126>1997,H126<2000),VLOOKUP(I126,Feuil1!$G$11:$L$25,4),IF(AND(H126>1999,H126<2002),VLOOKUP(I126,Feuil1!$G$11:$L$25,3),VLOOKUP(I126,Feuil1!$G$11:$L$25,2))))))) -> C1 62 | Y126: 177.9421126 | AB126: =T126-HLOOKUP(X126,Feuil1!$C$1:$BL$10,2,FALSE) -> 45 | AC126: =T126-HLOOKUP(X126,Feuil1!$C$1:$BL$10,3,FALSE) -> 25 | AD126: =T126-HLOOKUP(X126,Feuil1!$C$1:$BL$10,4,FALSE) -> 15 | AE126: =T126-HLOOKUP(X126,Feuil1!$C$1:$BL$10,5,FALSE) -> 0 | AF126: =T126-HLOOKUP(X126,Feuil1!$C$1:$BL$10,6,FALSE) -> -15 | AG126: =T126-HLOOKUP(X126,Feuil1!$C$1:$BL$10,7,FALSE) -> -30 | AH126: =T126-HLOOKUP(X126,Feuil1!$C$1:$BL$10,8,FALSE) -> -50 | AI126: =T126-HLOOKUP(X126,Feuil1!$C$1:$BL$10,9,FALSE) -> -70 | AJ126: =T126-HLOOKUP(X126,Feuil1!$C$1:$BL$10,10,FALSE) -> -880 | AQ126: IRG +
A127: H | B127: CO | C127: BNO | D127: 14 | E127: 327978 | F127: PANNIER | G127: Quentin | H127: 2000 | I127: 61.9 | J127: Caen CHM | K127: F | L127: 45 | M127: 50 | N127: -54 | O127: 50 | P127: 65 | Q127: -70 | R127: 70 | S127: 70 | T127: 120 | U127: -3.8 | V127: IRG + | W127: 0 | X127: =IF(I127="","",IF(A127="H",IF(OR(H127="SEN",H127<1995),VLOOKUP(I127,Feuil1!$A$11:$G$29,6),IF(AND(H127>1994,H127<1998),VLOOKUP(I127,Feuil1!$A$11:$G$29,5),IF(AND(H127>1997,H127<2000),VLOOKUP(I127,Feuil1!$A$11:$G$29,4),IF(AND(H127>1999,H127<2002),VLOOKUP(I127,Feuil1!$A$11:$G$29,3),VLOOKUP(I127,Feuil1!$A$11:$G$29,2))))),IF(OR(H127="SEN",H127<1995),VLOOKUP(I127,Feuil1!$G$11:$L$25,6),IF(AND(H127>1994,H127<1998),VLOOKUP(I127,Feuil1!$G$11:$L$25,5),IF(AND(H127>1997,H127<2000),VLOOKUP(I127,Feuil1!$G$11:$L$25,4),IF(AND(H127>1999,H127<2002),VLOOKUP(I127,Feuil1!$G$11:$L$25,3),VLOOKUP(I127,Feuil1!$G$11:$L$25,2))))))) -> C1 62 | Y127: 173.749378 | AB127: =T127-HLOOKUP(X127,Feuil1!$C$1:$BL$10,2,FALSE) -> 45 | AC127: =T127-HLOOKUP(X127,Feuil1!$C$1:$BL$10,3,FALSE) -> 25 | AD127: =T127-HLOOKUP(X127,Feuil1!$C$1:$BL$10,4,FALSE) -> 15 | AE127: =T127-HLOOKUP(X127,Feuil1!$C$1:$BL$10,5,FALSE) -> 0 | AF127: =T127-HLOOKUP(X127,Feuil1!$C$1:$BL$10,6,FALSE) -> -15 | AG127: =T127-HLOOKUP(X127,Feuil1!$C$1:$BL$10,7,FALSE) -> -30 | AH127: =T127-HLOOKUP(X127,Feuil1!$C$1:$BL$10,8,FALSE) -> -50 | AI127: =T127-HLOOKUP(X127,Feuil1!$C$1:$BL$10,9,FALSE) -> -70 | AJ127: =T127-HLOOKUP(X127,Feuil1!$C$1:$BL$10,10,FALSE) -> -880 | AQ127: IRG +
A128: H | B128: NORD | C128: NPC | D128: 15 | E128: 248951 | F128: KEMPENAIRE | G128: Cédric | H128: 2001 | I128: 56.4 | J128: CHCD COMINES | K128: F | L128: 45 | M128: 48 | N128: 50 | O128: 50 | P128: 62 | Q128: 65 | R128: -67 | S128: 65 | T128: 115 | U128: 2.2 | V128: REG + | W128: 10 | X128: =IF(I128="","",IF(A128="H",IF(OR(H128="SEN",H128<1995),VLOOKUP(I128,Feuil1!$A$11:$G$29,6),IF(AND(H128>1994,H128<1998),VLOOKUP(I128,Feuil1!$A$11:$G$29,5),IF(AND(H128>1997,H128<2000),VLOOKUP(I128,Feuil1!$A$11:$G$29,4),IF(AND(H128>1999,H128<2002),VLOOKUP(I128,Feuil1!$A$11:$G$29,3),VLOOKUP(I128,Feuil1!$A$11:$G$29,2))))),IF(OR(H128="SEN",H128<1995),VLOOKUP(I128,Feuil1!$G$11:$L$25,6),IF(AND(H128>1994,H128<1998),VLOOKUP(I128,Feuil1!$G$11:$L$25,5),IF(AND(H128>1997,H128<2000),VLOOKUP(I128,Feuil1!$G$11:$L$25,4),IF(AND(H128>1999,H128<2002),VLOOKUP(I128,Feuil1!$G$11:$L$25,3),VLOOKUP(I128,Feuil1!$G$11:$L$25,2))))))) -> C1 62 | Y128: 178.4916295 | AB128: =T128-HLOOKUP(X128,Feuil1!$C$1:$BL$10,2,FALSE) -> 40 | AC128: =T128-HLOOKUP(X128,Feuil1!$C$1:$BL$10,3,FALSE) -> 20 | AD128: =T128-HLOOKUP(X128,Feuil1!$C$1:$BL$10,4,FALSE) -> 10 | AE128: =T128-HLOOKUP(X128,Feuil1!$C$1:$BL$10,5,FALSE) -> -5 | AF128: =T128-HLOOKUP(X128,Feuil1!$C$1:$BL$10,6,FALSE) -> -20 | AG128: =T128-HLOOKUP(X128,Feuil1!$C$1:$BL$10,7,FALSE) -> -35 | AH128: =T128-HLOOKUP(X128,Feuil1!$C$1:$BL$10,8,FALSE) -> -55 | AI128: =T128-HLOOKUP(X128,Feuil1!$C$1:$BL$10,9,FALSE) -> -75 | AJ128: =T128-HLOOKUP(X128,Feuil1!$C$1:$BL$10,10,FALSE) -> -885 | AQ128: REG +
A129: H | B129: DOM | C129: GUY | D129: 16 | E129: 382074 | F129: LUERRE | G129: Joé | H129: 2000 | I129: 61 | J129: ASCPG/Rémire Montjoly | K129: F | L129: 45 | M129: 50 | N129: -53 | O129: 50 | P129: 60 | Q129: 65 | R129: -70 | S129: 65 | T129: 115 | U129: -7 | V129: REG + | W129: 10 | X129: =IF(I129="","",IF(A129="H",IF(OR(H129="SEN",H129<1995),VLOOKUP(I129,Feuil1!$A$11:$G$29,6),IF(AND(H129>1994,H129<1998),VLOOKUP(I129,Feuil1!$A$11:$G$29,5),IF(AND(H129>1997,H129<2000),VLOOKUP(I129,Feuil1!$A$11:$G$29,4),IF(AND(H129>1999,H129<2002),VLOOKUP(I129,Feuil1!$A$11:$G$29,3),VLOOKUP(I129,Feuil1!$A$11:$G$29,2))))),IF(OR(H129="SEN",H129<1995),VLOOKUP(I129,Feuil1!$G$11:$L$25,6),IF(AND(H129>1994,H129<1998),VLOOKUP(I129,Feuil1!$G$11:$L$25,5),IF(AND(H129>1997,H129<2000),VLOOKUP(I129,Feuil1!$G$11:$L$25,4),IF(AND(H129>1999,H129<2002),VLOOKUP(I129,Feuil1!$G$11:$L$25,3),VLOOKUP(I129,Feuil1!$G$11:$L$25,2))))))) -> C1 62 | Y129: 168.2743213 | AB129: =T129-HLOOKUP(X129,Feuil1!$C$1:$BL$10,2,FALSE) -> 40 | AC129: =T129-HLOOKUP(X129,Feuil1!$C$1:$BL$10,3,FALSE) -> 20 | AD129: =T129-HLOOKUP(X129,Feuil1!$C$1:$BL$10,4,FALSE) -> 10 | AE129: =T129-HLOOKUP(X129,Feuil1!$C$1:$BL$10,5,FALSE) -> -5 | AF129: =T129-HLOOKUP(X129,Feuil1!$C$1:$BL$10,6,FALSE) -> -20 | AG129: =T129-HLOOKUP(X129,Feuil1!$C$1:$BL$10,7,FALSE) -> -35 | AH129: =T129-HLOOKUP(X129,Feuil1!$C$1:$BL$10,8,FALSE) -> -55 | AI129: =T129-HLOOKUP(X129,Feuil1!$C$1:$BL$10,9,FALSE) -> -75 | AJ129: =T129-HLOOKUP(X129,Feuil1!$C$1:$BL$10,10,FALSE) -> -885 | AQ129: REG +
A130: H | B130: SEST | C130: PRO | D130: 17 | E130: 344412 | F130: MATS | G130: ARTHUR | H130: 2001 | I130: 58.3 | J130: EEAR MONTEUX | K130: F | L130: 44 | M130: 48 | N130: 51 | O130: 51 | P130: 55 | Q130: 59 | R130: 62 | S130: 62 | T130: 113 | U130: -3.6 | V130: REG + | W130: 8 | X130: =IF(I130="","",IF(A130="H",IF(OR(H130="SEN",H130<1995),VLOOKUP(I130,Feuil1!$A$11:$G$29,6),IF(AND(H130>1994,H130<1998),VLOOKUP(I130,Feuil1!$A$11:$G$29,5),IF(AND(H130>1997,H130<2000),VLOOKUP(I130,Feuil1!$A$11:$G$29,4),IF(AND(H130>1999,H130<2002),VLOOKUP(I130,Feuil1!$A$11:$G$29,3),VLOOKUP(I130,Feuil1!$A$11:$G$29,2))))),IF(OR(H130="SEN",H130<1995),VLOOKUP(I130,Feuil1!$G$11:$L$25,6),IF(AND(H130>1994,H130<1998),VLOOKUP(I130,Feuil1!$G$11:$L$25,5),IF(AND(H130>1997,H130<2000),VLOOKUP(I130,Feuil1!$G$11:$L$25,4),IF(AND(H130>1999,H130<2002),VLOOKUP(I130,Feuil1!$G$11:$L$25,3),VLOOKUP(I130,Feuil1!$G$11:$L$25,2))))))) -> C1 62 | Y130: 170.9839913 | AB130: =T130-HLOOKUP(X130,Feuil1!$C$1:$BL$10,2,FALSE) -> 38 | AC130: =T130-HLOOKUP(X130,Feuil1!$C$1:$BL$10,3,FALSE) -> 18 | AD130: =T130-HLOOKUP(X130,Feuil1!$C$1:$BL$10,4,FALSE) -> 8 | AE130: =T130-HLOOKUP(X130,Feuil1!$C$1:$BL$10,5,FALSE) -> -7 | AF130: =T130-HLOOKUP(X130,Feuil1!$C$1:$BL$10,6,FALSE) -> -22 | AG130: =T130-HLOOKUP(X130,Feuil1!$C$1:$BL$10,7,FALSE) -> -37 | AH130: =T130-HLOOKUP(X130,Feuil1!$C$1:$BL$10,8,FALSE) -> -57 | AI130: =T130-HLOOKUP(X130,Feuil1!$C$1:$BL$10,9,FALSE) -> -77 | AJ130: =T130-HLOOKUP(X130,Feuil1!$C$1:$BL$10,10,FALSE) -> -887 | AQ130: REG +
A131: H | B131: NE | C131: FCO | D131: 18 | E131: 350181 | F131: BERTHELIN | G131: Simon | H131: 2000 | I131: 56.7 | J131: CH Luxeuil | K131: F | L131: 40 | M131: 45 | N131: 48 | O131: 48 | P131: 52 | Q131: 57 | R131: 62 | S131: 62 | T131: 110 | U131: -3.4 | V131: REG + | W131: 5 | X131: =IF(I131="","",IF(A131="H",IF(OR(H131="SEN",H131<1995),VLOOKUP(I131,Feuil1!$A$11:$G$29,6),IF(AND(H131>1994,H131<1998),VLOOKUP(I131,Feuil1!$A$11:$G$29,5),IF(AND(H131>1997,H131<2000),VLOOKUP(I131,Feuil1!$A$11:$G$29,4),IF(AND(H131>1999,H131<2002),VLOOKUP(I131,Feuil1!$A$11:$G$29,3),VLOOKUP(I131,Feuil1!$A$11:$G$29,2))))),IF(OR(H131="SEN",H131<1995),VLOOKUP(I131,Feuil1!$G$11:$L$25,6),IF(AND(H131>1994,H131<1998),VLOOKUP(I131,Feuil1!$G$11:$L$25,5),IF(AND(H131>1997,H131<2000),VLOOKUP(I131,Feuil1!$G$11:$L$25,4),IF(AND(H131>1999,H131<2002),VLOOKUP(I131,Feuil1!$G$11:$L$25,3),VLOOKUP(I131,Feuil1!$G$11:$L$25,2))))))) -> C1 62 | Y131: 170.0287801 | AB131: =T131-HLOOKUP(X131,Feuil1!$C$1:$BL$10,2,FALSE) -> 35 | AC131: =T131-HLOOKUP(X131,Feuil1!$C$1:$BL$10,3,FALSE) -> 15 | AD131: =T131-HLOOKUP(X131,Feuil1!$C$1:$BL$10,4,FALSE) -> 5 | AE131: =T131-HLOOKUP(X131,Feuil1!$C$1:$BL$10,5,FALSE) -> -10 | AF131: =T131-HLOOKUP(X131,Feuil1!$C$1:$BL$10,6,FALSE) -> -25 | AG131: =T131-HLOOKUP(X131,Feuil1!$C$1:$BL$10,7,FALSE) -> -40 | AH131: =T131-HLOOKUP(X131,Feuil1!$C$1:$BL$10,8,FALSE) -> -60 | AI131: =T131-HLOOKUP(X131,Feuil1!$C$1:$BL$10,9,FALSE) -> -80 | AJ131: =T131-HLOOKUP(X131,Feuil1!$C$1:$BL$10,10,FALSE) -> -890 | AQ131: REG +
A132: H | B132: SEST | C132: CAZ | D132: 19 | E132: 360583 | F132: LECOMTE | G132: Cameron | H132: 2000 | I132: 57 | J132: ES VILLENEUVE LOUBET | K132: F | L132: 46 | M132: 48 | N132: 50 | O132: 50 | P132: 55 | Q132: 57 | R132: -60 | S132: 57 | T132: 107 | U132: -7 | V132: REG + | W132: 2 | X132: =IF(I132="","",IF(A132="H",IF(OR(H132="SEN",H132<1995),VLOOKUP(I132,Feuil1!$A$11:$G$29,6),IF(AND(H132>1994,H132<1998),VLOOKUP(I132,Feuil1!$A$11:$G$29,5),IF(AND(H132>1997,H132<2000),VLOOKUP(I132,Feuil1!$A$11:$G$29,4),IF(AND(H132>1999,H132<2002),VLOOKUP(I132,Feuil1!$A$11:$G$29,3),VLOOKUP(I132,Feuil1!$A$11:$G$29,2))))),IF(OR(H132="SEN",H132<1995),VLOOKUP(I132,Feuil1!$G$11:$L$25,6),IF(AND(H132>1994,H132<1998),VLOOKUP(I132,Feuil1!$G$11:$L$25,5),IF(AND(H132>1997,H132<2000),VLOOKUP(I132,Feuil1!$G$11:$L$25,4),IF(AND(H132>1999,H132<2002),VLOOKUP(I132,Feuil1!$G$11:$L$25,3),VLOOKUP(I132,Feuil1!$G$11:$L$25,2))))))) -> C1 62 | Y132: 164.7180093 | AB132: =T132-HLOOKUP(X132,Feuil1!$C$1:$BL$10,2,FALSE) -> 32 | AC132: =T132-HLOOKUP(X132,Feuil1!$C$1:$BL$10,3,FALSE) -> 12 | AD132: =T132-HLOOKUP(X132,Feuil1!$C$1:$BL$10,4,FALSE) -> 2 | AE132: =T132-HLOOKUP(X132,Feuil1!$C$1:$BL$10,5,FALSE) -> -13 | AF132: =T132-HLOOKUP(X132,Feuil1!$C$1:$BL$10,6,FALSE) -> -28 | AG132: =T132-HLOOKUP(X132,Feuil1!$C$1:$BL$10,7,FALSE) -> -43 | AH132: =T132-HLOOKUP(X132,Feuil1!$C$1:$BL$10,8,FALSE) -> -63 | AI132: =T132-HLOOKUP(X132,Feuil1!$C$1:$BL$10,9,FALSE) -> -83 | AJ132: =T132-HLOOKUP(X132,Feuil1!$C$1:$BL$10,10,FALSE) -> -893 | AQ132: REG +
A133: H | B133: DOM | C133: REU | D133: 20 | E133: 323500 | F133: ROCROU | G133: GILLES | H133: 2000 | I133: 56.9 | J133: SCHM St Paul | K133: F | L133: 40 | M133: 45 | N133: -50 | O133: 45 | P133: 50 | Q133: 55 | R133: 60 | S133: 60 | T133: 105 | U133: -8.8 | V133: REG + | W133: 0 | X133: =IF(I133="","",IF(A133="H",IF(OR(H133="SEN",H133<1995),VLOOKUP(I133,Feuil1!$A$11:$G$29,6),IF(AND(H133>1994,H133<1998),VLOOKUP(I133,Feuil1!$A$11:$G$29,5),IF(AND(H133>1997,H133<2000),VLOOKUP(I133,Feuil1!$A$11:$G$29,4),IF(AND(H133>1999,H133<2002),VLOOKUP(I133,Feuil1!$A$11:$G$29,3),VLOOKUP(I133,Feuil1!$A$11:$G$29,2))))),IF(OR(H133="SEN",H133<1995),VLOOKUP(I133,Feuil1!$G$11:$L$25,6),IF(AND(H133>1994,H133<1998),VLOOKUP(I133,Feuil1!$G$11:$L$25,5),IF(AND(H133>1997,H133<2000),VLOOKUP(I133,Feuil1!$G$11:$L$25,4),IF(AND(H133>1999,H133<2002),VLOOKUP(I133,Feuil1!$G$11:$L$25,3),VLOOKUP(I133,Feuil1!$G$11:$L$25,2))))))) -> C1 62 | Y133: 161.8584797 | AB133: =T133-HLOOKUP(X133,Feuil1!$C$1:$BL$10,2,FALSE) -> 30 | AC133: =T133-HLOOKUP(X133,Feuil1!$C$1:$BL$10,3,FALSE) -> 10 | AD133: =T133-HLOOKUP(X133,Feuil1!$C$1:$BL$10,4,FALSE) -> 0 | AE133: =T133-HLOOKUP(X133,Feuil1!$C$1:$BL$10,5,FALSE) -> -15 | AF133: =T133-HLOOKUP(X133,Feuil1!$C$1:$BL$10,6,FALSE) -> -30 | AG133: =T133-HLOOKUP(X133,Feuil1!$C$1:$BL$10,7,FALSE) -> -45 | AH133: =T133-HLOOKUP(X133,Feuil1!$C$1:$BL$10,8,FALSE) -> -65 | AI133: =T133-HLOOKUP(X133,Feuil1!$C$1:$BL$10,9,FALSE) -> -85 | AJ133: =T133-HLOOKUP(X133,Feuil1!$C$1:$BL$10,10,FALSE) -> -895 | AQ133: REG +
A134: H | B134: CO | C134: PDL | D134: 21 | E134: 324248 | F134: CHALVIN | G134: Maxime | H134: 2000 | I134: 62 | J134: Saint Herblain | K134: F | L134: -40 | M134: 40 | N134: 42 | O134: 42 | P134: 55 | Q134: -57 | R134: 57 | S134: 57 | T134: 99 | U134: -25 | V134: DEP + | W134: 4 | X134: =IF(I134="","",IF(A134="H",IF(OR(H134="SEN",H134<1995),VLOOKUP(I134,Feuil1!$A$11:$G$29,6),IF(AND(H134>1994,H134<1998),VLOOKUP(I134,Feuil1!$A$11:$G$29,5),IF(AND(H134>1997,H134<2000),VLOOKUP(I134,Feuil1!$A$11:$G$29,4),IF(AND(H134>1999,H134<2002),VLOOKUP(I134,Feuil1!$A$11:$G$29,3),VLOOKUP(I134,Feuil1!$A$11:$G$29,2))))),IF(OR(H134="SEN",H134<1995),VLOOKUP(I134,Feuil1!$G$11:$L$25,6),IF(AND(H134>1994,H134<1998),VLOOKUP(I134,Feuil1!$G$11:$L$25,5),IF(AND(H134>1997,H134<2000),VLOOKUP(I134,Feuil1!$G$11:$L$25,4),IF(AND(H134>1999,H134<2002),VLOOKUP(I134,Feuil1!$G$11:$L$25,3),VLOOKUP(I134,Feuil1!$G$11:$L$25,2))))))) -> C1 62 | Y134: 143.1780977 | AB134: =T134-HLOOKUP(X134,Feuil1!$C$1:$BL$10,2,FALSE) -> 24 | AC134: =T134-HLOOKUP(X134,Feuil1!$C$1:$BL$10,3,FALSE) -> 4 | AD134: =T134-HLOOKUP(X134,Feuil1!$C$1:$BL$10,4,FALSE) -> -6 | AE134: =T134-HLOOKUP(X134,Feuil1!$C$1:$BL$10,5,FALSE) -> -21 | AF134: =T134-HLOOKUP(X134,Feuil1!$C$1:$BL$10,6,FALSE) -> -36 | AG134: =T134-HLOOKUP(X134,Feuil1!$C$1:$BL$10,7,FALSE) -> -51 | AH134: =T134-HLOOKUP(X134,Feuil1!$C$1:$BL$10,8,FALSE) -> -71 | AI134: =T134-HLOOKUP(X134,Feuil1!$C$1:$BL$10,9,FALSE) -> -91 | AJ134: =T134-HLOOKUP(X134,Feuil1!$C$1:$BL$10,10,FALSE) -> -901 | AQ134: DEP +
A135: H | B135: SEST | C135: PRO | D135: 22 | E135: 389955 | F135: BERNARD | G135: QUENTIN | H135: 2000 | I135: 59.2 | J135: CHC MONDRAGON | K135: F | L135: 35 | M135: 40 | N135: 42 | O135: 42 | P135: 50 | Q135: -55 | R135: 55 | S135: 55 | T135: 97 | U135: -21.4 | V135: DEP + | W135: 2 | X135: =IF(I135="","",IF(A135="H",IF(OR(H135="SEN",H135<1995),VLOOKUP(I135,Feuil1!$A$11:$G$29,6),IF(AND(H135>1994,H135<1998),VLOOKUP(I135,Feuil1!$A$11:$G$29,5),IF(AND(H135>1997,H135<2000),VLOOKUP(I135,Feuil1!$A$11:$G$29,4),IF(AND(H135>1999,H135<2002),VLOOKUP(I135,Feuil1!$A$11:$G$29,3),VLOOKUP(I135,Feuil1!$A$11:$G$29,2))))),IF(OR(H135="SEN",H135<1995),VLOOKUP(I135,Feuil1!$G$11:$L$25,6),IF(AND(H135>1994,H135<1998),VLOOKUP(I135,Feuil1!$G$11:$L$25,5),IF(AND(H135>1997,H135<2000),VLOOKUP(I135,Feuil1!$G$11:$L$25,4),IF(AND(H135>1999,H135<2002),VLOOKUP(I135,Feuil1!$G$11:$L$25,3),VLOOKUP(I135,Feuil1!$G$11:$L$25,2))))))) -> C1 62 | Y135: 145.0955428 | AB135: =T135-HLOOKUP(X135,Feuil1!$C$1:$BL$10,2,FALSE) -> 22 | AC135: =T135-HLOOKUP(X135,Feuil1!$C$1:$BL$10,3,FALSE) -> 2 | AD135: =T135-HLOOKUP(X135,Feuil1!$C$1:$BL$10,4,FALSE) -> -8 | AE135: =T135-HLOOKUP(X135,Feuil1!$C$1:$BL$10,5,FALSE) -> -23 | AF135: =T135-HLOOKUP(X135,Feuil1!$C$1:$BL$10,6,FALSE) -> -38 | AG135: =T135-HLOOKUP(X135,Feuil1!$C$1:$BL$10,7,FALSE) -> -53 | AH135: =T135-HLOOKUP(X135,Feuil1!$C$1:$BL$10,8,FALSE) -> -73 | AI135: =T135-HLOOKUP(X135,Feuil1!$C$1:$BL$10,9,FALSE) -> -93 | AJ135: =T135-HLOOKUP(X135,Feuil1!$C$1:$BL$10,10,FALSE) -> -903 | AQ135: DEP +
A136: H | B136: ZCO | C136: BRE | D136: 23 | E136: 356013 | F136: MEINSER | G136: Malone | H136: 2001 | I136: 58.6 | J136: HC Pleurtuit | K136: F | L136: 37 | M136: 40 | N136: -43 | O136: 40 | P136: 47 | Q136: 50 | R136: 55 | S136: 55 | T136: 95 | U136: -22.2 | V136: DEP + | W136: 0 | X136: =IF(I136="","",IF(A136="H",IF(OR(H136="SEN",H136<1995),VLOOKUP(I136,Feuil1!$A$11:$G$29,6),IF(AND(H136>1994,H136<1998),VLOOKUP(I136,Feuil1!$A$11:$G$29,5),IF(AND(H136>1997,H136<2000),VLOOKUP(I136,Feuil1!$A$11:$G$29,4),IF(AND(H136>1999,H136<2002),VLOOKUP(I136,Feuil1!$A$11:$G$29,3),VLOOKUP(I136,Feuil1!$A$11:$G$29,2))))),IF(OR(H136="SEN",H136<1995),VLOOKUP(I136,Feuil1!$G$11:$L$25,6),IF(AND(H136>1994,H136<1998),VLOOKUP(I136,Feuil1!$G$11:$L$25,5),IF(AND(H136>1997,H136<2000),VLOOKUP(I136,Feuil1!$G$11:$L$25,4),IF(AND(H136>1999,H136<2002),VLOOKUP(I136,Feuil1!$G$11:$L$25,3),VLOOKUP(I136,Feuil1!$G$11:$L$25,2))))))) -> C1 62 | Y136: 143.1922037 | AB136: =T136-HLOOKUP(X136,Feuil1!$C$1:$BL$10,2,FALSE) -> 20 | AC136: =T136-HLOOKUP(X136,Feuil1!$C$1:$BL$10,3,FALSE) -> 0 | AD136: =T136-HLOOKUP(X136,Feuil1!$C$1:$BL$10,4,FALSE) -> -10 | AE136: =T136-HLOOKUP(X136,Feuil1!$C$1:$BL$10,5,FALSE) -> -25 | AF136: =T136-HLOOKUP(X136,Feuil1!$C$1:$BL$10,6,FALSE) -> -40 | AG136: =T136-HLOOKUP(X136,Feuil1!$C$1:$BL$10,7,FALSE) -> -55 | AH136: =T136-HLOOKUP(X136,Feuil1!$C$1:$BL$10,8,FALSE) -> -75 | AI136: =T136-HLOOKUP(X136,Feuil1!$C$1:$BL$10,9,FALSE) -> -95 | AJ136: =T136-HLOOKUP(X136,Feuil1!$C$1:$BL$10,10,FALSE) -> -905 | AQ136: DEP +
A137: H | B137: DOM | C137: GUA | D137: 24 | E137: 387920 | F137: MOLINIER | G137: Théo | H137: 2000 | I137: 58 | J137: AHCS/Pointois | K137: F | L137: 35 | M137: 40 | N137: -43 | O137: 40 | P137: 40 | Q137: 45 | R137: 50 | S137: 50 | T137: 90 | U137: -26 | V137: DEB | W137: 15 | X137: =IF(I137="","",IF(A137="H",IF(OR(H137="SEN",H137<1995),VLOOKUP(I137,Feuil1!$A$11:$G$29,6),IF(AND(H137>1994,H137<1998),VLOOKUP(I137,Feuil1!$A$11:$G$29,5),IF(AND(H137>1997,H137<2000),VLOOKUP(I137,Feuil1!$A$11:$G$29,4),IF(AND(H137>1999,H137<2002),VLOOKUP(I137,Feuil1!$A$11:$G$29,3),VLOOKUP(I137,Feuil1!$A$11:$G$29,2))))),IF(OR(H137="SEN",H137<1995),VLOOKUP(I137,Feuil1!$G$11:$L$25,6),IF(AND(H137>1994,H137<1998),VLOOKUP(I137,Feuil1!$G$11:$L$25,5),IF(AND(H137>1997,H137<2000),VLOOKUP(I137,Feuil1!$G$11:$L$25,4),IF(AND(H137>1999,H137<2002),VLOOKUP(I137,Feuil1!$G$11:$L$25,3),VLOOKUP(I137,Feuil1!$G$11:$L$25,2))))))) -> C1 62 | Y137: 136.7153835 | AB137: =T137-HLOOKUP(X137,Feuil1!$C$1:$BL$10,2,FALSE) -> 15 | AC137: =T137-HLOOKUP(X137,Feuil1!$C$1:$BL$10,3,FALSE) -> -5 | AD137: =T137-HLOOKUP(X137,Feuil1!$C$1:$BL$10,4,FALSE) -> -15 | AE137: =T137-HLOOKUP(X137,Feuil1!$C$1:$BL$10,5,FALSE) -> -30 | AF137: =T137-HLOOKUP(X137,Feuil1!$C$1:$BL$10,6,FALSE) -> -45 | AG137: =T137-HLOOKUP(X137,Feuil1!$C$1:$BL$10,7,FALSE) -> -60 | AH137: =T137-HLOOKUP(X137,Feuil1!$C$1:$BL$10,8,FALSE) -> -80 | AI137: =T137-HLOOKUP(X137,Feuil1!$C$1:$BL$10,9,FALSE) -> -100 | AJ137: =T137-HLOOKUP(X137,Feuil1!$C$1:$BL$10,10,FALSE) -> -910 | AQ137: DEB
A138: H | B138: NE | C138: BOU | D138: 25 | E138: 380052 | F138: DUCREUX | G138: Bastien | H138: 2000 | I138: 57.35 | J138: Tournus | K138: F | L138: 33 | M138: -37 | N138: 37 | O138: 37 | P138: 44 | Q138: 47 | R138: 50 | S138: 50 | T138: 87 | U138: -27.7 | V138: DEB | W138: 12 | X138: =IF(I138="","",IF(A138="H",IF(OR(H138="SEN",H138<1995),VLOOKUP(I138,Feuil1!$A$11:$G$29,6),IF(AND(H138>1994,H138<1998),VLOOKUP(I138,Feuil1!$A$11:$G$29,5),IF(AND(H138>1997,H138<2000),VLOOKUP(I138,Feuil1!$A$11:$G$29,4),IF(AND(H138>1999,H138<2002),VLOOKUP(I138,Feuil1!$A$11:$G$29,3),VLOOKUP(I138,Feuil1!$A$11:$G$29,2))))),IF(OR(H138="SEN",H138<1995),VLOOKUP(I138,Feuil1!$G$11:$L$25,6),IF(AND(H138>1994,H138<1998),VLOOKUP(I138,Feuil1!$G$11:$L$25,5),IF(AND(H138>1997,H138<2000),VLOOKUP(I138,Feuil1!$G$11:$L$25,4),IF(AND(H138>1999,H138<2002),VLOOKUP(I138,Feuil1!$G$11:$L$25,3),VLOOKUP(I138,Feuil1!$G$11:$L$25,2))))))) -> C1 62 | Y138: 133.3002344 | AB138: =T138-HLOOKUP(X138,Feuil1!$C$1:$BL$10,2,FALSE) -> 12 | AC138: =T138-HLOOKUP(X138,Feuil1!$C$1:$BL$10,3,FALSE) -> -8 | AD138: =T138-HLOOKUP(X138,Feuil1!$C$1:$BL$10,4,FALSE) -> -18 | AE138: =T138-HLOOKUP(X138,Feuil1!$C$1:$BL$10,5,FALSE) -> -33 | AF138: =T138-HLOOKUP(X138,Feuil1!$C$1:$BL$10,6,FALSE) -> -48 | AG138: =T138-HLOOKUP(X138,Feuil1!$C$1:$BL$10,7,FALSE) -> -63 | AH138: =T138-HLOOKUP(X138,Feuil1!$C$1:$BL$10,8,FALSE) -> -83 | AI138: =T138-HLOOKUP(X138,Feuil1!$C$1:$BL$10,9,FALSE) -> -103 | AJ138: =T138-HLOOKUP(X138,Feuil1!$C$1:$BL$10,10,FALSE) -> -913 | AQ138: DEB
A139: H | B139: NORD | C139: NPC | D139: 26 | E139: 366505 | F139: DELRUE | G139: Baptiste | H139: 2001 | I139: 57.3 | J139: CHCD COMINES | K139: F | L139: 34 | M139: 38 | N139: -39 | O139: 38 | P139: 44 | Q139: 47 | R139: -50 | S139: 47 | T139: 85 | U139: -29.6 | V139: DEB | W139: 10 | X139: =IF(I139="","",IF(A139="H",IF(OR(H139="SEN",H139<1995),VLOOKUP(I139,Feuil1!$A$11:$G$29,6),IF(AND(H139>1994,H139<1998),VLOOKUP(I139,Feuil1!$A$11:$G$29,5),IF(AND(H139>1997,H139<2000),VLOOKUP(I139,Feuil1!$A$11:$G$29,4),IF(AND(H139>1999,H139<2002),VLOOKUP(I139,Feuil1!$A$11:$G$29,3),VLOOKUP(I139,Feuil1!$A$11:$G$29,2))))),IF(OR(H139="SEN",H139<1995),VLOOKUP(I139,Feuil1!$G$11:$L$25,6),IF(AND(H139>1994,H139<1998),VLOOKUP(I139,Feuil1!$G$11:$L$25,5),IF(AND(H139>1997,H139<2000),VLOOKUP(I139,Feuil1!$G$11:$L$25,4),IF(AND(H139>1999,H139<2002),VLOOKUP(I139,Feuil1!$G$11:$L$25,3),VLOOKUP(I139,Feuil1!$G$11:$L$25,2))))))) -> C1 62 | Y139: 130.3230903 | AB139: =T139-HLOOKUP(X139,Feuil1!$C$1:$BL$10,2,FALSE) -> 10 | AC139: =T139-HLOOKUP(X139,Feuil1!$C$1:$BL$10,3,FALSE) -> -10 | AD139: =T139-HLOOKUP(X139,Feuil1!$C$1:$BL$10,4,FALSE) -> -20 | AE139: =T139-HLOOKUP(X139,Feuil1!$C$1:$BL$10,5,FALSE) -> -35 | AF139: =T139-HLOOKUP(X139,Feuil1!$C$1:$BL$10,6,FALSE) -> -50 | AG139: =T139-HLOOKUP(X139,Feuil1!$C$1:$BL$10,7,FALSE) -> -65 | AH139: =T139-HLOOKUP(X139,Feuil1!$C$1:$BL$10,8,FALSE) -> -85 | AI139: =T139-HLOOKUP(X139,Feuil1!$C$1:$BL$10,9,FALSE) -> -105 | AJ139: =T139-HLOOKUP(X139,Feuil1!$C$1:$BL$10,10,FALSE) -> -915 | AQ139: DEB
A140: H | B140: NE | C140: FCO | D140: 27 | E140: 390774 | F140: KHOURI | G140: Martin | H140: 2000 | I140: 56.5 | J140: LF Besançon | K140: F | L140: 33 | M140: 36 | N140: -37 | O140: 36 | P140: 38 | Q140: 42 | R140: 45 | S140: 45 | T140: 81 | U140: -32 | V140: DEB | W140: 6 | X140: =IF(I140="","",IF(A140="H",IF(OR(H140="SEN",H140<1995),VLOOKUP(I140,Feuil1!$A$11:$G$29,6),IF(AND(H140>1994,H140<1998),VLOOKUP(I140,Feuil1!$A$11:$G$29,5),IF(AND(H140>1997,H140<2000),VLOOKUP(I140,Feuil1!$A$11:$G$29,4),IF(AND(H140>1999,H140<2002),VLOOKUP(I140,Feuil1!$A$11:$G$29,3),VLOOKUP(I140,Feuil1!$A$11:$G$29,2))))),IF(OR(H140="SEN",H140<1995),VLOOKUP(I140,Feuil1!$G$11:$L$25,6),IF(AND(H140>1994,H140<1998),VLOOKUP(I140,Feuil1!$G$11:$L$25,5),IF(AND(H140>1997,H140<2000),VLOOKUP(I140,Feuil1!$G$11:$L$25,4),IF(AND(H140>1999,H140<2002),VLOOKUP(I140,Feuil1!$G$11:$L$25,3),VLOOKUP(I140,Feuil1!$G$11:$L$25,2))))))) -> C1 62 | Y140: 125.5469844 | AB140: =T140-HLOOKUP(X140,Feuil1!$C$1:$BL$10,2,FALSE) -> 6 | AC140: =T140-HLOOKUP(X140,Feuil1!$C$1:$BL$10,3,FALSE) -> -14 | AD140: =T140-HLOOKUP(X140,Feuil1!$C$1:$BL$10,4,FALSE) -> -24 | AE140: =T140-HLOOKUP(X140,Feuil1!$C$1:$BL$10,5,FALSE) -> -39 | AF140: =T140-HLOOKUP(X140,Feuil1!$C$1:$BL$10,6,FALSE) -> -54 | AG140: =T140-HLOOKUP(X140,Feuil1!$C$1:$BL$10,7,FALSE) -> -69 | AH140: =T140-HLOOKUP(X140,Feuil1!$C$1:$BL$10,8,FALSE) -> -89 | AI140: =T140-HLOOKUP(X140,Feuil1!$C$1:$BL$10,9,FALSE) -> -109 | AJ140: =T140-HLOOKUP(X140,Feuil1!$C$1:$BL$10,10,FALSE) -> -919 | AQ140: DEB
A141: H | B141: NORD | C141: PIC | D141: 28 | E141: 351882 | F141: LELY | G141: Valentin | H141: 2001 | I141: 61.9 | J141: La Ferté Milon CMHM | K141: F | L141: 27 | M141: 32 | N141: -35 | O141: 32 | P141: 40 | Q141: 45 | R141: 48 | S141: 48 | T141: 80 | U141: -43.8 | V141: DEB | W141: 5 | X141: =IF(I141="","",IF(A141="H",IF(OR(H141="SEN",H141<1995),VLOOKUP(I141,Feuil1!$A$11:$G$29,6),IF(AND(H141>1994,H141<1998),VLOOKUP(I141,Feuil1!$A$11:$G$29,5),IF(AND(H141>1997,H141<2000),VLOOKUP(I141,Feuil1!$A$11:$G$29,4),IF(AND(H141>1999,H141<2002),VLOOKUP(I141,Feuil1!$A$11:$G$29,3),VLOOKUP(I141,Feuil1!$A$11:$G$29,2))))),IF(OR(H141="SEN",H141<1995),VLOOKUP(I141,Feuil1!$G$11:$L$25,6),IF(AND(H141>1994,H141<1998),VLOOKUP(I141,Feuil1!$G$11:$L$25,5),IF(AND(H141>1997,H141<2000),VLOOKUP(I141,Feuil1!$G$11:$L$25,4),IF(AND(H141>1999,H141<2002),VLOOKUP(I141,Feuil1!$G$11:$L$25,3),VLOOKUP(I141,Feuil1!$G$11:$L$25,2))))))) -> C1 62 | Y141: 115.8329187 | AB141: =T141-HLOOKUP(X141,Feuil1!$C$1:$BL$10,2,FALSE) -> 5 | AC141: =T141-HLOOKUP(X141,Feuil1!$C$1:$BL$10,3,FALSE) -> -15 | AD141: =T141-HLOOKUP(X141,Feuil1!$C$1:$BL$10,4,FALSE) -> -25 | AE141: =T141-HLOOKUP(X141,Feuil1!$C$1:$BL$10,5,FALSE) -> -40 | AF141: =T141-HLOOKUP(X141,Feuil1!$C$1:$BL$10,6,FALSE) -> -55 | AG141: =T141-HLOOKUP(X141,Feuil1!$C$1:$BL$10,7,FALSE) -> -70 | AH141: =T141-HLOOKUP(X141,Feuil1!$C$1:$BL$10,8,FALSE) -> -90 | AI141: =T141-HLOOKUP(X141,Feuil1!$C$1:$BL$10,9,FALSE) -> -110 | AJ141: =T141-HLOOKUP(X141,Feuil1!$C$1:$BL$10,10,FALSE) -> -920 | AQ141: DEB
A142: H | B142: NE | C142: ALS | D142: 29 | E142: 327578 | F142: HOFFMANN | G142: Hugo | H142: 2001 | I142: 56.9 | J142: CHM Andlau | K142: F | L142: 35 | M142: -40 | N142: -40 | O142: 35 | P142: 35 | Q142: 40 | R142: 43 | S142: 43 | T142: 78 | U142: -35.8 | V142: DEB | W142: 3 | X142: =IF(I142="","",IF(A142="H",IF(OR(H142="SEN",H142<1995),VLOOKUP(I142,Feuil1!$A$11:$G$29,6),IF(AND(H142>1994,H142<1998),VLOOKUP(I142,Feuil1!$A$11:$G$29,5),IF(AND(H142>1997,H142<2000),VLOOKUP(I142,Feuil1!$A$11:$G$29,4),IF(AND(H142>1999,H142<2002),VLOOKUP(I142,Feuil1!$A$11:$G$29,3),VLOOKUP(I142,Feuil1!$A$11:$G$29,2))))),IF(OR(H142="SEN",H142<1995),VLOOKUP(I142,Feuil1!$G$11:$L$25,6),IF(AND(H142>1994,H142<1998),VLOOKUP(I142,Feuil1!$G$11:$L$25,5),IF(AND(H142>1997,H142<2000),VLOOKUP(I142,Feuil1!$G$11:$L$25,4),IF(AND(H142>1999,H142<2002),VLOOKUP(I142,Feuil1!$G$11:$L$25,3),VLOOKUP(I142,Feuil1!$G$11:$L$25,2))))))) -> C1 62 | Y142: 120.2377278 | AB142: =T142-HLOOKUP(X142,Feuil1!$C$1:$BL$10,2,FALSE) -> 3 | AC142: =T142-HLOOKUP(X142,Feuil1!$C$1:$BL$10,3,FALSE) -> -17 | AD142: =T142-HLOOKUP(X142,Feuil1!$C$1:$BL$10,4,FALSE) -> -27 | AE142: =T142-HLOOKUP(X142,Feuil1!$C$1:$BL$10,5,FALSE) -> -42 | AF142: =T142-HLOOKUP(X142,Feuil1!$C$1:$BL$10,6,FALSE) -> -57 | AG142: =T142-HLOOKUP(X142,Feuil1!$C$1:$BL$10,7,FALSE) -> -72 | AH142: =T142-HLOOKUP(X142,Feuil1!$C$1:$BL$10,8,FALSE) -> -92 | AI142: =T142-HLOOKUP(X142,Feuil1!$C$1:$BL$10,9,FALSE) -> -112 | AJ142: =T142-HLOOKUP(X142,Feuil1!$C$1:$BL$10,10,FALSE) -> -922 | AQ142: DEB
A143: H | B143: SEST | C143: RAL | D143: 30 | E143: 383848 | F143: MATHEY | G143: LoÏc | H143: 2000 | I143: 59.5 | J143: Entente VIRIAT | K143: F | L143: 30 | M143: 32 | N143: 35 | O143: 35 | P143: 40 | Q143: 43 | R143: -45 | S143: 43 | T143: 78 | U143: -41 | V143: DEB | W143: 3 | X143: =IF(I143="","",IF(A143="H",IF(OR(H143="SEN",H143<1995),VLOOKUP(I143,Feuil1!$A$11:$G$29,6),IF(AND(H143>1994,H143<1998),VLOOKUP(I143,Feuil1!$A$11:$G$29,5),IF(AND(H143>1997,H143<2000),VLOOKUP(I143,Feuil1!$A$11:$G$29,4),IF(AND(H143>1999,H143<2002),VLOOKUP(I143,Feuil1!$A$11:$G$29,3),VLOOKUP(I143,Feuil1!$A$11:$G$29,2))))),IF(OR(H143="SEN",H143<1995),VLOOKUP(I143,Feuil1!$G$11:$L$25,6),IF(AND(H143>1994,H143<1998),VLOOKUP(I143,Feuil1!$G$11:$L$25,5),IF(AND(H143>1997,H143<2000),VLOOKUP(I143,Feuil1!$G$11:$L$25,4),IF(AND(H143>1999,H143<2002),VLOOKUP(I143,Feuil1!$G$11:$L$25,3),VLOOKUP(I143,Feuil1!$G$11:$L$25,2))))))) -> C1 62 | Y143: 116.236986 | AB143: =T143-HLOOKUP(X143,Feuil1!$C$1:$BL$10,2,FALSE) -> 3 | AC143: =T143-HLOOKUP(X143,Feuil1!$C$1:$BL$10,3,FALSE) -> -17 | AD143: =T143-HLOOKUP(X143,Feuil1!$C$1:$BL$10,4,FALSE) -> -27 | AE143: =T143-HLOOKUP(X143,Feuil1!$C$1:$BL$10,5,FALSE) -> -42 | AF143: =T143-HLOOKUP(X143,Feuil1!$C$1:$BL$10,6,FALSE) -> -57 | AG143: =T143-HLOOKUP(X143,Feuil1!$C$1:$BL$10,7,FALSE) -> -72 | AH143: =T143-HLOOKUP(X143,Feuil1!$C$1:$BL$10,8,FALSE) -> -92 | AI143: =T143-HLOOKUP(X143,Feuil1!$C$1:$BL$10,9,FALSE) -> -112 | AJ143: =T143-HLOOKUP(X143,Feuil1!$C$1:$BL$10,10,FALSE) -> -922 | AQ143: DEB
A144: H | B144: NE | C144: ALS | D144: 31 | E144: 381289 | F144: L'HOMMELET | G144: LUCAS | H144: 2001 | I144: 58.7 | J144: SR Obernai HM | K144: F | L144: 28 | M144: 31 | N144: 34 | O144: 34 | P144: 36 | Q144: 39 | R144: 42 | S144: 42 | T144: 76 | U144: -41.4 | V144: DEB | W144: 1 | X144: =IF(I144="","",IF(A144="H",IF(OR(H144="SEN",H144<1995),VLOOKUP(I144,Feuil1!$A$11:$G$29,6),IF(AND(H144>1994,H144<1998),VLOOKUP(I144,Feuil1!$A$11:$G$29,5),IF(AND(H144>1997,H144<2000),VLOOKUP(I144,Feuil1!$A$11:$G$29,4),IF(AND(H144>1999,H144<2002),VLOOKUP(I144,Feuil1!$A$11:$G$29,3),VLOOKUP(I144,Feuil1!$A$11:$G$29,2))))),IF(OR(H144="SEN",H144<1995),VLOOKUP(I144,Feuil1!$G$11:$L$25,6),IF(AND(H144>1994,H144<1998),VLOOKUP(I144,Feuil1!$G$11:$L$25,5),IF(AND(H144>1997,H144<2000),VLOOKUP(I144,Feuil1!$G$11:$L$25,4),IF(AND(H144>1999,H144<2002),VLOOKUP(I144,Feuil1!$G$11:$L$25,3),VLOOKUP(I144,Feuil1!$G$11:$L$25,2))))))) -> C1 62 | Y144: 114.407002 | AB144: =T144-HLOOKUP(X144,Feuil1!$C$1:$BL$10,2,FALSE) -> 1 | AC144: =T144-HLOOKUP(X144,Feuil1!$C$1:$BL$10,3,FALSE) -> -19 | AD144: =T144-HLOOKUP(X144,Feuil1!$C$1:$BL$10,4,FALSE) -> -29 | AE144: =T144-HLOOKUP(X144,Feuil1!$C$1:$BL$10,5,FALSE) -> -44 | AF144: =T144-HLOOKUP(X144,Feuil1!$C$1:$BL$10,6,FALSE) -> -59 | AG144: =T144-HLOOKUP(X144,Feuil1!$C$1:$BL$10,7,FALSE) -> -74 | AH144: =T144-HLOOKUP(X144,Feuil1!$C$1:$BL$10,8,FALSE) -> -94 | AI144: =T144-HLOOKUP(X144,Feuil1!$C$1:$BL$10,9,FALSE) -> -114 | AJ144: =T144-HLOOKUP(X144,Feuil1!$C$1:$BL$10,10,FALSE) -> -924 | AQ144: DEB
A145: H | B145: SEST | C145: CAZ | D145: 32 | E145: 387212 | F145: BELHADJASSINE | G145: Mohamed | H145: 2001 | I145: 58.4 | J145: ES VILLENEUVE LOUBET | K145: F | L145: 25 | M145: 28 | N145: 31 | O145: 31 | P145: 30 | Q145: 35 | R145: 40 | S145: 40 | T145: 71 | U145: -45.8 | V145: DEB | W145: -4 | X145: =IF(I145="","",IF(A145="H",IF(OR(H145="SEN",H145<1995),VLOOKUP(I145,Feuil1!$A$11:$G$29,6),IF(AND(H145>1994,H145<1998),VLOOKUP(I145,Feuil1!$A$11:$G$29,5),IF(AND(H145>1997,H145<2000),VLOOKUP(I145,Feuil1!$A$11:$G$29,4),IF(AND(H145>1999,H145<2002),VLOOKUP(I145,Feuil1!$A$11:$G$29,3),VLOOKUP(I145,Feuil1!$A$11:$G$29,2))))),IF(OR(H145="SEN",H145<1995),VLOOKUP(I145,Feuil1!$G$11:$L$25,6),IF(AND(H145>1994,H145<1998),VLOOKUP(I145,Feuil1!$G$11:$L$25,5),IF(AND(H145>1997,H145<2000),VLOOKUP(I145,Feuil1!$G$11:$L$25,4),IF(AND(H145>1999,H145<2002),VLOOKUP(I145,Feuil1!$G$11:$L$25,3),VLOOKUP(I145,Feuil1!$G$11:$L$25,2))))))) -> C1 62 | Y145: 107.2934241 | AB145: =T145-HLOOKUP(X145,Feuil1!$C$1:$BL$10,2,FALSE) -> -4 | AC145: =T145-HLOOKUP(X145,Feuil1!$C$1:$BL$10,3,FALSE) -> -24 | AD145: =T145-HLOOKUP(X145,Feuil1!$C$1:$BL$10,4,FALSE) -> -34 | AE145: =T145-HLOOKUP(X145,Feuil1!$C$1:$BL$10,5,FALSE) -> -49 | AF145: =T145-HLOOKUP(X145,Feuil1!$C$1:$BL$10,6,FALSE) -> -64 | AG145: =T145-HLOOKUP(X145,Feuil1!$C$1:$BL$10,7,FALSE) -> -79 | AH145: =T145-HLOOKUP(X145,Feuil1!$C$1:$BL$10,8,FALSE) -> -99 | AI145: =T145-HLOOKUP(X145,Feuil1!$C$1:$BL$10,9,FALSE) -> -119 | AJ145: =T145-HLOOKUP(X145,Feuil1!$C$1:$BL$10,10,FALSE) -> -929 | AQ145: DEB
A146: H | B146: NE | C146: ALS | D146: 33 | E146: 384537 | F146: LAMY | G146: Kévin | H146: 2001 | I146: 60.8 | J146: SR Obernai HM | K146: F | L146: 27 | M146: 29 | N146: 32 | O146: 32 | P146: 35 | Q146: -38 | R146: 38 | S146: 38 | T146: 70 | U146: -51.6 | V146: DEB | W146: -5 | X146: =IF(I146="","",IF(A146="H",IF(OR(H146="SEN",H146<1995),VLOOKUP(I146,Feuil1!$A$11:$G$29,6),IF(AND(H146>1994,H146<1998),VLOOKUP(I146,Feuil1!$A$11:$G$29,5),IF(AND(H146>1997,H146<2000),VLOOKUP(I146,Feuil1!$A$11:$G$29,4),IF(AND(H146>1999,H146<2002),VLOOKUP(I146,Feuil1!$A$11:$G$29,3),VLOOKUP(I146,Feuil1!$A$11:$G$29,2))))),IF(OR(H146="SEN",H146<1995),VLOOKUP(I146,Feuil1!$G$11:$L$25,6),IF(AND(H146>1994,H146<1998),VLOOKUP(I146,Feuil1!$G$11:$L$25,5),IF(AND(H146>1997,H146<2000),VLOOKUP(I146,Feuil1!$G$11:$L$25,4),IF(AND(H146>1999,H146<2002),VLOOKUP(I146,Feuil1!$G$11:$L$25,3),VLOOKUP(I146,Feuil1!$G$11:$L$25,2))))))) -> C1 62 | Y146: 102.6723192 | AB146: =T146-HLOOKUP(X146,Feuil1!$C$1:$BL$10,2,FALSE) -> -5 | AC146: =T146-HLOOKUP(X146,Feuil1!$C$1:$BL$10,3,FALSE) -> -25 | AD146: =T146-HLOOKUP(X146,Feuil1!$C$1:$BL$10,4,FALSE) -> -35 | AE146: =T146-HLOOKUP(X146,Feuil1!$C$1:$BL$10,5,FALSE) -> -50 | AF146: =T146-HLOOKUP(X146,Feuil1!$C$1:$BL$10,6,FALSE) -> -65 | AG146: =T146-HLOOKUP(X146,Feuil1!$C$1:$BL$10,7,FALSE) -> -80 | AH146: =T146-HLOOKUP(X146,Feuil1!$C$1:$BL$10,8,FALSE) -> -100 | AI146: =T146-HLOOKUP(X146,Feuil1!$C$1:$BL$10,9,FALSE) -> -120 | AJ146: =T146-HLOOKUP(X146,Feuil1!$C$1:$BL$10,10,FALSE) -> -930 | AQ146: DEB
A147: H | B147: CO | C147: BNO | D147: 34 | E147: 362011 | F147: ACHOURI | G147: Teddy | H147: 2001 | I147: 60.3 | J147: Blainville | K147: F | L147: 25 | M147: 28 | N147: 30 | O147: 30 | P147: 33 | Q147: 38 | R147: -40 | S147: 38 | T147: 68 | U147: -52.6 | V147: DEB | W147: -7 | X147: =IF(I147="","",IF(A147="H",IF(OR(H147="SEN",H147<1995),VLOOKUP(I147,Feuil1!$A$11:$G$29,6),IF(AND(H147>1994,H147<1998),VLOOKUP(I147,Feuil1!$A$11:$G$29,5),IF(AND(H147>1997,H147<2000),VLOOKUP(I147,Feuil1!$A$11:$G$29,4),IF(AND(H147>1999,H147<2002),VLOOKUP(I147,Feuil1!$A$11:$G$29,3),VLOOKUP(I147,Feuil1!$A$11:$G$29,2))))),IF(OR(H147="SEN",H147<1995),VLOOKUP(I147,Feuil1!$G$11:$L$25,6),IF(AND(H147>1994,H147<1998),VLOOKUP(I147,Feuil1!$G$11:$L$25,5),IF(AND(H147>1997,H147<2000),VLOOKUP(I147,Feuil1!$G$11:$L$25,4),IF(AND(H147>1999,H147<2002),VLOOKUP(I147,Feuil1!$G$11:$L$25,3),VLOOKUP(I147,Feuil1!$G$11:$L$25,2))))))) -> C1 62 | Y147: 100.3417822 | AB147: =T147-HLOOKUP(X147,Feuil1!$C$1:$BL$10,2,FALSE) -> -7 | AC147: =T147-HLOOKUP(X147,Feuil1!$C$1:$BL$10,3,FALSE) -> -27 | AD147: =T147-HLOOKUP(X147,Feuil1!$C$1:$BL$10,4,FALSE) -> -37 | AE147: =T147-HLOOKUP(X147,Feuil1!$C$1:$BL$10,5,FALSE) -> -52 | AF147: =T147-HLOOKUP(X147,Feuil1!$C$1:$BL$10,6,FALSE) -> -67 | AG147: =T147-HLOOKUP(X147,Feuil1!$C$1:$BL$10,7,FALSE) -> -82 | AH147: =T147-HLOOKUP(X147,Feuil1!$C$1:$BL$10,8,FALSE) -> -102 | AI147: =T147-HLOOKUP(X147,Feuil1!$C$1:$BL$10,9,FALSE) -> -122 | AJ147: =T147-HLOOKUP(X147,Feuil1!$C$1:$BL$10,10,FALSE) -> -932 | AQ147: DEB
A148: H | B148: CO | C148: PDL | D148: 35 | E148: 300298 | F148: RIGOT | G148: Fabien | H148: 2001 | I148: 56.48 | J148: ALSavenay | K148: F | L148: 28 | M148: -30 | N148: -30 | O148: 28 | P148: 36 | Q148: -38 | R148: 38 | S148: 38 | T148: 66 | U148: -46.96 | V148: DEB | W148: -9 | X148: =IF(I148="","",IF(A148="H",IF(OR(H148="SEN",H148<1995),VLOOKUP(I148,Feuil1!$A$11:$G$29,6),IF(AND(H148>1994,H148<1998),VLOOKUP(I148,Feuil1!$A$11:$G$29,5),IF(AND(H148>1997,H148<2000),VLOOKUP(I148,Feuil1!$A$11:$G$29,4),IF(AND(H148>1999,H148<2002),VLOOKUP(I148,Feuil1!$A$11:$G$29,3),VLOOKUP(I148,Feuil1!$A$11:$G$29,2))))),IF(OR(H148="SEN",H148<1995),VLOOKUP(I148,Feuil1!$G$11:$L$25,6),IF(AND(H148>1994,H148<1998),VLOOKUP(I148,Feuil1!$G$11:$L$25,5),IF(AND(H148>1997,H148<2000),VLOOKUP(I148,Feuil1!$G$11:$L$25,4),IF(AND(H148>1999,H148<2002),VLOOKUP(I148,Feuil1!$G$11:$L$25,3),VLOOKUP(I148,Feuil1!$G$11:$L$25,2))))))) -> C1 62 | Y148: 102.3257159 | AB148: =T148-HLOOKUP(X148,Feuil1!$C$1:$BL$10,2,FALSE) -> -9 | AC148: =T148-HLOOKUP(X148,Feuil1!$C$1:$BL$10,3,FALSE) -> -29 | AD148: =T148-HLOOKUP(X148,Feuil1!$C$1:$BL$10,4,FALSE) -> -39 | AE148: =T148-HLOOKUP(X148,Feuil1!$C$1:$BL$10,5,FALSE) -> -54 | AF148: =T148-HLOOKUP(X148,Feuil1!$C$1:$BL$10,6,FALSE) -> -69 | AG148: =T148-HLOOKUP(X148,Feuil1!$C$1:$BL$10,7,FALSE) -> -84 | AH148: =T148-HLOOKUP(X148,Feuil1!$C$1:$BL$10,8,FALSE) -> -104 | AI148: =T148-HLOOKUP(X148,Feuil1!$C$1:$BL$10,9,FALSE) -> -124 | AJ148: =T148-HLOOKUP(X148,Feuil1!$C$1:$BL$10,10,FALSE) -> -934 | AQ148: DEB
A149: H | B149: NE | C149: CHA | D149: 36 | E149: 336659 | F149: GALANDON | G149: Mattéo | H149: 2001 | I149: 57.1 | J149: Reims HM | K149: F | L149: 23 | M149: 26 | N149: 28 | O149: 28 | P149: 33 | Q149: 37 | R149: -40 | S149: 37 | T149: 65 | U149: -49.2 | V149: DEB | W149: -10 | X149: =IF(I149="","",IF(A149="H",IF(OR(H149="SEN",H149<1995),VLOOKUP(I149,Feuil1!$A$11:$G$29,6),IF(AND(H149>1994,H149<1998),VLOOKUP(I149,Feuil1!$A$11:$G$29,5),IF(AND(H149>1997,H149<2000),VLOOKUP(I149,Feuil1!$A$11:$G$29,4),IF(AND(H149>1999,H149<2002),VLOOKUP(I149,Feuil1!$A$11:$G$29,3),VLOOKUP(I149,Feuil1!$A$11:$G$29,2))))),IF(OR(H149="SEN",H149<1995),VLOOKUP(I149,Feuil1!$G$11:$L$25,6),IF(AND(H149>1994,H149<1998),VLOOKUP(I149,Feuil1!$G$11:$L$25,5),IF(AND(H149>1997,H149<2000),VLOOKUP(I149,Feuil1!$G$11:$L$25,4),IF(AND(H149>1999,H149<2002),VLOOKUP(I149,Feuil1!$G$11:$L$25,3),VLOOKUP(I149,Feuil1!$G$11:$L$25,2))))))) -> C1 62 | Y149: 99.9272112 | AB149: =T149-HLOOKUP(X149,Feuil1!$C$1:$BL$10,2,FALSE) -> -10 | AC149: =T149-HLOOKUP(X149,Feuil1!$C$1:$BL$10,3,FALSE) -> -30 | AD149: =T149-HLOOKUP(X149,Feuil1!$C$1:$BL$10,4,FALSE) -> -40 | AE149: =T149-HLOOKUP(X149,Feuil1!$C$1:$BL$10,5,FALSE) -> -55 | AF149: =T149-HLOOKUP(X149,Feuil1!$C$1:$BL$10,6,FALSE) -> -70 | AG149: =T149-HLOOKUP(X149,Feuil1!$C$1:$BL$10,7,FALSE) -> -85 | AH149: =T149-HLOOKUP(X149,Feuil1!$C$1:$BL$10,8,FALSE) -> -105 | AI149: =T149-HLOOKUP(X149,Feuil1!$C$1:$BL$10,9,FALSE) -> -125 | AJ149: =T149-HLOOKUP(X149,Feuil1!$C$1:$BL$10,10,FALSE) -> -935 | AQ149: DEB
A150: H | B150: NE | C150: BOU | D150: 37 | E150: 383618 | F150: SCNEIDER | G150: Quentin | H150: 2001 | I150: 58.35 | J150: Varennes Vauzelles | K150: F | L150: 23 | M150: 26 | N150: 28 | O150: 28 | P150: 30 | Q150: 33 | R150: 35 | S150: 35 | T150: 63 | U150: -53.7 | V150: DEB | W150: -12 | X150: =IF(I150="","",IF(A150="H",IF(OR(H150="SEN",H150<1995),VLOOKUP(I150,Feuil1!$A$11:$G$29,6),IF(AND(H150>1994,H150<1998),VLOOKUP(I150,Feuil1!$A$11:$G$29,5),IF(AND(H150>1997,H150<2000),VLOOKUP(I150,Feuil1!$A$11:$G$29,4),IF(AND(H150>1999,H150<2002),VLOOKUP(I150,Feuil1!$A$11:$G$29,3),VLOOKUP(I150,Feuil1!$A$11:$G$29,2))))),IF(OR(H150="SEN",H150<1995),VLOOKUP(I150,Feuil1!$G$11:$L$25,6),IF(AND(H150>1994,H150<1998),VLOOKUP(I150,Feuil1!$G$11:$L$25,5),IF(AND(H150>1997,H150<2000),VLOOKUP(I150,Feuil1!$G$11:$L$25,4),IF(AND(H150>1999,H150<2002),VLOOKUP(I150,Feuil1!$G$11:$L$25,3),VLOOKUP(I150,Feuil1!$G$11:$L$25,2))))))) -> C1 62 | Y150: 95.26562058 | AB150: =T150-HLOOKUP(X150,Feuil1!$C$1:$BL$10,2,FALSE) -> -12 | AC150: =T150-HLOOKUP(X150,Feuil1!$C$1:$BL$10,3,FALSE) -> -32 | AD150: =T150-HLOOKUP(X150,Feuil1!$C$1:$BL$10,4,FALSE) -> -42 | AE150: =T150-HLOOKUP(X150,Feuil1!$C$1:$BL$10,5,FALSE) -> -57 | AF150: =T150-HLOOKUP(X150,Feuil1!$C$1:$BL$10,6,FALSE) -> -72 | AG150: =T150-HLOOKUP(X150,Feuil1!$C$1:$BL$10,7,FALSE) -> -87 | AH150: =T150-HLOOKUP(X150,Feuil1!$C$1:$BL$10,8,FALSE) -> -107 | AI150: =T150-HLOOKUP(X150,Feuil1!$C$1:$BL$10,9,FALSE) -> -127 | AJ150: =T150-HLOOKUP(X150,Feuil1!$C$1:$BL$10,10,FALSE) -> -937 | AQ150: DEB
A151: H | B151: CO | C151: CEN | D151: 38 | E151: 385777 | F151: TILKI | G151: Ali | H151: 2000 | I151: 60.5 | J151: CM Orléans | K151: F | L151: -27 | M151: 27 | N151: -28 | O151: 27 | P151: 35 | Q151: -40 | R151: -40 | S151: 35 | T151: 62 | U151: -59 | V151: DEB | W151: -13 | X151: =IF(I151="","",IF(A151="H",IF(OR(H151="SEN",H151<1995),VLOOKUP(I151,Feuil1!$A$11:$G$29,6),IF(AND(H151>1994,H151<1998),VLOOKUP(I151,Feuil1!$A$11:$G$29,5),IF(AND(H151>1997,H151<2000),VLOOKUP(I151,Feuil1!$A$11:$G$29,4),IF(AND(H151>1999,H151<2002),VLOOKUP(I151,Feuil1!$A$11:$G$29,3),VLOOKUP(I151,Feuil1!$A$11:$G$29,2))))),IF(OR(H151="SEN",H151<1995),VLOOKUP(I151,Feuil1!$G$11:$L$25,6),IF(AND(H151>1994,H151<1998),VLOOKUP(I151,Feuil1!$G$11:$L$25,5),IF(AND(H151>1997,H151<2000),VLOOKUP(I151,Feuil1!$G$11:$L$25,4),IF(AND(H151>1999,H151<2002),VLOOKUP(I151,Feuil1!$G$11:$L$25,3),VLOOKUP(I151,Feuil1!$G$11:$L$25,2))))))) -> C1 62 | Y151: 91.26673446 | AB151: =T151-HLOOKUP(X151,Feuil1!$C$1:$BL$10,2,FALSE) -> -13 | AC151: =T151-HLOOKUP(X151,Feuil1!$C$1:$BL$10,3,FALSE) -> -33 | AD151: =T151-HLOOKUP(X151,Feuil1!$C$1:$BL$10,4,FALSE) -> -43 | AE151: =T151-HLOOKUP(X151,Feuil1!$C$1:$BL$10,5,FALSE) -> -58 | AF151: =T151-HLOOKUP(X151,Feuil1!$C$1:$BL$10,6,FALSE) -> -73 | AG151: =T151-HLOOKUP(X151,Feuil1!$C$1:$BL$10,7,FALSE) -> -88 | AH151: =T151-HLOOKUP(X151,Feuil1!$C$1:$BL$10,8,FALSE) -> -108 | AI151: =T151-HLOOKUP(X151,Feuil1!$C$1:$BL$10,9,FALSE) -> -128 | AJ151: =T151-HLOOKUP(X151,Feuil1!$C$1:$BL$10,10,FALSE) -> -938 | AQ151: DEB
A152: H | B152: NORD | C152: PIC | D152: 39 | E152: 357878 | F152: ELOY | G152: Martin | H152: 2001 | I152: 60.4 | J152: Villers-Bretonneux KC | K152: F | L152: 22 | M152: 25 | N152: -28 | O152: 25 | P152: 27 | Q152: 35 | R152: -37 | S152: 35 | T152: 60 | U152: -60.8 | V152: DEB | W152: -15 | X152: =IF(I152="","",IF(A152="H",IF(OR(H152="SEN",H152<1995),VLOOKUP(I152,Feuil1!$A$11:$G$29,6),IF(AND(H152>1994,H152<1998),VLOOKUP(I152,Feuil1!$A$11:$G$29,5),IF(AND(H152>1997,H152<2000),VLOOKUP(I152,Feuil1!$A$11:$G$29,4),IF(AND(H152>1999,H152<2002),VLOOKUP(I152,Feuil1!$A$11:$G$29,3),VLOOKUP(I152,Feuil1!$A$11:$G$29,2))))),IF(OR(H152="SEN",H152<1995),VLOOKUP(I152,Feuil1!$G$11:$L$25,6),IF(AND(H152>1994,H152<1998),VLOOKUP(I152,Feuil1!$G$11:$L$25,5),IF(AND(H152>1997,H152<2000),VLOOKUP(I152,Feuil1!$G$11:$L$25,4),IF(AND(H152>1999,H152<2002),VLOOKUP(I152,Feuil1!$G$11:$L$25,3),VLOOKUP(I152,Feuil1!$G$11:$L$25,2))))))) -> C1 62 | Y152: 88.42951928 | AB152: =T152-HLOOKUP(X152,Feuil1!$C$1:$BL$10,2,FALSE) -> -15 | AC152: =T152-HLOOKUP(X152,Feuil1!$C$1:$BL$10,3,FALSE) -> -35 | AD152: =T152-HLOOKUP(X152,Feuil1!$C$1:$BL$10,4,FALSE) -> -45 | AE152: =T152-HLOOKUP(X152,Feuil1!$C$1:$BL$10,5,FALSE) -> -60 | AF152: =T152-HLOOKUP(X152,Feuil1!$C$1:$BL$10,6,FALSE) -> -75 | AG152: =T152-HLOOKUP(X152,Feuil1!$C$1:$BL$10,7,FALSE) -> -90 | AH152: =T152-HLOOKUP(X152,Feuil1!$C$1:$BL$10,8,FALSE) -> -110 | AI152: =T152-HLOOKUP(X152,Feuil1!$C$1:$BL$10,9,FALSE) -> -130 | AJ152: =T152-HLOOKUP(X152,Feuil1!$C$1:$BL$10,10,FALSE) -> -940 | AQ152: DEB
A153: H | B153: SEST | C153: PRO | D153: 40 | E153: 361674 | F153: LE COZ | G153: KILLIAN | H153: 2001 | I153: 59.7 | J153: ISTRES SPORTS | K153: F | L153: -20 | M153: 20 | N153: 23 | O153: 23 | P153: 28 | Q153: 31 | R153: 33 | S153: 33 | T153: 56 | U153: -63.4 | V153: DEB | W153: -19 | X153: =IF(I153="","",IF(A153="H",IF(OR(H153="SEN",H153<1995),VLOOKUP(I153,Feuil1!$A$11:$G$29,6),IF(AND(H153>1994,H153<1998),VLOOKUP(I153,Feuil1!$A$11:$G$29,5),IF(AND(H153>1997,H153<2000),VLOOKUP(I153,Feuil1!$A$11:$G$29,4),IF(AND(H153>1999,H153<2002),VLOOKUP(I153,Feuil1!$A$11:$G$29,3),VLOOKUP(I153,Feuil1!$A$11:$G$29,2))))),IF(OR(H153="SEN",H153<1995),VLOOKUP(I153,Feuil1!$G$11:$L$25,6),IF(AND(H153>1994,H153<1998),VLOOKUP(I153,Feuil1!$G$11:$L$25,5),IF(AND(H153>1997,H153<2000),VLOOKUP(I153,Feuil1!$G$11:$L$25,4),IF(AND(H153>1999,H153<2002),VLOOKUP(I153,Feuil1!$G$11:$L$25,3),VLOOKUP(I153,Feuil1!$G$11:$L$25,2))))))) -> C1 62 | Y153: 83.24500041 | AB153: =T153-HLOOKUP(X153,Feuil1!$C$1:$BL$10,2,FALSE) -> -19 | AC153: =T153-HLOOKUP(X153,Feuil1!$C$1:$BL$10,3,FALSE) -> -39 | AD153: =T153-HLOOKUP(X153,Feuil1!$C$1:$BL$10,4,FALSE) -> -49 | AE153: =T153-HLOOKUP(X153,Feuil1!$C$1:$BL$10,5,FALSE) -> -64 | AF153: =T153-HLOOKUP(X153,Feuil1!$C$1:$BL$10,6,FALSE) -> -79 | AG153: =T153-HLOOKUP(X153,Feuil1!$C$1:$BL$10,7,FALSE) -> -94 | AH153: =T153-HLOOKUP(X153,Feuil1!$C$1:$BL$10,8,FALSE) -> -114 | AI153: =T153-HLOOKUP(X153,Feuil1!$C$1:$BL$10,9,FALSE) -> -134 | AJ153: =T153-HLOOKUP(X153,Feuil1!$C$1:$BL$10,10,FALSE) -> -944 | AQ153: DEB
A154: H | B154: ZCO | C154: BRE | D154: 41 | E154: 377668 | F154: SAM | G154: Rithy | H154: 2001 | I154: 56.6 | J154: ES Saint Avé | K154: F | L154: 20 | M154: 23 | N154: 25 | O154: 25 | P154: -26 | Q154: 26 | R154: 30 | S154: 30 | T154: 55 | U154: -58.2 | V154: DEB | W154: -20 | X154: =IF(I154="","",IF(A154="H",IF(OR(H154="SEN",H154<1995),VLOOKUP(I154,Feuil1!$A$11:$G$29,6),IF(AND(H154>1994,H154<1998),VLOOKUP(I154,Feuil1!$A$11:$G$29,5),IF(AND(H154>1997,H154<2000),VLOOKUP(I154,Feuil1!$A$11:$G$29,4),IF(AND(H154>1999,H154<2002),VLOOKUP(I154,Feuil1!$A$11:$G$29,3),VLOOKUP(I154,Feuil1!$A$11:$G$29,2))))),IF(OR(H154="SEN",H154<1995),VLOOKUP(I154,Feuil1!$G$11:$L$25,6),IF(AND(H154>1994,H154<1998),VLOOKUP(I154,Feuil1!$G$11:$L$25,5),IF(AND(H154>1997,H154<2000),VLOOKUP(I154,Feuil1!$G$11:$L$25,4),IF(AND(H154>1999,H154<2002),VLOOKUP(I154,Feuil1!$G$11:$L$25,3),VLOOKUP(I154,Feuil1!$G$11:$L$25,2))))))) -> C1 62 | Y154: 85.13089628 | AB154: =T154-HLOOKUP(X154,Feuil1!$C$1:$BL$10,2,FALSE) -> -20 | AC154: =T154-HLOOKUP(X154,Feuil1!$C$1:$BL$10,3,FALSE) -> -40 | AD154: =T154-HLOOKUP(X154,Feuil1!$C$1:$BL$10,4,FALSE) -> -50 | AE154: =T154-HLOOKUP(X154,Feuil1!$C$1:$BL$10,5,FALSE) -> -65 | AF154: =T154-HLOOKUP(X154,Feuil1!$C$1:$BL$10,6,FALSE) -> -80 | AG154: =T154-HLOOKUP(X154,Feuil1!$C$1:$BL$10,7,FALSE) -> -95 | AH154: =T154-HLOOKUP(X154,Feuil1!$C$1:$BL$10,8,FALSE) -> -115 | AI154: =T154-HLOOKUP(X154,Feuil1!$C$1:$BL$10,9,FALSE) -> -135 | AJ154: =T154-HLOOKUP(X154,Feuil1!$C$1:$BL$10,10,FALSE) -> -945 | AQ154: DEB
A155: H | B155: NE | C155: BOU | D155: 42 | E155: 351819 | F155: HENOCQ | G155: Thomas | H155: 2000 | I155: 61.5 | J155: HC Avallon | K155: F | L155: 20 | M155: 23 | N155: -26 | O155: 23 | P155: 28 | Q155: -31 | R155: -31 | S155: 28 | T155: 51 | U155: -72 | V155: DEB | W155: -24 | X155: =IF(I155="","",IF(A155="H",IF(OR(H155="SEN",H155<1995),VLOOKUP(I155,Feuil1!$A$11:$G$29,6),IF(AND(H155>1994,H155<1998),VLOOKUP(I155,Feuil1!$A$11:$G$29,5),IF(AND(H155>1997,H155<2000),VLOOKUP(I155,Feuil1!$A$11:$G$29,4),IF(AND(H155>1999,H155<2002),VLOOKUP(I155,Feuil1!$A$11:$G$29,3),VLOOKUP(I155,Feuil1!$A$11:$G$29,2))))),IF(OR(H155="SEN",H155<1995),VLOOKUP(I155,Feuil1!$G$11:$L$25,6),IF(AND(H155>1994,H155<1998),VLOOKUP(I155,Feuil1!$G$11:$L$25,5),IF(AND(H155>1997,H155<2000),VLOOKUP(I155,Feuil1!$G$11:$L$25,4),IF(AND(H155>1999,H155<2002),VLOOKUP(I155,Feuil1!$G$11:$L$25,3),VLOOKUP(I155,Feuil1!$G$11:$L$25,2))))))) -> C1 62 | Y155: 74.18748534 | AB155: =T155-HLOOKUP(X155,Feuil1!$C$1:$BL$10,2,FALSE) -> -24 | AC155: =T155-HLOOKUP(X155,Feuil1!$C$1:$BL$10,3,FALSE) -> -44 | AD155: =T155-HLOOKUP(X155,Feuil1!$C$1:$BL$10,4,FALSE) -> -54 | AE155: =T155-HLOOKUP(X155,Feuil1!$C$1:$BL$10,5,FALSE) -> -69 | AF155: =T155-HLOOKUP(X155,Feuil1!$C$1:$BL$10,6,FALSE) -> -84 | AG155: =T155-HLOOKUP(X155,Feuil1!$C$1:$BL$10,7,FALSE) -> -99 | AH155: =T155-HLOOKUP(X155,Feuil1!$C$1:$BL$10,8,FALSE) -> -119 | AI155: =T155-HLOOKUP(X155,Feuil1!$C$1:$BL$10,9,FALSE) -> -139 | AJ155: =T155-HLOOKUP(X155,Feuil1!$C$1:$BL$10,10,FALSE) -> -949 | AQ155: DEB
A156: H | B156: NE | C156: CHA | D156: 43 | E156: 323375 | F156: MARCHAND | G156: Christopher | H156: 2001 | I156: 58.4 | J156: Reims HM | K156: F | L156: 12 | M156: 15 | N156: 18 | O156: 18 | P156: 25 | Q156: 28 | R156: 30 | S156: 30 | T156: 48 | U156: -68.8 | V156: DEB | W156: -27 | X156: =IF(I156="","",IF(A156="H",IF(OR(H156="SEN",H156<1995),VLOOKUP(I156,Feuil1!$A$11:$G$29,6),IF(AND(H156>1994,H156<1998),VLOOKUP(I156,Feuil1!$A$11:$G$29,5),IF(AND(H156>1997,H156<2000),VLOOKUP(I156,Feuil1!$A$11:$G$29,4),IF(AND(H156>1999,H156<2002),VLOOKUP(I156,Feuil1!$A$11:$G$29,3),VLOOKUP(I156,Feuil1!$A$11:$G$29,2))))),IF(OR(H156="SEN",H156<1995),VLOOKUP(I156,Feuil1!$G$11:$L$25,6),IF(AND(H156>1994,H156<1998),VLOOKUP(I156,Feuil1!$G$11:$L$25,5),IF(AND(H156>1997,H156<2000),VLOOKUP(I156,Feuil1!$G$11:$L$25,4),IF(AND(H156>1999,H156<2002),VLOOKUP(I156,Feuil1!$G$11:$L$25,3),VLOOKUP(I156,Feuil1!$G$11:$L$25,2))))))) -> C1 62 | Y156: 72.5363994 | AB156: =T156-HLOOKUP(X156,Feuil1!$C$1:$BL$10,2,FALSE) -> -27 | AC156: =T156-HLOOKUP(X156,Feuil1!$C$1:$BL$10,3,FALSE) -> -47 | AD156: =T156-HLOOKUP(X156,Feuil1!$C$1:$BL$10,4,FALSE) -> -57 | AE156: =T156-HLOOKUP(X156,Feuil1!$C$1:$BL$10,5,FALSE) -> -72 | AF156: =T156-HLOOKUP(X156,Feuil1!$C$1:$BL$10,6,FALSE) -> -87 | AG156: =T156-HLOOKUP(X156,Feuil1!$C$1:$BL$10,7,FALSE) -> -102 | AH156: =T156-HLOOKUP(X156,Feuil1!$C$1:$BL$10,8,FALSE) -> -122 | AI156: =T156-HLOOKUP(X156,Feuil1!$C$1:$BL$10,9,FALSE) -> -142 | AJ156: =T156-HLOOKUP(X156,Feuil1!$C$1:$BL$10,10,FALSE) -> -952 | AQ156: DEB
A157: H | B157: SEST | C157: RAL | D157: 44 | E157: 388825 | F157: VAVRE | G157: Corentin | H157: 2001 | I157: 56.85 | J157: Vaulx-en-Velin | K157: F | L157: 14 | M157: 18 | N157: 20 | O157: 20 | P157: 20 | Q157: 24 | R157: -27_ | S157: 24 | T157: 44 | U157: -69.7 | V157: DEB | W157: -31 | X157: =IF(I157="","",IF(A157="H",IF(OR(H157="SEN",H157<1995),VLOOKUP(I157,Feuil1!$A$11:$G$29,6),IF(AND(H157>1994,H157<1998),VLOOKUP(I157,Feuil1!$A$11:$G$29,5),IF(AND(H157>1997,H157<2000),VLOOKUP(I157,Feuil1!$A$11:$G$29,4),IF(AND(H157>1999,H157<2002),VLOOKUP(I157,Feuil1!$A$11:$G$29,3),VLOOKUP(I157,Feuil1!$A$11:$G$29,2))))),IF(OR(H157="SEN",H157<1995),VLOOKUP(I157,Feuil1!$G$11:$L$25,6),IF(AND(H157>1994,H157<1998),VLOOKUP(I157,Feuil1!$G$11:$L$25,5),IF(AND(H157>1997,H157<2000),VLOOKUP(I157,Feuil1!$G$11:$L$25,4),IF(AND(H157>1999,H157<2002),VLOOKUP(I157,Feuil1!$G$11:$L$25,3),VLOOKUP(I157,Feuil1!$G$11:$L$25,2))))))) -> C1 62 | Y157: 67.87252322 | AB157: =T157-HLOOKUP(X157,Feuil1!$C$1:$BL$10,2,FALSE) -> -31 | AC157: =T157-HLOOKUP(X157,Feuil1!$C$1:$BL$10,3,FALSE) -> -51 | AD157: =T157-HLOOKUP(X157,Feuil1!$C$1:$BL$10,4,FALSE) -> -61 | AE157: =T157-HLOOKUP(X157,Feuil1!$C$1:$BL$10,5,FALSE) -> -76 | AF157: =T157-HLOOKUP(X157,Feuil1!$C$1:$BL$10,6,FALSE) -> -91 | AG157: =T157-HLOOKUP(X157,Feuil1!$C$1:$BL$10,7,FALSE) -> -106 | AH157: =T157-HLOOKUP(X157,Feuil1!$C$1:$BL$10,8,FALSE) -> -126 | AI157: =T157-HLOOKUP(X157,Feuil1!$C$1:$BL$10,9,FALSE) -> -146 | AJ157: =T157-HLOOKUP(X157,Feuil1!$C$1:$BL$10,10,FALSE) -> -956 | AQ157: DEB
A158: H | B158: SEST | C158: RAL | D158: 45 | E158: 377759 | F158: BEYODDI | G158: Charf-Eddine | H158: 2000 | I158: 62 | J158: C.H. L'ARBRESLE | K158: F | L158: 15 | M158: 18 | N158: -22 | O158: 18 | P158: 20 | Q158: 23 | R158: -26 | S158: 23 | T158: 41 | U158: -83 | V158: DEB | W158: -34 | X158: =IF(I158="","",IF(A158="H",IF(OR(H158="SEN",H158<1995),VLOOKUP(I158,Feuil1!$A$11:$G$29,6),IF(AND(H158>1994,H158<1998),VLOOKUP(I158,Feuil1!$A$11:$G$29,5),IF(AND(H158>1997,H158<2000),VLOOKUP(I158,Feuil1!$A$11:$G$29,4),IF(AND(H158>1999,H158<2002),VLOOKUP(I158,Feuil1!$A$11:$G$29,3),VLOOKUP(I158,Feuil1!$A$11:$G$29,2))))),IF(OR(H158="SEN",H158<1995),VLOOKUP(I158,Feuil1!$G$11:$L$25,6),IF(AND(H158>1994,H158<1998),VLOOKUP(I158,Feuil1!$G$11:$L$25,5),IF(AND(H158>1997,H158<2000),VLOOKUP(I158,Feuil1!$G$11:$L$25,4),IF(AND(H158>1999,H158<2002),VLOOKUP(I158,Feuil1!$G$11:$L$25,3),VLOOKUP(I158,Feuil1!$G$11:$L$25,2))))))) -> C1 62 | Y158: 59.29597987 | AB158: =T158-HLOOKUP(X158,Feuil1!$C$1:$BL$10,2,FALSE) -> -34 | AC158: =T158-HLOOKUP(X158,Feuil1!$C$1:$BL$10,3,FALSE) -> -54 | AD158: =T158-HLOOKUP(X158,Feuil1!$C$1:$BL$10,4,FALSE) -> -64 | AE158: =T158-HLOOKUP(X158,Feuil1!$C$1:$BL$10,5,FALSE) -> -79 | AF158: =T158-HLOOKUP(X158,Feuil1!$C$1:$BL$10,6,FALSE) -> -94 | AG158: =T158-HLOOKUP(X158,Feuil1!$C$1:$BL$10,7,FALSE) -> -109 | AH158: =T158-HLOOKUP(X158,Feuil1!$C$1:$BL$10,8,FALSE) -> -129 | AI158: =T158-HLOOKUP(X158,Feuil1!$C$1:$BL$10,9,FALSE) -> -149 | AJ158: =T158-HLOOKUP(X158,Feuil1!$C$1:$BL$10,10,FALSE) -> -959 | AQ158: DEB
A159: H | B159: CO | C159: BNO | D159: 46 | E159: 378973 | F159: Malhere | G159: Axel | H159: 2001 | I159: 61.8 | J159: Giberville | K159: F | L159: 13 | M159: 15 | N159: 17 | O159: 17 | P159: 17 | Q159: 19 | R159: -21 | S159: 19 | T159: 36 | U159: -87.6 | V159: DEB | W159: -39 | X159: =IF(I159="","",IF(A159="H",IF(OR(H159="SEN",H159<1995),VLOOKUP(I159,Feuil1!$A$11:$G$29,6),IF(AND(H159>1994,H159<1998),VLOOKUP(I159,Feuil1!$A$11:$G$29,5),IF(AND(H159>1997,H159<2000),VLOOKUP(I159,Feuil1!$A$11:$G$29,4),IF(AND(H159>1999,H159<2002),VLOOKUP(I159,Feuil1!$A$11:$G$29,3),VLOOKUP(I159,Feuil1!$A$11:$G$29,2))))),IF(OR(H159="SEN",H159<1995),VLOOKUP(I159,Feuil1!$G$11:$L$25,6),IF(AND(H159>1994,H159<1998),VLOOKUP(I159,Feuil1!$G$11:$L$25,5),IF(AND(H159>1997,H159<2000),VLOOKUP(I159,Feuil1!$G$11:$L$25,4),IF(AND(H159>1999,H159<2002),VLOOKUP(I159,Feuil1!$G$11:$L$25,3),VLOOKUP(I159,Feuil1!$G$11:$L$25,2))))))) -> C1 62 | Y159: 52.18512458 | AB159: =T159-HLOOKUP(X159,Feuil1!$C$1:$BL$10,2,FALSE) -> -39 | AC159: =T159-HLOOKUP(X159,Feuil1!$C$1:$BL$10,3,FALSE) -> -59 | AD159: =T159-HLOOKUP(X159,Feuil1!$C$1:$BL$10,4,FALSE) -> -69 | AE159: =T159-HLOOKUP(X159,Feuil1!$C$1:$BL$10,5,FALSE) -> -84 | AF159: =T159-HLOOKUP(X159,Feuil1!$C$1:$BL$10,6,FALSE) -> -99 | AG159: =T159-HLOOKUP(X159,Feuil1!$C$1:$BL$10,7,FALSE) -> -114 | AH159: =T159-HLOOKUP(X159,Feuil1!$C$1:$BL$10,8,FALSE) -> -134 | AI159: =T159-HLOOKUP(X159,Feuil1!$C$1:$BL$10,9,FALSE) -> -154 | AJ159: =T159-HLOOKUP(X159,Feuil1!$C$1:$BL$10,10,FALSE) -> -964 | AQ159: DEB
AB160: =T160-HLOOKUP(X160,[1]Feuil1!$C$1:$BL$10,2,FALSE) ->  | AC160: =T160-HLOOKUP(X160,[1]Feuil1!$C$1:$BL$10,3,FALSE) ->  | AD160: =T160-HLOOKUP(X160,[1]Feuil1!$C$1:$BL$10,4,FALSE) ->  | AE160: =T160-HLOOKUP(X160,[1]Feuil1!$C$1:$BL$10,5,FALSE) ->  | AF160: =T160-HLOOKUP(X160,[1]Feuil1!$C$1:$BL$10,6,FALSE) ->  | AG160: =T160-HLOOKUP(X160,[1]Feuil1!$C$1:$BL$10,7,FALSE) ->  | AH160: =T160-HLOOKUP(X160,[1]Feuil1!$C$1:$BL$10,8,FALSE) ->  | AI160: =T160-HLOOKUP(X160,[1]Feuil1!$C$1:$BL$10,9,FALSE) ->  | AJ160: =T160-HLOOKUP(X160,[1]Feuil1!$C$1:$BL$10,10,FALSE) ->  | AQ160: =IF(AJ160>=0,$AJ$4,IF(AI160>=0,$AI$4,IF(AH160>=0,$AH$4,IF(AG160>=0,$AG$4,IF(AF160>=0,$AF$4,IF(AE160>=0,$AE$4,IF(AD160>=0,$AD$4,IF(AC160>=0,$AC$4,$AB$4)))))))) -> 
A161: H | B161: NORD | C161: NPC | D161: 1 | E161: 336176 | F161: FARETIE | G161: Sony | H161: 2000 | I161: 65.9 | J161: C.A.ROSENDAEL | K161: F | L161: 82 | M161: 87 | N161: 90 | O161: =IF(H161="","",IF(MAXA(L161:N161)<=0,0,MAXA(L161:N161))) -> 90 | P161: 105 | Q161: 110 | R161: -115 | S161: =IF(H161="","",IF(MAXA(P161:R161)<=0,0,MAXA(P161:R161))) -> 110 | T161: =IF(H161="","",IF(OR(O161=0,S161=0),0,O161+S161)) -> 200 | U161: =T161-I161*2 -> 68.2 | V161: =IF(H161="","",AQ161) -> INTB + | W161: =IF(AJ161>=0,AJ161,IF(AI161>=0,AI161,IF(AH161>=0,AH161,IF(AG161>=0,AG161,IF(AF161>=0,AF161,IF(AE161>=0,AE161,IF(AD161>=0,AD161,IF(AC161>=0,AC161,AB161)))))))) -> 10 | X161: =IF(I161="","",IF(A161="H",IF(OR(H161="SEN",H161<1995),VLOOKUP(I161,Feuil1!$A$11:$G$29,6),IF(AND(H161>1994,H161<1998),VLOOKUP(I161,Feuil1!$A$11:$G$29,5),IF(AND(H161>1997,H161<2000),VLOOKUP(I161,Feuil1!$A$11:$G$29,4),IF(AND(H161>1999,H161<2002),VLOOKUP(I161,Feuil1!$A$11:$G$29,3),VLOOKUP(I161,Feuil1!$A$11:$G$29,2))))),IF(OR(H161="SEN",H161<1995),VLOOKUP(I161,Feuil1!$G$11:$L$25,6),IF(AND(H161>1994,H161<1998),VLOOKUP(I161,Feuil1!$G$11:$L$25,5),IF(AND(H161>1997,H161<2000),VLOOKUP(I161,Feuil1!$G$11:$L$25,4),IF(AND(H161>1999,H161<2002),VLOOKUP(I161,Feuil1!$G$11:$L$25,3),VLOOKUP(I161,Feuil1!$G$11:$L$25,2))))))) -> C1 69 | Y161: =IF(I161="","",IF(A161="H",10^(0.794358141*LOG(I161/174.393)^2)*T161,IF(A161="F",10^(0.89726074*LOG(I161/148.026)^2)*T161,""))) -> 277.2836849 | AB161: =T161-HLOOKUP(X161,Feuil1!$C$1:$BL$10,2,FALSE) -> 115 | AC161: =T161-HLOOKUP(X161,Feuil1!$C$1:$BL$10,3,FALSE) -> 95 | AD161: =T161-HLOOKUP(X161,Feuil1!$C$1:$BL$10,4,FALSE) -> 85 | AE161: =T161-HLOOKUP(X161,Feuil1!$C$1:$BL$10,5,FALSE) -> 70 | AF161: =T161-HLOOKUP(X161,Feuil1!$C$1:$BL$10,6,FALSE) -> 50 | AG161: =T161-HLOOKUP(X161,Feuil1!$C$1:$BL$10,7,FALSE) -> 30 | AH161: =T161-HLOOKUP(X161,Feuil1!$C$1:$BL$10,8,FALSE) -> 10 | AI161: =T161-HLOOKUP(X161,Feuil1!$C$1:$BL$10,9,FALSE) -> -10 | AJ161: =T161-HLOOKUP(X161,Feuil1!$C$1:$BL$10,10,FALSE) -> -800 | AQ161: =IF(AJ161>=0,$AJ$4,IF(AI161>=0,$AI$4,IF(AH161>=0,$AH$4,IF(AG161>=0,$AG$4,IF(AF161>=0,$AF$4,IF(AE161>=0,$AE$4,IF(AD161>=0,$AD$4,IF(AC161>=0,$AC$4,$AB$4)))))))) -> INTB +
A162: H | B162: SEST | C162: PRO | D162: 2 | E162: 342507 | F162: ALFONSI | G162: LUC | H162: 2000 | I162: 64.4 | J162: EEAR MONTEUX | K162: F | L162: 77 | M162: -81 | N162: 81 | O162: 81 | P162: 98 | Q162: 102 | R162: 105 | S162: 105 | T162: 186 | U162: 57.2 | V162: NAT + | W162: 16 | X162: =IF(I162="","",IF(A162="H",IF(OR(H162="SEN",H162<1995),VLOOKUP(I162,Feuil1!$A$11:$G$29,6),IF(AND(H162>1994,H162<1998),VLOOKUP(I162,Feuil1!$A$11:$G$29,5),IF(AND(H162>1997,H162<2000),VLOOKUP(I162,Feuil1!$A$11:$G$29,4),IF(AND(H162>1999,H162<2002),VLOOKUP(I162,Feuil1!$A$11:$G$29,3),VLOOKUP(I162,Feuil1!$A$11:$G$29,2))))),IF(OR(H162="SEN",H162<1995),VLOOKUP(I162,Feuil1!$G$11:$L$25,6),IF(AND(H162>1994,H162<1998),VLOOKUP(I162,Feuil1!$G$11:$L$25,5),IF(AND(H162>1997,H162<2000),VLOOKUP(I162,Feuil1!$G$11:$L$25,4),IF(AND(H162>1999,H162<2002),VLOOKUP(I162,Feuil1!$G$11:$L$25,3),VLOOKUP(I162,Feuil1!$G$11:$L$25,2))))))) -> C1 69 | Y162: 261.9395025 | AB162: =T162-HLOOKUP(X162,Feuil1!$C$1:$BL$10,2,FALSE) -> 101 | AC162: =T162-HLOOKUP(X162,Feuil1!$C$1:$BL$10,3,FALSE) -> 81 | AD162: =T162-HLOOKUP(X162,Feuil1!$C$1:$BL$10,4,FALSE) -> 71 | AE162: =T162-HLOOKUP(X162,Feuil1!$C$1:$BL$10,5,FALSE) -> 56 | AF162: =T162-HLOOKUP(X162,Feuil1!$C$1:$BL$10,6,FALSE) -> 36 | AG162: =T162-HLOOKUP(X162,Feuil1!$C$1:$BL$10,7,FALSE) -> 16 | AH162: =T162-HLOOKUP(X162,Feuil1!$C$1:$BL$10,8,FALSE) -> -4 | AI162: =T162-HLOOKUP(X162,Feuil1!$C$1:$BL$10,9,FALSE) -> -24 | AJ162: =T162-HLOOKUP(X162,Feuil1!$C$1:$BL$10,10,FALSE) -> -814 | AQ162: NAT +
A163: H | B163: NE | C163: CHA | D163: 3 | E163: 339573 | F163: MKRTCHYAN | G163: Armen | H163: 2000 | I163: 62.5 | J163: Reims HM | K163: Arm | L163: 60 | M163: 64 | N163: 67 | O163: 67 | P163: -85 | Q163: 85 | R163: -90 | S163: 85 | T163: 152 | U163: 27 | V163: FED + | W163: 2 | X163: =IF(I163="","",IF(A163="H",IF(OR(H163="SEN",H163<1995),VLOOKUP(I163,Feuil1!$A$11:$G$29,6),IF(AND(H163>1994,H163<1998),VLOOKUP(I163,Feuil1!$A$11:$G$29,5),IF(AND(H163>1997,H163<2000),VLOOKUP(I163,Feuil1!$A$11:$G$29,4),IF(AND(H163>1999,H163<2002),VLOOKUP(I163,Feuil1!$A$11:$G$29,3),VLOOKUP(I163,Feuil1!$A$11:$G$29,2))))),IF(OR(H163="SEN",H163<1995),VLOOKUP(I163,Feuil1!$G$11:$L$25,6),IF(AND(H163>1994,H163<1998),VLOOKUP(I163,Feuil1!$G$11:$L$25,5),IF(AND(H163>1997,H163<2000),VLOOKUP(I163,Feuil1!$G$11:$L$25,4),IF(AND(H163>1999,H163<2002),VLOOKUP(I163,Feuil1!$G$11:$L$25,3),VLOOKUP(I163,Feuil1!$G$11:$L$25,2))))))) -> C1 69 | Y163: 218.5775455 | AB163: =T163-HLOOKUP(X163,Feuil1!$C$1:$BL$10,2,FALSE) -> 67 | AC163: =T163-HLOOKUP(X163,Feuil1!$C$1:$BL$10,3,FALSE) -> 47 | AD163: =T163-HLOOKUP(X163,Feuil1!$C$1:$BL$10,4,FALSE) -> 37 | AE163: =T163-HLOOKUP(X163,Feuil1!$C$1:$BL$10,5,FALSE) -> 22 | AF163: =T163-HLOOKUP(X163,Feuil1!$C$1:$BL$10,6,FALSE) -> 2 | AG163: =T163-HLOOKUP(X163,Feuil1!$C$1:$BL$10,7,FALSE) -> -18 | AH163: =T163-HLOOKUP(X163,Feuil1!$C$1:$BL$10,8,FALSE) -> -38 | AI163: =T163-HLOOKUP(X163,Feuil1!$C$1:$BL$10,9,FALSE) -> -58 | AJ163: =T163-HLOOKUP(X163,Feuil1!$C$1:$BL$10,10,FALSE) -> -848 | AQ163: FED +
A164: H | B164: SEST | C164: LAN | D164: 4 | E164: 331084 | F164: GIAMBRONE | G164: Alexandre | H164: 2000 | I164: 63 | J164: Clermont Sports | K164: F | L164: 55 | M164: 60 | N164: 65 | O164: 65 | P164: 75 | Q164: 80 | R164: 85 | S164: 85 | T164: 150 | U164: 24 | V164: FED + | W164: 0 | X164: =IF(I164="","",IF(A164="H",IF(OR(H164="SEN",H164<1995),VLOOKUP(I164,Feuil1!$A$11:$G$29,6),IF(AND(H164>1994,H164<1998),VLOOKUP(I164,Feuil1!$A$11:$G$29,5),IF(AND(H164>1997,H164<2000),VLOOKUP(I164,Feuil1!$A$11:$G$29,4),IF(AND(H164>1999,H164<2002),VLOOKUP(I164,Feuil1!$A$11:$G$29,3),VLOOKUP(I164,Feuil1!$A$11:$G$29,2))))),IF(OR(H164="SEN",H164<1995),VLOOKUP(I164,Feuil1!$G$11:$L$25,6),IF(AND(H164>1994,H164<1998),VLOOKUP(I164,Feuil1!$G$11:$L$25,5),IF(AND(H164>1997,H164<2000),VLOOKUP(I164,Feuil1!$G$11:$L$25,4),IF(AND(H164>1999,H164<2002),VLOOKUP(I164,Feuil1!$G$11:$L$25,3),VLOOKUP(I164,Feuil1!$G$11:$L$25,2))))))) -> C1 69 | Y164: 214.4927601 | AB164: =T164-HLOOKUP(X164,Feuil1!$C$1:$BL$10,2,FALSE) -> 65 | AC164: =T164-HLOOKUP(X164,Feuil1!$C$1:$BL$10,3,FALSE) -> 45 | AD164: =T164-HLOOKUP(X164,Feuil1!$C$1:$BL$10,4,FALSE) -> 35 | AE164: =T164-HLOOKUP(X164,Feuil1!$C$1:$BL$10,5,FALSE) -> 20 | AF164: =T164-HLOOKUP(X164,Feuil1!$C$1:$BL$10,6,FALSE) -> 0 | AG164: =T164-HLOOKUP(X164,Feuil1!$C$1:$BL$10,7,FALSE) -> -20 | AH164: =T164-HLOOKUP(X164,Feuil1!$C$1:$BL$10,8,FALSE) -> -40 | AI164: =T164-HLOOKUP(X164,Feuil1!$C$1:$BL$10,9,FALSE) -> -60 | AJ164: =T164-HLOOKUP(X164,Feuil1!$C$1:$BL$10,10,FALSE) -> -850 | AQ164: FED +
A165: H | B165: SEST | C165: LAN | D165: 5 | E165: 327347 | F165: CHOTARD | G165: Jean Marc | H165: 2000 | I165: 68.5 | J165: Frontignan AC | K165: F | L165: 55 | M165: 60 | N165: -62 | O165: 60 | P165: 80 | Q165: 86 | R165: -90 | S165: 86 | T165: 146 | U165: 9 | V165: IRG + | W165: 16 | X165: =IF(I165="","",IF(A165="H",IF(OR(H165="SEN",H165<1995),VLOOKUP(I165,Feuil1!$A$11:$G$29,6),IF(AND(H165>1994,H165<1998),VLOOKUP(I165,Feuil1!$A$11:$G$29,5),IF(AND(H165>1997,H165<2000),VLOOKUP(I165,Feuil1!$A$11:$G$29,4),IF(AND(H165>1999,H165<2002),VLOOKUP(I165,Feuil1!$A$11:$G$29,3),VLOOKUP(I165,Feuil1!$A$11:$G$29,2))))),IF(OR(H165="SEN",H165<1995),VLOOKUP(I165,Feuil1!$G$11:$L$25,6),IF(AND(H165>1994,H165<1998),VLOOKUP(I165,Feuil1!$G$11:$L$25,5),IF(AND(H165>1997,H165<2000),VLOOKUP(I165,Feuil1!$G$11:$L$25,4),IF(AND(H165>1999,H165<2002),VLOOKUP(I165,Feuil1!$G$11:$L$25,3),VLOOKUP(I165,Feuil1!$G$11:$L$25,2))))))) -> C1 69 | Y165: 197.3274528 | AB165: =T165-HLOOKUP(X165,Feuil1!$C$1:$BL$10,2,FALSE) -> 61 | AC165: =T165-HLOOKUP(X165,Feuil1!$C$1:$BL$10,3,FALSE) -> 41 | AD165: =T165-HLOOKUP(X165,Feuil1!$C$1:$BL$10,4,FALSE) -> 31 | AE165: =T165-HLOOKUP(X165,Feuil1!$C$1:$BL$10,5,FALSE) -> 16 | AF165: =T165-HLOOKUP(X165,Feuil1!$C$1:$BL$10,6,FALSE) -> -4 | AG165: =T165-HLOOKUP(X165,Feuil1!$C$1:$BL$10,7,FALSE) -> -24 | AH165: =T165-HLOOKUP(X165,Feuil1!$C$1:$BL$10,8,FALSE) -> -44 | AI165: =T165-HLOOKUP(X165,Feuil1!$C$1:$BL$10,9,FALSE) -> -64 | AJ165: =T165-HLOOKUP(X165,Feuil1!$C$1:$BL$10,10,FALSE) -> -854 | AQ165: IRG +
A166: H | B166: NORD | C166: NPC | D166: 6 | E166: 311932 | F166: MAES | G166: Calvin | H166: 2000 | I166: 62.7 | J166: C.A.ROSENDAEL | K166: F | L166: 55 | M166: 60 | N166: 63 | O166: 63 | P166: 75 | Q166: 80 | R166: -87 | S166: 80 | T166: 143 | U166: 17.6 | V166: IRG + | W166: 13 | X166: =IF(I166="","",IF(A166="H",IF(OR(H166="SEN",H166<1995),VLOOKUP(I166,Feuil1!$A$11:$G$29,6),IF(AND(H166>1994,H166<1998),VLOOKUP(I166,Feuil1!$A$11:$G$29,5),IF(AND(H166>1997,H166<2000),VLOOKUP(I166,Feuil1!$A$11:$G$29,4),IF(AND(H166>1999,H166<2002),VLOOKUP(I166,Feuil1!$A$11:$G$29,3),VLOOKUP(I166,Feuil1!$A$11:$G$29,2))))),IF(OR(H166="SEN",H166<1995),VLOOKUP(I166,Feuil1!$G$11:$L$25,6),IF(AND(H166>1994,H166<1998),VLOOKUP(I166,Feuil1!$G$11:$L$25,5),IF(AND(H166>1997,H166<2000),VLOOKUP(I166,Feuil1!$G$11:$L$25,4),IF(AND(H166>1999,H166<2002),VLOOKUP(I166,Feuil1!$G$11:$L$25,3),VLOOKUP(I166,Feuil1!$G$11:$L$25,2))))))) -> C1 69 | Y166: 205.1715518 | AB166: =T166-HLOOKUP(X166,Feuil1!$C$1:$BL$10,2,FALSE) -> 58 | AC166: =T166-HLOOKUP(X166,Feuil1!$C$1:$BL$10,3,FALSE) -> 38 | AD166: =T166-HLOOKUP(X166,Feuil1!$C$1:$BL$10,4,FALSE) -> 28 | AE166: =T166-HLOOKUP(X166,Feuil1!$C$1:$BL$10,5,FALSE) -> 13 | AF166: =T166-HLOOKUP(X166,Feuil1!$C$1:$BL$10,6,FALSE) -> -7 | AG166: =T166-HLOOKUP(X166,Feuil1!$C$1:$BL$10,7,FALSE) -> -27 | AH166: =T166-HLOOKUP(X166,Feuil1!$C$1:$BL$10,8,FALSE) -> -47 | AI166: =T166-HLOOKUP(X166,Feuil1!$C$1:$BL$10,9,FALSE) -> -67 | AJ166: =T166-HLOOKUP(X166,Feuil1!$C$1:$BL$10,10,FALSE) -> -857 | AQ166: IRG +
A167: H | B167: SEST | C167: PRO | D167: 7 | E167: 305532 | F167: GUERIN | G167: Hugo | H167: 2001 | I167: 67.7 | J167: EEAR MONTEUX | K167: F | L167: 55 | M167: 59 | N167: 61 | O167: 61 | P167: 65 | Q167: 70 | R167: -75 | S167: 70 | T167: 131 | U167: -4.4 | V167: IRG + | W167: 1 | X167: =IF(I167="","",IF(A167="H",IF(OR(H167="SEN",H167<1995),VLOOKUP(I167,Feuil1!$A$11:$G$29,6),IF(AND(H167>1994,H167<1998),VLOOKUP(I167,Feuil1!$A$11:$G$29,5),IF(AND(H167>1997,H167<2000),VLOOKUP(I167,Feuil1!$A$11:$G$29,4),IF(AND(H167>1999,H167<2002),VLOOKUP(I167,Feuil1!$A$11:$G$29,3),VLOOKUP(I167,Feuil1!$A$11:$G$29,2))))),IF(OR(H167="SEN",H167<1995),VLOOKUP(I167,Feuil1!$G$11:$L$25,6),IF(AND(H167>1994,H167<1998),VLOOKUP(I167,Feuil1!$G$11:$L$25,5),IF(AND(H167>1997,H167<2000),VLOOKUP(I167,Feuil1!$G$11:$L$25,4),IF(AND(H167>1999,H167<2002),VLOOKUP(I167,Feuil1!$G$11:$L$25,3),VLOOKUP(I167,Feuil1!$G$11:$L$25,2))))))) -> C1 69 | Y167: 178.4087459 | AB167: =T167-HLOOKUP(X167,Feuil1!$C$1:$BL$10,2,FALSE) -> 46 | AC167: =T167-HLOOKUP(X167,Feuil1!$C$1:$BL$10,3,FALSE) -> 26 | AD167: =T167-HLOOKUP(X167,Feuil1!$C$1:$BL$10,4,FALSE) -> 16 | AE167: =T167-HLOOKUP(X167,Feuil1!$C$1:$BL$10,5,FALSE) -> 1 | AF167: =T167-HLOOKUP(X167,Feuil1!$C$1:$BL$10,6,FALSE) -> -19 | AG167: =T167-HLOOKUP(X167,Feuil1!$C$1:$BL$10,7,FALSE) -> -39 | AH167: =T167-HLOOKUP(X167,Feuil1!$C$1:$BL$10,8,FALSE) -> -59 | AI167: =T167-HLOOKUP(X167,Feuil1!$C$1:$BL$10,9,FALSE) -> -79 | AJ167: =T167-HLOOKUP(X167,Feuil1!$C$1:$BL$10,10,FALSE) -> -869 | AQ167: IRG +
A168: H | B168: CO | C168: BNO | D168: 8 | E168: 327978 | F168: PANNIER | G168: Quentin | H168: 2000 | I168: 62.8 | J168: Caen CHM | K168: F | L168: 50 | M168: 54 | N168: 56 | O168: 56 | P168: 67 | Q168: -72 | R168: -72 | S168: 67 | T168: 123 | U168: -2.6 | V168: REG + | W168: 8 | X168: =IF(I168="","",IF(A168="H",IF(OR(H168="SEN",H168<1995),VLOOKUP(I168,Feuil1!$A$11:$G$29,6),IF(AND(H168>1994,H168<1998),VLOOKUP(I168,Feuil1!$A$11:$G$29,5),IF(AND(H168>1997,H168<2000),VLOOKUP(I168,Feuil1!$A$11:$G$29,4),IF(AND(H168>1999,H168<2002),VLOOKUP(I168,Feuil1!$A$11:$G$29,3),VLOOKUP(I168,Feuil1!$A$11:$G$29,2))))),IF(OR(H168="SEN",H168<1995),VLOOKUP(I168,Feuil1!$G$11:$L$25,6),IF(AND(H168>1994,H168<1998),VLOOKUP(I168,Feuil1!$G$11:$L$25,5),IF(AND(H168>1997,H168<2000),VLOOKUP(I168,Feuil1!$G$11:$L$25,4),IF(AND(H168>1999,H168<2002),VLOOKUP(I168,Feuil1!$G$11:$L$25,3),VLOOKUP(I168,Feuil1!$G$11:$L$25,2))))))) -> C1 69 | Y168: 176.2779973 | AB168: =T168-HLOOKUP(X168,Feuil1!$C$1:$BL$10,2,FALSE) -> 38 | AC168: =T168-HLOOKUP(X168,Feuil1!$C$1:$BL$10,3,FALSE) -> 18 | AD168: =T168-HLOOKUP(X168,Feuil1!$C$1:$BL$10,4,FALSE) -> 8 | AE168: =T168-HLOOKUP(X168,Feuil1!$C$1:$BL$10,5,FALSE) -> -7 | AF168: =T168-HLOOKUP(X168,Feuil1!$C$1:$BL$10,6,FALSE) -> -27 | AG168: =T168-HLOOKUP(X168,Feuil1!$C$1:$BL$10,7,FALSE) -> -47 | AH168: =T168-HLOOKUP(X168,Feuil1!$C$1:$BL$10,8,FALSE) -> -67 | AI168: =T168-HLOOKUP(X168,Feuil1!$C$1:$BL$10,9,FALSE) -> -87 | AJ168: =T168-HLOOKUP(X168,Feuil1!$C$1:$BL$10,10,FALSE) -> -877 | AQ168: REG +
A169: H | B169: NE | C169: LOR | D169: 9 | E169: 304107 | F169: BÉNÉ | G169: Dylan | H169: 2000 | I169: 64.8 | J169: A.O.C.Pte-ROSSELLE | K169: F | L169: 45 | M169: 50 | N169: -54 | O169: 50 | P169: 60 | Q169: 65 | R169: 70 | S169: 70 | T169: 120 | U169: -9.6 | V169: REG + | W169: 5 | X169: =IF(I169="","",IF(A169="H",IF(OR(H169="SEN",H169<1995),VLOOKUP(I169,Feuil1!$A$11:$G$29,6),IF(AND(H169>1994,H169<1998),VLOOKUP(I169,Feuil1!$A$11:$G$29,5),IF(AND(H169>1997,H169<2000),VLOOKUP(I169,Feuil1!$A$11:$G$29,4),IF(AND(H169>1999,H169<2002),VLOOKUP(I169,Feuil1!$A$11:$G$29,3),VLOOKUP(I169,Feuil1!$A$11:$G$29,2))))),IF(OR(H169="SEN",H169<1995),VLOOKUP(I169,Feuil1!$G$11:$L$25,6),IF(AND(H169>1994,H169<1998),VLOOKUP(I169,Feuil1!$G$11:$L$25,5),IF(AND(H169>1997,H169<2000),VLOOKUP(I169,Feuil1!$G$11:$L$25,4),IF(AND(H169>1999,H169<2002),VLOOKUP(I169,Feuil1!$G$11:$L$25,3),VLOOKUP(I169,Feuil1!$G$11:$L$25,2))))))) -> C1 69 | Y169: 168.2777407 | AB169: =T169-HLOOKUP(X169,Feuil1!$C$1:$BL$10,2,FALSE) -> 35 | AC169: =T169-HLOOKUP(X169,Feuil1!$C$1:$BL$10,3,FALSE) -> 15 | AD169: =T169-HLOOKUP(X169,Feuil1!$C$1:$BL$10,4,FALSE) -> 5 | AE169: =T169-HLOOKUP(X169,Feuil1!$C$1:$BL$10,5,FALSE) -> -10 | AF169: =T169-HLOOKUP(X169,Feuil1!$C$1:$BL$10,6,FALSE) -> -30 | AG169: =T169-HLOOKUP(X169,Feuil1!$C$1:$BL$10,7,FALSE) -> -50 | AH169: =T169-HLOOKUP(X169,Feuil1!$C$1:$BL$10,8,FALSE) -> -70 | AI169: =T169-HLOOKUP(X169,Feuil1!$C$1:$BL$10,9,FALSE) -> -90 | AJ169: =T169-HLOOKUP(X169,Feuil1!$C$1:$BL$10,10,FALSE) -> -880 | AQ169: REG +
A170: H | B170: CO | C170: CEN | D170: 10 | E170: 357592 | F170: BEZARD | G170: Antonin | H170: 2000 | I170: 66.1 | J170: US Tours | K170: F | L170: 45 | M170: -50 | N170: 50 | O170: 50 | P170: 60 | Q170: 65 | R170: 68 | S170: 68 | T170: 118 | U170: -14.2 | V170: REG + | W170: 3 | X170: =IF(I170="","",IF(A170="H",IF(OR(H170="SEN",H170<1995),VLOOKUP(I170,Feuil1!$A$11:$G$29,6),IF(AND(H170>1994,H170<1998),VLOOKUP(I170,Feuil1!$A$11:$G$29,5),IF(AND(H170>1997,H170<2000),VLOOKUP(I170,Feuil1!$A$11:$G$29,4),IF(AND(H170>1999,H170<2002),VLOOKUP(I170,Feuil1!$A$11:$G$29,3),VLOOKUP(I170,Feuil1!$A$11:$G$29,2))))),IF(OR(H170="SEN",H170<1995),VLOOKUP(I170,Feuil1!$G$11:$L$25,6),IF(AND(H170>1994,H170<1998),VLOOKUP(I170,Feuil1!$G$11:$L$25,5),IF(AND(H170>1997,H170<2000),VLOOKUP(I170,Feuil1!$G$11:$L$25,4),IF(AND(H170>1999,H170<2002),VLOOKUP(I170,Feuil1!$G$11:$L$25,3),VLOOKUP(I170,Feuil1!$G$11:$L$25,2))))))) -> C1 69 | Y170: 163.265353 | AB170: =T170-HLOOKUP(X170,Feuil1!$C$1:$BL$10,2,FALSE) -> 33 | AC170: =T170-HLOOKUP(X170,Feuil1!$C$1:$BL$10,3,FALSE) -> 13 | AD170: =T170-HLOOKUP(X170,Feuil1!$C$1:$BL$10,4,FALSE) -> 3 | AE170: =T170-HLOOKUP(X170,Feuil1!$C$1:$BL$10,5,FALSE) -> -12 | AF170: =T170-HLOOKUP(X170,Feuil1!$C$1:$BL$10,6,FALSE) -> -32 | AG170: =T170-HLOOKUP(X170,Feuil1!$C$1:$BL$10,7,FALSE) -> -52 | AH170: =T170-HLOOKUP(X170,Feuil1!$C$1:$BL$10,8,FALSE) -> -72 | AI170: =T170-HLOOKUP(X170,Feuil1!$C$1:$BL$10,9,FALSE) -> -92 | AJ170: =T170-HLOOKUP(X170,Feuil1!$C$1:$BL$10,10,FALSE) -> -882 | AQ170: REG +
A171: H | B171: CO | C171: PDL | D171: 11 | E171: 324248 | F171: CHALVIN | G171: Maxime | H171: 2000 | I171: 66.5 | J171: Saint Herblain | K171: F | L171: 45 | M171: 48 | N171: 52 | O171: 52 | P171: 52 | Q171: 58 | R171: 65 | S171: 65 | T171: 117 | U171: -16 | V171: REG + | W171: 2 | X171: =IF(I171="","",IF(A171="H",IF(OR(H171="SEN",H171<1995),VLOOKUP(I171,Feuil1!$A$11:$G$29,6),IF(AND(H171>1994,H171<1998),VLOOKUP(I171,Feuil1!$A$11:$G$29,5),IF(AND(H171>1997,H171<2000),VLOOKUP(I171,Feuil1!$A$11:$G$29,4),IF(AND(H171>1999,H171<2002),VLOOKUP(I171,Feuil1!$A$11:$G$29,3),VLOOKUP(I171,Feuil1!$A$11:$G$29,2))))),IF(OR(H171="SEN",H171<1995),VLOOKUP(I171,Feuil1!$G$11:$L$25,6),IF(AND(H171>1994,H171<1998),VLOOKUP(I171,Feuil1!$G$11:$L$25,5),IF(AND(H171>1997,H171<2000),VLOOKUP(I171,Feuil1!$G$11:$L$25,4),IF(AND(H171>1999,H171<2002),VLOOKUP(I171,Feuil1!$G$11:$L$25,3),VLOOKUP(I171,Feuil1!$G$11:$L$25,2))))))) -> C1 69 | Y171: 161.2313409 | AB171: =T171-HLOOKUP(X171,Feuil1!$C$1:$BL$10,2,FALSE) -> 32 | AC171: =T171-HLOOKUP(X171,Feuil1!$C$1:$BL$10,3,FALSE) -> 12 | AD171: =T171-HLOOKUP(X171,Feuil1!$C$1:$BL$10,4,FALSE) -> 2 | AE171: =T171-HLOOKUP(X171,Feuil1!$C$1:$BL$10,5,FALSE) -> -13 | AF171: =T171-HLOOKUP(X171,Feuil1!$C$1:$BL$10,6,FALSE) -> -33 | AG171: =T171-HLOOKUP(X171,Feuil1!$C$1:$BL$10,7,FALSE) -> -53 | AH171: =T171-HLOOKUP(X171,Feuil1!$C$1:$BL$10,8,FALSE) -> -73 | AI171: =T171-HLOOKUP(X171,Feuil1!$C$1:$BL$10,9,FALSE) -> -93 | AJ171: =T171-HLOOKUP(X171,Feuil1!$C$1:$BL$10,10,FALSE) -> -883 | AQ171: REG +
A172: H | B172: NORD | C172: NPC | D172: 12 | E172: 351699 | F172: LAMBLIN | G172: Logan | H172: 2001 | I172: 66.7 | J172: A.O.SALLAUMINES | K172: F | L172: 43 | M172: 46 | N172: 49 | O172: 49 | P172: 63 | Q172: 66 | R172: 68 | S172: 68 | T172: 117 | U172: -16.4 | V172: REG + | W172: 2 | X172: =IF(I172="","",IF(A172="H",IF(OR(H172="SEN",H172<1995),VLOOKUP(I172,Feuil1!$A$11:$G$29,6),IF(AND(H172>1994,H172<1998),VLOOKUP(I172,Feuil1!$A$11:$G$29,5),IF(AND(H172>1997,H172<2000),VLOOKUP(I172,Feuil1!$A$11:$G$29,4),IF(AND(H172>1999,H172<2002),VLOOKUP(I172,Feuil1!$A$11:$G$29,3),VLOOKUP(I172,Feuil1!$A$11:$G$29,2))))),IF(OR(H172="SEN",H172<1995),VLOOKUP(I172,Feuil1!$G$11:$L$25,6),IF(AND(H172>1994,H172<1998),VLOOKUP(I172,Feuil1!$G$11:$L$25,5),IF(AND(H172>1997,H172<2000),VLOOKUP(I172,Feuil1!$G$11:$L$25,4),IF(AND(H172>1999,H172<2002),VLOOKUP(I172,Feuil1!$G$11:$L$25,3),VLOOKUP(I172,Feuil1!$G$11:$L$25,2))))))) -> C1 69 | Y172: 160.9100839 | AB172: =T172-HLOOKUP(X172,Feuil1!$C$1:$BL$10,2,FALSE) -> 32 | AC172: =T172-HLOOKUP(X172,Feuil1!$C$1:$BL$10,3,FALSE) -> 12 | AD172: =T172-HLOOKUP(X172,Feuil1!$C$1:$BL$10,4,FALSE) -> 2 | AE172: =T172-HLOOKUP(X172,Feuil1!$C$1:$BL$10,5,FALSE) -> -13 | AF172: =T172-HLOOKUP(X172,Feuil1!$C$1:$BL$10,6,FALSE) -> -33 | AG172: =T172-HLOOKUP(X172,Feuil1!$C$1:$BL$10,7,FALSE) -> -53 | AH172: =T172-HLOOKUP(X172,Feuil1!$C$1:$BL$10,8,FALSE) -> -73 | AI172: =T172-HLOOKUP(X172,Feuil1!$C$1:$BL$10,9,FALSE) -> -93 | AJ172: =T172-HLOOKUP(X172,Feuil1!$C$1:$BL$10,10,FALSE) -> -883 | AQ172: REG +
A173: H | B173: DOM | C173: GUA | D173: 13 | E173: 387844 | F173: ALQUIER | G173: Martin | H173: 2001 | I173: 63 | J173: EGAFC/Baie Mahault | K173: F | L173: 45 | M173: 50 | N173: -53 | O173: 50 | P173: 55 | Q173: 60 | R173: -65 | S173: 60 | T173: 110 | U173: -16 | V173: DEP + | W173: 5 | X173: =IF(I173="","",IF(A173="H",IF(OR(H173="SEN",H173<1995),VLOOKUP(I173,Feuil1!$A$11:$G$29,6),IF(AND(H173>1994,H173<1998),VLOOKUP(I173,Feuil1!$A$11:$G$29,5),IF(AND(H173>1997,H173<2000),VLOOKUP(I173,Feuil1!$A$11:$G$29,4),IF(AND(H173>1999,H173<2002),VLOOKUP(I173,Feuil1!$A$11:$G$29,3),VLOOKUP(I173,Feuil1!$A$11:$G$29,2))))),IF(OR(H173="SEN",H173<1995),VLOOKUP(I173,Feuil1!$G$11:$L$25,6),IF(AND(H173>1994,H173<1998),VLOOKUP(I173,Feuil1!$G$11:$L$25,5),IF(AND(H173>1997,H173<2000),VLOOKUP(I173,Feuil1!$G$11:$L$25,4),IF(AND(H173>1999,H173<2002),VLOOKUP(I173,Feuil1!$G$11:$L$25,3),VLOOKUP(I173,Feuil1!$G$11:$L$25,2))))))) -> C1 69 | Y173: 157.2946907 | AB173: =T173-HLOOKUP(X173,Feuil1!$C$1:$BL$10,2,FALSE) -> 25 | AC173: =T173-HLOOKUP(X173,Feuil1!$C$1:$BL$10,3,FALSE) -> 5 | AD173: =T173-HLOOKUP(X173,Feuil1!$C$1:$BL$10,4,FALSE) -> -5 | AE173: =T173-HLOOKUP(X173,Feuil1!$C$1:$BL$10,5,FALSE) -> -20 | AF173: =T173-HLOOKUP(X173,Feuil1!$C$1:$BL$10,6,FALSE) -> -40 | AG173: =T173-HLOOKUP(X173,Feuil1!$C$1:$BL$10,7,FALSE) -> -60 | AH173: =T173-HLOOKUP(X173,Feuil1!$C$1:$BL$10,8,FALSE) -> -80 | AI173: =T173-HLOOKUP(X173,Feuil1!$C$1:$BL$10,9,FALSE) -> -100 | AJ173: =T173-HLOOKUP(X173,Feuil1!$C$1:$BL$10,10,FALSE) -> -890 | AQ173: DEP +
A174: H | B174: DOM | C174: GUY | D174: 14 | E174: 382076 | F174: GUEGUENIAT | G174: Kavan | H174: 2000 | I174: 68 | J174: ASCPG/Rémire Montjoly | K174: F | L174: 40 | M174: 45 | N174: 47 | O174: 47 | P174: 52 | Q174: 56 | R174: -60 | S174: 56 | T174: 103 | U174: -33 | V174: DEB | W174: 18 | X174: =IF(I174="","",IF(A174="H",IF(OR(H174="SEN",H174<1995),VLOOKUP(I174,Feuil1!$A$11:$G$29,6),IF(AND(H174>1994,H174<1998),VLOOKUP(I174,Feuil1!$A$11:$G$29,5),IF(AND(H174>1997,H174<2000),VLOOKUP(I174,Feuil1!$A$11:$G$29,4),IF(AND(H174>1999,H174<2002),VLOOKUP(I174,Feuil1!$A$11:$G$29,3),VLOOKUP(I174,Feuil1!$A$11:$G$29,2))))),IF(OR(H174="SEN",H174<1995),VLOOKUP(I174,Feuil1!$G$11:$L$25,6),IF(AND(H174>1994,H174<1998),VLOOKUP(I174,Feuil1!$G$11:$L$25,5),IF(AND(H174>1997,H174<2000),VLOOKUP(I174,Feuil1!$G$11:$L$25,4),IF(AND(H174>1999,H174<2002),VLOOKUP(I174,Feuil1!$G$11:$L$25,3),VLOOKUP(I174,Feuil1!$G$11:$L$25,2))))))) -> C1 69 | Y174: 139.8721766 | AB174: =T174-HLOOKUP(X174,Feuil1!$C$1:$BL$10,2,FALSE) -> 18 | AC174: =T174-HLOOKUP(X174,Feuil1!$C$1:$BL$10,3,FALSE) -> -2 | AD174: =T174-HLOOKUP(X174,Feuil1!$C$1:$BL$10,4,FALSE) -> -12 | AE174: =T174-HLOOKUP(X174,Feuil1!$C$1:$BL$10,5,FALSE) -> -27 | AF174: =T174-HLOOKUP(X174,Feuil1!$C$1:$BL$10,6,FALSE) -> -47 | AG174: =T174-HLOOKUP(X174,Feuil1!$C$1:$BL$10,7,FALSE) -> -67 | AH174: =T174-HLOOKUP(X174,Feuil1!$C$1:$BL$10,8,FALSE) -> -87 | AI174: =T174-HLOOKUP(X174,Feuil1!$C$1:$BL$10,9,FALSE) -> -107 | AJ174: =T174-HLOOKUP(X174,Feuil1!$C$1:$BL$10,10,FALSE) -> -897 | AQ174: DEB
A175: H | B175: NE | C175: ALS | D175: 15 | E175: 381284 | F175: MARTELLI | G175: ALESSANDRO | H175: 2000 | I175: 67.4 | J175: SR Obernai HM | K175: F | L175: 35 | M175: 40 | N175: 45 | O175: 45 | P175: 48 | Q175: 52 | R175: 56 | S175: 56 | T175: 101 | U175: -33.8 | V175: DEB | W175: 16 | X175: =IF(I175="","",IF(A175="H",IF(OR(H175="SEN",H175<1995),VLOOKUP(I175,Feuil1!$A$11:$G$29,6),IF(AND(H175>1994,H175<1998),VLOOKUP(I175,Feuil1!$A$11:$G$29,5),IF(AND(H175>1997,H175<2000),VLOOKUP(I175,Feuil1!$A$11:$G$29,4),IF(AND(H175>1999,H175<2002),VLOOKUP(I175,Feuil1!$A$11:$G$29,3),VLOOKUP(I175,Feuil1!$A$11:$G$29,2))))),IF(OR(H175="SEN",H175<1995),VLOOKUP(I175,Feuil1!$G$11:$L$25,6),IF(AND(H175>1994,H175<1998),VLOOKUP(I175,Feuil1!$G$11:$L$25,5),IF(AND(H175>1997,H175<2000),VLOOKUP(I175,Feuil1!$G$11:$L$25,4),IF(AND(H175>1999,H175<2002),VLOOKUP(I175,Feuil1!$G$11:$L$25,3),VLOOKUP(I175,Feuil1!$G$11:$L$25,2))))))) -> C1 69 | Y175: 137.9521288 | AB175: =T175-HLOOKUP(X175,Feuil1!$C$1:$BL$10,2,FALSE) -> 16 | AC175: =T175-HLOOKUP(X175,Feuil1!$C$1:$BL$10,3,FALSE) -> -4 | AD175: =T175-HLOOKUP(X175,Feuil1!$C$1:$BL$10,4,FALSE) -> -14 | AE175: =T175-HLOOKUP(X175,Feuil1!$C$1:$BL$10,5,FALSE) -> -29 | AF175: =T175-HLOOKUP(X175,Feuil1!$C$1:$BL$10,6,FALSE) -> -49 | AG175: =T175-HLOOKUP(X175,Feuil1!$C$1:$BL$10,7,FALSE) -> -69 | AH175: =T175-HLOOKUP(X175,Feuil1!$C$1:$BL$10,8,FALSE) -> -89 | AI175: =T175-HLOOKUP(X175,Feuil1!$C$1:$BL$10,9,FALSE) -> -109 | AJ175: =T175-HLOOKUP(X175,Feuil1!$C$1:$BL$10,10,FALSE) -> -899 | AQ175: DEB
A176: H | B176: DOM | C176: GUA | D176: 16 | E176: 366040 | F176: GALVANI | G176: Grégory | H176: 2001 | I176: 66 | J176: Body Club Domien | K176: F | L176: 40 | M176: 45 | N176: -48 | O176: 45 | P176: 50 | Q176: 55 | R176: -58 | S176: 55 | T176: 100 | U176: -32 | V176: DEB | W176: 15 | X176: =IF(I176="","",IF(A176="H",IF(OR(H176="SEN",H176<1995),VLOOKUP(I176,Feuil1!$A$11:$G$29,6),IF(AND(H176>1994,H176<1998),VLOOKUP(I176,Feuil1!$A$11:$G$29,5),IF(AND(H176>1997,H176<2000),VLOOKUP(I176,Feuil1!$A$11:$G$29,4),IF(AND(H176>1999,H176<2002),VLOOKUP(I176,Feuil1!$A$11:$G$29,3),VLOOKUP(I176,Feuil1!$A$11:$G$29,2))))),IF(OR(H176="SEN",H176<1995),VLOOKUP(I176,Feuil1!$G$11:$L$25,6),IF(AND(H176>1994,H176<1998),VLOOKUP(I176,Feuil1!$G$11:$L$25,5),IF(AND(H176>1997,H176<2000),VLOOKUP(I176,Feuil1!$G$11:$L$25,4),IF(AND(H176>1999,H176<2002),VLOOKUP(I176,Feuil1!$G$11:$L$25,3),VLOOKUP(I176,Feuil1!$G$11:$L$25,2))))))) -> C1 69 | Y176: 138.5008678 | AB176: =T176-HLOOKUP(X176,Feuil1!$C$1:$BL$10,2,FALSE) -> 15 | AC176: =T176-HLOOKUP(X176,Feuil1!$C$1:$BL$10,3,FALSE) -> -5 | AD176: =T176-HLOOKUP(X176,Feuil1!$C$1:$BL$10,4,FALSE) -> -15 | AE176: =T176-HLOOKUP(X176,Feuil1!$C$1:$BL$10,5,FALSE) -> -30 | AF176: =T176-HLOOKUP(X176,Feuil1!$C$1:$BL$10,6,FALSE) -> -50 | AG176: =T176-HLOOKUP(X176,Feuil1!$C$1:$BL$10,7,FALSE) -> -70 | AH176: =T176-HLOOKUP(X176,Feuil1!$C$1:$BL$10,8,FALSE) -> -90 | AI176: =T176-HLOOKUP(X176,Feuil1!$C$1:$BL$10,9,FALSE) -> -110 | AJ176: =T176-HLOOKUP(X176,Feuil1!$C$1:$BL$10,10,FALSE) -> -900 | AQ176: DEB
A177: H | B177: NE | C177: ALS | D177: 17 | E177: 339324 | F177: CERDAN | G177: TOM | H177: 2000 | I177: 69 | J177: US Wittenheim | K177: F | L177: 37 | M177: -40 | N177: 40 | O177: 40 | P177: 52 | Q177: 56 | R177: 60 | S177: 60 | T177: 100 | U177: -38 | V177: DEB | W177: 15 | X177: =IF(I177="","",IF(A177="H",IF(OR(H177="SEN",H177<1995),VLOOKUP(I177,Feuil1!$A$11:$G$29,6),IF(AND(H177>1994,H177<1998),VLOOKUP(I177,Feuil1!$A$11:$G$29,5),IF(AND(H177>1997,H177<2000),VLOOKUP(I177,Feuil1!$A$11:$G$29,4),IF(AND(H177>1999,H177<2002),VLOOKUP(I177,Feuil1!$A$11:$G$29,3),VLOOKUP(I177,Feuil1!$A$11:$G$29,2))))),IF(OR(H177="SEN",H177<1995),VLOOKUP(I177,Feuil1!$G$11:$L$25,6),IF(AND(H177>1994,H177<1998),VLOOKUP(I177,Feuil1!$G$11:$L$25,5),IF(AND(H177>1997,H177<2000),VLOOKUP(I177,Feuil1!$G$11:$L$25,4),IF(AND(H177>1999,H177<2002),VLOOKUP(I177,Feuil1!$G$11:$L$25,3),VLOOKUP(I177,Feuil1!$G$11:$L$25,2))))))) -> C1 69 | Y177: 134.5259554 | AB177: =T177-HLOOKUP(X177,Feuil1!$C$1:$BL$10,2,FALSE) -> 15 | AC177: =T177-HLOOKUP(X177,Feuil1!$C$1:$BL$10,3,FALSE) -> -5 | AD177: =T177-HLOOKUP(X177,Feuil1!$C$1:$BL$10,4,FALSE) -> -15 | AE177: =T177-HLOOKUP(X177,Feuil1!$C$1:$BL$10,5,FALSE) -> -30 | AF177: =T177-HLOOKUP(X177,Feuil1!$C$1:$BL$10,6,FALSE) -> -50 | AG177: =T177-HLOOKUP(X177,Feuil1!$C$1:$BL$10,7,FALSE) -> -70 | AH177: =T177-HLOOKUP(X177,Feuil1!$C$1:$BL$10,8,FALSE) -> -90 | AI177: =T177-HLOOKUP(X177,Feuil1!$C$1:$BL$10,9,FALSE) -> -110 | AJ177: =T177-HLOOKUP(X177,Feuil1!$C$1:$BL$10,10,FALSE) -> -900 | AQ177: DEB
A178: H | B178: NORD | C178: NPC | D178: 18 | E178: 312409 | F178: PEREZ | G178: Endy | H178: 2000 | I178: 68.2 | J178: CHCD COMINES | K178: F | L178: 37 | M178: 40 | N178: 43 | O178: 43 | P178: 50 | Q178: 53 | R178: 56 | S178: 56 | T178: 99 | U178: -37.4 | V178: DEB | W178: 14 | X178: =IF(I178="","",IF(A178="H",IF(OR(H178="SEN",H178<1995),VLOOKUP(I178,Feuil1!$A$11:$G$29,6),IF(AND(H178>1994,H178<1998),VLOOKUP(I178,Feuil1!$A$11:$G$29,5),IF(AND(H178>1997,H178<2000),VLOOKUP(I178,Feuil1!$A$11:$G$29,4),IF(AND(H178>1999,H178<2002),VLOOKUP(I178,Feuil1!$A$11:$G$29,3),VLOOKUP(I178,Feuil1!$A$11:$G$29,2))))),IF(OR(H178="SEN",H178<1995),VLOOKUP(I178,Feuil1!$G$11:$L$25,6),IF(AND(H178>1994,H178<1998),VLOOKUP(I178,Feuil1!$G$11:$L$25,5),IF(AND(H178>1997,H178<2000),VLOOKUP(I178,Feuil1!$G$11:$L$25,4),IF(AND(H178>1999,H178<2002),VLOOKUP(I178,Feuil1!$G$11:$L$25,3),VLOOKUP(I178,Feuil1!$G$11:$L$25,2))))))) -> C1 69 | Y178: 134.1843228 | AB178: =T178-HLOOKUP(X178,Feuil1!$C$1:$BL$10,2,FALSE) -> 14 | AC178: =T178-HLOOKUP(X178,Feuil1!$C$1:$BL$10,3,FALSE) -> -6 | AD178: =T178-HLOOKUP(X178,Feuil1!$C$1:$BL$10,4,FALSE) -> -16 | AE178: =T178-HLOOKUP(X178,Feuil1!$C$1:$BL$10,5,FALSE) -> -31 | AF178: =T178-HLOOKUP(X178,Feuil1!$C$1:$BL$10,6,FALSE) -> -51 | AG178: =T178-HLOOKUP(X178,Feuil1!$C$1:$BL$10,7,FALSE) -> -71 | AH178: =T178-HLOOKUP(X178,Feuil1!$C$1:$BL$10,8,FALSE) -> -91 | AI178: =T178-HLOOKUP(X178,Feuil1!$C$1:$BL$10,9,FALSE) -> -111 | AJ178: =T178-HLOOKUP(X178,Feuil1!$C$1:$BL$10,10,FALSE) -> -901 | AQ178: DEB
A179: H | B179: NE | C179: ALS | D179: 19 | E179: 343986 | F179: BASTOS | G179: Anthony | H179: 2000 | I179: 67.8 | J179: US Wittenheim | K179: F | L179: 41 | M179: 45 | N179: -48 | O179: 45 | P179: 50 | Q179: 53 | R179: -56 | S179: 53 | T179: 98 | U179: -37.6 | V179: DEB | W179: 13 | X179: =IF(I179="","",IF(A179="H",IF(OR(H179="SEN",H179<1995),VLOOKUP(I179,Feuil1!$A$11:$G$29,6),IF(AND(H179>1994,H179<1998),VLOOKUP(I179,Feuil1!$A$11:$G$29,5),IF(AND(H179>1997,H179<2000),VLOOKUP(I179,Feuil1!$A$11:$G$29,4),IF(AND(H179>1999,H179<2002),VLOOKUP(I179,Feuil1!$A$11:$G$29,3),VLOOKUP(I179,Feuil1!$A$11:$G$29,2))))),IF(OR(H179="SEN",H179<1995),VLOOKUP(I179,Feuil1!$G$11:$L$25,6),IF(AND(H179>1994,H179<1998),VLOOKUP(I179,Feuil1!$G$11:$L$25,5),IF(AND(H179>1997,H179<2000),VLOOKUP(I179,Feuil1!$G$11:$L$25,4),IF(AND(H179>1999,H179<2002),VLOOKUP(I179,Feuil1!$G$11:$L$25,3),VLOOKUP(I179,Feuil1!$G$11:$L$25,2))))))) -> C1 69 | Y179: 133.3376333 | AB179: =T179-HLOOKUP(X179,Feuil1!$C$1:$BL$10,2,FALSE) -> 13 | AC179: =T179-HLOOKUP(X179,Feuil1!$C$1:$BL$10,3,FALSE) -> -7 | AD179: =T179-HLOOKUP(X179,Feuil1!$C$1:$BL$10,4,FALSE) -> -17 | AE179: =T179-HLOOKUP(X179,Feuil1!$C$1:$BL$10,5,FALSE) -> -32 | AF179: =T179-HLOOKUP(X179,Feuil1!$C$1:$BL$10,6,FALSE) -> -52 | AG179: =T179-HLOOKUP(X179,Feuil1!$C$1:$BL$10,7,FALSE) -> -72 | AH179: =T179-HLOOKUP(X179,Feuil1!$C$1:$BL$10,8,FALSE) -> -92 | AI179: =T179-HLOOKUP(X179,Feuil1!$C$1:$BL$10,9,FALSE) -> -112 | AJ179: =T179-HLOOKUP(X179,Feuil1!$C$1:$BL$10,10,FALSE) -> -902 | AQ179: DEB
A180: H | B180: SEST | C180: LAN | D180: 20 | E180: 371666 | F180: CHORON RISO | G180: Victor | H180: 2000 | I180: 67.5 | J180: Frontignan AC | K180: F | L180: 35 | M180: 39 | N180: 42 | O180: 42 | P180: 50 | Q180: 55 | R180: -60 | S180: 55 | T180: 97 | U180: -38 | V180: DEB | W180: 12 | X180: =IF(I180="","",IF(A180="H",IF(OR(H180="SEN",H180<1995),VLOOKUP(I180,Feuil1!$A$11:$G$29,6),IF(AND(H180>1994,H180<1998),VLOOKUP(I180,Feuil1!$A$11:$G$29,5),IF(AND(H180>1997,H180<2000),VLOOKUP(I180,Feuil1!$A$11:$G$29,4),IF(AND(H180>1999,H180<2002),VLOOKUP(I180,Feuil1!$A$11:$G$29,3),VLOOKUP(I180,Feuil1!$A$11:$G$29,2))))),IF(OR(H180="SEN",H180<1995),VLOOKUP(I180,Feuil1!$G$11:$L$25,6),IF(AND(H180>1994,H180<1998),VLOOKUP(I180,Feuil1!$G$11:$L$25,5),IF(AND(H180>1997,H180<2000),VLOOKUP(I180,Feuil1!$G$11:$L$25,4),IF(AND(H180>1999,H180<2002),VLOOKUP(I180,Feuil1!$G$11:$L$25,3),VLOOKUP(I180,Feuil1!$G$11:$L$25,2))))))) -> C1 69 | Y180: 132.3599997 | AB180: =T180-HLOOKUP(X180,Feuil1!$C$1:$BL$10,2,FALSE) -> 12 | AC180: =T180-HLOOKUP(X180,Feuil1!$C$1:$BL$10,3,FALSE) -> -8 | AD180: =T180-HLOOKUP(X180,Feuil1!$C$1:$BL$10,4,FALSE) -> -18 | AE180: =T180-HLOOKUP(X180,Feuil1!$C$1:$BL$10,5,FALSE) -> -33 | AF180: =T180-HLOOKUP(X180,Feuil1!$C$1:$BL$10,6,FALSE) -> -53 | AG180: =T180-HLOOKUP(X180,Feuil1!$C$1:$BL$10,7,FALSE) -> -73 | AH180: =T180-HLOOKUP(X180,Feuil1!$C$1:$BL$10,8,FALSE) -> -93 | AI180: =T180-HLOOKUP(X180,Feuil1!$C$1:$BL$10,9,FALSE) -> -113 | AJ180: =T180-HLOOKUP(X180,Feuil1!$C$1:$BL$10,10,FALSE) -> -903 | AQ180: DEB
A181: H | B181: SEST | C181: PRO | D181: 21 | E181: 284821 | F181: SZYSZKA | G181: Romain | H181: 2000 | I181: 64.6 | J181: EEAR MONTEUX | K181: F | L181: 30 | M181: 35 | N181: 40 | O181: 40 | P181: 40 | Q181: 47 | R181: 52 | S181: 52 | T181: 92 | U181: -37.2 | V181: DEB | W181: 7 | X181: =IF(I181="","",IF(A181="H",IF(OR(H181="SEN",H181<1995),VLOOKUP(I181,Feuil1!$A$11:$G$29,6),IF(AND(H181>1994,H181<1998),VLOOKUP(I181,Feuil1!$A$11:$G$29,5),IF(AND(H181>1997,H181<2000),VLOOKUP(I181,Feuil1!$A$11:$G$29,4),IF(AND(H181>1999,H181<2002),VLOOKUP(I181,Feuil1!$A$11:$G$29,3),VLOOKUP(I181,Feuil1!$A$11:$G$29,2))))),IF(OR(H181="SEN",H181<1995),VLOOKUP(I181,Feuil1!$G$11:$L$25,6),IF(AND(H181>1994,H181<1998),VLOOKUP(I181,Feuil1!$G$11:$L$25,5),IF(AND(H181>1997,H181<2000),VLOOKUP(I181,Feuil1!$G$11:$L$25,4),IF(AND(H181>1999,H181<2002),VLOOKUP(I181,Feuil1!$G$11:$L$25,3),VLOOKUP(I181,Feuil1!$G$11:$L$25,2))))))) -> C1 69 | Y181: 129.2860614 | AB181: =T181-HLOOKUP(X181,Feuil1!$C$1:$BL$10,2,FALSE) -> 7 | AC181: =T181-HLOOKUP(X181,Feuil1!$C$1:$BL$10,3,FALSE) -> -13 | AD181: =T181-HLOOKUP(X181,Feuil1!$C$1:$BL$10,4,FALSE) -> -23 | AE181: =T181-HLOOKUP(X181,Feuil1!$C$1:$BL$10,5,FALSE) -> -38 | AF181: =T181-HLOOKUP(X181,Feuil1!$C$1:$BL$10,6,FALSE) -> -58 | AG181: =T181-HLOOKUP(X181,Feuil1!$C$1:$BL$10,7,FALSE) -> -78 | AH181: =T181-HLOOKUP(X181,Feuil1!$C$1:$BL$10,8,FALSE) -> -98 | AI181: =T181-HLOOKUP(X181,Feuil1!$C$1:$BL$10,9,FALSE) -> -118 | AJ181: =T181-HLOOKUP(X181,Feuil1!$C$1:$BL$10,10,FALSE) -> -908 | AQ181: DEB
A182: H | B182: NORD | C182: NPC | D182: 22 | E182: 357287 | F182: MEHAY | G182: Bryan | H182: 2000 | I182: 65.9 | J182: LILLE U.C. | K182: F | L182: 36 | M182: 38 | N182: 40 | O182: 40 | P182: 46 | Q182: 48 | R182: 50 | S182: 50 | T182: 90 | U182: -41.8 | V182: DEB | W182: 5 | X182: =IF(I182="","",IF(A182="H",IF(OR(H182="SEN",H182<1995),VLOOKUP(I182,Feuil1!$A$11:$G$29,6),IF(AND(H182>1994,H182<1998),VLOOKUP(I182,Feuil1!$A$11:$G$29,5),IF(AND(H182>1997,H182<2000),VLOOKUP(I182,Feuil1!$A$11:$G$29,4),IF(AND(H182>1999,H182<2002),VLOOKUP(I182,Feuil1!$A$11:$G$29,3),VLOOKUP(I182,Feuil1!$A$11:$G$29,2))))),IF(OR(H182="SEN",H182<1995),VLOOKUP(I182,Feuil1!$G$11:$L$25,6),IF(AND(H182>1994,H182<1998),VLOOKUP(I182,Feuil1!$G$11:$L$25,5),IF(AND(H182>1997,H182<2000),VLOOKUP(I182,Feuil1!$G$11:$L$25,4),IF(AND(H182>1999,H182<2002),VLOOKUP(I182,Feuil1!$G$11:$L$25,3),VLOOKUP(I182,Feuil1!$G$11:$L$25,2))))))) -> C1 69 | Y182: 124.7776582 | AB182: =T182-HLOOKUP(X182,Feuil1!$C$1:$BL$10,2,FALSE) -> 5 | AC182: =T182-HLOOKUP(X182,Feuil1!$C$1:$BL$10,3,FALSE) -> -15 | AD182: =T182-HLOOKUP(X182,Feuil1!$C$1:$BL$10,4,FALSE) -> -25 | AE182: =T182-HLOOKUP(X182,Feuil1!$C$1:$BL$10,5,FALSE) -> -40 | AF182: =T182-HLOOKUP(X182,Feuil1!$C$1:$BL$10,6,FALSE) -> -60 | AG182: =T182-HLOOKUP(X182,Feuil1!$C$1:$BL$10,7,FALSE) -> -80 | AH182: =T182-HLOOKUP(X182,Feuil1!$C$1:$BL$10,8,FALSE) -> -100 | AI182: =T182-HLOOKUP(X182,Feuil1!$C$1:$BL$10,9,FALSE) -> -120 | AJ182: =T182-HLOOKUP(X182,Feuil1!$C$1:$BL$10,10,FALSE) -> -910 | AQ182: DEB
A183: H | B183: DOM | C183: GUA | D183: 23 | E183: 387627 | F183: DOMON | G183: Pablo | H183: 2000 | I183: 68 | J183: Budokan/Guadeloupe | K183: F | L183: 35 | M183: 40 | N183: -43 | O183: 40 | P183: 45 | Q183: -50 | R183: 50 | S183: 50 | T183: 90 | U183: -46 | V183: DEB | W183: 5 | X183: =IF(I183="","",IF(A183="H",IF(OR(H183="SEN",H183<1995),VLOOKUP(I183,Feuil1!$A$11:$G$29,6),IF(AND(H183>1994,H183<1998),VLOOKUP(I183,Feuil1!$A$11:$G$29,5),IF(AND(H183>1997,H183<2000),VLOOKUP(I183,Feuil1!$A$11:$G$29,4),IF(AND(H183>1999,H183<2002),VLOOKUP(I183,Feuil1!$A$11:$G$29,3),VLOOKUP(I183,Feuil1!$A$11:$G$29,2))))),IF(OR(H183="SEN",H183<1995),VLOOKUP(I183,Feuil1!$G$11:$L$25,6),IF(AND(H183>1994,H183<1998),VLOOKUP(I183,Feuil1!$G$11:$L$25,5),IF(AND(H183>1997,H183<2000),VLOOKUP(I183,Feuil1!$G$11:$L$25,4),IF(AND(H183>1999,H183<2002),VLOOKUP(I183,Feuil1!$G$11:$L$25,3),VLOOKUP(I183,Feuil1!$G$11:$L$25,2))))))) -> C1 69 | Y183: 122.2184068 | AB183: =T183-HLOOKUP(X183,Feuil1!$C$1:$BL$10,2,FALSE) -> 5 | AC183: =T183-HLOOKUP(X183,Feuil1!$C$1:$BL$10,3,FALSE) -> -15 | AD183: =T183-HLOOKUP(X183,Feuil1!$C$1:$BL$10,4,FALSE) -> -25 | AE183: =T183-HLOOKUP(X183,Feuil1!$C$1:$BL$10,5,FALSE) -> -40 | AF183: =T183-HLOOKUP(X183,Feuil1!$C$1:$BL$10,6,FALSE) -> -60 | AG183: =T183-HLOOKUP(X183,Feuil1!$C$1:$BL$10,7,FALSE) -> -80 | AH183: =T183-HLOOKUP(X183,Feuil1!$C$1:$BL$10,8,FALSE) -> -100 | AI183: =T183-HLOOKUP(X183,Feuil1!$C$1:$BL$10,9,FALSE) -> -120 | AJ183: =T183-HLOOKUP(X183,Feuil1!$C$1:$BL$10,10,FALSE) -> -910 | AQ183: DEB
A184: H | B184: SEST | C184: PRO | D184: 24 | E184: 322017 | F184: TONNAIRE | G184: PIERRE | H184: 2000 | I184: 67.7 | J184: EEAR MONTEUX | K184: F | L184: 35 | M184: 37 | N184: 39 | O184: 39 | P184: 40 | Q184: 45 | R184: 48 | S184: 48 | T184: 87 | U184: -48.4 | V184: DEB | W184: 2 | X184: =IF(I184="","",IF(A184="H",IF(OR(H184="SEN",H184<1995),VLOOKUP(I184,Feuil1!$A$11:$G$29,6),IF(AND(H184>1994,H184<1998),VLOOKUP(I184,Feuil1!$A$11:$G$29,5),IF(AND(H184>1997,H184<2000),VLOOKUP(I184,Feuil1!$A$11:$G$29,4),IF(AND(H184>1999,H184<2002),VLOOKUP(I184,Feuil1!$A$11:$G$29,3),VLOOKUP(I184,Feuil1!$A$11:$G$29,2))))),IF(OR(H184="SEN",H184<1995),VLOOKUP(I184,Feuil1!$G$11:$L$25,6),IF(AND(H184>1994,H184<1998),VLOOKUP(I184,Feuil1!$G$11:$L$25,5),IF(AND(H184>1997,H184<2000),VLOOKUP(I184,Feuil1!$G$11:$L$25,4),IF(AND(H184>1999,H184<2002),VLOOKUP(I184,Feuil1!$G$11:$L$25,3),VLOOKUP(I184,Feuil1!$G$11:$L$25,2))))))) -> C1 69 | Y184: 118.4851977 | AB184: =T184-HLOOKUP(X184,Feuil1!$C$1:$BL$10,2,FALSE) -> 2 | AC184: =T184-HLOOKUP(X184,Feuil1!$C$1:$BL$10,3,FALSE) -> -18 | AD184: =T184-HLOOKUP(X184,Feuil1!$C$1:$BL$10,4,FALSE) -> -28 | AE184: =T184-HLOOKUP(X184,Feuil1!$C$1:$BL$10,5,FALSE) -> -43 | AF184: =T184-HLOOKUP(X184,Feuil1!$C$1:$BL$10,6,FALSE) -> -63 | AG184: =T184-HLOOKUP(X184,Feuil1!$C$1:$BL$10,7,FALSE) -> -83 | AH184: =T184-HLOOKUP(X184,Feuil1!$C$1:$BL$10,8,FALSE) -> -103 | AI184: =T184-HLOOKUP(X184,Feuil1!$C$1:$BL$10,9,FALSE) -> -123 | AJ184: =T184-HLOOKUP(X184,Feuil1!$C$1:$BL$10,10,FALSE) -> -913 | AQ184: DEB
A185: H | B185: NE | C185: ALS | D185: 25 | E185: 383298 | F185: POTENZA | G185: FLORIAN | H185: 2001 | I185: 64.7 | J185: CHM Andlau | K185: F | L185: 33 | M185: 37 | N185: -41 | O185: 37 | P185: 40 | Q185: 47 | R185: -52 | S185: 47 | T185: 84 | U185: -45.4 | V185: DEB | W185: -1 | X185: =IF(I185="","",IF(A185="H",IF(OR(H185="SEN",H185<1995),VLOOKUP(I185,Feuil1!$A$11:$G$29,6),IF(AND(H185>1994,H185<1998),VLOOKUP(I185,Feuil1!$A$11:$G$29,5),IF(AND(H185>1997,H185<2000),VLOOKUP(I185,Feuil1!$A$11:$G$29,4),IF(AND(H185>1999,H185<2002),VLOOKUP(I185,Feuil1!$A$11:$G$29,3),VLOOKUP(I185,Feuil1!$A$11:$G$29,2))))),IF(OR(H185="SEN",H185<1995),VLOOKUP(I185,Feuil1!$G$11:$L$25,6),IF(AND(H185>1994,H185<1998),VLOOKUP(I185,Feuil1!$G$11:$L$25,5),IF(AND(H185>1997,H185<2000),VLOOKUP(I185,Feuil1!$G$11:$L$25,4),IF(AND(H185>1999,H185<2002),VLOOKUP(I185,Feuil1!$G$11:$L$25,3),VLOOKUP(I185,Feuil1!$G$11:$L$25,2))))))) -> C1 69 | Y185: 117.9188474 | AB185: =T185-HLOOKUP(X185,Feuil1!$C$1:$BL$10,2,FALSE) -> -1 | AC185: =T185-HLOOKUP(X185,Feuil1!$C$1:$BL$10,3,FALSE) -> -21 | AD185: =T185-HLOOKUP(X185,Feuil1!$C$1:$BL$10,4,FALSE) -> -31 | AE185: =T185-HLOOKUP(X185,Feuil1!$C$1:$BL$10,5,FALSE) -> -46 | AF185: =T185-HLOOKUP(X185,Feuil1!$C$1:$BL$10,6,FALSE) -> -66 | AG185: =T185-HLOOKUP(X185,Feuil1!$C$1:$BL$10,7,FALSE) -> -86 | AH185: =T185-HLOOKUP(X185,Feuil1!$C$1:$BL$10,8,FALSE) -> -106 | AI185: =T185-HLOOKUP(X185,Feuil1!$C$1:$BL$10,9,FALSE) -> -126 | AJ185: =T185-HLOOKUP(X185,Feuil1!$C$1:$BL$10,10,FALSE) -> -916 | AQ185: DEB
A186: H | B186: SEST | C186: PRO | D186: 26 | E186: 315320 | F186: BARTHAS | G186: LUCA | H186: 2001 | I186: 69 | J186: EEAR MONTEUX | K186: F | L186: 30 | M186: 33 | N186: -36 | O186: 33 | P186: 42 | Q186: 47 | R186: -50 | S186: 47 | T186: 80 | U186: -58 | V186: DEB | W186: -5 | X186: =IF(I186="","",IF(A186="H",IF(OR(H186="SEN",H186<1995),VLOOKUP(I186,Feuil1!$A$11:$G$29,6),IF(AND(H186>1994,H186<1998),VLOOKUP(I186,Feuil1!$A$11:$G$29,5),IF(AND(H186>1997,H186<2000),VLOOKUP(I186,Feuil1!$A$11:$G$29,4),IF(AND(H186>1999,H186<2002),VLOOKUP(I186,Feuil1!$A$11:$G$29,3),VLOOKUP(I186,Feuil1!$A$11:$G$29,2))))),IF(OR(H186="SEN",H186<1995),VLOOKUP(I186,Feuil1!$G$11:$L$25,6),IF(AND(H186>1994,H186<1998),VLOOKUP(I186,Feuil1!$G$11:$L$25,5),IF(AND(H186>1997,H186<2000),VLOOKUP(I186,Feuil1!$G$11:$L$25,4),IF(AND(H186>1999,H186<2002),VLOOKUP(I186,Feuil1!$G$11:$L$25,3),VLOOKUP(I186,Feuil1!$G$11:$L$25,2))))))) -> C1 69 | Y186: 107.6207643 | AB186: =T186-HLOOKUP(X186,Feuil1!$C$1:$BL$10,2,FALSE) -> -5 | AC186: =T186-HLOOKUP(X186,Feuil1!$C$1:$BL$10,3,FALSE) -> -25 | AD186: =T186-HLOOKUP(X186,Feuil1!$C$1:$BL$10,4,FALSE) -> -35 | AE186: =T186-HLOOKUP(X186,Feuil1!$C$1:$BL$10,5,FALSE) -> -50 | AF186: =T186-HLOOKUP(X186,Feuil1!$C$1:$BL$10,6,FALSE) -> -70 | AG186: =T186-HLOOKUP(X186,Feuil1!$C$1:$BL$10,7,FALSE) -> -90 | AH186: =T186-HLOOKUP(X186,Feuil1!$C$1:$BL$10,8,FALSE) -> -110 | AI186: =T186-HLOOKUP(X186,Feuil1!$C$1:$BL$10,9,FALSE) -> -130 | AJ186: =T186-HLOOKUP(X186,Feuil1!$C$1:$BL$10,10,FALSE) -> -920 | AQ186: DEB
A187: H | B187: NORD | C187: PIC | D187: 27 | E187: 351882 | F187: LELY | G187: Valentin | H187: 2001 | I187: 62.1 | J187: La Ferté Milon CMHM | K187: F | L187: 28 | M187: 31 | N187: 33 | O187: 33 | P187: 35 | Q187: 40 | R187: 45 | S187: 45 | T187: 78 | U187: -46.2 | V187: DEB | W187: -7 | X187: =IF(I187="","",IF(A187="H",IF(OR(H187="SEN",H187<1995),VLOOKUP(I187,Feuil1!$A$11:$G$29,6),IF(AND(H187>1994,H187<1998),VLOOKUP(I187,Feuil1!$A$11:$G$29,5),IF(AND(H187>1997,H187<2000),VLOOKUP(I187,Feuil1!$A$11:$G$29,4),IF(AND(H187>1999,H187<2002),VLOOKUP(I187,Feuil1!$A$11:$G$29,3),VLOOKUP(I187,Feuil1!$A$11:$G$29,2))))),IF(OR(H187="SEN",H187<1995),VLOOKUP(I187,Feuil1!$G$11:$L$25,6),IF(AND(H187>1994,H187<1998),VLOOKUP(I187,Feuil1!$G$11:$L$25,5),IF(AND(H187>1997,H187<2000),VLOOKUP(I187,Feuil1!$G$11:$L$25,4),IF(AND(H187>1999,H187<2002),VLOOKUP(I187,Feuil1!$G$11:$L$25,3),VLOOKUP(I187,Feuil1!$G$11:$L$25,2))))))) -> C1 69 | Y187: 112.6774378 | AB187: =T187-HLOOKUP(X187,Feuil1!$C$1:$BL$10,2,FALSE) -> -7 | AC187: =T187-HLOOKUP(X187,Feuil1!$C$1:$BL$10,3,FALSE) -> -27 | AD187: =T187-HLOOKUP(X187,Feuil1!$C$1:$BL$10,4,FALSE) -> -37 | AE187: =T187-HLOOKUP(X187,Feuil1!$C$1:$BL$10,5,FALSE) -> -52 | AF187: =T187-HLOOKUP(X187,Feuil1!$C$1:$BL$10,6,FALSE) -> -72 | AG187: =T187-HLOOKUP(X187,Feuil1!$C$1:$BL$10,7,FALSE) -> -92 | AH187: =T187-HLOOKUP(X187,Feuil1!$C$1:$BL$10,8,FALSE) -> -112 | AI187: =T187-HLOOKUP(X187,Feuil1!$C$1:$BL$10,9,FALSE) -> -132 | AJ187: =T187-HLOOKUP(X187,Feuil1!$C$1:$BL$10,10,FALSE) -> -922 | AQ187: DEB
A188: H | B188: SEST | C188: RAL | D188: 28 | E188: 390094 | F188: CHANAL | G188: Aubin | H188: 2000 | I188: 65.6 | J188: H.C. ST BALDOPH | K188: F | L188: 33 | M188: 35 | N188: 37 | O188: 37 | P188: 38 | Q188: -40 | R188: 40 | S188: 40 | T188: 77 | U188: -54.2 | V188: DEB | W188: -8 | X188: =IF(I188="","",IF(A188="H",IF(OR(H188="SEN",H188<1995),VLOOKUP(I188,Feuil1!$A$11:$G$29,6),IF(AND(H188>1994,H188<1998),VLOOKUP(I188,Feuil1!$A$11:$G$29,5),IF(AND(H188>1997,H188<2000),VLOOKUP(I188,Feuil1!$A$11:$G$29,4),IF(AND(H188>1999,H188<2002),VLOOKUP(I188,Feuil1!$A$11:$G$29,3),VLOOKUP(I188,Feuil1!$A$11:$G$29,2))))),IF(OR(H188="SEN",H188<1995),VLOOKUP(I188,Feuil1!$G$11:$L$25,6),IF(AND(H188>1994,H188<1998),VLOOKUP(I188,Feuil1!$G$11:$L$25,5),IF(AND(H188>1997,H188<2000),VLOOKUP(I188,Feuil1!$G$11:$L$25,4),IF(AND(H188>1999,H188<2002),VLOOKUP(I188,Feuil1!$G$11:$L$25,3),VLOOKUP(I188,Feuil1!$G$11:$L$25,2))))))) -> C1 69 | Y188: 107.0825527 | AB188: =T188-HLOOKUP(X188,Feuil1!$C$1:$BL$10,2,FALSE) -> -8 | AC188: =T188-HLOOKUP(X188,Feuil1!$C$1:$BL$10,3,FALSE) -> -28 | AD188: =T188-HLOOKUP(X188,Feuil1!$C$1:$BL$10,4,FALSE) -> -38 | AE188: =T188-HLOOKUP(X188,Feuil1!$C$1:$BL$10,5,FALSE) -> -53 | AF188: =T188-HLOOKUP(X188,Feuil1!$C$1:$BL$10,6,FALSE) -> -73 | AG188: =T188-HLOOKUP(X188,Feuil1!$C$1:$BL$10,7,FALSE) -> -93 | AH188: =T188-HLOOKUP(X188,Feuil1!$C$1:$BL$10,8,FALSE) -> -113 | AI188: =T188-HLOOKUP(X188,Feuil1!$C$1:$BL$10,9,FALSE) -> -133 | AJ188: =T188-HLOOKUP(X188,Feuil1!$C$1:$BL$10,10,FALSE) -> -923 | AQ188: DEB
A189: H | B189: NE | C189: BOU | D189: 29 | E189: 393972 | F189: MICHOT | G189: Pierre | H189: 2000 | I189: 63.4 | J189: Varennes Vauzelles | K189: F | L189: 29 | M189: -33 | N189: 33 | O189: 33 | P189: 33 | Q189: 35 | R189: -37 | S189: 35 | T189: 68 | U189: -58.8 | V189: DEB | W189: -17 | X189: =IF(I189="","",IF(A189="H",IF(OR(H189="SEN",H189<1995),VLOOKUP(I189,Feuil1!$A$11:$G$29,6),IF(AND(H189>1994,H189<1998),VLOOKUP(I189,Feuil1!$A$11:$G$29,5),IF(AND(H189>1997,H189<2000),VLOOKUP(I189,Feuil1!$A$11:$G$29,4),IF(AND(H189>1999,H189<2002),VLOOKUP(I189,Feuil1!$A$11:$G$29,3),VLOOKUP(I189,Feuil1!$A$11:$G$29,2))))),IF(OR(H189="SEN",H189<1995),VLOOKUP(I189,Feuil1!$G$11:$L$25,6),IF(AND(H189>1994,H189<1998),VLOOKUP(I189,Feuil1!$G$11:$L$25,5),IF(AND(H189>1997,H189<2000),VLOOKUP(I189,Feuil1!$G$11:$L$25,4),IF(AND(H189>1999,H189<2002),VLOOKUP(I189,Feuil1!$G$11:$L$25,3),VLOOKUP(I189,Feuil1!$G$11:$L$25,2))))))) -> C1 69 | Y189: 96.80667242 | AB189: =T189-HLOOKUP(X189,Feuil1!$C$1:$BL$10,2,FALSE) -> -17 | AC189: =T189-HLOOKUP(X189,Feuil1!$C$1:$BL$10,3,FALSE) -> -37 | AD189: =T189-HLOOKUP(X189,Feuil1!$C$1:$BL$10,4,FALSE) -> -47 | AE189: =T189-HLOOKUP(X189,Feuil1!$C$1:$BL$10,5,FALSE) -> -62 | AF189: =T189-HLOOKUP(X189,Feuil1!$C$1:$BL$10,6,FALSE) -> -82 | AG189: =T189-HLOOKUP(X189,Feuil1!$C$1:$BL$10,7,FALSE) -> -102 | AH189: =T189-HLOOKUP(X189,Feuil1!$C$1:$BL$10,8,FALSE) -> -122 | AI189: =T189-HLOOKUP(X189,Feuil1!$C$1:$BL$10,9,FALSE) -> -142 | AJ189: =T189-HLOOKUP(X189,Feuil1!$C$1:$BL$10,10,FALSE) -> -932 | AQ189: DEB
A190: H | B190: SEST | C190: CAZ | D190: 30 | E190: 372596 | F190: GANDINO | G190: Charly | H190: 2000 | I190: 65.5 | J190: ASPTT DRAGUIGNAN | K190: F | L190: 20 | M190: 25 | N190: 30 | O190: 30 | P190: 30 | Q190: 35 | R190: -40 | S190: 35 | T190: 65 | U190: -66 | V190: DEB | W190: -20 | X190: =IF(I190="","",IF(A190="H",IF(OR(H190="SEN",H190<1995),VLOOKUP(I190,Feuil1!$A$11:$G$29,6),IF(AND(H190>1994,H190<1998),VLOOKUP(I190,Feuil1!$A$11:$G$29,5),IF(AND(H190>1997,H190<2000),VLOOKUP(I190,Feuil1!$A$11:$G$29,4),IF(AND(H190>1999,H190<2002),VLOOKUP(I190,Feuil1!$A$11:$G$29,3),VLOOKUP(I190,Feuil1!$A$11:$G$29,2))))),IF(OR(H190="SEN",H190<1995),VLOOKUP(I190,Feuil1!$G$11:$L$25,6),IF(AND(H190>1994,H190<1998),VLOOKUP(I190,Feuil1!$G$11:$L$25,5),IF(AND(H190>1997,H190<2000),VLOOKUP(I190,Feuil1!$G$11:$L$25,4),IF(AND(H190>1999,H190<2002),VLOOKUP(I190,Feuil1!$G$11:$L$25,3),VLOOKUP(I190,Feuil1!$G$11:$L$25,2))))))) -> C1 69 | Y190: 90.48751275 | AB190: =T190-HLOOKUP(X190,Feuil1!$C$1:$BL$10,2,FALSE) -> -20 | AC190: =T190-HLOOKUP(X190,Feuil1!$C$1:$BL$10,3,FALSE) -> -40 | AD190: =T190-HLOOKUP(X190,Feuil1!$C$1:$BL$10,4,FALSE) -> -50 | AE190: =T190-HLOOKUP(X190,Feuil1!$C$1:$BL$10,5,FALSE) -> -65 | AF190: =T190-HLOOKUP(X190,Feuil1!$C$1:$BL$10,6,FALSE) -> -85 | AG190: =T190-HLOOKUP(X190,Feuil1!$C$1:$BL$10,7,FALSE) -> -105 | AH190: =T190-HLOOKUP(X190,Feuil1!$C$1:$BL$10,8,FALSE) -> -125 | AI190: =T190-HLOOKUP(X190,Feuil1!$C$1:$BL$10,9,FALSE) -> -145 | AJ190: =T190-HLOOKUP(X190,Feuil1!$C$1:$BL$10,10,FALSE) -> -935 | AQ190: DEB
A191: H | B191: SEST | C191: RAL | D191: 31 | E191: 383160 | F191: JULLIAN | G191: Charlely | H191: 2000 | I191: 67.4 | J191: Charlieu | K191: F | L191: 20 | M191: 25 | N191: 30 | O191: 30 | P191: 30 | Q191: 35 | R191: -40 | S191: 35 | T191: 65 | U191: -69.8 | V191: DEB | W191: -20 | X191: =IF(I191="","",IF(A191="H",IF(OR(H191="SEN",H191<1995),VLOOKUP(I191,Feuil1!$A$11:$G$29,6),IF(AND(H191>1994,H191<1998),VLOOKUP(I191,Feuil1!$A$11:$G$29,5),IF(AND(H191>1997,H191<2000),VLOOKUP(I191,Feuil1!$A$11:$G$29,4),IF(AND(H191>1999,H191<2002),VLOOKUP(I191,Feuil1!$A$11:$G$29,3),VLOOKUP(I191,Feuil1!$A$11:$G$29,2))))),IF(OR(H191="SEN",H191<1995),VLOOKUP(I191,Feuil1!$G$11:$L$25,6),IF(AND(H191>1994,H191<1998),VLOOKUP(I191,Feuil1!$G$11:$L$25,5),IF(AND(H191>1997,H191<2000),VLOOKUP(I191,Feuil1!$G$11:$L$25,4),IF(AND(H191>1999,H191<2002),VLOOKUP(I191,Feuil1!$G$11:$L$25,3),VLOOKUP(I191,Feuil1!$G$11:$L$25,2))))))) -> C1 69 | Y191: 88.78107299 | AB191: =T191-HLOOKUP(X191,Feuil1!$C$1:$BL$10,2,FALSE) -> -20 | AC191: =T191-HLOOKUP(X191,Feuil1!$C$1:$BL$10,3,FALSE) -> -40 | AD191: =T191-HLOOKUP(X191,Feuil1!$C$1:$BL$10,4,FALSE) -> -50 | AE191: =T191-HLOOKUP(X191,Feuil1!$C$1:$BL$10,5,FALSE) -> -65 | AF191: =T191-HLOOKUP(X191,Feuil1!$C$1:$BL$10,6,FALSE) -> -85 | AG191: =T191-HLOOKUP(X191,Feuil1!$C$1:$BL$10,7,FALSE) -> -105 | AH191: =T191-HLOOKUP(X191,Feuil1!$C$1:$BL$10,8,FALSE) -> -125 | AI191: =T191-HLOOKUP(X191,Feuil1!$C$1:$BL$10,9,FALSE) -> -145 | AJ191: =T191-HLOOKUP(X191,Feuil1!$C$1:$BL$10,10,FALSE) -> -935 | AQ191: DEB
A192: H | B192: SEST | C192: PRO | D192: 32 | E192: 361674 | F192: LE COZ | G192: KILLIAN | H192: 2001 | I192: 62.1 | J192: ISTRES SPORTS | K192: F | L192: 20 | M192: 23 | N192: 26 | O192: 26 | P192: 30 | Q192: 35 | R192: -38 | S192: 35 | T192: 61 | U192: -63.2 | V192: DEB | W192: -24 | X192: =IF(I192="","",IF(A192="H",IF(OR(H192="SEN",H192<1995),VLOOKUP(I192,Feuil1!$A$11:$G$29,6),IF(AND(H192>1994,H192<1998),VLOOKUP(I192,Feuil1!$A$11:$G$29,5),IF(AND(H192>1997,H192<2000),VLOOKUP(I192,Feuil1!$A$11:$G$29,4),IF(AND(H192>1999,H192<2002),VLOOKUP(I192,Feuil1!$A$11:$G$29,3),VLOOKUP(I192,Feuil1!$A$11:$G$29,2))))),IF(OR(H192="SEN",H192<1995),VLOOKUP(I192,Feuil1!$G$11:$L$25,6),IF(AND(H192>1994,H192<1998),VLOOKUP(I192,Feuil1!$G$11:$L$25,5),IF(AND(H192>1997,H192<2000),VLOOKUP(I192,Feuil1!$G$11:$L$25,4),IF(AND(H192>1999,H192<2002),VLOOKUP(I192,Feuil1!$G$11:$L$25,3),VLOOKUP(I192,Feuil1!$G$11:$L$25,2))))))) -> C1 69 | Y192: 88.11953467 | AB192: =T192-HLOOKUP(X192,Feuil1!$C$1:$BL$10,2,FALSE) -> -24 | AC192: =T192-HLOOKUP(X192,Feuil1!$C$1:$BL$10,3,FALSE) -> -44 | AD192: =T192-HLOOKUP(X192,Feuil1!$C$1:$BL$10,4,FALSE) -> -54 | AE192: =T192-HLOOKUP(X192,Feuil1!$C$1:$BL$10,5,FALSE) -> -69 | AF192: =T192-HLOOKUP(X192,Feuil1!$C$1:$BL$10,6,FALSE) -> -89 | AG192: =T192-HLOOKUP(X192,Feuil1!$C$1:$BL$10,7,FALSE) -> -109 | AH192: =T192-HLOOKUP(X192,Feuil1!$C$1:$BL$10,8,FALSE) -> -129 | AI192: =T192-HLOOKUP(X192,Feuil1!$C$1:$BL$10,9,FALSE) -> -149 | AJ192: =T192-HLOOKUP(X192,Feuil1!$C$1:$BL$10,10,FALSE) -> -939 | AQ192: DEB
A193: H | B193: NORD | C193: NPC | D193: 33 | E193: 357288 | F193: DEVROE | G193: Louis | H193: 2000 | I193: 63.7 | J193: LILLE U.C. | K193: F | L193: 22 | M193: 24 | N193: -26 | O193: 24 | P193: 30 | Q193: 33 | R193: -36 | S193: 33 | T193: 57 | U193: -70.4 | V193: DEB | W193: -28 | X193: =IF(I193="","",IF(A193="H",IF(OR(H193="SEN",H193<1995),VLOOKUP(I193,Feuil1!$A$11:$G$29,6),IF(AND(H193>1994,H193<1998),VLOOKUP(I193,Feuil1!$A$11:$G$29,5),IF(AND(H193>1997,H193<2000),VLOOKUP(I193,Feuil1!$A$11:$G$29,4),IF(AND(H193>1999,H193<2002),VLOOKUP(I193,Feuil1!$A$11:$G$29,3),VLOOKUP(I193,Feuil1!$A$11:$G$29,2))))),IF(OR(H193="SEN",H193<1995),VLOOKUP(I193,Feuil1!$G$11:$L$25,6),IF(AND(H193>1994,H193<1998),VLOOKUP(I193,Feuil1!$G$11:$L$25,5),IF(AND(H193>1997,H193<2000),VLOOKUP(I193,Feuil1!$G$11:$L$25,4),IF(AND(H193>1999,H193<2002),VLOOKUP(I193,Feuil1!$G$11:$L$25,3),VLOOKUP(I193,Feuil1!$G$11:$L$25,2))))))) -> C1 69 | Y193: 80.88039334 | AB193: =T193-HLOOKUP(X193,Feuil1!$C$1:$BL$10,2,FALSE) -> -28 | AC193: =T193-HLOOKUP(X193,Feuil1!$C$1:$BL$10,3,FALSE) -> -48 | AD193: =T193-HLOOKUP(X193,Feuil1!$C$1:$BL$10,4,FALSE) -> -58 | AE193: =T193-HLOOKUP(X193,Feuil1!$C$1:$BL$10,5,FALSE) -> -73 | AF193: =T193-HLOOKUP(X193,Feuil1!$C$1:$BL$10,6,FALSE) -> -93 | AG193: =T193-HLOOKUP(X193,Feuil1!$C$1:$BL$10,7,FALSE) -> -113 | AH193: =T193-HLOOKUP(X193,Feuil1!$C$1:$BL$10,8,FALSE) -> -133 | AI193: =T193-HLOOKUP(X193,Feuil1!$C$1:$BL$10,9,FALSE) -> -153 | AJ193: =T193-HLOOKUP(X193,Feuil1!$C$1:$BL$10,10,FALSE) -> -943 | AQ193: DEB
A194: H | B194: SEST | C194: RAL | D194: 34 | E194: 378672 | F194: DUPRAZ | G194: Loîc | H194: 2000 | I194: 62.3 | J194: H.C. ST BALDOPH | K194: F | L194: 15 | M194: 17 | N194: 19 | O194: 19 | P194: -30 | Q194: 30 | R194: 32 | S194: 32 | T194: 51 | U194: -73.6 | V194: DEB | W194: -34 | X194: =IF(I194="","",IF(A194="H",IF(OR(H194="SEN",H194<1995),VLOOKUP(I194,Feuil1!$A$11:$G$29,6),IF(AND(H194>1994,H194<1998),VLOOKUP(I194,Feuil1!$A$11:$G$29,5),IF(AND(H194>1997,H194<2000),VLOOKUP(I194,Feuil1!$A$11:$G$29,4),IF(AND(H194>1999,H194<2002),VLOOKUP(I194,Feuil1!$A$11:$G$29,3),VLOOKUP(I194,Feuil1!$A$11:$G$29,2))))),IF(OR(H194="SEN",H194<1995),VLOOKUP(I194,Feuil1!$G$11:$L$25,6),IF(AND(H194>1994,H194<1998),VLOOKUP(I194,Feuil1!$G$11:$L$25,5),IF(AND(H194>1997,H194<2000),VLOOKUP(I194,Feuil1!$G$11:$L$25,4),IF(AND(H194>1999,H194<2002),VLOOKUP(I194,Feuil1!$G$11:$L$25,3),VLOOKUP(I194,Feuil1!$G$11:$L$25,2))))))) -> C1 69 | Y194: 73.50539252 | AB194: =T194-HLOOKUP(X194,Feuil1!$C$1:$BL$10,2,FALSE) -> -34 | AC194: =T194-HLOOKUP(X194,Feuil1!$C$1:$BL$10,3,FALSE) -> -54 | AD194: =T194-HLOOKUP(X194,Feuil1!$C$1:$BL$10,4,FALSE) -> -64 | AE194: =T194-HLOOKUP(X194,Feuil1!$C$1:$BL$10,5,FALSE) -> -79 | AF194: =T194-HLOOKUP(X194,Feuil1!$C$1:$BL$10,6,FALSE) -> -99 | AG194: =T194-HLOOKUP(X194,Feuil1!$C$1:$BL$10,7,FALSE) -> -119 | AH194: =T194-HLOOKUP(X194,Feuil1!$C$1:$BL$10,8,FALSE) -> -139 | AI194: =T194-HLOOKUP(X194,Feuil1!$C$1:$BL$10,9,FALSE) -> -159 | AJ194: =T194-HLOOKUP(X194,Feuil1!$C$1:$BL$10,10,FALSE) -> -949 | AQ194: DEB
A195: H | B195: CO | C195: BNO | D195: 35 | E195: 377472 | F195: Mouillard | G195: Melvin | H195: 2001 | I195: 68.4 | J195: Blainville | K195: F | L195: 20 | M195: 23 | N195: 26 | O195: 26 | P195: -23 | Q195: 23 | R195: 25 | S195: 25 | T195: 51 | U195: -85.8 | V195: DEB | W195: -34 | X195: =IF(I195="","",IF(A195="H",IF(OR(H195="SEN",H195<1995),VLOOKUP(I195,Feuil1!$A$11:$G$29,6),IF(AND(H195>1994,H195<1998),VLOOKUP(I195,Feuil1!$A$11:$G$29,5),IF(AND(H195>1997,H195<2000),VLOOKUP(I195,Feuil1!$A$11:$G$29,4),IF(AND(H195>1999,H195<2002),VLOOKUP(I195,Feuil1!$A$11:$G$29,3),VLOOKUP(I195,Feuil1!$A$11:$G$29,2))))),IF(OR(H195="SEN",H195<1995),VLOOKUP(I195,Feuil1!$G$11:$L$25,6),IF(AND(H195>1994,H195<1998),VLOOKUP(I195,Feuil1!$G$11:$L$25,5),IF(AND(H195>1997,H195<2000),VLOOKUP(I195,Feuil1!$G$11:$L$25,4),IF(AND(H195>1999,H195<2002),VLOOKUP(I195,Feuil1!$G$11:$L$25,3),VLOOKUP(I195,Feuil1!$G$11:$L$25,2))))))) -> C1 69 | Y195: 68.99446192 | AB195: =T195-HLOOKUP(X195,Feuil1!$C$1:$BL$10,2,FALSE) -> -34 | AC195: =T195-HLOOKUP(X195,Feuil1!$C$1:$BL$10,3,FALSE) -> -54 | AD195: =T195-HLOOKUP(X195,Feuil1!$C$1:$BL$10,4,FALSE) -> -64 | AE195: =T195-HLOOKUP(X195,Feuil1!$C$1:$BL$10,5,FALSE) -> -79 | AF195: =T195-HLOOKUP(X195,Feuil1!$C$1:$BL$10,6,FALSE) -> -99 | AG195: =T195-HLOOKUP(X195,Feuil1!$C$1:$BL$10,7,FALSE) -> -119 | AH195: =T195-HLOOKUP(X195,Feuil1!$C$1:$BL$10,8,FALSE) -> -139 | AI195: =T195-HLOOKUP(X195,Feuil1!$C$1:$BL$10,9,FALSE) -> -159 | AJ195: =T195-HLOOKUP(X195,Feuil1!$C$1:$BL$10,10,FALSE) -> -949 | AQ195: DEB
A196: H | B196: CO | C196: PDL | D196: 36 | E196: 366168 | F196: AIT SAGGOUT | G196: ZACHARIA | H196: 2001 | I196: 63.7 | J196: CJF Laval-Voutré | K196: Ital | L196: 16 | M196: 18 | N196: 20 | O196: 20 | P196: 22 | Q196: 24 | R196: 26 | S196: 26 | T196: 46 | U196: -81.4 | V196: DEB | W196: -39 | X196: =IF(I196="","",IF(A196="H",IF(OR(H196="SEN",H196<1995),VLOOKUP(I196,Feuil1!$A$11:$G$29,6),IF(AND(H196>1994,H196<1998),VLOOKUP(I196,Feuil1!$A$11:$G$29,5),IF(AND(H196>1997,H196<2000),VLOOKUP(I196,Feuil1!$A$11:$G$29,4),IF(AND(H196>1999,H196<2002),VLOOKUP(I196,Feuil1!$A$11:$G$29,3),VLOOKUP(I196,Feuil1!$A$11:$G$29,2))))),IF(OR(H196="SEN",H196<1995),VLOOKUP(I196,Feuil1!$G$11:$L$25,6),IF(AND(H196>1994,H196<1998),VLOOKUP(I196,Feuil1!$G$11:$L$25,5),IF(AND(H196>1997,H196<2000),VLOOKUP(I196,Feuil1!$G$11:$L$25,4),IF(AND(H196>1999,H196<2002),VLOOKUP(I196,Feuil1!$G$11:$L$25,3),VLOOKUP(I196,Feuil1!$G$11:$L$25,2))))))) -> C1 69 | Y196: 65.27189638 | AB196: =T196-HLOOKUP(X196,Feuil1!$C$1:$BL$10,2,FALSE) -> -39 | AC196: =T196-HLOOKUP(X196,Feuil1!$C$1:$BL$10,3,FALSE) -> -59 | AD196: =T196-HLOOKUP(X196,Feuil1!$C$1:$BL$10,4,FALSE) -> -69 | AE196: =T196-HLOOKUP(X196,Feuil1!$C$1:$BL$10,5,FALSE) -> -84 | AF196: =T196-HLOOKUP(X196,Feuil1!$C$1:$BL$10,6,FALSE) -> -104 | AG196: =T196-HLOOKUP(X196,Feuil1!$C$1:$BL$10,7,FALSE) -> -124 | AH196: =T196-HLOOKUP(X196,Feuil1!$C$1:$BL$10,8,FALSE) -> -144 | AI196: =T196-HLOOKUP(X196,Feuil1!$C$1:$BL$10,9,FALSE) -> -164 | AJ196: =T196-HLOOKUP(X196,Feuil1!$C$1:$BL$10,10,FALSE) -> -954 | AQ196: DEB
A197: H | B197: N | C197: IDF | D197: 37 | E197: 381844 | F197: CATANIA | G197: GABRIEL | H197: 2001 | I197: 64 | J197: NEUILLY | K197: F | L197: 15 | M197: -18 | N197: 18 | O197: 18 | P197: 20 | Q197: 25 | R197: -28 | S197: 25 | T197: 43 | U197: -85 | V197: DEB | W197: -42 | X197: =IF(I197="","",IF(A197="H",IF(OR(H197="SEN",H197<1995),VLOOKUP(I197,Feuil1!$A$11:$G$29,6),IF(AND(H197>1994,H197<1998),VLOOKUP(I197,Feuil1!$A$11:$G$29,5),IF(AND(H197>1997,H197<2000),VLOOKUP(I197,Feuil1!$A$11:$G$29,4),IF(AND(H197>1999,H197<2002),VLOOKUP(I197,Feuil1!$A$11:$G$29,3),VLOOKUP(I197,Feuil1!$A$11:$G$29,2))))),IF(OR(H197="SEN",H197<1995),VLOOKUP(I197,Feuil1!$G$11:$L$25,6),IF(AND(H197>1994,H197<1998),VLOOKUP(I197,Feuil1!$G$11:$L$25,5),IF(AND(H197>1997,H197<2000),VLOOKUP(I197,Feuil1!$G$11:$L$25,4),IF(AND(H197>1999,H197<2002),VLOOKUP(I197,Feuil1!$G$11:$L$25,3),VLOOKUP(I197,Feuil1!$G$11:$L$25,2))))))) -> C1 69 | Y197: 60.81661082 | AB197: =T197-HLOOKUP(X197,Feuil1!$C$1:$BL$10,2,FALSE) -> -42 | AC197: =T197-HLOOKUP(X197,Feuil1!$C$1:$BL$10,3,FALSE) -> -62 | AD197: =T197-HLOOKUP(X197,Feuil1!$C$1:$BL$10,4,FALSE) -> -72 | AE197: =T197-HLOOKUP(X197,Feuil1!$C$1:$BL$10,5,FALSE) -> -87 | AF197: =T197-HLOOKUP(X197,Feuil1!$C$1:$BL$10,6,FALSE) -> -107 | AG197: =T197-HLOOKUP(X197,Feuil1!$C$1:$BL$10,7,FALSE) -> -127 | AH197: =T197-HLOOKUP(X197,Feuil1!$C$1:$BL$10,8,FALSE) -> -147 | AI197: =T197-HLOOKUP(X197,Feuil1!$C$1:$BL$10,9,FALSE) -> -167 | AJ197: =T197-HLOOKUP(X197,Feuil1!$C$1:$BL$10,10,FALSE) -> -957 | AQ197: DEB
A198: H | B198: CO | C198: BNO | D198: 38 | E198: 378973 | F198: Malhere | G198: Axel | H198: 2001 | I198: 62.7 | J198: Giberville | K198: F | L198: 13 | M198: 16 | N198: -18 | O198: 16 | P198: 18 | Q198: 20 | R198: 22 | S198: 22 | T198: 38 | U198: -87.4 | V198: DEB | W198: -47 | X198: =IF(I198="","",IF(A198="H",IF(OR(H198="SEN",H198<1995),VLOOKUP(I198,Feuil1!$A$11:$G$29,6),IF(AND(H198>1994,H198<1998),VLOOKUP(I198,Feuil1!$A$11:$G$29,5),IF(AND(H198>1997,H198<2000),VLOOKUP(I198,Feuil1!$A$11:$G$29,4),IF(AND(H198>1999,H198<2002),VLOOKUP(I198,Feuil1!$A$11:$G$29,3),VLOOKUP(I198,Feuil1!$A$11:$G$29,2))))),IF(OR(H198="SEN",H198<1995),VLOOKUP(I198,Feuil1!$G$11:$L$25,6),IF(AND(H198>1994,H198<1998),VLOOKUP(I198,Feuil1!$G$11:$L$25,5),IF(AND(H198>1997,H198<2000),VLOOKUP(I198,Feuil1!$G$11:$L$25,4),IF(AND(H198>1999,H198<2002),VLOOKUP(I198,Feuil1!$G$11:$L$25,3),VLOOKUP(I198,Feuil1!$G$11:$L$25,2))))))) -> C1 69 | Y198: 54.52111168 | AB198: =T198-HLOOKUP(X198,Feuil1!$C$1:$BL$10,2,FALSE) -> -47 | AC198: =T198-HLOOKUP(X198,Feuil1!$C$1:$BL$10,3,FALSE) -> -67 | AD198: =T198-HLOOKUP(X198,Feuil1!$C$1:$BL$10,4,FALSE) -> -77 | AE198: =T198-HLOOKUP(X198,Feuil1!$C$1:$BL$10,5,FALSE) -> -92 | AF198: =T198-HLOOKUP(X198,Feuil1!$C$1:$BL$10,6,FALSE) -> -112 | AG198: =T198-HLOOKUP(X198,Feuil1!$C$1:$BL$10,7,FALSE) -> -132 | AH198: =T198-HLOOKUP(X198,Feuil1!$C$1:$BL$10,8,FALSE) -> -152 | AI198: =T198-HLOOKUP(X198,Feuil1!$C$1:$BL$10,9,FALSE) -> -172 | AJ198: =T198-HLOOKUP(X198,Feuil1!$C$1:$BL$10,10,FALSE) -> -962 | AQ198: DEB
AB199: =T199-HLOOKUP(X199,[1]Feuil1!$C$1:$BL$10,2,FALSE) ->  | AC199: =T199-HLOOKUP(X199,[1]Feuil1!$C$1:$BL$10,3,FALSE) ->  | AD199: =T199-HLOOKUP(X199,[1]Feuil1!$C$1:$BL$10,4,FALSE) ->  | AE199: =T199-HLOOKUP(X199,[1]Feuil1!$C$1:$BL$10,5,FALSE) ->  | AF199: =T199-HLOOKUP(X199,[1]Feuil1!$C$1:$BL$10,6,FALSE) ->  | AG199: =T199-HLOOKUP(X199,[1]Feuil1!$C$1:$BL$10,7,FALSE) ->  | AH199: =T199-HLOOKUP(X199,[1]Feuil1!$C$1:$BL$10,8,FALSE) ->  | AI199: =T199-HLOOKUP(X199,[1]Feuil1!$C$1:$BL$10,9,FALSE) ->  | AJ199: =T199-HLOOKUP(X199,[1]Feuil1!$C$1:$BL$10,10,FALSE) ->  | AQ199: =IF(AJ199>=0,$AJ$4,IF(AI199>=0,$AI$4,IF(AH199>=0,$AH$4,IF(AG199>=0,$AG$4,IF(AF199>=0,$AF$4,IF(AE199>=0,$AE$4,IF(AD199>=0,$AD$4,IF(AC199>=0,$AC$4,$AB$4)))))))) -> 
A200: H | B200: NORD | C200: NPC | D200: 1 | E200: 272004 | F200: FRANCHOIS | G200: Kévin | H200: 2000 | I200: 75.5 | J200: ST POL SUR MER | K200: F | L200: 80 | M200: 83 | N200: 85 | O200: =IF(H200="","",IF(MAXA(L200:N200)<=0,0,MAXA(L200:N200))) -> 85 | P200: 100 | Q200: 105 | R200: -110 | S200: =IF(H200="","",IF(MAXA(P200:R200)<=0,0,MAXA(P200:R200))) -> 105 | T200: =IF(H200="","",IF(OR(O200=0,S200=0),0,O200+S200)) -> 190 | U200: =T200-I200*2 -> 39 | V200: =IF(H200="","",AQ200) -> NAT + | W200: =IF(AJ200>=0,AJ200,IF(AI200>=0,AI200,IF(AH200>=0,AH200,IF(AG200>=0,AG200,IF(AF200>=0,AF200,IF(AE200>=0,AE200,IF(AD200>=0,AD200,IF(AC200>=0,AC200,AB200)))))))) -> 5 | X200: =IF(I200="","",IF(A200="H",IF(OR(H200="SEN",H200<1995),VLOOKUP(I200,Feuil1!$A$11:$G$29,6),IF(AND(H200>1994,H200<1998),VLOOKUP(I200,Feuil1!$A$11:$G$29,5),IF(AND(H200>1997,H200<2000),VLOOKUP(I200,Feuil1!$A$11:$G$29,4),IF(AND(H200>1999,H200<2002),VLOOKUP(I200,Feuil1!$A$11:$G$29,3),VLOOKUP(I200,Feuil1!$A$11:$G$29,2))))),IF(OR(H200="SEN",H200<1995),VLOOKUP(I200,Feuil1!$G$11:$L$25,6),IF(AND(H200>1994,H200<1998),VLOOKUP(I200,Feuil1!$G$11:$L$25,5),IF(AND(H200>1997,H200<2000),VLOOKUP(I200,Feuil1!$G$11:$L$25,4),IF(AND(H200>1999,H200<2002),VLOOKUP(I200,Feuil1!$G$11:$L$25,3),VLOOKUP(I200,Feuil1!$G$11:$L$25,2))))))) -> C1 77 | Y200: =IF(I200="","",IF(A200="H",10^(0.794358141*LOG(I200/174.393)^2)*T200,IF(A200="F",10^(0.89726074*LOG(I200/148.026)^2)*T200,""))) -> 241.9699004 | AB200: =T200-HLOOKUP(X200,Feuil1!$C$1:$BL$10,2,FALSE) -> 100 | AC200: =T200-HLOOKUP(X200,Feuil1!$C$1:$BL$10,3,FALSE) -> 80 | AD200: =T200-HLOOKUP(X200,Feuil1!$C$1:$BL$10,4,FALSE) -> 60 | AE200: =T200-HLOOKUP(X200,Feuil1!$C$1:$BL$10,5,FALSE) -> 40 | AF200: =T200-HLOOKUP(X200,Feuil1!$C$1:$BL$10,6,FALSE) -> 20 | AG200: =T200-HLOOKUP(X200,Feuil1!$C$1:$BL$10,7,FALSE) -> 5 | AH200: =T200-HLOOKUP(X200,Feuil1!$C$1:$BL$10,8,FALSE) -> -10 | AI200: =T200-HLOOKUP(X200,Feuil1!$C$1:$BL$10,9,FALSE) -> -30 | AJ200: =T200-HLOOKUP(X200,Feuil1!$C$1:$BL$10,10,FALSE) -> -810 | AQ200: =IF(AJ200>=0,$AJ$4,IF(AI200>=0,$AI$4,IF(AH200>=0,$AH$4,IF(AG200>=0,$AG$4,IF(AF200>=0,$AF$4,IF(AE200>=0,$AE$4,IF(AD200>=0,$AD$4,IF(AC200>=0,$AC$4,$AB$4)))))))) -> NAT +
A201: H | B201: DOM | C201: REU | D201: 2 | E201: 323504 | F201: PATCHIE | G201: TOMMY | H201: 2000 | I201: 76.43 | J201: SCHM St Paul | K201: F | L201: 70 | M201: 73 | N201: -76 | O201: 73 | P201: 89 | Q201: 94 | R201: 97 | S201: 97 | T201: 170 | U201: 17.14 | V201: FED + | W201: 0 | X201: =IF(I201="","",IF(A201="H",IF(OR(H201="SEN",H201<1995),VLOOKUP(I201,Feuil1!$A$11:$G$29,6),IF(AND(H201>1994,H201<1998),VLOOKUP(I201,Feuil1!$A$11:$G$29,5),IF(AND(H201>1997,H201<2000),VLOOKUP(I201,Feuil1!$A$11:$G$29,4),IF(AND(H201>1999,H201<2002),VLOOKUP(I201,Feuil1!$A$11:$G$29,3),VLOOKUP(I201,Feuil1!$A$11:$G$29,2))))),IF(OR(H201="SEN",H201<1995),VLOOKUP(I201,Feuil1!$G$11:$L$25,6),IF(AND(H201>1994,H201<1998),VLOOKUP(I201,Feuil1!$G$11:$L$25,5),IF(AND(H201>1997,H201<2000),VLOOKUP(I201,Feuil1!$G$11:$L$25,4),IF(AND(H201>1999,H201<2002),VLOOKUP(I201,Feuil1!$G$11:$L$25,3),VLOOKUP(I201,Feuil1!$G$11:$L$25,2))))))) -> C1 77 | Y201: 214.9848831 | AB201: =T201-HLOOKUP(X201,Feuil1!$C$1:$BL$10,2,FALSE) -> 80 | AC201: =T201-HLOOKUP(X201,Feuil1!$C$1:$BL$10,3,FALSE) -> 60 | AD201: =T201-HLOOKUP(X201,Feuil1!$C$1:$BL$10,4,FALSE) -> 40 | AE201: =T201-HLOOKUP(X201,Feuil1!$C$1:$BL$10,5,FALSE) -> 20 | AF201: =T201-HLOOKUP(X201,Feuil1!$C$1:$BL$10,6,FALSE) -> 0 | AG201: =T201-HLOOKUP(X201,Feuil1!$C$1:$BL$10,7,FALSE) -> -15 | AH201: =T201-HLOOKUP(X201,Feuil1!$C$1:$BL$10,8,FALSE) -> -30 | AI201: =T201-HLOOKUP(X201,Feuil1!$C$1:$BL$10,9,FALSE) -> -50 | AJ201: =T201-HLOOKUP(X201,Feuil1!$C$1:$BL$10,10,FALSE) -> -830 | AQ201: FED +
... 67 more rows

Sheet CADETS 2
F1: LISTING NATIONAL | H1: MASCULINS | Q1: DATE : | S1: 2015-03-08
L2: 2° TRIMESTRE
A4: SEXE | B4: ZONE | C4: REG. | D4: CL. | E4: LICENCE | F4: NOMS | G4: Prénoms | H4: AN | I4: POIDS | J4: CLUB | K4: NAT | L4: 1 | M4: 2 | N4: 3 | O4: ARR | P4: 1 | Q4: 2 | R4: 3 | S4: EP-J | T4: Total | U4: KP-2PC | V4: SERIE | X4: Catég | Y4: IWF | AB4: DEB | AC4: DEP + | AD4: REG + | AE4: IRG + | AF4: FED + | AG4: NAT + | AH4: INTB + | AI4: INTA + | AJ4: OLY +
AB5: =T5-HLOOKUP(X5,[1]Feuil1!$C$1:$BL$10,2,FALSE) ->  | AC5: =T5-HLOOKUP(X5,[1]Feuil1!$C$1:$BL$10,3,FALSE) ->  | AD5: =T5-HLOOKUP(X5,[1]Feuil1!$C$1:$BL$10,4,FALSE) ->  | AE5: =T5-HLOOKUP(X5,[1]Feuil1!$C$1:$BL$10,5,FALSE) ->  | AF5: =T5-HLOOKUP(X5,[1]Feuil1!$C$1:$BL$10,6,FALSE) ->  | AG5: =T5-HLOOKUP(X5,[1]Feuil1!$C$1:$BL$10,7,FALSE) ->  | AH5: =T5-HLOOKUP(X5,[1]Feuil1!$C$1:$BL$10,8,FALSE) ->  | AI5: =T5-HLOOKUP(X5,[1]Feuil1!$C$1:$BL$10,9,FALSE) ->  | AJ5: =T5-HLOOKUP(X5,[1]Feuil1!$C$1:$BL$10,10,FALSE) ->  | AQ5: =IF(AJ5>=0,$AJ$4,IF(AI5>=0,$AI$4,IF(AH5>=0,$AH$4,IF(AG5>=0,$AG$4,IF(AF5>=0,$AF$4,IF(AE5>=0,$AE$4,IF(AD5>=0,$AD$4,IF(AC5>=0,$AC$4,$AB$4)))))))) -> 
